Workbook

Sheet TEST PAGE (hidden)
C1: USM | D1: CSI | E1: NWC | F1: UAM | G1: L&C | H1: BGSU | I1: MTSU | J1: PLNU | AV1: Head to Head | AW1: H/L | AX1: 7th Tourn. | AY1: 8th Tourn.
A2: Participant Count | C2: =IF(COUNTIFS(C$4:C$1000,"<>"),COUNTIFS(C$4:C$1000,"<>")," ") -> 22 | D2: =IF(COUNTIFS(D$4:D$1000,"<>"),COUNTIFS(D$4:D$1000,"<>")," ") -> 11 | E2: 5 | F2: 5 | G2: 5 | I2: 8 | J2: 4 | K2: 11 | L2: 3 | M2: 4 | N2: 9 | O2: 6 | P2: 5 | Q2: 6 | R2: 2 | S2: 6 | T2: 9 | U2: 3 | V2: 2 | W2: 6 | X2: 1 | Y2: 13 | Z2: 2 | AB2: 4 | AC2: 5 | AH2: 1
B3: Novice Indivudual | C3: USM (9/25-26) | D3: CSI (9/24-25) | E3: NW College (9/24-25) | F3: UAM (10/8-10) | G3: L & C / Whitman (10/8-10) | H3: BGSU (10/16-17) | I3: MTSU (10/22-23) | J3: PLNU (10/22-23) | AR3: over 6/2nd host | AS3: Total Points | AT3: Tournament Count | AU3: Best Top 6 | AV3: 1st Tie Breaker | AW3: 2nd Tie Breaker | AX3: 3rd Tie Breaker | AY3: 4th Tie Breaker | AZ3: 5th Tie Breaker
A4: =IF(ISBLANK(B4)," ",(LEFT(B4,FIND("@",SUBSTITUTE(B4,"-","@",LEN(B4)-LEN(SUBSTITUTE(B4,"-",""))))-1))) -> UT | B4: UT- Jenkins | F4: 4 | I4: 13 | M4: 11 | O4: 16 | Q4: 13 | AS4: =SUM($C4:$AR4) -> 57 | AT4: =COUNTA(C4:AQ4) -> 5 | AU4: =IF($AT4<=6,SUM($C4:$AQ4),SUMPRODUCT(LARGE($C4:$AQ4,{1,2,3,4,5,6}))) -> 57 | AV4: =IF(AND($AT4>=6,AU4=AU5),"Manual Calc Needed","") ->  | AW4: =IF(AND($AT4>=6,$AV4="Tie"),"Manual Calc Needed"," ") ->  | AX4: =IFERROR(SUMPRODUCT(LARGE($C4:$AQ4,{1,2,3,4})), "") -> 53 | AY4: =IF(AND($AT4>=6,$AV4="Tie",AX4=AX5),"Manual Calc Needed"," ") ->  | AZ4: =IFERROR(SUMPRODUCT(LARGE($C4:$AQ4,{1,2,3,4,5,6,7,8})), "") -> 
A5: =IF(ISBLANK(B5)," ",(LEFT(B5,FIND("@",SUBSTITUTE(B5,"-","@",LEN(B5)-LEN(SUBSTITUTE(B5,"-",""))))-1))) -> Lee | B5: Lee- Kinder | I5: 5 | K5: 11 | N5: 8 | S5: 5 | T5: 10 | W5: 7 | Y5: 6 | AC5: 15 | AR5: -10 | AS5: =SUM($C5:$AR5) -> 57 | AT5: =COUNTA(C5:AQ5) -> 8 | AU5: =IF($AT5<=6,SUM($C5:$AQ5),SUMPRODUCT(LARGE($C5:$AQ5,{1,2,3,4,5,6}))) -> 57 | AV5: =IF(AND($AT5>=6,AU5=AU6),"Manual Calc Needed","") ->  | AX5: =IFERROR(SUMPRODUCT(LARGE($C5:$AQ5,{1,2,3,4})), "") -> 44 | AY5: =IF(AND($AT5>=6,$AV5="Tie",AX5=AX6),"Manual Calc Needed"," ") ->  | AZ5: =IFERROR(SUMPRODUCT(LARGE($C5:$AQ5,{1,2,3,4,5,6,7,8})), "") -> 67
A6: UCA | B6: UCA- King | D6: 5 | F6: 8 | K6: 8 | T6: 12 | Y6: 9 | AB6: 7 | AS6: 49 | AT6: =COUNTA(C6:AQ6) -> 6 | AU6: =IF($AT6<=6,SUM($C6:$AQ6),SUMPRODUCT(LARGE($C6:$AQ6,{1,2,3,4,5,6}))) -> 49 | AX6: =IFERROR(SUMPRODUCT(LARGE($C6:$AQ6,{1,2,3,4})), "") -> 37 | AZ6: =IFERROR(SUMPRODUCT(LARGE($C6:$AQ6,{1,2,3,4,5,6,7,8})), "") -> 
A7: OkBU | B7: OkBU- Webber | D7: 7 | E7: 4 | K7: 17 | Q7: 3 | W7: 8 | AB7: 8 | AS7: 47 | AT7: 6 | AU7: =IF($AT7<=6,SUM($C7:$AQ7),SUMPRODUCT(LARGE($C7:$AQ7,{1,2,3,4,5,6}))) -> 47 | AX7: =IFERROR(SUMPRODUCT(LARGE($C7:$AQ7,{1,2,3,4})), "") -> 40 | AZ7: =IFERROR(SUMPRODUCT(LARGE($C7:$AQ7,{1,2,3,4,5,6,7,8})), "") -> 
A8: LTU | B8: LTU- Dean | I8: 5 | K8: 7 | N8: 13 | Q8: 3 | T8: 5 | Y8: 2 | AC8: 13 | AR8: -2 | AS8: 46 | AT8: 7 | AU8: =IF($AT8<=6,SUM($C8:$AQ8),SUMPRODUCT(LARGE($C8:$AQ8,{1,2,3,4,5,6}))) -> 46 | AX8: =IFERROR(SUMPRODUCT(LARGE($C8:$AQ8,{1,2,3,4})), "") -> 38 | AZ8: =IFERROR(SUMPRODUCT(LARGE($C8:$AQ8,{1,2,3,4,5,6,7,8})), "") -> 
A9: SMU | B9: SMU- Waite | E9: 5 | L9: 12 | N9: 7 | W9: 4 | Y9: 8 | AC9: 8 | AS9: 44 | AT9: 6 | AU9: =IF($AT9<=6,SUM($C9:$AQ9),SUMPRODUCT(LARGE($C9:$AQ9,{1,2,3,4,5,6}))) -> 44 | AV9: Manual Calc Needed | AX9: =IFERROR(SUMPRODUCT(LARGE($C9:$AQ9,{1,2,3,4})), "") -> 35 | AZ9: =IFERROR(SUMPRODUCT(LARGE($C9:$AQ9,{1,2,3,4,5,6,7,8})), "") -> 
A10: USM | B10: USM- Duley | F10: 5 | S10: 9 | T10: 15 | Y10: 15 | AS10: 44 | AT10: 4 | AU10: =IF($AT10<=6,SUM($C10:$AQ10),SUMPRODUCT(LARGE($C10:$AQ10,{1,2,3,4,5,6}))) -> 44 | AX10: =IFERROR(SUMPRODUCT(LARGE($C10:$AQ10,{1,2,3,4})), "") -> 44 | AZ10: =IFERROR(SUMPRODUCT(LARGE($C10:$AQ10,{1,2,3,4,5,6,7,8})), "") -> 
A11: UU | B11: UU- Huddleston | D11: 15 | F11: 4 | I11: 15 | M11: 5 | AS11: 39 | AT11: 4 | AU11: =IF($AT11<=6,SUM($C11:$AQ11),SUMPRODUCT(LARGE($C11:$AQ11,{1,2,3,4,5,6}))) -> 39 | AX11: =IFERROR(SUMPRODUCT(LARGE($C11:$AQ11,{1,2,3,4})), "") -> 39 | AZ11: =IFERROR(SUMPRODUCT(LARGE($C11:$AQ11,{1,2,3,4,5,6,7,8})), "") -> 
A12: SFA | B12: SFA- Kemp | K12: 8 | L12: 8 | N12: 4 | W12: 5 | Y12: 6 | AC12: 6 | AS12: 37 | AT12: 6 | AU12: =IF($AT12<=6,SUM($C12:$AQ12),SUMPRODUCT(LARGE($C12:$AQ12,{1,2,3,4,5,6}))) -> 37 | AX12: =IFERROR(SUMPRODUCT(LARGE($C12:$AQ12,{1,2,3,4})), "") -> 28 | AZ12: =IFERROR(SUMPRODUCT(LARGE($C12:$AQ12,{1,2,3,4,5,6,7,8})), "") -> 
A13: LC | B13: LC- Baugh | E13: 7 | K13: 9 | N13: 7 | Y13: 13 | AS13: 36 | AT13: 4 | AU13: =IF($AT13<=6,SUM($C13:$AQ13),SUMPRODUCT(LARGE($C13:$AQ13,{1,2,3,4,5,6}))) -> 36 | AX13: =IFERROR(SUMPRODUCT(LARGE($C13:$AQ13,{1,2,3,4})), "") -> 36 | AZ13: =IFERROR(SUMPRODUCT(LARGE($C13:$AQ13,{1,2,3,4,5,6,7,8})), "") -> 
A14: LTU | B14: LTU- Kruskie | D14: 6 | I14: 6 | K14: 4 | N14: 7 | Q14: 7 | T14: 5 | Y14: 5 | AR14: -4 | AS14: 36 | AT14: 7 | AU14: =IF($AT14<=6,SUM($C14:$AQ14),SUMPRODUCT(LARGE($C14:$AQ14,{1,2,3,4,5,6}))) -> 36 | AX14: =IFERROR(SUMPRODUCT(LARGE($C14:$AQ14,{1,2,3,4})), "") -> 26 | AZ14: =IFERROR(SUMPRODUCT(LARGE($C14:$AQ14,{1,2,3,4,5,6,7,8})), "") -> 
A15: UU | B15: UU- Thompson | D15: 8 | I15: 7 | O15: 15 | Y15: 4 | AS15: 34 | AT15: 4 | AU15: =IF($AT15<=6,SUM($C15:$AQ15),SUMPRODUCT(LARGE($C15:$AQ15,{1,2,3,4,5,6}))) -> 34 | AX15: =IFERROR(SUMPRODUCT(LARGE($C15:$AQ15,{1,2,3,4})), "") -> 34 | AZ15: =IFERROR(SUMPRODUCT(LARGE($C15:$AQ15,{1,2,3,4,5,6,7,8})), "") -> 
A16: BPCC | B16: BPCC- Stoneman | D16: 3 | E16: 4 | I16: 3 | K16: 3 | N16: 8 | S16: 6 | T16: 9 | AR16: -3 | AS16: 33 | AT16: 7 | AU16: =IF($AT16<=6,SUM($C16:$AQ16),SUMPRODUCT(LARGE($C16:$AQ16,{1,2,3,4,5,6}))) -> 33 | AX16: =IFERROR(SUMPRODUCT(LARGE($C16:$AQ16,{1,2,3,4})), "") -> 27 | AZ16: =IFERROR(SUMPRODUCT(LARGE($C16:$AQ16,{1,2,3,4,5,6,7,8})), "") -> 
A17: OkBU | B17: OkBU- Pipes | D17: 3 | E17: 3 | K17: 9 | Q17: 4 | W17: 2 | AB17: 10 | AS17: 31 | AT17: 6 | AU17: =IF($AT17<=6,SUM($C17:$AQ17),SUMPRODUCT(LARGE($C17:$AQ17,{1,2,3,4,5,6}))) -> 31 | AV17: Manual Calc Needed | AX17: =IFERROR(SUMPRODUCT(LARGE($C17:$AQ17,{1,2,3,4})), "") -> 26 | AZ17: =IFERROR(SUMPRODUCT(LARGE($C17:$AQ17,{1,2,3,4,5,6,7,8})), "") -> 
A18: UU | B18: UU- Sheilley | D18: 9 | M18: 10 | O18: 10 | Y18: 2 | AS18: 31 | AT18: 4 | AU18: =IF($AT18<=6,SUM($C18:$AQ18),SUMPRODUCT(LARGE($C18:$AQ18,{1,2,3,4,5,6}))) -> 31 | AX18: =IFERROR(SUMPRODUCT(LARGE($C18:$AQ18,{1,2,3,4})), "") -> 31 | AZ18: =IFERROR(SUMPRODUCT(LARGE($C18:$AQ18,{1,2,3,4,5,6,7,8})), "") -> 
A19: NACC | B19: NACC- Ivy | D19: 3 | K19: 3 | S19: 4 | T19: 7 | Y19: 11 | AS19: 28 | AT19: 5 | AU19: =IF($AT19<=6,SUM($C19:$AQ19),SUMPRODUCT(LARGE($C19:$AQ19,{1,2,3,4,5,6}))) -> 28 | AX19: =IFERROR(SUMPRODUCT(LARGE($C19:$AQ19,{1,2,3,4})), "") -> 25 | AZ19: =IFERROR(SUMPRODUCT(LARGE($C19:$AQ19,{1,2,3,4,5,6,7,8})), "") -> 
A20: WhU | B20: WhU- Lorenc | G20: 11 | J20: 5 | P20: 12 | AS20: 28 | AT20: 3 | AU20: =IF($AT20<=6,SUM($C20:$AQ20),SUMPRODUCT(LARGE($C20:$AQ20,{1,2,3,4,5,6}))) -> 28 | AX20: =IFERROR(SUMPRODUCT(LARGE($C20:$AQ20,{1,2,3,4})), "") ->  | AZ20: =IFERROR(SUMPRODUCT(LARGE($C20:$AQ20,{1,2,3,4,5,6,7,8})), "") -> 
A21: ACU | B21: ACU- Kahongo | L21: 11 | N21: 13 | X21: 2 | AS21: 26 | AT21: 3 | AU21: =IF($AT21<=6,SUM($C21:$AQ21),SUMPRODUCT(LARGE($C21:$AQ21,{1,2,3,4,5,6}))) -> 26 | AX21: =IFERROR(SUMPRODUCT(LARGE($C21:$AQ21,{1,2,3,4})), "") ->  | AZ21: =IFERROR(SUMPRODUCT(LARGE($C21:$AQ21,{1,2,3,4,5,6,7,8})), "") -> 
A22: LCC | B22: LCC- Brown | G22: 2 | P22: 4 | R22: 8 | U22: 8 | Z22: 4 | AS22: 26 | AT22: 5 | AU22: =IF($AT22<=6,SUM($C22:$AQ22),SUMPRODUCT(LARGE($C22:$AQ22,{1,2,3,4,5,6}))) -> 26 | AX22: =IFERROR(SUMPRODUCT(LARGE($C22:$AQ22,{1,2,3,4})), "") -> 24 | AZ22: =IFERROR(SUMPRODUCT(LARGE($C22:$AQ22,{1,2,3,4,5,6,7,8})), "") -> 
A23: UT | B23: UT- Winningham | F23: 3 | I23: 6 | O23: 3 | Q23: 7 | V23: 7 | AS23: 26 | AT23: 5 | AU23: =IF($AT23<=6,SUM($C23:$AQ23),SUMPRODUCT(LARGE($C23:$AQ23,{1,2,3,4,5,6}))) -> 26 | AX23: =IFERROR(SUMPRODUCT(LARGE($C23:$AQ23,{1,2,3,4})), "") -> 23 | AZ23: =IFERROR(SUMPRODUCT(LARGE($C23:$AQ23,{1,2,3,4,5,6,7,8})), "") -> 
A24: WhU | B24: WhU- Plunkett | G24: 3 | J24: 3 | P24: 3 | U24: 3 | Y24: 9 | AH24: 5 | AS24: 26 | AT24: 6 | AU24: =IF($AT24<=6,SUM($C24:$AQ24),SUMPRODUCT(LARGE($C24:$AQ24,{1,2,3,4,5,6}))) -> 26 | AX24: =IFERROR(SUMPRODUCT(LARGE($C24:$AQ24,{1,2,3,4})), "") -> 20 | AZ24: =IFERROR(SUMPRODUCT(LARGE($C24:$AQ24,{1,2,3,4,5,6,7,8})), "") -> 
A25: CoM | B25: CoM- Pannell | D25: 4 | K25: 4 | N25: 11 | S25: 6 | AS25: 25 | AT25: 4 | AU25: =IF($AT25<=6,SUM($C25:$AQ25),SUMPRODUCT(LARGE($C25:$AQ25,{1,2,3,4,5,6}))) -> 25 | AX25: =IFERROR(SUMPRODUCT(LARGE($C25:$AQ25,{1,2,3,4})), "") -> 25 | AZ25: =IFERROR(SUMPRODUCT(LARGE($C25:$AQ25,{1,2,3,4,5,6,7,8})), "") -> 
A26: LCC | B26: LCC- Mahoney | G26: 2 | J26: 3 | P26: 7 | R26: 4 | U26: 3 | Z26: 6 | AS26: 25 | AT26: 6 | AU26: =IF($AT26<=6,SUM($C26:$AQ26),SUMPRODUCT(LARGE($C26:$AQ26,{1,2,3,4,5,6}))) -> 25 | AV26: Manual Calc Needed | AX26: =IFERROR(SUMPRODUCT(LARGE($C26:$AQ26,{1,2,3,4})), "") -> 20 | AZ26: =IFERROR(SUMPRODUCT(LARGE($C26:$AQ26,{1,2,3,4,5,6,7,8})), "") -> 
A27: LCC | B27: LCC- Tovar | G27: 5 | J27: 11 | P27: 9 | AS27: 25 | AT27: 3 | AU27: =IF($AT27<=6,SUM($C27:$AQ27),SUMPRODUCT(LARGE($C27:$AQ27,{1,2,3,4,5,6}))) -> 25 | AX27: =IFERROR(SUMPRODUCT(LARGE($C27:$AQ27,{1,2,3,4})), "") ->  | AZ27: =IFERROR(SUMPRODUCT(LARGE($C27:$AQ27,{1,2,3,4,5,6,7,8})), "") -> 
A28: MiSU | B28: MiSU- Kroneberger | O28: 3 | T28: 5 | V28: 8 | Y28: 7 | AB28: 2 | AS28: 25 | AT28: 5 | AU28: =IF($AT28<=6,SUM($C28:$AQ28),SUMPRODUCT(LARGE($C28:$AQ28,{1,2,3,4,5,6}))) -> 25 | AX28: =IFERROR(SUMPRODUCT(LARGE($C28:$AQ28,{1,2,3,4})), "") -> 23 | AZ28: =IFERROR(SUMPRODUCT(LARGE($C28:$AQ28,{1,2,3,4,5,6,7,8})), "") -> 
A29: UU | B29: UU- Geary | D29: 11 | M29: 7 | O29: 7 | AS29: 25 | AT29: 3 | AU29: =IF($AT29<=6,SUM($C29:$AQ29),SUMPRODUCT(LARGE($C29:$AQ29,{1,2,3,4,5,6}))) -> 25 | AX29: =IFERROR(SUMPRODUCT(LARGE($C29:$AQ29,{1,2,3,4})), "") ->  | AZ29: =IFERROR(SUMPRODUCT(LARGE($C29:$AQ29,{1,2,3,4,5,6,7,8})), "") -> 
A30: BPCC | B30: BPCC- Robison | S30: 1 | T30: 1 | W30: 9 | AC30: 13 | AS30: 24 | AT30: 4 | AU30: =IF($AT30<=6,SUM($C30:$AQ30),SUMPRODUCT(LARGE($C30:$AQ30,{1,2,3,4,5,6}))) -> 24 | AX30: =IFERROR(SUMPRODUCT(LARGE($C30:$AQ30,{1,2,3,4})), "") -> 24 | AZ30: =IFERROR(SUMPRODUCT(LARGE($C30:$AQ30,{1,2,3,4,5,6,7,8})), "") -> 
A31: OKBU | B31: OKBU- Jenkins | C31: 3 | AS31: 3 | AT31: 1 | AU31: =IF($AT31<=6,SUM($C31:$AQ31),SUMPRODUCT(LARGE($C31:$AQ31,{1,2,3,4,5,6}))) -> 3 | AX31: =IFERROR(SUMPRODUCT(LARGE($C31:$AQ31,{1,2,3,4})), "") ->  | AZ31: =IFERROR(SUMPRODUCT(LARGE($C31:$AQ31,{1,2,3,4,5,6,7,8})), "") -> 
A32: OKBU | B32: OKBU- Kolacny | C32: 3 | AS32: 3 | AT32: 1 | AU32: =IF($AT32<=6,SUM($C32:$AQ32),SUMPRODUCT(LARGE($C32:$AQ32,{1,2,3,4,5,6}))) -> 3 | AX32: =IFERROR(SUMPRODUCT(LARGE($C32:$AQ32,{1,2,3,4})), "") ->  | AZ32: =IFERROR(SUMPRODUCT(LARGE($C32:$AQ32,{1,2,3,4,5,6,7,8})), "") -> 
A33: OKBU | B33: OKBU- Witt | C33: 2 | AS33: 2 | AT33: 1 | AU33: =IF($AT33<=6,SUM($C33:$AQ33),SUMPRODUCT(LARGE($C33:$AQ33,{1,2,3,4,5,6}))) -> 2 | AX33: =IFERROR(SUMPRODUCT(LARGE($C33:$AQ33,{1,2,3,4})), "") ->  | AZ33: =IFERROR(SUMPRODUCT(LARGE($C33:$AQ33,{1,2,3,4,5,6,7,8})), "") -> 
A34: PU | B34: PU- Powell | C34: 4 | AS34: 4 | AT34: 1 | AU34: =IF($AT34<=6,SUM($C34:$AQ34),SUMPRODUCT(LARGE($C34:$AQ34,{1,2,3,4,5,6}))) -> 4 | AX34: =IFERROR(SUMPRODUCT(LARGE($C34:$AQ34,{1,2,3,4})), "") ->  | AZ34: =IFERROR(SUMPRODUCT(LARGE($C34:$AQ34,{1,2,3,4,5,6,7,8})), "") -> 
A35: SMU | B35: SMU- Hazen | C35: 7 | AS35: 7 | AT35: 1 | AU35: =IF($AT35<=6,SUM($C35:$AQ35),SUMPRODUCT(LARGE($C35:$AQ35,{1,2,3,4,5,6}))) -> 7 | AX35: =IFERROR(SUMPRODUCT(LARGE($C35:$AQ35,{1,2,3,4})), "") ->  | AZ35: =IFERROR(SUMPRODUCT(LARGE($C35:$AQ35,{1,2,3,4,5,6,7,8})), "") -> 
A36: SMU | B36: SMU- LaRoe | C36: 7 | AS36: 7 | AT36: 1 | AU36: =IF($AT36<=6,SUM($C36:$AQ36),SUMPRODUCT(LARGE($C36:$AQ36,{1,2,3,4,5,6}))) -> 7 | AX36: =IFERROR(SUMPRODUCT(LARGE($C36:$AQ36,{1,2,3,4})), "") ->  | AZ36: =IFERROR(SUMPRODUCT(LARGE($C36:$AQ36,{1,2,3,4,5,6,7,8})), "") -> 
A37: UA | B37: UA- Appleton | C37: 2 | AS37: 2 | AT37: 1 | AU37: =IF($AT37<=6,SUM($C37:$AQ37),SUMPRODUCT(LARGE($C37:$AQ37,{1,2,3,4,5,6}))) -> 2 | AX37: =IFERROR(SUMPRODUCT(LARGE($C37:$AQ37,{1,2,3,4})), "") ->  | AZ37: =IFERROR(SUMPRODUCT(LARGE($C37:$AQ37,{1,2,3,4,5,6,7,8})), "") -> 
A38: UA | B38: UA- Hubbard | C38: 2 | AS38: 2 | AT38: 1 | AU38: =IF($AT38<=6,SUM($C38:$AQ38),SUMPRODUCT(LARGE($C38:$AQ38,{1,2,3,4,5,6}))) -> 2 | AX38: =IFERROR(SUMPRODUCT(LARGE($C38:$AQ38,{1,2,3,4})), "") ->  | AZ38: =IFERROR(SUMPRODUCT(LARGE($C38:$AQ38,{1,2,3,4,5,6,7,8})), "") -> 
A39: UA | B39: UA- Jamison | C39: 3 | AS39: 3 | AT39: 1 | AU39: =IF($AT39<=6,SUM($C39:$AQ39),SUMPRODUCT(LARGE($C39:$AQ39,{1,2,3,4,5,6}))) -> 3 | AX39: =IFERROR(SUMPRODUCT(LARGE($C39:$AQ39,{1,2,3,4})), "") ->  | AZ39: =IFERROR(SUMPRODUCT(LARGE($C39:$AQ39,{1,2,3,4,5,6,7,8})), "") -> 
A40: UA | B40: UA- Onisei | C40: 2 | AS40: 2 | AT40: 1 | AU40: =IF($AT40<=6,SUM($C40:$AQ40),SUMPRODUCT(LARGE($C40:$AQ40,{1,2,3,4,5,6}))) -> 2 | AX40: =IFERROR(SUMPRODUCT(LARGE($C40:$AQ40,{1,2,3,4})), "") ->  | AZ40: =IFERROR(SUMPRODUCT(LARGE($C40:$AQ40,{1,2,3,4,5,6,7,8})), "") -> 
A41: UF | B41: UF- Benerjee | C41: 3 | AS41: 3 | AT41: 1 | AU41: =IF($AT41<=6,SUM($C41:$AQ41),SUMPRODUCT(LARGE($C41:$AQ41,{1,2,3,4,5,6}))) -> 3 | AX41: =IFERROR(SUMPRODUCT(LARGE($C41:$AQ41,{1,2,3,4})), "") ->  | AZ41: =IFERROR(SUMPRODUCT(LARGE($C41:$AQ41,{1,2,3,4,5,6,7,8})), "") -> 
A42: UF | B42: UF- Levis Betancour | C42: 2 | AS42: 2 | AT42: 1 | AU42: =IF($AT42<=6,SUM($C42:$AQ42),SUMPRODUCT(LARGE($C42:$AQ42,{1,2,3,4,5,6}))) -> 2 | AX42: =IFERROR(SUMPRODUCT(LARGE($C42:$AQ42,{1,2,3,4})), "") ->  | AZ42: =IFERROR(SUMPRODUCT(LARGE($C42:$AQ42,{1,2,3,4,5,6,7,8})), "") -> 
A43: UNT | B43: UNT- Posca | C43: 3 | AS43: 3 | AT43: 1 | AU43: =IF($AT43<=6,SUM($C43:$AQ43),SUMPRODUCT(LARGE($C43:$AQ43,{1,2,3,4,5,6}))) -> 3 | AX43: =IFERROR(SUMPRODUCT(LARGE($C43:$AQ43,{1,2,3,4})), "") ->  | AZ43: =IFERROR(SUMPRODUCT(LARGE($C43:$AQ43,{1,2,3,4,5,6,7,8})), "") -> 
A44: UTK | B44: UTK- Deshpande | C44: 4 | AS44: 4 | AT44: 1 | AU44: =IF($AT44<=6,SUM($C44:$AQ44),SUMPRODUCT(LARGE($C44:$AQ44,{1,2,3,4,5,6}))) -> 4 | AX44: =IFERROR(SUMPRODUCT(LARGE($C44:$AQ44,{1,2,3,4})), "") ->  | AZ44: =IFERROR(SUMPRODUCT(LARGE($C44:$AQ44,{1,2,3,4,5,6,7,8})), "") -> 
A45: UTK | B45: UTK- Ober | C45: 5 | AS45: 5 | AT45: 1 | AU45: =IF($AT45<=6,SUM($C45:$AQ45),SUMPRODUCT(LARGE($C45:$AQ45,{1,2,3,4,5,6}))) -> 5 | AX45: =IFERROR(SUMPRODUCT(LARGE($C45:$AQ45,{1,2,3,4})), "") ->  | AZ45: =IFERROR(SUMPRODUCT(LARGE($C45:$AQ45,{1,2,3,4,5,6,7,8})), "") -> 
A46: UTK | B46: UTK- Thurber | C46: 3 | AS46: 3 | AT46: 1 | AU46: =IF($AT46<=6,SUM($C46:$AQ46),SUMPRODUCT(LARGE($C46:$AQ46,{1,2,3,4,5,6}))) -> 3 | AX46: =IFERROR(SUMPRODUCT(LARGE($C46:$AQ46,{1,2,3,4})), "") ->  | AZ46: =IFERROR(SUMPRODUCT(LARGE($C46:$AQ46,{1,2,3,4,5,6,7,8})), "") -> 
A47: UTK | B47: UTK- Wilson | C47: 2 | AS47: 2 | AT47: 1 | AU47: =IF($AT47<=6,SUM($C47:$AQ47),SUMPRODUCT(LARGE($C47:$AQ47,{1,2,3,4,5,6}))) -> 2 | AX47: =IFERROR(SUMPRODUCT(LARGE($C47:$AQ47,{1,2,3,4})), "") ->  | AZ47: =IFERROR(SUMPRODUCT(LARGE($C47:$AQ47,{1,2,3,4,5,6,7,8})), "") -> 
A48: WCU | B48: WCU- Abner | C48: 2 | AS48: 2 | AT48: 1 | AU48: =IF($AT48<=6,SUM($C48:$AQ48),SUMPRODUCT(LARGE($C48:$AQ48,{1,2,3,4,5,6}))) -> 2 | AX48: =IFERROR(SUMPRODUCT(LARGE($C48:$AQ48,{1,2,3,4})), "") ->  | AZ48: =IFERROR(SUMPRODUCT(LARGE($C48:$AQ48,{1,2,3,4,5,6,7,8})), "") -> 
A49: WCU | B49: WCU- Bilich | C49: 3 | AS49: 3 | AT49: 1 | AU49: =IF($AT49<=6,SUM($C49:$AQ49),SUMPRODUCT(LARGE($C49:$AQ49,{1,2,3,4,5,6}))) -> 3 | AX49: =IFERROR(SUMPRODUCT(LARGE($C49:$AQ49,{1,2,3,4})), "") ->  | AZ49: =IFERROR(SUMPRODUCT(LARGE($C49:$AQ49,{1,2,3,4,5,6,7,8})), "") -> 
A50: WCU | B50: WCU- Croft | C50: 5 | AS50: 5 | AT50: 1 | AU50: =IF($AT50<=6,SUM($C50:$AQ50),SUMPRODUCT(LARGE($C50:$AQ50,{1,2,3,4,5,6}))) -> 5 | AX50: =IFERROR(SUMPRODUCT(LARGE($C50:$AQ50,{1,2,3,4})), "") ->  | AZ50: =IFERROR(SUMPRODUCT(LARGE($C50:$AQ50,{1,2,3,4,5,6,7,8})), "") -> 
A51: WCU | B51: WCU- Gilbertson | C51: 3 | AS51: 3 | AT51: 1 | AU51: =IF($AT51<=6,SUM($C51:$AQ51),SUMPRODUCT(LARGE($C51:$AQ51,{1,2,3,4,5,6}))) -> 3 | AX51: =IFERROR(SUMPRODUCT(LARGE($C51:$AQ51,{1,2,3,4})), "") ->  | AZ51: =IFERROR(SUMPRODUCT(LARGE($C51:$AQ51,{1,2,3,4,5,6,7,8})), "") -> 
A52: WCU | B52: WCU- Rogers | C52: 3 | AS52: 3 | AT52: 1 | AU52: =IF($AT52<=6,SUM($C52:$AQ52),SUMPRODUCT(LARGE($C52:$AQ52,{1,2,3,4,5,6}))) -> 3 | AX52: =IFERROR(SUMPRODUCT(LARGE($C52:$AQ52,{1,2,3,4})), "") ->  | AZ52: =IFERROR(SUMPRODUCT(LARGE($C52:$AQ52,{1,2,3,4,5,6,7,8})), "") -> 
AS53: 0 | AT53: 0 | AU53: =IF($AT53<=6,SUM($C53:$AQ53),SUMPRODUCT(LARGE($C53:$AQ53,{1,2,3,4,5,6}))) -> 0 | AX53: =IFERROR(SUMPRODUCT(LARGE($C53:$AQ53,{1,2,3,4})), "") ->  | AZ53: =IFERROR(SUMPRODUCT(LARGE($C53:$AQ53,{1,2,3,4,5,6,7,8})), "") -> 
AS54: 0 | AT54: 0 | AU54: =IF($AT54<=6,SUM($C54:$AQ54),SUMPRODUCT(LARGE($C54:$AQ54,{1,2,3,4,5,6}))) -> 0 | AX54: =IFERROR(SUMPRODUCT(LARGE($C54:$AQ54,{1,2,3,4})), "") ->  | AZ54: =IFERROR(SUMPRODUCT(LARGE($C54:$AQ54,{1,2,3,4,5,6,7,8})), "") -> 
AS55: 0 | AT55: 0 | AU55: =IF($AT55<=6,SUM($C55:$AQ55),SUMPRODUCT(LARGE($C55:$AQ55,{1,2,3,4,5,6}))) -> 0 | AX55: =IFERROR(SUMPRODUCT(LARGE($C55:$AQ55,{1,2,3,4})), "") ->  | AZ55: =IFERROR(SUMPRODUCT(LARGE($C55:$AQ55,{1,2,3,4,5,6,7,8})), "") -> 
AS56: 0 | AT56: 0 | AU56: =IF($AT56<=6,SUM($C56:$AQ56),SUMPRODUCT(LARGE($C56:$AQ56,{1,2,3,4,5,6}))) -> 0 | AX56: =IFERROR(SUMPRODUCT(LARGE($C56:$AQ56,{1,2,3,4})), "") ->  | AZ56: =IFERROR(SUMPRODUCT(LARGE($C56:$AQ56,{1,2,3,4,5,6,7,8})), "") -> 
AS57: 0 | AT57: 0 | AU57: =IF($AT57<=6,SUM($C57:$AQ57),SUMPRODUCT(LARGE($C57:$AQ57,{1,2,3,4,5,6}))) -> 0 | AX57: =IFERROR(SUMPRODUCT(LARGE($C57:$AQ57,{1,2,3,4})), "") ->  | AZ57: =IFERROR(SUMPRODUCT(LARGE($C57:$AQ57,{1,2,3,4,5,6,7,8})), "") -> 
AS58: 0 | AT58: 0 | AU58: =IF($AT58<=6,SUM($C58:$AQ58),SUMPRODUCT(LARGE($C58:$AQ58,{1,2,3,4,5,6}))) -> 0 | AX58: =IFERROR(SUMPRODUCT(LARGE($C58:$AQ58,{1,2,3,4})), "") ->  | AZ58: =IFERROR(SUMPRODUCT(LARGE($C58:$AQ58,{1,2,3,4,5,6,7,8})), "") -> 
AS59: 0 | AT59: 0 | AU59: =IF($AT59<=6,SUM($C59:$AQ59),SUMPRODUCT(LARGE($C59:$AQ59,{1,2,3,4,5,6}))) -> 0 | AX59: =IFERROR(SUMPRODUCT(LARGE($C59:$AQ59,{1,2,3,4})), "") ->  | AZ59: =IFERROR(SUMPRODUCT(LARGE($C59:$AQ59,{1,2,3,4,5,6,7,8})), "") -> 
AS60: 0 | AT60: 0 | AU60: =IF($AT60<=6,SUM($C60:$AQ60),SUMPRODUCT(LARGE($C60:$AQ60,{1,2,3,4,5,6}))) -> 0 | AX60: =IFERROR(SUMPRODUCT(LARGE($C60:$AQ60,{1,2,3,4})), "") ->  | AZ60: =IFERROR(SUMPRODUCT(LARGE($C60:$AQ60,{1,2,3,4,5,6,7,8})), "") -> 
AS61: 0 | AT61: 0 | AU61: =IF($AT61<=6,SUM($C61:$AQ61),SUMPRODUCT(LARGE($C61:$AQ61,{1,2,3,4,5,6}))) -> 0 | AX61: =IFERROR(SUMPRODUCT(LARGE($C61:$AQ61,{1,2,3,4})), "") ->  | AZ61: =IFERROR(SUMPRODUCT(LARGE($C61:$AQ61,{1,2,3,4,5,6,7,8})), "") -> 
AS62: 0 | AT62: 0 | AU62: =IF($AT62<=6,SUM($C62:$AQ62),SUMPRODUCT(LARGE($C62:$AQ62,{1,2,3,4,5,6}))) -> 0 | AX62: =IFERROR(SUMPRODUCT(LARGE($C62:$AQ62,{1,2,3,4})), "") ->  | AZ62: =IFERROR(SUMPRODUCT(LARGE($C62:$AQ62,{1,2,3,4,5,6,7,8})), "") -> 
AS63: 0 | AT63: 0 | AU63: =IF($AT63<=6,SUM($C63:$AQ63),SUMPRODUCT(LARGE($C63:$AQ63,{1,2,3,4,5,6}))) -> 0 | AX63: =IFERROR(SUMPRODUCT(LARGE($C63:$AQ63,{1,2,3,4})), "") ->  | AZ63: =IFERROR(SUMPRODUCT(LARGE($C63:$AQ63,{1,2,3,4,5,6,7,8})), "") -> 
AS64: 0 | AT64: 0 | AU64: =IF($AT64<=6,SUM($C64:$AQ64),SUMPRODUCT(LARGE($C64:$AQ64,{1,2,3,4,5,6}))) -> 0 | AX64: =IFERROR(SUMPRODUCT(LARGE($C64:$AQ64,{1,2,3,4})), "") ->  | AZ64: =IFERROR(SUMPRODUCT(LARGE($C64:$AQ64,{1,2,3,4,5,6,7,8})), "") -> 
AS65: 0 | AT65: 0 | AU65: =IF($AT65<=6,SUM($C65:$AQ65),SUMPRODUCT(LARGE($C65:$AQ65,{1,2,3,4,5,6}))) -> 0 | AX65: =IFERROR(SUMPRODUCT(LARGE($C65:$AQ65,{1,2,3,4})), "") ->  | AZ65: =IFERROR(SUMPRODUCT(LARGE($C65:$AQ65,{1,2,3,4,5,6,7,8})), "") -> 
AS66: 0 | AT66: 0 | AU66: =IF($AT66<=6,SUM($C66:$AQ66),SUMPRODUCT(LARGE($C66:$AQ66,{1,2,3,4,5,6}))) -> 0 | AX66: =IFERROR(SUMPRODUCT(LARGE($C66:$AQ66,{1,2,3,4})), "") ->  | AZ66: =IFERROR(SUMPRODUCT(LARGE($C66:$AQ66,{1,2,3,4,5,6,7,8})), "") -> 
AS67: 0 | AT67: 0 | AU67: =IF($AT67<=6,SUM($C67:$AQ67),SUMPRODUCT(LARGE($C67:$AQ67,{1,2,3,4,5,6}))) -> 0 | AX67: =IFERROR(SUMPRODUCT(LARGE($C67:$AQ67,{1,2,3,4})), "") ->  | AZ67: =IFERROR(SUMPRODUCT(LARGE($C67:$AQ67,{1,2,3,4,5,6,7,8})), "") -> 
AS68: 0 | AT68: 0 | AU68: =IF($AT68<=6,SUM($C68:$AQ68),SUMPRODUCT(LARGE($C68:$AQ68,{1,2,3,4,5,6}))) -> 0 | AX68: =IFERROR(SUMPRODUCT(LARGE($C68:$AQ68,{1,2,3,4})), "") ->  | AZ68: =IFERROR(SUMPRODUCT(LARGE($C68:$AQ68,{1,2,3,4,5,6,7,8})), "") -> 
AS69: =SUM($C69:$AR69) -> 0 | AT69: =COUNTA(C69:AQ69) -> 0 | AU69: =IF($AT69<=6,SUM($C69:$AQ69),SUMPRODUCT(LARGE($C69:$AQ69,{1,2,3,4,5,6}))) -> 0 | AV69: =IF(AND($AT69>=6,AU69=AU70),"Manual Calc Needed","") ->  | AW69: =IF(AND($AT69>=6,$AV69="Tie"),"Manual Calc Needed"," ") ->  | AX69: =IFERROR(SUMPRODUCT(LARGE($C69:$AQ69,{1,2,3,4})), "") ->  | AY69: =IF(AND($AT69>=6,$AV69="Tie",AX69=AX70),"Manual Calc Needed"," ") ->  | AZ69: =IFERROR(SUMPRODUCT(LARGE($C69:$AQ69,{1,2,3,4,5,6,7,8})), "") -> 
AS70: 0 | AT70: 0 | AU70: =IF($AT70<=6,SUM($C70:$AQ70),SUMPRODUCT(LARGE($C70:$AQ70,{1,2,3,4,5,6}))) -> 0 | AX70: =IFERROR(SUMPRODUCT(LARGE($C70:$AQ70,{1,2,3,4})), "") ->  | AZ70: =IFERROR(SUMPRODUCT(LARGE($C70:$AQ70,{1,2,3,4,5,6,7,8})), "") -> 
AS71: 0 | AT71: 0 | AU71: =IF($AT71<=6,SUM($C71:$AQ71),SUMPRODUCT(LARGE($C71:$AQ71,{1,2,3,4,5,6}))) -> 0 | AX71: =IFERROR(SUMPRODUCT(LARGE($C71:$AQ71,{1,2,3,4})), "") ->  | AZ71: =IFERROR(SUMPRODUCT(LARGE($C71:$AQ71,{1,2,3,4,5,6,7,8})), "") -> 
AS72: 0 | AT72: 0 | AU72: =IF($AT72<=6,SUM($C72:$AQ72),SUMPRODUCT(LARGE($C72:$AQ72,{1,2,3,4,5,6}))) -> 0 | AX72: =IFERROR(SUMPRODUCT(LARGE($C72:$AQ72,{1,2,3,4})), "") ->  | AZ72: =IFERROR(SUMPRODUCT(LARGE($C72:$AQ72,{1,2,3,4,5,6,7,8})), "") -> 
AS73: 0 | AT73: 0 | AU73: =IF($AT73<=6,SUM($C73:$AQ73),SUMPRODUCT(LARGE($C73:$AQ73,{1,2,3,4,5,6}))) -> 0 | AX73: =IFERROR(SUMPRODUCT(LARGE($C73:$AQ73,{1,2,3,4})), "") ->  | AZ73: =IFERROR(SUMPRODUCT(LARGE($C73:$AQ73,{1,2,3,4,5,6,7,8})), "") -> 
AS74: 0 | AT74: 0 | AU74: =IF($AT74<=6,SUM($C74:$AQ74),SUMPRODUCT(LARGE($C74:$AQ74,{1,2,3,4,5,6}))) -> 0 | AX74: =IFERROR(SUMPRODUCT(LARGE($C74:$AQ74,{1,2,3,4})), "") ->  | AZ74: =IFERROR(SUMPRODUCT(LARGE($C74:$AQ74,{1,2,3,4,5,6,7,8})), "") -> 
AS75: 0 | AT75: 0 | AU75: =IF($AT75<=6,SUM($C75:$AQ75),SUMPRODUCT(LARGE($C75:$AQ75,{1,2,3,4,5,6}))) -> 0 | AX75: =IFERROR(SUMPRODUCT(LARGE($C75:$AQ75,{1,2,3,4})), "") ->  | AZ75: =IFERROR(SUMPRODUCT(LARGE($C75:$AQ75,{1,2,3,4,5,6,7,8})), "") -> 
AS76: 0 | AT76: 0 | AU76: =IF($AT76<=6,SUM($C76:$AQ76),SUMPRODUCT(LARGE($C76:$AQ76,{1,2,3,4,5,6}))) -> 0 | AX76: =IFERROR(SUMPRODUCT(LARGE($C76:$AQ76,{1,2,3,4})), "") ->  | AZ76: =IFERROR(SUMPRODUCT(LARGE($C76:$AQ76,{1,2,3,4,5,6,7,8})), "") -> 
AS77: 0 | AT77: 0 | AU77: =IF($AT77<=6,SUM($C77:$AQ77),SUMPRODUCT(LARGE($C77:$AQ77,{1,2,3,4,5,6}))) -> 0 | AX77: =IFERROR(SUMPRODUCT(LARGE($C77:$AQ77,{1,2,3,4})), "") ->  | AZ77: =IFERROR(SUMPRODUCT(LARGE($C77:$AQ77,{1,2,3,4,5,6,7,8})), "") -> 
AS78: 0 | AT78: 0 | AU78: =IF($AT78<=6,SUM($C78:$AQ78),SUMPRODUCT(LARGE($C78:$AQ78,{1,2,3,4,5,6}))) -> 0 | AX78: =IFERROR(SUMPRODUCT(LARGE($C78:$AQ78,{1,2,3,4})), "") ->  | AZ78: =IFERROR(SUMPRODUCT(LARGE($C78:$AQ78,{1,2,3,4,5,6,7,8})), "") -> 
AS79: 0 | AT79: 0 | AU79: =IF($AT79<=6,SUM($C79:$AQ79),SUMPRODUCT(LARGE($C79:$AQ79,{1,2,3,4,5,6}))) -> 0 | AX79: =IFERROR(SUMPRODUCT(LARGE($C79:$AQ79,{1,2,3,4})), "") ->  | AZ79: =IFERROR(SUMPRODUCT(LARGE($C79:$AQ79,{1,2,3,4,5,6,7,8})), "") -> 
AS80: 0 | AT80: 0 | AU80: =IF($AT80<=6,SUM($C80:$AQ80),SUMPRODUCT(LARGE($C80:$AQ80,{1,2,3,4,5,6}))) -> 0 | AX80: =IFERROR(SUMPRODUCT(LARGE($C80:$AQ80,{1,2,3,4})), "") ->  | AZ80: =IFERROR(SUMPRODUCT(LARGE($C80:$AQ80,{1,2,3,4,5,6,7,8})), "") -> 
AS81: 0 | AT81: 0 | AU81: =IF($AT81<=6,SUM($C81:$AQ81),SUMPRODUCT(LARGE($C81:$AQ81,{1,2,3,4,5,6}))) -> 0 | AX81: =IFERROR(SUMPRODUCT(LARGE($C81:$AQ81,{1,2,3,4})), "") ->  | AZ81: =IFERROR(SUMPRODUCT(LARGE($C81:$AQ81,{1,2,3,4,5,6,7,8})), "") -> 
AS82: 0 | AT82: 0 | AU82: =IF($AT82<=6,SUM($C82:$AQ82),SUMPRODUCT(LARGE($C82:$AQ82,{1,2,3,4,5,6}))) -> 0 | AX82: =IFERROR(SUMPRODUCT(LARGE($C82:$AQ82,{1,2,3,4})), "") ->  | AZ82: =IFERROR(SUMPRODUCT(LARGE($C82:$AQ82,{1,2,3,4,5,6,7,8})), "") -> 
AS83: 0 | AT83: 0 | AU83: =IF($AT83<=6,SUM($C83:$AQ83),SUMPRODUCT(LARGE($C83:$AQ83,{1,2,3,4,5,6}))) -> 0 | AX83: =IFERROR(SUMPRODUCT(LARGE($C83:$AQ83,{1,2,3,4})), "") ->  | AZ83: =IFERROR(SUMPRODUCT(LARGE($C83:$AQ83,{1,2,3,4,5,6,7,8})), "") -> 
AS84: 0 | AT84: 0 | AU84: =IF($AT84<=6,SUM($C84:$AQ84),SUMPRODUCT(LARGE($C84:$AQ84,{1,2,3,4,5,6}))) -> 0 | AX84: =IFERROR(SUMPRODUCT(LARGE($C84:$AQ84,{1,2,3,4})), "") ->  | AZ84: =IFERROR(SUMPRODUCT(LARGE($C84:$AQ84,{1,2,3,4,5,6,7,8})), "") -> 
AS85: 0 | AT85: 0 | AU85: =IF($AT85<=6,SUM($C85:$AQ85),SUMPRODUCT(LARGE($C85:$AQ85,{1,2,3,4,5,6}))) -> 0 | AX85: =IFERROR(SUMPRODUCT(LARGE($C85:$AQ85,{1,2,3,4})), "") ->  | AZ85: =IFERROR(SUMPRODUCT(LARGE($C85:$AQ85,{1,2,3,4,5,6,7,8})), "") -> 
AS86: 0 | AT86: 0 | AU86: =IF($AT86<=6,SUM($C86:$AQ86),SUMPRODUCT(LARGE($C86:$AQ86,{1,2,3,4,5,6}))) -> 0 | AX86: =IFERROR(SUMPRODUCT(LARGE($C86:$AQ86,{1,2,3,4})), "") ->  | AZ86: =IFERROR(SUMPRODUCT(LARGE($C86:$AQ86,{1,2,3,4,5,6,7,8})), "") -> 
AS87: 0 | AT87: 0 | AU87: =IF($AT87<=6,SUM($C87:$AQ87),SUMPRODUCT(LARGE($C87:$AQ87,{1,2,3,4,5,6}))) -> 0 | AX87: =IFERROR(SUMPRODUCT(LARGE($C87:$AQ87,{1,2,3,4})), "") ->  | AZ87: =IFERROR(SUMPRODUCT(LARGE($C87:$AQ87,{1,2,3,4,5,6,7,8})), "") -> 
AS88: 0 | AT88: 0 | AU88: =IF($AT88<=6,SUM($C88:$AQ88),SUMPRODUCT(LARGE($C88:$AQ88,{1,2,3,4,5,6}))) -> 0 | AX88: =IFERROR(SUMPRODUCT(LARGE($C88:$AQ88,{1,2,3,4})), "") ->  | AZ88: =IFERROR(SUMPRODUCT(LARGE($C88:$AQ88,{1,2,3,4,5,6,7,8})), "") -> 
AS89: 0 | AT89: 0 | AU89: =IF($AT89<=6,SUM($C89:$AQ89),SUMPRODUCT(LARGE($C89:$AQ89,{1,2,3,4,5,6}))) -> 0 | AX89: =IFERROR(SUMPRODUCT(LARGE($C89:$AQ89,{1,2,3,4})), "") ->  | AZ89: =IFERROR(SUMPRODUCT(LARGE($C89:$AQ89,{1,2,3,4,5,6,7,8})), "") -> 
AS90: 0 | AT90: 0 | AU90: =IF($AT90<=6,SUM($C90:$AQ90),SUMPRODUCT(LARGE($C90:$AQ90,{1,2,3,4,5,6}))) -> 0 | AX90: =IFERROR(SUMPRODUCT(LARGE($C90:$AQ90,{1,2,3,4})), "") ->  | AZ90: =IFERROR(SUMPRODUCT(LARGE($C90:$AQ90,{1,2,3,4,5,6,7,8})), "") -> 
AS91: 0 | AT91: 0 | AU91: =IF($AT91<=6,SUM($C91:$AQ91),SUMPRODUCT(LARGE($C91:$AQ91,{1,2,3,4,5,6}))) -> 0 | AX91: =IFERROR(SUMPRODUCT(LARGE($C91:$AQ91,{1,2,3,4})), "") ->  | AZ91: =IFERROR(SUMPRODUCT(LARGE($C91:$AQ91,{1,2,3,4,5,6,7,8})), "") -> 
AS92: 0 | AT92: 0 | AU92: =IF($AT92<=6,SUM($C92:$AQ92),SUMPRODUCT(LARGE($C92:$AQ92,{1,2,3,4,5,6}))) -> 0 | AX92: =IFERROR(SUMPRODUCT(LARGE($C92:$AQ92,{1,2,3,4})), "") ->  | AZ92: =IFERROR(SUMPRODUCT(LARGE($C92:$AQ92,{1,2,3,4,5,6,7,8})), "") -> 
AS93: 0 | AT93: 0 | AU93: =IF($AT93<=6,SUM($C93:$AQ93),SUMPRODUCT(LARGE($C93:$AQ93,{1,2,3,4,5,6}))) -> 0 | AX93: =IFERROR(SUMPRODUCT(LARGE($C93:$AQ93,{1,2,3,4})), "") ->  | AZ93: =IFERROR(SUMPRODUCT(LARGE($C93:$AQ93,{1,2,3,4,5,6,7,8})), "") -> 
AS94: 0 | AT94: 0 | AU94: =IF($AT94<=6,SUM($C94:$AQ94),SUMPRODUCT(LARGE($C94:$AQ94,{1,2,3,4,5,6}))) -> 0 | AX94: =IFERROR(SUMPRODUCT(LARGE($C94:$AQ94,{1,2,3,4})), "") ->  | AZ94: =IFERROR(SUMPRODUCT(LARGE($C94:$AQ94,{1,2,3,4,5,6,7,8})), "") -> 
AS95: 0 | AT95: 0 | AU95: =IF($AT95<=6,SUM($C95:$AQ95),SUMPRODUCT(LARGE($C95:$AQ95,{1,2,3,4,5,6}))) -> 0 | AX95: =IFERROR(SUMPRODUCT(LARGE($C95:$AQ95,{1,2,3,4})), "") ->  | AZ95: =IFERROR(SUMPRODUCT(LARGE($C95:$AQ95,{1,2,3,4,5,6,7,8})), "") -> 
AS96: 0 | AT96: 0 | AU96: =IF($AT96<=6,SUM($C96:$AQ96),SUMPRODUCT(LARGE($C96:$AQ96,{1,2,3,4,5,6}))) -> 0 | AX96: =IFERROR(SUMPRODUCT(LARGE($C96:$AQ96,{1,2,3,4})), "") ->  | AZ96: =IFERROR(SUMPRODUCT(LARGE($C96:$AQ96,{1,2,3,4,5,6,7,8})), "") -> 
AS97: 0 | AT97: 0 | AU97: =IF($AT97<=6,SUM($C97:$AQ97),SUMPRODUCT(LARGE($C97:$AQ97,{1,2,3,4,5,6}))) -> 0 | AX97: =IFERROR(SUMPRODUCT(LARGE($C97:$AQ97,{1,2,3,4})), "") ->  | AZ97: =IFERROR(SUMPRODUCT(LARGE($C97:$AQ97,{1,2,3,4,5,6,7,8})), "") -> 
AS98: 0 | AT98: 0 | AU98: =IF($AT98<=6,SUM($C98:$AQ98),SUMPRODUCT(LARGE($C98:$AQ98,{1,2,3,4,5,6}))) -> 0 | AX98: =IFERROR(SUMPRODUCT(LARGE($C98:$AQ98,{1,2,3,4})), "") ->  | AZ98: =IFERROR(SUMPRODUCT(LARGE($C98:$AQ98,{1,2,3,4,5,6,7,8})), "") -> 
AS99: 0 | AT99: 0 | AU99: =IF($AT99<=6,SUM($C99:$AQ99),SUMPRODUCT(LARGE($C99:$AQ99,{1,2,3,4,5,6}))) -> 0 | AX99: =IFERROR(SUMPRODUCT(LARGE($C99:$AQ99,{1,2,3,4})), "") ->  | AZ99: =IFERROR(SUMPRODUCT(LARGE($C99:$AQ99,{1,2,3,4,5,6,7,8})), "") -> 
AS100: 0 | AT100: 0 | AU100: =IF($AT100<=6,SUM($C100:$AQ100),SUMPRODUCT(LARGE($C100:$AQ100,{1,2,3,4,5,6}))) -> 0 | AX100: =IFERROR(SUMPRODUCT(LARGE($C100:$AQ100,{1,2,3,4})), "") ->  | AZ100: =IFERROR(SUMPRODUCT(LARGE($C100:$AQ100,{1,2,3,4,5,6,7,8})), "") -> 
AS101: 0 | AT101: 0 | AU101: =IF($AT101<=6,SUM($C101:$AQ101),SUMPRODUCT(LARGE($C101:$AQ101,{1,2,3,4,5,6}))) -> 0 | AX101: =IFERROR(SUMPRODUCT(LARGE($C101:$AQ101,{1,2,3,4})), "") ->  | AZ101: =IFERROR(SUMPRODUCT(LARGE($C101:$AQ101,{1,2,3,4,5,6,7,8})), "") -> 
AS102: 0 | AT102: 0 | AU102: =IF($AT102<=6,SUM($C102:$AQ102),SUMPRODUCT(LARGE($C102:$AQ102,{1,2,3,4,5,6}))) -> 0 | AX102: =IFERROR(SUMPRODUCT(LARGE($C102:$AQ102,{1,2,3,4})), "") ->  | AZ102: =IFERROR(SUMPRODUCT(LARGE($C102:$AQ102,{1,2,3,4,5,6,7,8})), "") -> 
AS103: 0 | AT103: 0 | AU103: =IF($AT103<=6,SUM($C103:$AQ103),SUMPRODUCT(LARGE($C103:$AQ103,{1,2,3,4,5,6}))) -> 0 | AX103: =IFERROR(SUMPRODUCT(LARGE($C103:$AQ103,{1,2,3,4})), "") ->  | AZ103: =IFERROR(SUMPRODUCT(LARGE($C103:$AQ103,{1,2,3,4,5,6,7,8})), "") -> 
AS104: 0 | AT104: 0 | AU104: =IF($AT104<=6,SUM($C104:$AQ104),SUMPRODUCT(LARGE($C104:$AQ104,{1,2,3,4,5,6}))) -> 0 | AX104: =IFERROR(SUMPRODUCT(LARGE($C104:$AQ104,{1,2,3,4})), "") ->  | AZ104: =IFERROR(SUMPRODUCT(LARGE($C104:$AQ104,{1,2,3,4,5,6,7,8})), "") -> 
AS105: 0 | AT105: 0 | AU105: =IF($AT105<=6,SUM($C105:$AQ105),SUMPRODUCT(LARGE($C105:$AQ105,{1,2,3,4,5,6}))) -> 0 | AX105: =IFERROR(SUMPRODUCT(LARGE($C105:$AQ105,{1,2,3,4})), "") ->  | AZ105: =IFERROR(SUMPRODUCT(LARGE($C105:$AQ105,{1,2,3,4,5,6,7,8})), "") -> 
AS106: 0 | AT106: 0 | AU106: =IF($AT106<=6,SUM($C106:$AQ106),SUMPRODUCT(LARGE($C106:$AQ106,{1,2,3,4,5,6}))) -> 0 | AX106: =IFERROR(SUMPRODUCT(LARGE($C106:$AQ106,{1,2,3,4})), "") ->  | AZ106: =IFERROR(SUMPRODUCT(LARGE($C106:$AQ106,{1,2,3,4,5,6,7,8})), "") -> 
AS107: 0 | AT107: 0 | AU107: =IF($AT107<=6,SUM($C107:$AQ107),SUMPRODUCT(LARGE($C107:$AQ107,{1,2,3,4,5,6}))) -> 0 | AX107: =IFERROR(SUMPRODUCT(LARGE($C107:$AQ107,{1,2,3,4})), "") ->  | AZ107: =IFERROR(SUMPRODUCT(LARGE($C107:$AQ107,{1,2,3,4,5,6,7,8})), "") -> 
AS108: 0 | AT108: 0 | AU108: =IF($AT108<=6,SUM($C108:$AQ108),SUMPRODUCT(LARGE($C108:$AQ108,{1,2,3,4,5,6}))) -> 0 | AX108: =IFERROR(SUMPRODUCT(LARGE($C108:$AQ108,{1,2,3,4})), "") ->  | AZ108: =IFERROR(SUMPRODUCT(LARGE($C108:$AQ108,{1,2,3,4,5,6,7,8})), "") -> 
AS109: 0 | AT109: 0 | AU109: =IF($AT109<=6,SUM($C109:$AQ109),SUMPRODUCT(LARGE($C109:$AQ109,{1,2,3,4,5,6}))) -> 0 | AX109: =IFERROR(SUMPRODUCT(LARGE($C109:$AQ109,{1,2,3,4})), "") ->  | AZ109: =IFERROR(SUMPRODUCT(LARGE($C109:$AQ109,{1,2,3,4,5,6,7,8})), "") -> 
AS110: 0 | AT110: 0 | AU110: =IF($AT110<=6,SUM($C110:$AQ110),SUMPRODUCT(LARGE($C110:$AQ110,{1,2,3,4,5,6}))) -> 0 | AX110: =IFERROR(SUMPRODUCT(LARGE($C110:$AQ110,{1,2,3,4})), "") ->  | AZ110: =IFERROR(SUMPRODUCT(LARGE($C110:$AQ110,{1,2,3,4,5,6,7,8})), "") -> 
AS111: 0 | AT111: 0 | AU111: =IF($AT111<=6,SUM($C111:$AQ111),SUMPRODUCT(LARGE($C111:$AQ111,{1,2,3,4,5,6}))) -> 0 | AX111: =IFERROR(SUMPRODUCT(LARGE($C111:$AQ111,{1,2,3,4})), "") ->  | AZ111: =IFERROR(SUMPRODUCT(LARGE($C111:$AQ111,{1,2,3,4,5,6,7,8})), "") -> 
AS112: 0 | AT112: 0 | AU112: =IF($AT112<=6,SUM($C112:$AQ112),SUMPRODUCT(LARGE($C112:$AQ112,{1,2,3,4,5,6}))) -> 0 | AX112: =IFERROR(SUMPRODUCT(LARGE($C112:$AQ112,{1,2,3,4})), "") ->  | AZ112: =IFERROR(SUMPRODUCT(LARGE($C112:$AQ112,{1,2,3,4,5,6,7,8})), "") -> 
AS113: 0 | AT113: 0 | AU113: =IF($AT113<=6,SUM($C113:$AQ113),SUMPRODUCT(LARGE($C113:$AQ113,{1,2,3,4,5,6}))) -> 0 | AX113: =IFERROR(SUMPRODUCT(LARGE($C113:$AQ113,{1,2,3,4})), "") ->  | AZ113: =IFERROR(SUMPRODUCT(LARGE($C113:$AQ113,{1,2,3,4,5,6,7,8})), "") -> 
AS114: 0 | AT114: 0 | AU114: =IF($AT114<=6,SUM($C114:$AQ114),SUMPRODUCT(LARGE($C114:$AQ114,{1,2,3,4,5,6}))) -> 0 | AX114: =IFERROR(SUMPRODUCT(LARGE($C114:$AQ114,{1,2,3,4})), "") ->  | AZ114: =IFERROR(SUMPRODUCT(LARGE($C114:$AQ114,{1,2,3,4,5,6,7,8})), "") -> 
AS115: 0 | AT115: 0 | AU115: =IF($AT115<=6,SUM($C115:$AQ115),SUMPRODUCT(LARGE($C115:$AQ115,{1,2,3,4,5,6}))) -> 0 | AX115: =IFERROR(SUMPRODUCT(LARGE($C115:$AQ115,{1,2,3,4})), "") ->  | AZ115: =IFERROR(SUMPRODUCT(LARGE($C115:$AQ115,{1,2,3,4,5,6,7,8})), "") -> 
AS116: 0 | AT116: 0 | AU116: =IF($AT116<=6,SUM($C116:$AQ116),SUMPRODUCT(LARGE($C116:$AQ116,{1,2,3,4,5,6}))) -> 0 | AX116: =IFERROR(SUMPRODUCT(LARGE($C116:$AQ116,{1,2,3,4})), "") ->  | AZ116: =IFERROR(SUMPRODUCT(LARGE($C116:$AQ116,{1,2,3,4,5,6,7,8})), "") -> 
AS117: 0 | AT117: 0 | AU117: =IF($AT117<=6,SUM($C117:$AQ117),SUMPRODUCT(LARGE($C117:$AQ117,{1,2,3,4,5,6}))) -> 0 | AX117: =IFERROR(SUMPRODUCT(LARGE($C117:$AQ117,{1,2,3,4})), "") ->  | AZ117: =IFERROR(SUMPRODUCT(LARGE($C117:$AQ117,{1,2,3,4,5,6,7,8})), "") -> 
AS118: 0 | AT118: 0 | AU118: =IF($AT118<=6,SUM($C118:$AQ118),SUMPRODUCT(LARGE($C118:$AQ118,{1,2,3,4,5,6}))) -> 0 | AX118: =IFERROR(SUMPRODUCT(LARGE($C118:$AQ118,{1,2,3,4})), "") ->  | AZ118: =IFERROR(SUMPRODUCT(LARGE($C118:$AQ118,{1,2,3,4,5,6,7,8})), "") -> 
AS119: 0 | AT119: 0 | AU119: =IF($AT119<=6,SUM($C119:$AQ119),SUMPRODUCT(LARGE($C119:$AQ119,{1,2,3,4,5,6}))) -> 0 | AX119: =IFERROR(SUMPRODUCT(LARGE($C119:$AQ119,{1,2,3,4})), "") ->  | AZ119: =IFERROR(SUMPRODUCT(LARGE($C119:$AQ119,{1,2,3,4,5,6,7,8})), "") -> 
AS120: 0 | AT120: 0 | AU120: =IF($AT120<=6,SUM($C120:$AQ120),SUMPRODUCT(LARGE($C120:$AQ120,{1,2,3,4,5,6}))) -> 0 | AX120: =IFERROR(SUMPRODUCT(LARGE($C120:$AQ120,{1,2,3,4})), "") ->  | AZ120: =IFERROR(SUMPRODUCT(LARGE($C120:$AQ120,{1,2,3,4,5,6,7,8})), "") -> 
AS121: 0 | AT121: 0 | AU121: =IF($AT121<=6,SUM($C121:$AQ121),SUMPRODUCT(LARGE($C121:$AQ121,{1,2,3,4,5,6}))) -> 0 | AX121: =IFERROR(SUMPRODUCT(LARGE($C121:$AQ121,{1,2,3,4})), "") ->  | AZ121: =IFERROR(SUMPRODUCT(LARGE($C121:$AQ121,{1,2,3,4,5,6,7,8})), "") -> 
AS122: 0 | AT122: 0 | AU122: =IF($AT122<=6,SUM($C122:$AQ122),SUMPRODUCT(LARGE($C122:$AQ122,{1,2,3,4,5,6}))) -> 0 | AX122: =IFERROR(SUMPRODUCT(LARGE($C122:$AQ122,{1,2,3,4})), "") ->  | AZ122: =IFERROR(SUMPRODUCT(LARGE($C122:$AQ122,{1,2,3,4,5,6,7,8})), "") -> 
AS123: 0 | AT123: 0 | AU123: =IF($AT123<=6,SUM($C123:$AQ123),SUMPRODUCT(LARGE($C123:$AQ123,{1,2,3,4,5,6}))) -> 0 | AX123: =IFERROR(SUMPRODUCT(LARGE($C123:$AQ123,{1,2,3,4})), "") ->  | AZ123: =IFERROR(SUMPRODUCT(LARGE($C123:$AQ123,{1,2,3,4,5,6,7,8})), "") -> 
AS124: 0 | AT124: 0 | AU124: =IF($AT124<=6,SUM($C124:$AQ124),SUMPRODUCT(LARGE($C124:$AQ124,{1,2,3,4,5,6}))) -> 0 | AX124: =IFERROR(SUMPRODUCT(LARGE($C124:$AQ124,{1,2,3,4})), "") ->  | AZ124: =IFERROR(SUMPRODUCT(LARGE($C124:$AQ124,{1,2,3,4,5,6,7,8})), "") -> 
AS125: 0 | AT125: 0 | AU125: =IF($AT125<=6,SUM($C125:$AQ125),SUMPRODUCT(LARGE($C125:$AQ125,{1,2,3,4,5,6}))) -> 0 | AX125: =IFERROR(SUMPRODUCT(LARGE($C125:$AQ125,{1,2,3,4})), "") ->  | AZ125: =IFERROR(SUMPRODUCT(LARGE($C125:$AQ125,{1,2,3,4,5,6,7,8})), "") -> 
AS126: 0 | AT126: 0 | AU126: =IF($AT126<=6,SUM($C126:$AQ126),SUMPRODUCT(LARGE($C126:$AQ126,{1,2,3,4,5,6}))) -> 0 | AX126: =IFERROR(SUMPRODUCT(LARGE($C126:$AQ126,{1,2,3,4})), "") ->  | AZ126: =IFERROR(SUMPRODUCT(LARGE($C126:$AQ126,{1,2,3,4,5,6,7,8})), "") -> 
AS127: 0 | AT127: 0 | AU127: =IF($AT127<=6,SUM($C127:$AQ127),SUMPRODUCT(LARGE($C127:$AQ127,{1,2,3,4,5,6}))) -> 0 | AX127: =IFERROR(SUMPRODUCT(LARGE($C127:$AQ127,{1,2,3,4})), "") ->  | AZ127: =IFERROR(SUMPRODUCT(LARGE($C127:$AQ127,{1,2,3,4,5,6,7,8})), "") -> 
AS128: 0 | AT128: 0 | AU128: =IF($AT128<=6,SUM($C128:$AQ128),SUMPRODUCT(LARGE($C128:$AQ128,{1,2,3,4,5,6}))) -> 0 | AX128: =IFERROR(SUMPRODUCT(LARGE($C128:$AQ128,{1,2,3,4})), "") ->  | AZ128: =IFERROR(SUMPRODUCT(LARGE($C128:$AQ128,{1,2,3,4,5,6,7,8})), "") -> 
AS129: 0 | AT129: 0 | AU129: =IF($AT129<=6,SUM($C129:$AQ129),SUMPRODUCT(LARGE($C129:$AQ129,{1,2,3,4,5,6}))) -> 0 | AX129: =IFERROR(SUMPRODUCT(LARGE($C129:$AQ129,{1,2,3,4})), "") ->  | AZ129: =IFERROR(SUMPRODUCT(LARGE($C129:$AQ129,{1,2,3,4,5,6,7,8})), "") -> 
AS130: 0 | AT130: 0 | AU130: =IF($AT130<=6,SUM($C130:$AQ130),SUMPRODUCT(LARGE($C130:$AQ130,{1,2,3,4,5,6}))) -> 0 | AX130: =IFERROR(SUMPRODUCT(LARGE($C130:$AQ130,{1,2,3,4})), "") ->  | AZ130: =IFERROR(SUMPRODUCT(LARGE($C130:$AQ130,{1,2,3,4,5,6,7,8})), "") -> 
AS131: 0 | AT131: 0 | AU131: =IF($AT131<=6,SUM($C131:$AQ131),SUMPRODUCT(LARGE($C131:$AQ131,{1,2,3,4,5,6}))) -> 0 | AX131: =IFERROR(SUMPRODUCT(LARGE($C131:$AQ131,{1,2,3,4})), "") ->  | AZ131: =IFERROR(SUMPRODUCT(LARGE($C131:$AQ131,{1,2,3,4,5,6,7,8})), "") -> 
AS132: 0 | AT132: 0 | AU132: =IF($AT132<=6,SUM($C132:$AQ132),SUMPRODUCT(LARGE($C132:$AQ132,{1,2,3,4,5,6}))) -> 0 | AX132: =IFERROR(SUMPRODUCT(LARGE($C132:$AQ132,{1,2,3,4})), "") ->  | AZ132: =IFERROR(SUMPRODUCT(LARGE($C132:$AQ132,{1,2,3,4,5,6,7,8})), "") -> 
AS133: =SUM($C133:$AR133) -> 0 | AT133: =COUNTA(C133:AQ133) -> 0 | AU133: =IF($AT133<=6,SUM($C133:$AQ133),SUMPRODUCT(LARGE($C133:$AQ133,{1,2,3,4,5,6}))) -> 0 | AV133: =IF(AND($AT133>=6,AU133=AU134),"Manual Calc Needed","") ->  | AW133: =IF(AND($AT133>=6,$AV133="Tie"),"Manual Calc Needed"," ") ->  | AX133: =IFERROR(SUMPRODUCT(LARGE($C133:$AQ133,{1,2,3,4})), "") ->  | AY133: =IF(AND($AT133>=6,$AV133="Tie",AX133=AX134),"Manual Calc Needed"," ") ->  | AZ133: =IFERROR(SUMPRODUCT(LARGE($C133:$AQ133,{1,2,3,4,5,6,7,8})), "") -> 
AS134: 0 | AT134: 0 | AU134: =IF($AT134<=6,SUM($C134:$AQ134),SUMPRODUCT(LARGE($C134:$AQ134,{1,2,3,4,5,6}))) -> 0 | AX134: =IFERROR(SUMPRODUCT(LARGE($C134:$AQ134,{1,2,3,4})), "") ->  | AZ134: =IFERROR(SUMPRODUCT(LARGE($C134:$AQ134,{1,2,3,4,5,6,7,8})), "") -> 
AS135: 0 | AT135: 0 | AU135: =IF($AT135<=6,SUM($C135:$AQ135),SUMPRODUCT(LARGE($C135:$AQ135,{1,2,3,4,5,6}))) -> 0 | AX135: =IFERROR(SUMPRODUCT(LARGE($C135:$AQ135,{1,2,3,4})), "") ->  | AZ135: =IFERROR(SUMPRODUCT(LARGE($C135:$AQ135,{1,2,3,4,5,6,7,8})), "") -> 
AS136: 0 | AT136: 0 | AU136: =IF($AT136<=6,SUM($C136:$AQ136),SUMPRODUCT(LARGE($C136:$AQ136,{1,2,3,4,5,6}))) -> 0 | AX136: =IFERROR(SUMPRODUCT(LARGE($C136:$AQ136,{1,2,3,4})), "") ->  | AZ136: =IFERROR(SUMPRODUCT(LARGE($C136:$AQ136,{1,2,3,4,5,6,7,8})), "") -> 
AS137: 0 | AT137: 0 | AU137: =IF($AT137<=6,SUM($C137:$AQ137),SUMPRODUCT(LARGE($C137:$AQ137,{1,2,3,4,5,6}))) -> 0 | AX137: =IFERROR(SUMPRODUCT(LARGE($C137:$AQ137,{1,2,3,4})), "") ->  | AZ137: =IFERROR(SUMPRODUCT(LARGE($C137:$AQ137,{1,2,3,4,5,6,7,8})), "") -> 
AS138: 0 | AT138: 0 | AU138: =IF($AT138<=6,SUM($C138:$AQ138),SUMPRODUCT(LARGE($C138:$AQ138,{1,2,3,4,5,6}))) -> 0 | AX138: =IFERROR(SUMPRODUCT(LARGE($C138:$AQ138,{1,2,3,4})), "") ->  | AZ138: =IFERROR(SUMPRODUCT(LARGE($C138:$AQ138,{1,2,3,4,5,6,7,8})), "") -> 
AS139: 0 | AT139: 0 | AU139: =IF($AT139<=6,SUM($C139:$AQ139),SUMPRODUCT(LARGE($C139:$AQ139,{1,2,3,4,5,6}))) -> 0 | AX139: =IFERROR(SUMPRODUCT(LARGE($C139:$AQ139,{1,2,3,4})), "") ->  | AZ139: =IFERROR(SUMPRODUCT(LARGE($C139:$AQ139,{1,2,3,4,5,6,7,8})), "") -> 
AS140: 0 | AT140: 0 | AU140: =IF($AT140<=6,SUM($C140:$AQ140),SUMPRODUCT(LARGE($C140:$AQ140,{1,2,3,4,5,6}))) -> 0 | AX140: =IFERROR(SUMPRODUCT(LARGE($C140:$AQ140,{1,2,3,4})), "") ->  | AZ140: =IFERROR(SUMPRODUCT(LARGE($C140:$AQ140,{1,2,3,4,5,6,7,8})), "") -> 
AS141: 0 | AT141: 0 | AU141: =IF($AT141<=6,SUM($C141:$AQ141),SUMPRODUCT(LARGE($C141:$AQ141,{1,2,3,4,5,6}))) -> 0 | AX141: =IFERROR(SUMPRODUCT(LARGE($C141:$AQ141,{1,2,3,4})), "") ->  | AZ141: =IFERROR(SUMPRODUCT(LARGE($C141:$AQ141,{1,2,3,4,5,6,7,8})), "") -> 
AS142: 0 | AT142: 0 | AU142: =IF($AT142<=6,SUM($C142:$AQ142),SUMPRODUCT(LARGE($C142:$AQ142,{1,2,3,4,5,6}))) -> 0 | AX142: =IFERROR(SUMPRODUCT(LARGE($C142:$AQ142,{1,2,3,4})), "") ->  | AZ142: =IFERROR(SUMPRODUCT(LARGE($C142:$AQ142,{1,2,3,4,5,6,7,8})), "") -> 
AS143: 0 | AT143: 0 | AU143: =IF($AT143<=6,SUM($C143:$AQ143),SUMPRODUCT(LARGE($C143:$AQ143,{1,2,3,4,5,6}))) -> 0 | AX143: =IFERROR(SUMPRODUCT(LARGE($C143:$AQ143,{1,2,3,4})), "") ->  | AZ143: =IFERROR(SUMPRODUCT(LARGE($C143:$AQ143,{1,2,3,4,5,6,7,8})), "") -> 
AS144: 0 | AT144: 0 | AU144: =IF($AT144<=6,SUM($C144:$AQ144),SUMPRODUCT(LARGE($C144:$AQ144,{1,2,3,4,5,6}))) -> 0 | AX144: =IFERROR(SUMPRODUCT(LARGE($C144:$AQ144,{1,2,3,4})), "") ->  | AZ144: =IFERROR(SUMPRODUCT(LARGE($C144:$AQ144,{1,2,3,4,5,6,7,8})), "") -> 
AS145: 0 | AT145: 0 | AU145: =IF($AT145<=6,SUM($C145:$AQ145),SUMPRODUCT(LARGE($C145:$AQ145,{1,2,3,4,5,6}))) -> 0 | AX145: =IFERROR(SUMPRODUCT(LARGE($C145:$AQ145,{1,2,3,4})), "") ->  | AZ145: =IFERROR(SUMPRODUCT(LARGE($C145:$AQ145,{1,2,3,4,5,6,7,8})), "") -> 
AS146: 0 | AT146: 0 | AU146: =IF($AT146<=6,SUM($C146:$AQ146),SUMPRODUCT(LARGE($C146:$AQ146,{1,2,3,4,5,6}))) -> 0 | AX146: =IFERROR(SUMPRODUCT(LARGE($C146:$AQ146,{1,2,3,4})), "") ->  | AZ146: =IFERROR(SUMPRODUCT(LARGE($C146:$AQ146,{1,2,3,4,5,6,7,8})), "") -> 
AS147: 0 | AT147: 0 | AU147: =IF($AT147<=6,SUM($C147:$AQ147),SUMPRODUCT(LARGE($C147:$AQ147,{1,2,3,4,5,6}))) -> 0 | AX147: =IFERROR(SUMPRODUCT(LARGE($C147:$AQ147,{1,2,3,4})), "") ->  | AZ147: =IFERROR(SUMPRODUCT(LARGE($C147:$AQ147,{1,2,3,4,5,6,7,8})), "") -> 
AS148: 0 | AT148: 0 | AU148: =IF($AT148<=6,SUM($C148:$AQ148),SUMPRODUCT(LARGE($C148:$AQ148,{1,2,3,4,5,6}))) -> 0 | AX148: =IFERROR(SUMPRODUCT(LARGE($C148:$AQ148,{1,2,3,4})), "") ->  | AZ148: =IFERROR(SUMPRODUCT(LARGE($C148:$AQ148,{1,2,3,4,5,6,7,8})), "") -> 
AS149: 0 | AT149: 0 | AU149: =IF($AT149<=6,SUM($C149:$AQ149),SUMPRODUCT(LARGE($C149:$AQ149,{1,2,3,4,5,6}))) -> 0 | AX149: =IFERROR(SUMPRODUCT(LARGE($C149:$AQ149,{1,2,3,4})), "") ->  | AZ149: =IFERROR(SUMPRODUCT(LARGE($C149:$AQ149,{1,2,3,4,5,6,7,8})), "") -> 
AS150: 0 | AT150: 0 | AU150: =IF($AT150<=6,SUM($C150:$AQ150),SUMPRODUCT(LARGE($C150:$AQ150,{1,2,3,4,5,6}))) -> 0 | AX150: =IFERROR(SUMPRODUCT(LARGE($C150:$AQ150,{1,2,3,4})), "") ->  | AZ150: =IFERROR(SUMPRODUCT(LARGE($C150:$AQ150,{1,2,3,4,5,6,7,8})), "") -> 
AS151: 0 | AT151: 0 | AU151: =IF($AT151<=6,SUM($C151:$AQ151),SUMPRODUCT(LARGE($C151:$AQ151,{1,2,3,4,5,6}))) -> 0 | AX151: =IFERROR(SUMPRODUCT(LARGE($C151:$AQ151,{1,2,3,4})), "") ->  | AZ151: =IFERROR(SUMPRODUCT(LARGE($C151:$AQ151,{1,2,3,4,5,6,7,8})), "") -> 
AS152: 0 | AT152: 0 | AU152: =IF($AT152<=6,SUM($C152:$AQ152),SUMPRODUCT(LARGE($C152:$AQ152,{1,2,3,4,5,6}))) -> 0 | AX152: =IFERROR(SUMPRODUCT(LARGE($C152:$AQ152,{1,2,3,4})), "") ->  | AZ152: =IFERROR(SUMPRODUCT(LARGE($C152:$AQ152,{1,2,3,4,5,6,7,8})), "") -> 
AS153: 0 | AT153: 0 | AU153: =IF($AT153<=6,SUM($C153:$AQ153),SUMPRODUCT(LARGE($C153:$AQ153,{1,2,3,4,5,6}))) -> 0 | AX153: =IFERROR(SUMPRODUCT(LARGE($C153:$AQ153,{1,2,3,4})), "") ->  | AZ153: =IFERROR(SUMPRODUCT(LARGE($C153:$AQ153,{1,2,3,4,5,6,7,8})), "") -> 
AS154: 0 | AT154: 0 | AU154: =IF($AT154<=6,SUM($C154:$AQ154),SUMPRODUCT(LARGE($C154:$AQ154,{1,2,3,4,5,6}))) -> 0 | AX154: =IFERROR(SUMPRODUCT(LARGE($C154:$AQ154,{1,2,3,4})), "") ->  | AZ154: =IFERROR(SUMPRODUCT(LARGE($C154:$AQ154,{1,2,3,4,5,6,7,8})), "") -> 
AS155: 0 | AT155: 0 | AU155: =IF($AT155<=6,SUM($C155:$AQ155),SUMPRODUCT(LARGE($C155:$AQ155,{1,2,3,4,5,6}))) -> 0 | AX155: =IFERROR(SUMPRODUCT(LARGE($C155:$AQ155,{1,2,3,4})), "") ->  | AZ155: =IFERROR(SUMPRODUCT(LARGE($C155:$AQ155,{1,2,3,4,5,6,7,8})), "") -> 
AS156: 0 | AT156: 0 | AU156: =IF($AT156<=6,SUM($C156:$AQ156),SUMPRODUCT(LARGE($C156:$AQ156,{1,2,3,4,5,6}))) -> 0 | AX156: =IFERROR(SUMPRODUCT(LARGE($C156:$AQ156,{1,2,3,4})), "") ->  | AZ156: =IFERROR(SUMPRODUCT(LARGE($C156:$AQ156,{1,2,3,4,5,6,7,8})), "") -> 
AS157: 0 | AT157: 0 | AU157: =IF($AT157<=6,SUM($C157:$AQ157),SUMPRODUCT(LARGE($C157:$AQ157,{1,2,3,4,5,6}))) -> 0 | AX157: =IFERROR(SUMPRODUCT(LARGE($C157:$AQ157,{1,2,3,4})), "") ->  | AZ157: =IFERROR(SUMPRODUCT(LARGE($C157:$AQ157,{1,2,3,4,5,6,7,8})), "") -> 
AS158: 0 | AT158: 0 | AU158: =IF($AT158<=6,SUM($C158:$AQ158),SUMPRODUCT(LARGE($C158:$AQ158,{1,2,3,4,5,6}))) -> 0 | AX158: =IFERROR(SUMPRODUCT(LARGE($C158:$AQ158,{1,2,3,4})), "") ->  | AZ158: =IFERROR(SUMPRODUCT(LARGE($C158:$AQ158,{1,2,3,4,5,6,7,8})), "") -> 
AS159: 0 | AT159: 0 | AU159: =IF($AT159<=6,SUM($C159:$AQ159),SUMPRODUCT(LARGE($C159:$AQ159,{1,2,3,4,5,6}))) -> 0 | AX159: =IFERROR(SUMPRODUCT(LARGE($C159:$AQ159,{1,2,3,4})), "") ->  | AZ159: =IFERROR(SUMPRODUCT(LARGE($C159:$AQ159,{1,2,3,4,5,6,7,8})), "") -> 
AS160: 0 | AT160: 0 | AU160: =IF($AT160<=6,SUM($C160:$AQ160),SUMPRODUCT(LARGE($C160:$AQ160,{1,2,3,4,5,6}))) -> 0 | AX160: =IFERROR(SUMPRODUCT(LARGE($C160:$AQ160,{1,2,3,4})), "") ->  | AZ160: =IFERROR(SUMPRODUCT(LARGE($C160:$AQ160,{1,2,3,4,5,6,7,8})), "") -> 
AS161: 0 | AT161: 0 | AU161: =IF($AT161<=6,SUM($C161:$AQ161),SUMPRODUCT(LARGE($C161:$AQ161,{1,2,3,4,5,6}))) -> 0 | AX161: =IFERROR(SUMPRODUCT(LARGE($C161:$AQ161,{1,2,3,4})), "") ->  | AZ161: =IFERROR(SUMPRODUCT(LARGE($C161:$AQ161,{1,2,3,4,5,6,7,8})), "") -> 
AS162: 0 | AT162: 0 | AU162: =IF($AT162<=6,SUM($C162:$AQ162),SUMPRODUCT(LARGE($C162:$AQ162,{1,2,3,4,5,6}))) -> 0 | AX162: =IFERROR(SUMPRODUCT(LARGE($C162:$AQ162,{1,2,3,4})), "") ->  | AZ162: =IFERROR(SUMPRODUCT(LARGE($C162:$AQ162,{1,2,3,4,5,6,7,8})), "") -> 
AS163: 0 | AT163: 0 | AU163: =IF($AT163<=6,SUM($C163:$AQ163),SUMPRODUCT(LARGE($C163:$AQ163,{1,2,3,4,5,6}))) -> 0 | AX163: =IFERROR(SUMPRODUCT(LARGE($C163:$AQ163,{1,2,3,4})), "") ->  | AZ163: =IFERROR(SUMPRODUCT(LARGE($C163:$AQ163,{1,2,3,4,5,6,7,8})), "") -> 
AS164: 0 | AT164: 0 | AU164: =IF($AT164<=6,SUM($C164:$AQ164),SUMPRODUCT(LARGE($C164:$AQ164,{1,2,3,4,5,6}))) -> 0 | AX164: =IFERROR(SUMPRODUCT(LARGE($C164:$AQ164,{1,2,3,4})), "") ->  | AZ164: =IFERROR(SUMPRODUCT(LARGE($C164:$AQ164,{1,2,3,4,5,6,7,8})), "") -> 
AS165: 0 | AT165: 0 | AU165: =IF($AT165<=6,SUM($C165:$AQ165),SUMPRODUCT(LARGE($C165:$AQ165,{1,2,3,4,5,6}))) -> 0 | AX165: =IFERROR(SUMPRODUCT(LARGE($C165:$AQ165,{1,2,3,4})), "") ->  | AZ165: =IFERROR(SUMPRODUCT(LARGE($C165:$AQ165,{1,2,3,4,5,6,7,8})), "") -> 
AS166: 0 | AT166: 0 | AU166: =IF($AT166<=6,SUM($C166:$AQ166),SUMPRODUCT(LARGE($C166:$AQ166,{1,2,3,4,5,6}))) -> 0 | AX166: =IFERROR(SUMPRODUCT(LARGE($C166:$AQ166,{1,2,3,4})), "") ->  | AZ166: =IFERROR(SUMPRODUCT(LARGE($C166:$AQ166,{1,2,3,4,5,6,7,8})), "") -> 
AS167: 0 | AT167: 0 | AU167: =IF($AT167<=6,SUM($C167:$AQ167),SUMPRODUCT(LARGE($C167:$AQ167,{1,2,3,4,5,6}))) -> 0 | AX167: =IFERROR(SUMPRODUCT(LARGE($C167:$AQ167,{1,2,3,4})), "") ->  | AZ167: =IFERROR(SUMPRODUCT(LARGE($C167:$AQ167,{1,2,3,4,5,6,7,8})), "") -> 
AS168: 0 | AT168: 0 | AU168: =IF($AT168<=6,SUM($C168:$AQ168),SUMPRODUCT(LARGE($C168:$AQ168,{1,2,3,4,5,6}))) -> 0 | AX168: =IFERROR(SUMPRODUCT(LARGE($C168:$AQ168,{1,2,3,4})), "") ->  | AZ168: =IFERROR(SUMPRODUCT(LARGE($C168:$AQ168,{1,2,3,4,5,6,7,8})), "") -> 
AS169: 0 | AT169: 0 | AU169: =IF($AT169<=6,SUM($C169:$AQ169),SUMPRODUCT(LARGE($C169:$AQ169,{1,2,3,4,5,6}))) -> 0 | AX169: =IFERROR(SUMPRODUCT(LARGE($C169:$AQ169,{1,2,3,4})), "") ->  | AZ169: =IFERROR(SUMPRODUCT(LARGE($C169:$AQ169,{1,2,3,4,5,6,7,8})), "") -> 
AS170: 0 | AT170: 0 | AU170: =IF($AT170<=6,SUM($C170:$AQ170),SUMPRODUCT(LARGE($C170:$AQ170,{1,2,3,4,5,6}))) -> 0 | AX170: =IFERROR(SUMPRODUCT(LARGE($C170:$AQ170,{1,2,3,4})), "") ->  | AZ170: =IFERROR(SUMPRODUCT(LARGE($C170:$AQ170,{1,2,3,4,5,6,7,8})), "") -> 
AS171: 0 | AT171: 0 | AU171: =IF($AT171<=6,SUM($C171:$AQ171),SUMPRODUCT(LARGE($C171:$AQ171,{1,2,3,4,5,6}))) -> 0 | AX171: =IFERROR(SUMPRODUCT(LARGE($C171:$AQ171,{1,2,3,4})), "") ->  | AZ171: =IFERROR(SUMPRODUCT(LARGE($C171:$AQ171,{1,2,3,4,5,6,7,8})), "") -> 
AS172: 0 | AT172: 0 | AU172: =IF($AT172<=6,SUM($C172:$AQ172),SUMPRODUCT(LARGE($C172:$AQ172,{1,2,3,4,5,6}))) -> 0 | AX172: =IFERROR(SUMPRODUCT(LARGE($C172:$AQ172,{1,2,3,4})), "") ->  | AZ172: =IFERROR(SUMPRODUCT(LARGE($C172:$AQ172,{1,2,3,4,5,6,7,8})), "") -> 
AS173: 0 | AT173: 0 | AU173: =IF($AT173<=6,SUM($C173:$AQ173),SUMPRODUCT(LARGE($C173:$AQ173,{1,2,3,4,5,6}))) -> 0 | AX173: =IFERROR(SUMPRODUCT(LARGE($C173:$AQ173,{1,2,3,4})), "") ->  | AZ173: =IFERROR(SUMPRODUCT(LARGE($C173:$AQ173,{1,2,3,4,5,6,7,8})), "") -> 
AS174: 0 | AT174: 0 | AU174: =IF($AT174<=6,SUM($C174:$AQ174),SUMPRODUCT(LARGE($C174:$AQ174,{1,2,3,4,5,6}))) -> 0 | AX174: =IFERROR(SUMPRODUCT(LARGE($C174:$AQ174,{1,2,3,4})), "") ->  | AZ174: =IFERROR(SUMPRODUCT(LARGE($C174:$AQ174,{1,2,3,4,5,6,7,8})), "") -> 
AS175: 0 | AT175: 0 | AU175: =IF($AT175<=6,SUM($C175:$AQ175),SUMPRODUCT(LARGE($C175:$AQ175,{1,2,3,4,5,6}))) -> 0 | AX175: =IFERROR(SUMPRODUCT(LARGE($C175:$AQ175,{1,2,3,4})), "") ->  | AZ175: =IFERROR(SUMPRODUCT(LARGE($C175:$AQ175,{1,2,3,4,5,6,7,8})), "") -> 
AS176: 0 | AT176: 0 | AU176: =IF($AT176<=6,SUM($C176:$AQ176),SUMPRODUCT(LARGE($C176:$AQ176,{1,2,3,4,5,6}))) -> 0 | AX176: =IFERROR(SUMPRODUCT(LARGE($C176:$AQ176,{1,2,3,4})), "") ->  | AZ176: =IFERROR(SUMPRODUCT(LARGE($C176:$AQ176,{1,2,3,4,5,6,7,8})), "") -> 
AS177: 0 | AT177: 0 | AU177: =IF($AT177<=6,SUM($C177:$AQ177),SUMPRODUCT(LARGE($C177:$AQ177,{1,2,3,4,5,6}))) -> 0 | AX177: =IFERROR(SUMPRODUCT(LARGE($C177:$AQ177,{1,2,3,4})), "") ->  | AZ177: =IFERROR(SUMPRODUCT(LARGE($C177:$AQ177,{1,2,3,4,5,6,7,8})), "") -> 
AS178: 0 | AT178: 0 | AU178: =IF($AT178<=6,SUM($C178:$AQ178),SUMPRODUCT(LARGE($C178:$AQ178,{1,2,3,4,5,6}))) -> 0 | AX178: =IFERROR(SUMPRODUCT(LARGE($C178:$AQ178,{1,2,3,4})), "") ->  | AZ178: =IFERROR(SUMPRODUCT(LARGE($C178:$AQ178,{1,2,3,4,5,6,7,8})), "") -> 
AS179: 0 | AT179: 0 | AU179: =IF($AT179<=6,SUM($C179:$AQ179),SUMPRODUCT(LARGE($C179:$AQ179,{1,2,3,4,5,6}))) -> 0 | AX179: =IFERROR(SUMPRODUCT(LARGE($C179:$AQ179,{1,2,3,4})), "") ->  | AZ179: =IFERROR(SUMPRODUCT(LARGE($C179:$AQ179,{1,2,3,4,5,6,7,8})), "") -> 
AS180: 0 | AT180: 0 | AU180: =IF($AT180<=6,SUM($C180:$AQ180),SUMPRODUCT(LARGE($C180:$AQ180,{1,2,3,4,5,6}))) -> 0 | AX180: =IFERROR(SUMPRODUCT(LARGE($C180:$AQ180,{1,2,3,4})), "") ->  | AZ180: =IFERROR(SUMPRODUCT(LARGE($C180:$AQ180,{1,2,3,4,5,6,7,8})), "") -> 
AS181: 0 | AT181: 0 | AU181: =IF($AT181<=6,SUM($C181:$AQ181),SUMPRODUCT(LARGE($C181:$AQ181,{1,2,3,4,5,6}))) -> 0 | AX181: =IFERROR(SUMPRODUCT(LARGE($C181:$AQ181,{1,2,3,4})), "") ->  | AZ181: =IFERROR(SUMPRODUCT(LARGE($C181:$AQ181,{1,2,3,4,5,6,7,8})), "") -> 
AS182: 0 | AT182: 0 | AU182: =IF($AT182<=6,SUM($C182:$AQ182),SUMPRODUCT(LARGE($C182:$AQ182,{1,2,3,4,5,6}))) -> 0 | AX182: =IFERROR(SUMPRODUCT(LARGE($C182:$AQ182,{1,2,3,4})), "") ->  | AZ182: =IFERROR(SUMPRODUCT(LARGE($C182:$AQ182,{1,2,3,4,5,6,7,8})), "") -> 
AS183: 0 | AT183: 0 | AU183: =IF($AT183<=6,SUM($C183:$AQ183),SUMPRODUCT(LARGE($C183:$AQ183,{1,2,3,4,5,6}))) -> 0 | AX183: =IFERROR(SUMPRODUCT(LARGE($C183:$AQ183,{1,2,3,4})), "") ->  | AZ183: =IFERROR(SUMPRODUCT(LARGE($C183:$AQ183,{1,2,3,4,5,6,7,8})), "") -> 
AS184: 0 | AT184: 0 | AU184: =IF($AT184<=6,SUM($C184:$AQ184),SUMPRODUCT(LARGE($C184:$AQ184,{1,2,3,4,5,6}))) -> 0 | AX184: =IFERROR(SUMPRODUCT(LARGE($C184:$AQ184,{1,2,3,4})), "") ->  | AZ184: =IFERROR(SUMPRODUCT(LARGE($C184:$AQ184,{1,2,3,4,5,6,7,8})), "") -> 
AS185: 0 | AT185: 0 | AU185: =IF($AT185<=6,SUM($C185:$AQ185),SUMPRODUCT(LARGE($C185:$AQ185,{1,2,3,4,5,6}))) -> 0 | AX185: =IFERROR(SUMPRODUCT(LARGE($C185:$AQ185,{1,2,3,4})), "") ->  | AZ185: =IFERROR(SUMPRODUCT(LARGE($C185:$AQ185,{1,2,3,4,5,6,7,8})), "") -> 
AS186: 0 | AT186: 0 | AU186: =IF($AT186<=6,SUM($C186:$AQ186),SUMPRODUCT(LARGE($C186:$AQ186,{1,2,3,4,5,6}))) -> 0 | AX186: =IFERROR(SUMPRODUCT(LARGE($C186:$AQ186,{1,2,3,4})), "") ->  | AZ186: =IFERROR(SUMPRODUCT(LARGE($C186:$AQ186,{1,2,3,4,5,6,7,8})), "") -> 
AS187: 0 | AT187: 0 | AU187: =IF($AT187<=6,SUM($C187:$AQ187),SUMPRODUCT(LARGE($C187:$AQ187,{1,2,3,4,5,6}))) -> 0 | AX187: =IFERROR(SUMPRODUCT(LARGE($C187:$AQ187,{1,2,3,4})), "") ->  | AZ187: =IFERROR(SUMPRODUCT(LARGE($C187:$AQ187,{1,2,3,4,5,6,7,8})), "") -> 
AS188: 0 | AT188: 0 | AU188: =IF($AT188<=6,SUM($C188:$AQ188),SUMPRODUCT(LARGE($C188:$AQ188,{1,2,3,4,5,6}))) -> 0 | AX188: =IFERROR(SUMPRODUCT(LARGE($C188:$AQ188,{1,2,3,4})), "") ->  | AZ188: =IFERROR(SUMPRODUCT(LARGE($C188:$AQ188,{1,2,3,4,5,6,7,8})), "") -> 
AS189: 0 | AT189: 0 | AU189: =IF($AT189<=6,SUM($C189:$AQ189),SUMPRODUCT(LARGE($C189:$AQ189,{1,2,3,4,5,6}))) -> 0 | AX189: =IFERROR(SUMPRODUCT(LARGE($C189:$AQ189,{1,2,3,4})), "") ->  | AZ189: =IFERROR(SUMPRODUCT(LARGE($C189:$AQ189,{1,2,3,4,5,6,7,8})), "") -> 
AS190: 0 | AT190: 0 | AU190: =IF($AT190<=6,SUM($C190:$AQ190),SUMPRODUCT(LARGE($C190:$AQ190,{1,2,3,4,5,6}))) -> 0 | AX190: =IFERROR(SUMPRODUCT(LARGE($C190:$AQ190,{1,2,3,4})), "") ->  | AZ190: =IFERROR(SUMPRODUCT(LARGE($C190:$AQ190,{1,2,3,4,5,6,7,8})), "") -> 
AS191: 0 | AT191: 0 | AU191: =IF($AT191<=6,SUM($C191:$AQ191),SUMPRODUCT(LARGE($C191:$AQ191,{1,2,3,4,5,6}))) -> 0 | AX191: =IFERROR(SUMPRODUCT(LARGE($C191:$AQ191,{1,2,3,4})), "") ->  | AZ191: =IFERROR(SUMPRODUCT(LARGE($C191:$AQ191,{1,2,3,4,5,6,7,8})), "") -> 
AS192: 0 | AT192: 0 | AU192: =IF($AT192<=6,SUM($C192:$AQ192),SUMPRODUCT(LARGE($C192:$AQ192,{1,2,3,4,5,6}))) -> 0 | AX192: =IFERROR(SUMPRODUCT(LARGE($C192:$AQ192,{1,2,3,4})), "") ->  | AZ192: =IFERROR(SUMPRODUCT(LARGE($C192:$AQ192,{1,2,3,4,5,6,7,8})), "") -> 
AS193: 0 | AT193: 0 | AU193: =IF($AT193<=6,SUM($C193:$AQ193),SUMPRODUCT(LARGE($C193:$AQ193,{1,2,3,4,5,6}))) -> 0 | AX193: =IFERROR(SUMPRODUCT(LARGE($C193:$AQ193,{1,2,3,4})), "") ->  | AZ193: =IFERROR(SUMPRODUCT(LARGE($C193:$AQ193,{1,2,3,4,5,6,7,8})), "") -> 
AS194: 0 | AT194: 0 | AU194: =IF($AT194<=6,SUM($C194:$AQ194),SUMPRODUCT(LARGE($C194:$AQ194,{1,2,3,4,5,6}))) -> 0 | AX194: =IFERROR(SUMPRODUCT(LARGE($C194:$AQ194,{1,2,3,4})), "") ->  | AZ194: =IFERROR(SUMPRODUCT(LARGE($C194:$AQ194,{1,2,3,4,5,6,7,8})), "") -> 
AS195: 0 | AT195: 0 | AU195: =IF($AT195<=6,SUM($C195:$AQ195),SUMPRODUCT(LARGE($C195:$AQ195,{1,2,3,4,5,6}))) -> 0 | AX195: =IFERROR(SUMPRODUCT(LARGE($C195:$AQ195,{1,2,3,4})), "") ->  | AZ195: =IFERROR(SUMPRODUCT(LARGE($C195:$AQ195,{1,2,3,4,5,6,7,8})), "") -> 
AS196: 0 | AT196: 0 | AU196: =IF($AT196<=6,SUM($C196:$AQ196),SUMPRODUCT(LARGE($C196:$AQ196,{1,2,3,4,5,6}))) -> 0 | AX196: =IFERROR(SUMPRODUCT(LARGE($C196:$AQ196,{1,2,3,4})), "") ->  | AZ196: =IFERROR(SUMPRODUCT(LARGE($C196:$AQ196,{1,2,3,4,5,6,7,8})), "") -> 
AS197: =SUM($C197:$AR197) -> 0 | AT197: =COUNTA(C197:AQ197) -> 0 | AU197: =IF($AT197<=6,SUM($C197:$AQ197),SUMPRODUCT(LARGE($C197:$AQ197,{1,2,3,4,5,6}))) -> 0 | AV197: =IF(AND($AT197>=6,AU197=AU198),"Manual Calc Needed","") ->  | AW197: =IF(AND($AT197>=6,$AV197="Tie"),"Manual Calc Needed"," ") ->  | AX197: =IFERROR(SUMPRODUCT(LARGE($C197:$AQ197,{1,2,3,4})), "") ->  | AY197: =IF(AND($AT197>=6,$AV197="Tie",AX197=AX198),"Manual Calc Needed"," ") ->  | AZ197: =IFERROR(SUMPRODUCT(LARGE($C197:$AQ197,{1,2,3,4,5,6,7,8})), "") -> 
AS198: 0 | AT198: 0 | AU198: =IF($AT198<=6,SUM($C198:$AQ198),SUMPRODUCT(LARGE($C198:$AQ198,{1,2,3,4,5,6}))) -> 0 | AX198: =IFERROR(SUMPRODUCT(LARGE($C198:$AQ198,{1,2,3,4})), "") ->  | AZ198: =IFERROR(SUMPRODUCT(LARGE($C198:$AQ198,{1,2,3,4,5,6,7,8})), "") -> 
AS199: 0 | AT199: 0 | AU199: =IF($AT199<=6,SUM($C199:$AQ199),SUMPRODUCT(LARGE($C199:$AQ199,{1,2,3,4,5,6}))) -> 0 | AX199: =IFERROR(SUMPRODUCT(LARGE($C199:$AQ199,{1,2,3,4})), "") ->  | AZ199: =IFERROR(SUMPRODUCT(LARGE($C199:$AQ199,{1,2,3,4,5,6,7,8})), "") -> 
AS200: 0 | AT200: 0 | AU200: =IF($AT200<=6,SUM($C200:$AQ200),SUMPRODUCT(LARGE($C200:$AQ200,{1,2,3,4,5,6}))) -> 0 | AX200: =IFERROR(SUMPRODUCT(LARGE($C200:$AQ200,{1,2,3,4})), "") ->  | AZ200: =IFERROR(SUMPRODUCT(LARGE($C200:$AQ200,{1,2,3,4,5,6,7,8})), "") -> 
... 501 more rows

Sheet Abbreviations
A1: Program Code | B1: Program ( X - Community College) (I - Independent) | D1: Tournament Code | E1: Tournament
A2: ACU | B2: Abilene Christian University | D2: Lee | E2: Lee College (9/23-25)
A3: ADL | B3: American Debate League (I) | D3: CSI | E3: College of Southern Idaho "Fran Tanner Open" (9/23-24)
A4: ADA | B4: Angleton Debate Association (I) | D4: QC1/ QC2 | E4: Queens College "Big Apple Debate Tournament" (9/23-24) Swing Tournaments
A5: AzCU | B5: Arizona Christian University | D5: Ottu/StC | E5: Ottawa University/ Sterling College "Plains Invitational" (9/23-25) DID NOT MAKE
A6: ASU | B6: Arkansas State University | D6: NWC | E6: Northwest College "Trapper Rendezvous" (9/23-24)
A7: ATU | B7: Arkansas Tech University | D7: UU | E7: Union University "Revival of the Bulldogs Debate" (9/30-10/2)
A8: BaSU | B8: Ball State University | D8: USM | E8: University of Southern Mississippi "Hub City Invitational" (10/7-9)
A9: BAC | B9: Belmont Abbey College | D9: L&CC | E9: Lewis & Clark College "Steve Hunt Classic" (10/7-9)
A10: BU | B10: Belmont University | D10: BGSU | E10: Bowling Green State University "Falcon Classic" & Cyber Falcon" (10/14-15)
A11: BHSU | B11: Black Hills State University | D11: LTU | E11: Louisiana Tech University (10/14-16)
A12: BSU | B12: Boise State University | D12: UCM | E12: University of Central Missouri (10/21-22)
A13: BPCC | B13: Bossier Parish Community College (X) | D13: ClSU | E13: Cleveland State University "Cougar Classic" (10/14-15)
A14: BGSU | B14: Bowling Green State University | D14: MTSU | E14: Middle Tennessee State University "Pejaver Debates" (10/28-30)
A15: BrU | B15: Bradley University | D15: LSUS | E15: Louisiana State University at Shreveport "Red River Swing" (11/4-6)
A16: BuU | B16: Bushnell University | D16: ACU | E16: Abilene Christian University "Joseph J. Cardot Invitational" (11/11-13) (CANCELLED)
A17: BuCC | B17: Butler Community College (X) | D17: LU | E17: Linfield University 'Mahaffrey Memorial Forensics Tournament" (11/11-13)
A18: ButU | B18: Butler University | D18: UJ | E18: University of Jamestown (12/3-4)
A19: CBU | B19: California Baptist University | D19: SFCT | E19: Southern Forensics Championship Tournament (1/27-29)
A20: CSLB | B20: California State Long Beach | D20: SWB | E20: Southwest Baptist University "2022 Bob R. Derryberry Memorial Season Opener" (10/7-9)
A21: CPH | B21: California State Polytechnical University, Humboldt | D21: PaU | E21: Park University "Riverfest Swing" (10/14-16)
A22: CSUC | B22: California State University- Chico | D22: Ubama | E22: University of Alabama "Frank Thomspon Crimson Classic & UA Alumni Swing" (10/15-16)
A23: CSUSM | B23: California State University- San Marcos | D23: WhU | E23: Whitworth University "McPhearson Classic" (10/21-22)
A24: CSUN | B24: California State University, Northridge | D24: PLNU | E24: Point Loma Nazarene University "Sunset Cliffs Classic" (10/21-23)
A25: CasC | B25: Casper College (X) | D25: FSCJ | E25: Florida State College at Jacksonville (11/11-13)
A26: CU | B26: Cedarville University | D26: SFCC/MVC | E26: State Fair Community College/ Missouri Valley College "US-65 Swing" (11/11-13)
A27: CTC | B27: Central Texas College (X) | D27: UJ | E27: University of Jamestown
A28: CerC | B28: Cerritos College (X)
A29: ChC | B29: Chabot College (X)
A30: CSCC | B30: Cleveland State Community College (X)
A31: ClSU | B31: Cleveland State University
A32: CEI | B32: College of Eastern Idaho (X)
A33: CSI | B33: College of Southern Idaho (X)
A34: CWI | B34: College of Western Idaho (X)
A35: CCU | B35: Colorado Christian University
A36: CUI | B36: Concordia University Irvine
A37: CCC | B37: Contra Costa College (X)
A38: CrC | B38: Crowder College
A39: CC | B39: Cypress College (X)
A40: DBU | B40: Dallas Baptist University
A41: DVC | B41: Diablo Valley College (X)
A42: DiU | B42: Dillard University
A43: DorU | B43: Dordt University
A44: DU | B44: Drury University
A45: DuqU | B45: Duquesne University
A46: ETBU | B46: East Texas Baptist University
A47: EaWU | B47: Eastern Washington University
A48: ECC | B48: El Camino College (X)
A49: EPCC | B49: El Paso Community College (X)
A50: EC | B50: Emerson College
A51: FSUF | B51: Ferris State University Forensics
A52: FAU | B52: Florida Atlantic University
A53: FSCJ | B53: Florida State College - Jacksonville (X)
A54: FSU | B54: Florida State University
A55: FHU | B55: Freed-Hardeman University
A56: FCC | B56: Fresno City College (X)
A57: FC | B57: Fullerton College
A58: GIT | B58: Georgia Institute of Technology
A59: GTU | B59: Georgia Tech University
A60: GCU | B60: Grand Canyon University
A61: GC | B61: Grossmont College (X)
A62: GCC | B62: Grove City College
A63: GAC | B63: Gustavus Adolphus College
A64: HU | B64: Harding University
A65: HiC | B65: Hillsdale College
A66: HoU | B66: Hofstra University
A67: HPU | B67: Howard Payne Univeristy
A68: ISU | B68: Idaho State University
A69: IVC | B69: Irvine Valley College (X)
A70: IC | B70: Ithaca College
A71: JSCC | B71: Jefferson State Community College (X)
A72: JCU | B72: John Carroll University
A73: KWU | B73: Kansas Wesleyan University
A74: LSCO | B74: Lamar State College- Orange (X)
A75: LPC | B75: Las Positas College (X)
A76: Lee | B76: Lee College (X)
A77: L&CC | B77: Lewis & Clark College
A78: LibU | B78: Liberty University
A79: LPDA | B79: Lincoln-Polaris Debate Association (I)
A80: LiC | B80: Linfield College
A81: LiU | B81: Linfield University
A82: LACC | B82: Los Angeles City College (X)
A83: LCU | B83: Louisiana College (new name Louisiana Christian University)
A84: LSU | B84: Louisiana State University
A85: LSU | B85: Louisiana State University
A86: LSUS | B86: Louisiana State University-Shreveport
A87: LTU | B87: Louisiana Tech University
A88: LCC | B88: Lower Columbia College (X)
A89: LU | B89: Lynn University
A90: MacC | B90: Macalester College
A91: MSD | B91: Maricopa Speech & Debate (Maricopa Community College) (X)
A92: MarU | B92: Marion University
A93: MslU | B93: Marshall University
A94: MTCC | B94: McDowell Technical Community College (X)
A95: McKU | B95: McKendree University
A96: MU | B96: Mercer University
A97: MTSU | B97: Middle Tennessee State University
A98: MSUM | B98: Minnesota State University, Mankato
A99: MSU | B99: Mississippi State University
A100: MVC | B100: Missouri Valley College (X)
A101: MJC | B101: Modesto Junior College (X)
A102: MoorC | B102: Moorpark College (X)
A103: MoC | B103: Morehouse College
A104: MSCC | B104: Motlow State Community College (X)
A105: MHCC | B105: Mt. Hood Community College (X)
A106: MSAC | B106: Mt. San Antonio College (X)
A107: MSJC | B107: Mt. San Jacinto College (X)
A108: MuSU | B108: Murray State University
A109: MuU | B109: Muskingum University
A110: NCC | B110: North Central College
A111: NDSU | B111: North Dakota State University
A112: NIL | B112: Northern Illinois College
A113: NSU | B113: Northern State University
A114: NVCC | B114: Northern Virginia Community College (X)
A115: NACC | B115: Northwest Arkansas Community College (X)
A116: NwC | B116: Northwest College (X)
A117: NMSU | B117: Northwest Missouri State University
A118: NNU | B118: Northwest Nazarene University
A119: NWSU | B119: Northwestern State University
A120: OhU | B120: Ohio University
A121: OkBU | B121: Oklahoma Baptist University
A122: ORU | B122: Oral Roberts University
A123: OCC | B123: Orange Coast College (X)
A124: OSU | B124: Oregon State University
A125: OU | B125: Otterbein University
A126: OttU | B126: Ottowa University
A127: OCTC | B127: Owensboro Community & Technical College (X)
A128: PacU | B128: Pacific University
A129: PC | B129: Palomar College (X)
A130: PaU | B130: Park University
A131: PCC | B131: Pasadena City College (X)
A132: PHC | B132: Patrick Henry College
A133: PSCC | B133: Pellissippi State Community College (X)
A134: PLNU | B134: Point Loma Nazarene University
A135: PVAM | B135: Prairie View A&M University
A136: PSC | B136: Prarie State College (X)
A137: QC | B137: Queens College
A138: RU | B138: Rice University
A139: RHCC | B139: Rio Hondo Community College (X)
A140: SSU | B140: Sacramento State University
A141: SadC | B141: Saddleback College (X)
A142: StAC | B142: Saint Anselm College
A143: SJU | B143: Saint Joseph's University
A144: SDMC | B144: San Diego Mesa College (X)
A145: SFSU | B145: San Fransisco State University
A146: SJSU | B146: San Jose State University
A147: SRJC | B147: Santa Rosa Junior College (X)
A148: SaCC | B148: Santiago Canyon College (X)
A149: ScU | B149: Schreiner University
A150: SU | B150: Seatle University
A151: SHU | B151: Setton Hall University
A152: SC | B152: Simpson College
A153: SkyC | B153: Skyline College (X)
A154: SoCC | B154: Solano Community College (X)
A155: SEA | B155: Southeast Arkansas College (X)
A156: SOSU | B156: Southeastern Oklahoma State University
A157: SMU | B157: Southern Methodist University
A158: SBU | B158: Southwest Baptist University
A159: SpC | B159: Spellman College
A160: SAC | B160: St. Anselm College
A161: SFCC | B161: State Fair Community College (X)
A162: StC | B162: Sterling College
A163: TC | B163: Talladega College (X)
A164: TaCC | B164: Tallahassee Community College (X)
A165: TnSU | B165: Tennessee State University
A166: TTU | B166: Tennessee Technological University
A167: TAMU | B167: Texas A&M University
A168: TCU | B168: Texas Christian University
A169: TSU | B169: Texas Southern University
A170: TxSU | B170: Texas State University
A171: TGS | B171: The Garner School (I)
A172: TMP | B172: The Mountain Pass (I)
A173: TranSU | B173: Translyvania University
A174: TMU | B174: Truett McConnell University
A175: TruSU | B175: Truman State University
A176: TCC | B176: Tulsa Community College (X)
A177: TJC | B177: Tyler Junior College (X)
A178: UU | B178: Union University
A179: UAA | B179: Univeristy of Alaska-Anchorage
A180: UCM | B180: University Central Missouri
A181: Ubama | B181: University of Alabama
A182: UA | B182: University of Arkansas
A183: UAM | B183: University of Arkansas-Monticello
A184: UCSD | B184: University of California San Diego
A185: UCSB | B185: University of California Santa Barbara
A186: UCA | B186: University of Central Arkansas
A187: UCF | B187: University of Central Florida
A188: UF | B188: University of Florida
A189: UI | B189: University of Indianapolis
A190: UJ | B190: University of Jamestown
A191: UMo | B191: University of Montana
A192: UNLV | B192: University of Nevada at Las Vegas
A193: UNR | B193: University of Nevada at Reno
A194: UNG | B194: University of North Georgia
A195: UNT | B195: University of North Texas
A196: UP | B196: University of Portland
A197: USFSP | B197: University of South Florida-St. Petersburg
A198: USM | B198: University of Southern Mississippi
A199: UTK | B199: University of Tennessee-Knoxville
A200: UTD | B200: University of Texas- Dallas
... 19 more rows

Sheet Founders
C1: Lee | D1: CSI | E1: QC1 | F1: QC2 | G1: UU | H1: USM | I1: L&CC | J1: BGSU1 | K1: LTU | L1: UCM | M1: ClSU | N1: MTSU | O1: LSUS | P1: LU | Q1: UJ | R1: SFCT | S1: SWB | T1: PaU | U1: BGSU2 | V1: WhU | W1: PLNU | X1: FSCJ | Y1: SFCC | AY1: S/L Ranking | AZ1: Head to Head | BA1: H/L | BB1: 7th Tourn. | BC1: 8th Tourn.
B2: Size of Field | C2: =IF(COUNTIFS(C$4:C$999,"<>"),COUNTIFS(C$4:C$999,"<>")," ") -> 13 | D2: 10 | E2: 7 | F2: 10 | G2: 23 | H2: 7 | I2: 11 | J2: 17 | K2: 17 | L2: 16 | M2: 6 | N2: 14 | O2: 21 | P2: 30 | Q2: 20 | T2: 8 | U2: 12 | V2: 7 | Y2: 7
A3: RANK | B3: Squad | C3: LEE (9/23-25) | D3: CSI (9/23-24) | E3: QC Swing #1 (9/23-24) | F3: QC Swing #2 (9/23-24) | G3: Union (9/30-10/2) | H3: USM (10/7-9) | I3: L&CC (10/7-9) | J3: BGSU #1 (10/14-15) | K3: LTU (10/14-16) | L3: UCM (10/21-23) | M3: CISU (10/14-15) | N3: MTSU (10/28-30) | O3: LSUS (10/21-23) | P3: Linfield (11/11-13) | Q3: Jamestown (12/3-4) | R3: SFCT (1/27-29) | S3: SWB (10/7-9) | T3: PaU (10/14-16) | U3: BGSU #2 (10/14-15) | V3: Whitworth (10/21-22) | W3: PLNU (10/21-23) | X3: FSCJ (11/11-13) | Y3: SFCC/MVC (11/11-13) | AV3: over 6/2nd host | AW3: Total Points | AX3: Tournament Count | AY3: Best Top 6 (National Rank) | AZ3: 1st Tie Breaker | BA3: 2nd Tie Breaker | BB3: 3rd Tie Breaker | BC3: 4th Tie Breaker
B4: ACU | C4: 73 | G4: 72 | K4: 6 | O4: 87 | Q4: 84 | AW4: =SUM($C4:$AV4) -> 322 | AX4: =COUNTA(C4:AU4) -> 5 | AY4: =IF($AX4<=6,SUM($C4:$AU4),SUMPRODUCT(LARGE($C4:$AU4,{1,2,3,4,5,6}))) -> 322 | AZ4: =IF(AND($AX4>=6,AY4=AY5),"Manual Calc Needed","") ->  | BA4: =IF(AZ4= "","",IFERROR(SUMPRODUCT(LARGE($C4:$AU4,{1,2,3,4})), "")) ->  | BB4: =IF(BA4<>"",(IFERROR(SUMPRODUCT(LARGE($C4:$AU4,{1,2,3,4,5,6,7})),"")),"") ->  | BC4: =IF(BB4<>"",(IFERROR(SUMPRODUCT(LARGE($C4:$AU4,{1,2,3,4,5,6,7,8})),"")),"") -> 
B5: ASU | C5: 11 | L5: 18 | Q5: 9 | AW5: 38 | AX5: 3 | AY5: =IF($AX5<=6,SUM($C5:$AU5),SUMPRODUCT(LARGE($C5:$AU5,{1,2,3,4,5,6}))) -> 38 | BA5: =IF(AZ5= "","",IFERROR(SUMPRODUCT(LARGE($C5:$AU5,{1,2,3,4})), "")) ->  | BB5: =IF(BA5<>"",(IFERROR(SUMPRODUCT(LARGE($C5:$AU5,{1,2,3,4,5,6,7})),"")),"") ->  | BC5: =IF(BB5<>"",(IFERROR(SUMPRODUCT(LARGE($C5:$AU5,{1,2,3,4,5,6,7,8})),"")),"") -> 
B6: BaSU | J6: 5 | Y6: 10 | AW6: 15 | AX6: 2 | AY6: =IF($AX6<=6,SUM($C6:$AU6),SUMPRODUCT(LARGE($C6:$AU6,{1,2,3,4,5,6}))) -> 15 | BA6: =IF(AZ6= "","",IFERROR(SUMPRODUCT(LARGE($C6:$AU6,{1,2,3,4})), "")) ->  | BB6: =IF(BA6<>"",(IFERROR(SUMPRODUCT(LARGE($C6:$AU6,{1,2,3,4,5,6,7})),"")),"") ->  | BC6: =IF(BB6<>"",(IFERROR(SUMPRODUCT(LARGE($C6:$AU6,{1,2,3,4,5,6,7,8})),"")),"") -> 
B7: BGSU | E7: 5 | J7: 7 | AW7: 12 | AX7: 2 | AY7: =IF($AX7<=6,SUM($C7:$AU7),SUMPRODUCT(LARGE($C7:$AU7,{1,2,3,4,5,6}))) -> 12 | BA7: =IF(AZ7= "","",IFERROR(SUMPRODUCT(LARGE($C7:$AU7,{1,2,3,4})), "")) ->  | BB7: =IF(BA7<>"",(IFERROR(SUMPRODUCT(LARGE($C7:$AU7,{1,2,3,4,5,6,7})),"")),"") ->  | BC7: =IF(BB7<>"",(IFERROR(SUMPRODUCT(LARGE($C7:$AU7,{1,2,3,4,5,6,7,8})),"")),"") -> 
B8: BPCC | C8: 29 | G8: 5 | K8: 12 | O8: 19 | Q8: 8 | AW8: 73 | AX8: 5 | AY8: =IF($AX8<=6,SUM($C8:$AU8),SUMPRODUCT(LARGE($C8:$AU8,{1,2,3,4,5,6}))) -> 73 | BA8: =IF(AZ8= "","",IFERROR(SUMPRODUCT(LARGE($C8:$AU8,{1,2,3,4})), "")) ->  | BB8: =IF(BA8<>"",(IFERROR(SUMPRODUCT(LARGE($C8:$AU8,{1,2,3,4,5,6,7})),"")),"") ->  | BC8: =IF(BB8<>"",(IFERROR(SUMPRODUCT(LARGE($C8:$AU8,{1,2,3,4,5,6,7,8})),"")),"") -> 
B9: BSU | D9: =7+5+5 -> 17 | I9: 28 | P9: 42 | AW9: 87 | AX9: 3 | AY9: =IF($AX9<=6,SUM($C9:$AU9),SUMPRODUCT(LARGE($C9:$AU9,{1,2,3,4,5,6}))) -> 87 | BA9: =IF(AZ9= "","",IFERROR(SUMPRODUCT(LARGE($C9:$AU9,{1,2,3,4})), "")) ->  | BB9: =IF(BA9<>"",(IFERROR(SUMPRODUCT(LARGE($C9:$AU9,{1,2,3,4,5,6,7})),"")),"") ->  | BC9: =IF(BB9<>"",(IFERROR(SUMPRODUCT(LARGE($C9:$AU9,{1,2,3,4,5,6,7,8})),"")),"") -> 
B10: BU | G10: 24 | M10: 13 | N10: 8 | P10: 9 | AW10: 54 | AX10: 4 | AY10: =IF($AX10<=6,SUM($C10:$AU10),SUMPRODUCT(LARGE($C10:$AU10,{1,2,3,4,5,6}))) -> 54 | BA10: =IF(AZ10= "","",IFERROR(SUMPRODUCT(LARGE($C10:$AU10,{1,2,3,4})), "")) ->  | BB10: =IF(BA10<>"",(IFERROR(SUMPRODUCT(LARGE($C10:$AU10,{1,2,3,4,5,6,7})),"")),"") ->  | BC10: =IF(BB10<>"",(IFERROR(SUMPRODUCT(LARGE($C10:$AU10,{1,2,3,4,5,6,7,8})),"")),"") -> 
B11: ButU | F11: 13 | AW11: 13 | AX11: 1 | AY11: =IF($AX11<=6,SUM($C11:$AU11),SUMPRODUCT(LARGE($C11:$AU11,{1,2,3,4,5,6}))) -> 13 | BA11: =IF(AZ11= "","",IFERROR(SUMPRODUCT(LARGE($C11:$AU11,{1,2,3,4})), "")) ->  | BB11: =IF(BA11<>"",(IFERROR(SUMPRODUCT(LARGE($C11:$AU11,{1,2,3,4,5,6,7})),"")),"") ->  | BC11: =IF(BB11<>"",(IFERROR(SUMPRODUCT(LARGE($C11:$AU11,{1,2,3,4,5,6,7,8})),"")),"") -> 
B12: CasC | D12: 6 | P12: 9 | AW12: 15 | AX12: 2 | AY12: =IF($AX12<=6,SUM($C12:$AU12),SUMPRODUCT(LARGE($C12:$AU12,{1,2,3,4,5,6}))) -> 15 | BA12: =IF(AZ12= "","",IFERROR(SUMPRODUCT(LARGE($C12:$AU12,{1,2,3,4})), "")) ->  | BB12: =IF(BA12<>"",(IFERROR(SUMPRODUCT(LARGE($C12:$AU12,{1,2,3,4,5,6,7})),"")),"") ->  | BC12: =IF(BB12<>"",(IFERROR(SUMPRODUCT(LARGE($C12:$AU12,{1,2,3,4,5,6,7,8})),"")),"") -> 
B13: CCU | L13: 24 | P13: 19 | AW13: 43 | AX13: 2 | AY13: =IF($AX13<=6,SUM($C13:$AU13),SUMPRODUCT(LARGE($C13:$AU13,{1,2,3,4,5,6}))) -> 43 | BA13: =IF(AZ13= "","",IFERROR(SUMPRODUCT(LARGE($C13:$AU13,{1,2,3,4})), "")) ->  | BB13: =IF(BA13<>"",(IFERROR(SUMPRODUCT(LARGE($C13:$AU13,{1,2,3,4,5,6,7})),"")),"") ->  | BC13: =IF(BB13<>"",(IFERROR(SUMPRODUCT(LARGE($C13:$AU13,{1,2,3,4,5,6,7,8})),"")),"") -> 
B14: CEI | P14: 4 | AW14: 4 | AX14: 1 | AY14: =IF($AX14<=6,SUM($C14:$AU14),SUMPRODUCT(LARGE($C14:$AU14,{1,2,3,4,5,6}))) -> 4 | BA14: =IF(AZ14= "","",IFERROR(SUMPRODUCT(LARGE($C14:$AU14,{1,2,3,4})), "")) ->  | BB14: =IF(BA14<>"",(IFERROR(SUMPRODUCT(LARGE($C14:$AU14,{1,2,3,4,5,6,7})),"")),"") ->  | BC14: =IF(BB14<>"",(IFERROR(SUMPRODUCT(LARGE($C14:$AU14,{1,2,3,4,5,6,7,8})),"")),"") -> 
B15: CrC | L15: 3 | AW15: 3 | AX15: 1 | AY15: =IF($AX15<=6,SUM($C15:$AU15),SUMPRODUCT(LARGE($C15:$AU15,{1,2,3,4,5,6}))) -> 3 | BA15: =IF(AZ15= "","",IFERROR(SUMPRODUCT(LARGE($C15:$AU15,{1,2,3,4})), "")) ->  | BB15: =IF(BA15<>"",(IFERROR(SUMPRODUCT(LARGE($C15:$AU15,{1,2,3,4,5,6,7})),"")),"") ->  | BC15: =IF(BB15<>"",(IFERROR(SUMPRODUCT(LARGE($C15:$AU15,{1,2,3,4,5,6,7,8})),"")),"") -> 
B16: CSCC | M16: 1 | AW16: 1 | AX16: 1 | AY16: =IF($AX16<=6,SUM($C16:$AU16),SUMPRODUCT(LARGE($C16:$AU16,{1,2,3,4,5,6}))) -> 1 | BA16: =IF(AZ16= "","",IFERROR(SUMPRODUCT(LARGE($C16:$AU16,{1,2,3,4})), "")) ->  | BB16: =IF(BA16<>"",(IFERROR(SUMPRODUCT(LARGE($C16:$AU16,{1,2,3,4,5,6,7})),"")),"") ->  | BC16: =IF(BB16<>"",(IFERROR(SUMPRODUCT(LARGE($C16:$AU16,{1,2,3,4,5,6,7,8})),"")),"") -> 
B17: CSI | D17: =3+3+2 -> 8 | P17: 16 | AW17: 24 | AX17: 2 | AY17: =IF($AX17<=6,SUM($C17:$AU17),SUMPRODUCT(LARGE($C17:$AU17,{1,2,3,4,5,6}))) -> 24 | BA17: =IF(AZ17= "","",IFERROR(SUMPRODUCT(LARGE($C17:$AU17,{1,2,3,4})), "")) ->  | BB17: =IF(BA17<>"",(IFERROR(SUMPRODUCT(LARGE($C17:$AU17,{1,2,3,4,5,6,7})),"")),"") ->  | BC17: =IF(BB17<>"",(IFERROR(SUMPRODUCT(LARGE($C17:$AU17,{1,2,3,4,5,6,7,8})),"")),"") -> 
B18: CSUC | I18: 2 | AW18: 2 | AX18: 1 | AY18: =IF($AX18<=6,SUM($C18:$AU18),SUMPRODUCT(LARGE($C18:$AU18,{1,2,3,4,5,6}))) -> 2 | BA18: =IF(AZ18= "","",IFERROR(SUMPRODUCT(LARGE($C18:$AU18,{1,2,3,4})), "")) ->  | BB18: =IF(BA18<>"",(IFERROR(SUMPRODUCT(LARGE($C18:$AU18,{1,2,3,4,5,6,7})),"")),"") ->  | BC18: =IF(BB18<>"",(IFERROR(SUMPRODUCT(LARGE($C18:$AU18,{1,2,3,4,5,6,7,8})),"")),"") -> 
B19: CTC | P19: 2 | AW19: 2 | AX19: 1 | AY19: =IF($AX19<=6,SUM($C19:$AU19),SUMPRODUCT(LARGE($C19:$AU19,{1,2,3,4,5,6}))) -> 2 | BA19: =IF(AZ19= "","",IFERROR(SUMPRODUCT(LARGE($C19:$AU19,{1,2,3,4})), "")) ->  | BB19: =IF(BA19<>"",(IFERROR(SUMPRODUCT(LARGE($C19:$AU19,{1,2,3,4,5,6,7})),"")),"") ->  | BC19: =IF(BB19<>"",(IFERROR(SUMPRODUCT(LARGE($C19:$AU19,{1,2,3,4,5,6,7,8})),"")),"") -> 
B20: CU | M20: 27 | AW20: 27 | AX20: 1 | AY20: =IF($AX20<=6,SUM($C20:$AU20),SUMPRODUCT(LARGE($C20:$AU20,{1,2,3,4,5,6}))) -> 27 | BA20: =IF(AZ20= "","",IFERROR(SUMPRODUCT(LARGE($C20:$AU20,{1,2,3,4})), "")) ->  | BB20: =IF(BA20<>"",(IFERROR(SUMPRODUCT(LARGE($C20:$AU20,{1,2,3,4,5,6,7})),"")),"") ->  | BC20: =IF(BB20<>"",(IFERROR(SUMPRODUCT(LARGE($C20:$AU20,{1,2,3,4,5,6,7,8})),"")),"") -> 
B21: CWI | D21: =5+3+3 -> 11 | I21: 41 | P21: 45 | AW21: 97 | AX21: 3 | AY21: =IF($AX21<=6,SUM($C21:$AU21),SUMPRODUCT(LARGE($C21:$AU21,{1,2,3,4,5,6}))) -> 97 | BA21: =IF(AZ21= "","",IFERROR(SUMPRODUCT(LARGE($C21:$AU21,{1,2,3,4})), "")) ->  | BB21: =IF(BA21<>"",(IFERROR(SUMPRODUCT(LARGE($C21:$AU21,{1,2,3,4,5,6,7})),"")),"") ->  | BC21: =IF(BB21<>"",(IFERROR(SUMPRODUCT(LARGE($C21:$AU21,{1,2,3,4,5,6,7,8})),"")),"") -> 
B22: DBU | C22: 70 | K22: 72 | N22: 62 | O22: 79 | Q22: 24 | AW22: 307 | AX22: 5 | AY22: =IF($AX22<=6,SUM($C22:$AU22),SUMPRODUCT(LARGE($C22:$AU22,{1,2,3,4,5,6}))) -> 307 | BA22: =IF(AZ22= "","",IFERROR(SUMPRODUCT(LARGE($C22:$AU22,{1,2,3,4})), "")) ->  | BB22: =IF(BA22<>"",(IFERROR(SUMPRODUCT(LARGE($C22:$AU22,{1,2,3,4,5,6,7})),"")),"") ->  | BC22: =IF(BB22<>"",(IFERROR(SUMPRODUCT(LARGE($C22:$AU22,{1,2,3,4,5,6,7,8})),"")),"") -> 
B23: DorU | J23: 2 | AW23: 2 | AX23: 1 | AY23: =IF($AX23<=6,SUM($C23:$AU23),SUMPRODUCT(LARGE($C23:$AU23,{1,2,3,4,5,6}))) -> 2 | BA23: =IF(AZ23= "","",IFERROR(SUMPRODUCT(LARGE($C23:$AU23,{1,2,3,4})), "")) ->  | BB23: =IF(BA23<>"",(IFERROR(SUMPRODUCT(LARGE($C23:$AU23,{1,2,3,4,5,6,7})),"")),"") ->  | BC23: =IF(BB23<>"",(IFERROR(SUMPRODUCT(LARGE($C23:$AU23,{1,2,3,4,5,6,7,8})),"")),"") -> 
B24: DU | G24: 3 | AW24: 3 | AX24: 1 | AY24: =IF($AX24<=6,SUM($C24:$AU24),SUMPRODUCT(LARGE($C24:$AU24,{1,2,3,4,5,6}))) -> 3 | BA24: =IF(AZ24= "","",IFERROR(SUMPRODUCT(LARGE($C24:$AU24,{1,2,3,4})), "")) ->  | BB24: =IF(BA24<>"",(IFERROR(SUMPRODUCT(LARGE($C24:$AU24,{1,2,3,4,5,6,7})),"")),"") ->  | BC24: =IF(BB24<>"",(IFERROR(SUMPRODUCT(LARGE($C24:$AU24,{1,2,3,4,5,6,7,8})),"")),"") -> 
B25: EC | E25: 10 | U25: 2 | AW25: 12 | AX25: 2 | AY25: =IF($AX25<=6,SUM($C25:$AU25),SUMPRODUCT(LARGE($C25:$AU25,{1,2,3,4,5,6}))) -> 12 | BA25: =IF(AZ25= "","",IFERROR(SUMPRODUCT(LARGE($C25:$AU25,{1,2,3,4})), "")) ->  | BB25: =IF(BA25<>"",(IFERROR(SUMPRODUCT(LARGE($C25:$AU25,{1,2,3,4,5,6,7})),"")),"") ->  | BC25: =IF(BB25<>"",(IFERROR(SUMPRODUCT(LARGE($C25:$AU25,{1,2,3,4,5,6,7,8})),"")),"") -> 
B26: FAU | G26: 10 | AW26: 10 | AX26: 1 | AY26: =IF($AX26<=6,SUM($C26:$AU26),SUMPRODUCT(LARGE($C26:$AU26,{1,2,3,4,5,6}))) -> 10 | BA26: =IF(AZ26= "","",IFERROR(SUMPRODUCT(LARGE($C26:$AU26,{1,2,3,4})), "")) ->  | BB26: =IF(BA26<>"",(IFERROR(SUMPRODUCT(LARGE($C26:$AU26,{1,2,3,4,5,6,7})),"")),"") ->  | BC26: =IF(BB26<>"",(IFERROR(SUMPRODUCT(LARGE($C26:$AU26,{1,2,3,4,5,6,7,8})),"")),"") -> 
B27: FSCJ | J27: 13 | AW27: 13 | AX27: 1 | AY27: =IF($AX27<=6,SUM($C27:$AU27),SUMPRODUCT(LARGE($C27:$AU27,{1,2,3,4,5,6}))) -> 13 | BA27: =IF(AZ27= "","",IFERROR(SUMPRODUCT(LARGE($C27:$AU27,{1,2,3,4})), "")) ->  | BB27: =IF(BA27<>"",(IFERROR(SUMPRODUCT(LARGE($C27:$AU27,{1,2,3,4,5,6,7})),"")),"") ->  | BC27: =IF(BB27<>"",(IFERROR(SUMPRODUCT(LARGE($C27:$AU27,{1,2,3,4,5,6,7,8})),"")),"") -> 
B28: GCC | J28: 9 | U28: 18 | AW28: 27 | AX28: 2 | AY28: =IF($AX28<=6,SUM($C28:$AU28),SUMPRODUCT(LARGE($C28:$AU28,{1,2,3,4,5,6}))) -> 27 | BA28: =IF(AZ28= "","",IFERROR(SUMPRODUCT(LARGE($C28:$AU28,{1,2,3,4})), "")) ->  | BB28: =IF(BA28<>"",(IFERROR(SUMPRODUCT(LARGE($C28:$AU28,{1,2,3,4,5,6,7})),"")),"") ->  | BC28: =IF(BB28<>"",(IFERROR(SUMPRODUCT(LARGE($C28:$AU28,{1,2,3,4,5,6,7,8})),"")),"") -> 
B29: GCU | P29: 5 | AW29: 5 | AX29: 1 | AY29: =IF($AX29<=6,SUM($C29:$AU29),SUMPRODUCT(LARGE($C29:$AU29,{1,2,3,4,5,6}))) -> 5 | BA29: =IF(AZ29= "","",IFERROR(SUMPRODUCT(LARGE($C29:$AU29,{1,2,3,4})), "")) ->  | BB29: =IF(BA29<>"",(IFERROR(SUMPRODUCT(LARGE($C29:$AU29,{1,2,3,4,5,6,7})),"")),"") ->  | BC29: =IF(BB29<>"",(IFERROR(SUMPRODUCT(LARGE($C29:$AU29,{1,2,3,4,5,6,7,8})),"")),"") -> 
B30: GTC | P30: 2 | AW30: 2 | AX30: 1 | AY30: =IF($AX30<=6,SUM($C30:$AU30),SUMPRODUCT(LARGE($C30:$AU30,{1,2,3,4,5,6}))) -> 2 | BA30: =IF(AZ30= "","",IFERROR(SUMPRODUCT(LARGE($C30:$AU30,{1,2,3,4})), "")) ->  | BB30: =IF(BA30<>"",(IFERROR(SUMPRODUCT(LARGE($C30:$AU30,{1,2,3,4,5,6,7})),"")),"") ->  | BC30: =IF(BB30<>"",(IFERROR(SUMPRODUCT(LARGE($C30:$AU30,{1,2,3,4,5,6,7,8})),"")),"") -> 
B31: HiC | J31: 22 | P31: 29 | U31: 17 | AW31: 68 | AX31: 3 | AY31: =IF($AX31<=6,SUM($C31:$AU31),SUMPRODUCT(LARGE($C31:$AU31,{1,2,3,4,5,6}))) -> 68 | BA31: =IF(AZ31= "","",IFERROR(SUMPRODUCT(LARGE($C31:$AU31,{1,2,3,4})), "")) ->  | BB31: =IF(BA31<>"",(IFERROR(SUMPRODUCT(LARGE($C31:$AU31,{1,2,3,4,5,6,7})),"")),"") ->  | BC31: =IF(BB31<>"",(IFERROR(SUMPRODUCT(LARGE($C31:$AU31,{1,2,3,4,5,6,7,8})),"")),"") -> 
B32: HoU | E32: 2 | AW32: 2 | AX32: 1 | AY32: =IF($AX32<=6,SUM($C32:$AU32),SUMPRODUCT(LARGE($C32:$AU32,{1,2,3,4,5,6}))) -> 2 | BA32: =IF(AZ32= "","",IFERROR(SUMPRODUCT(LARGE($C32:$AU32,{1,2,3,4})), "")) ->  | BB32: =IF(BA32<>"",(IFERROR(SUMPRODUCT(LARGE($C32:$AU32,{1,2,3,4,5,6,7})),"")),"") ->  | BC32: =IF(BB32<>"",(IFERROR(SUMPRODUCT(LARGE($C32:$AU32,{1,2,3,4,5,6,7,8})),"")),"") -> 
B33: HPU | G33: 22 | U33: 10 | AW33: 32 | AX33: 2 | AY33: =IF($AX33<=6,SUM($C33:$AU33),SUMPRODUCT(LARGE($C33:$AU33,{1,2,3,4,5,6}))) -> 32 | BA33: =IF(AZ33= "","",IFERROR(SUMPRODUCT(LARGE($C33:$AU33,{1,2,3,4})), "")) ->  | BB33: =IF(BA33<>"",(IFERROR(SUMPRODUCT(LARGE($C33:$AU33,{1,2,3,4,5,6,7})),"")),"") ->  | BC33: =IF(BB33<>"",(IFERROR(SUMPRODUCT(LARGE($C33:$AU33,{1,2,3,4,5,6,7,8})),"")),"") -> 
B34: HU | L34: 11 | O34: 10 | AW34: 21 | AX34: 2 | AY34: =IF($AX34<=6,SUM($C34:$AU34),SUMPRODUCT(LARGE($C34:$AU34,{1,2,3,4,5,6}))) -> 21 | BA34: =IF(AZ34= "","",IFERROR(SUMPRODUCT(LARGE($C34:$AU34,{1,2,3,4})), "")) ->  | BB34: =IF(BA34<>"",(IFERROR(SUMPRODUCT(LARGE($C34:$AU34,{1,2,3,4,5,6,7})),"")),"") ->  | BC34: =IF(BB34<>"",(IFERROR(SUMPRODUCT(LARGE($C34:$AU34,{1,2,3,4,5,6,7,8})),"")),"") -> 
B35: Ind | C35: 7 | O35: 5 | AW35: 12 | AX35: 2 | AY35: =IF($AX35<=6,SUM($C35:$AU35),SUMPRODUCT(LARGE($C35:$AU35,{1,2,3,4,5,6}))) -> 12 | BA35: =IF(AZ35= "","",IFERROR(SUMPRODUCT(LARGE($C35:$AU35,{1,2,3,4})), "")) ->  | BB35: =IF(BA35<>"",(IFERROR(SUMPRODUCT(LARGE($C35:$AU35,{1,2,3,4,5,6,7})),"")),"") ->  | BC35: =IF(BB35<>"",(IFERROR(SUMPRODUCT(LARGE($C35:$AU35,{1,2,3,4,5,6,7,8})),"")),"") -> 
B36: ISU | D36: =12+2+1 -> 15 | I36: 15 | P36: 10 | AW36: 40 | AX36: 3 | AY36: =IF($AX36<=6,SUM($C36:$AU36),SUMPRODUCT(LARGE($C36:$AU36,{1,2,3,4,5,6}))) -> 40 | AZ36: =IF(AND($AX36>=6,AY36=AY37),"Manual Calc Needed","") ->  | BA36: =IF(AZ36= "","",IFERROR(SUMPRODUCT(LARGE($C36:$AU36,{1,2,3,4})), "")) ->  | BB36: =IF(BA36<>"",(IFERROR(SUMPRODUCT(LARGE($C36:$AU36,{1,2,3,4,5,6,7})),"")),"") ->  | BC36: =IF(BB36<>"",(IFERROR(SUMPRODUCT(LARGE($C36:$AU36,{1,2,3,4,5,6,7,8})),"")),"") -> 
B37: JSCC | G37: 27 | N37: 19 | Q37: 22 | U37: 7 | AW37: 75 | AX37: 4 | AY37: =IF($AX37<=6,SUM($C37:$AU37),SUMPRODUCT(LARGE($C37:$AU37,{1,2,3,4,5,6}))) -> 75 | BA37: =IF(AZ37= "","",IFERROR(SUMPRODUCT(LARGE($C37:$AU37,{1,2,3,4})), "")) ->  | BB37: =IF(BA37<>"",(IFERROR(SUMPRODUCT(LARGE($C37:$AU37,{1,2,3,4,5,6,7})),"")),"") ->  | BC37: =IF(BB37<>"",(IFERROR(SUMPRODUCT(LARGE($C37:$AU37,{1,2,3,4,5,6,7,8})),"")),"") -> 
B38: KWU | Y38: 10 | AW38: 10 | AX38: 1 | AY38: =IF($AX38<=6,SUM($C38:$AU38),SUMPRODUCT(LARGE($C38:$AU38,{1,2,3,4,5,6}))) -> 10 | BA38: =IF(AZ38= "","",IFERROR(SUMPRODUCT(LARGE($C38:$AU38,{1,2,3,4})), "")) ->  | BB38: =IF(BA38<>"",(IFERROR(SUMPRODUCT(LARGE($C38:$AU38,{1,2,3,4,5,6,7})),"")),"") ->  | BC38: =IF(BB38<>"",(IFERROR(SUMPRODUCT(LARGE($C38:$AU38,{1,2,3,4,5,6,7,8})),"")),"") -> 
B39: L&CC | I39: 23 | P39: 30 | V39: 14 | AW39: 67 | AX39: 3 | AY39: =IF($AX39<=6,SUM($C39:$AU39),SUMPRODUCT(LARGE($C39:$AU39,{1,2,3,4,5,6}))) -> 67 | BA39: =IF(AZ39= "","",IFERROR(SUMPRODUCT(LARGE($C39:$AU39,{1,2,3,4})), "")) ->  | BB39: =IF(BA39<>"",(IFERROR(SUMPRODUCT(LARGE($C39:$AU39,{1,2,3,4,5,6,7})),"")),"") ->  | BC39: =IF(BB39<>"",(IFERROR(SUMPRODUCT(LARGE($C39:$AU39,{1,2,3,4,5,6,7,8})),"")),"") -> 
B40: LCC | I40: 9 | V40: 11 | AW40: 20 | AX40: 2 | AY40: =IF($AX40<=6,SUM($C40:$AU40),SUMPRODUCT(LARGE($C40:$AU40,{1,2,3,4,5,6}))) -> 20 | BA40: =IF(AZ40= "","",IFERROR(SUMPRODUCT(LARGE($C40:$AU40,{1,2,3,4})), "")) ->  | BB40: =IF(BA40<>"",(IFERROR(SUMPRODUCT(LARGE($C40:$AU40,{1,2,3,4,5,6,7})),"")),"") ->  | BC40: =IF(BB40<>"",(IFERROR(SUMPRODUCT(LARGE($C40:$AU40,{1,2,3,4,5,6,7,8})),"")),"") -> 
B41: LCU | C41: 22 | K41: 15 | O41: 3 | AW41: 40 | AX41: 3 | AY41: =IF($AX41<=6,SUM($C41:$AU41),SUMPRODUCT(LARGE($C41:$AU41,{1,2,3,4,5,6}))) -> 40 | BA41: =IF(AZ41= "","",IFERROR(SUMPRODUCT(LARGE($C41:$AU41,{1,2,3,4})), "")) ->  | BB41: =IF(BA41<>"",(IFERROR(SUMPRODUCT(LARGE($C41:$AU41,{1,2,3,4,5,6,7})),"")),"") ->  | BC41: =IF(BB41<>"",(IFERROR(SUMPRODUCT(LARGE($C41:$AU41,{1,2,3,4,5,6,7,8})),"")),"") -> 
B42: Lee | C42: 1 | G42: 13 | K42: 30 | O42: 36 | Q42: 19 | AW42: 99 | AX42: 5 | AY42: =IF($AX42<=6,SUM($C42:$AU42),SUMPRODUCT(LARGE($C42:$AU42,{1,2,3,4,5,6}))) -> 99 | BA42: =IF(AZ42= "","",IFERROR(SUMPRODUCT(LARGE($C42:$AU42,{1,2,3,4})), "")) ->  | BB42: =IF(BA42<>"",(IFERROR(SUMPRODUCT(LARGE($C42:$AU42,{1,2,3,4,5,6,7})),"")),"") ->  | BC42: =IF(BB42<>"",(IFERROR(SUMPRODUCT(LARGE($C42:$AU42,{1,2,3,4,5,6,7,8})),"")),"") -> 
B43: LibU | E43: 18 | AW43: 18 | AX43: 1 | AY43: =IF($AX43<=6,SUM($C43:$AU43),SUMPRODUCT(LARGE($C43:$AU43,{1,2,3,4,5,6}))) -> 18 | BA43: =IF(AZ43= "","",IFERROR(SUMPRODUCT(LARGE($C43:$AU43,{1,2,3,4})), "")) ->  | BB43: =IF(BA43<>"",(IFERROR(SUMPRODUCT(LARGE($C43:$AU43,{1,2,3,4,5,6,7})),"")),"") ->  | BC43: =IF(BB43<>"",(IFERROR(SUMPRODUCT(LARGE($C43:$AU43,{1,2,3,4,5,6,7,8})),"")),"") -> 
B44: LPDA | C44: 9 | G44: 10 | K44: 9 | N44: 1 | Q44: 2 | AW44: 31 | AX44: 5 | AY44: =IF($AX44<=6,SUM($C44:$AU44),SUMPRODUCT(LARGE($C44:$AU44,{1,2,3,4,5,6}))) -> 31 | BA44: =IF(AZ44= "","",IFERROR(SUMPRODUCT(LARGE($C44:$AU44,{1,2,3,4})), "")) ->  | BB44: =IF(BA44<>"",(IFERROR(SUMPRODUCT(LARGE($C44:$AU44,{1,2,3,4,5,6,7})),"")),"") ->  | BC44: =IF(BB44<>"",(IFERROR(SUMPRODUCT(LARGE($C44:$AU44,{1,2,3,4,5,6,7,8})),"")),"") -> 
B45: LSU | G45: 25 | P45: 11 | AW45: 36 | AX45: 2 | AY45: =IF($AX45<=6,SUM($C45:$AU45),SUMPRODUCT(LARGE($C45:$AU45,{1,2,3,4,5,6}))) -> 36 | BA45: =IF(AZ45= "","",IFERROR(SUMPRODUCT(LARGE($C45:$AU45,{1,2,3,4})), "")) ->  | BB45: =IF(BA45<>"",(IFERROR(SUMPRODUCT(LARGE($C45:$AU45,{1,2,3,4,5,6,7})),"")),"") ->  | BC45: =IF(BB45<>"",(IFERROR(SUMPRODUCT(LARGE($C45:$AU45,{1,2,3,4,5,6,7,8})),"")),"") -> 
B46: LSUS | C46: 41 | G46: 20 | K46: 51 | L46: 23 | O46: 16 | Q46: 12 | AW46: 163 | AX46: 6 | AY46: =IF($AX46<=6,SUM($C46:$AU46),SUMPRODUCT(LARGE($C46:$AU46,{1,2,3,4,5,6}))) -> 163 | BA46: =IF(AZ46= "","",IFERROR(SUMPRODUCT(LARGE($C46:$AU46,{1,2,3,4})), "")) ->  | BB46: =IF(BA46<>"",(IFERROR(SUMPRODUCT(LARGE($C46:$AU46,{1,2,3,4,5,6,7})),"")),"") ->  | BC46: =IF(BB46<>"",(IFERROR(SUMPRODUCT(LARGE($C46:$AU46,{1,2,3,4,5,6,7,8})),"")),"") -> 
B47: LTU | G47: 16 | K47: 3 | O47: 32 | Q47: 22 | AW47: 73 | AX47: 4 | AY47: =IF($AX47<=6,SUM($C47:$AU47),SUMPRODUCT(LARGE($C47:$AU47,{1,2,3,4,5,6}))) -> 73 | BA47: =IF(AZ47= "","",IFERROR(SUMPRODUCT(LARGE($C47:$AU47,{1,2,3,4})), "")) ->  | BB47: =IF(BA47<>"",(IFERROR(SUMPRODUCT(LARGE($C47:$AU47,{1,2,3,4,5,6,7})),"")),"") ->  | BC47: =IF(BB47<>"",(IFERROR(SUMPRODUCT(LARGE($C47:$AU47,{1,2,3,4,5,6,7,8})),"")),"") -> 
B48: LU | G48: 7 | P48: 4 | AW48: 11 | AX48: 2 | AY48: =IF($AX48<=6,SUM($C48:$AU48),SUMPRODUCT(LARGE($C48:$AU48,{1,2,3,4,5,6}))) -> 11 | BA48: =IF(AZ48= "","",IFERROR(SUMPRODUCT(LARGE($C48:$AU48,{1,2,3,4})), "")) ->  | BB48: =IF(BA48<>"",(IFERROR(SUMPRODUCT(LARGE($C48:$AU48,{1,2,3,4,5,6,7})),"")),"") ->  | BC48: =IF(BB48<>"",(IFERROR(SUMPRODUCT(LARGE($C48:$AU48,{1,2,3,4,5,6,7,8})),"")),"") -> 
B49: MarU | L49: 8 | AW49: 8 | AX49: 1 | AY49: =IF($AX49<=6,SUM($C49:$AU49),SUMPRODUCT(LARGE($C49:$AU49,{1,2,3,4,5,6}))) -> 8 | BA49: =IF(AZ49= "","",IFERROR(SUMPRODUCT(LARGE($C49:$AU49,{1,2,3,4})), "")) ->  | BB49: =IF(BA49<>"",(IFERROR(SUMPRODUCT(LARGE($C49:$AU49,{1,2,3,4,5,6,7})),"")),"") ->  | BC49: =IF(BB49<>"",(IFERROR(SUMPRODUCT(LARGE($C49:$AU49,{1,2,3,4,5,6,7,8})),"")),"") -> 
B50: MoC | H50: 26 | AW50: 26 | AX50: 1 | AY50: =IF($AX50<=6,SUM($C50:$AU50),SUMPRODUCT(LARGE($C50:$AU50,{1,2,3,4,5,6}))) -> 26 | BA50: =IF(AZ50= "","",IFERROR(SUMPRODUCT(LARGE($C50:$AU50,{1,2,3,4})), "")) ->  | BB50: =IF(BA50<>"",(IFERROR(SUMPRODUCT(LARGE($C50:$AU50,{1,2,3,4,5,6,7})),"")),"") ->  | BC50: =IF(BB50<>"",(IFERROR(SUMPRODUCT(LARGE($C50:$AU50,{1,2,3,4,5,6,7,8})),"")),"") -> 
B51: MslU | M51: 8 | AW51: 8 | AX51: 1 | AY51: =IF($AX51<=6,SUM($C51:$AU51),SUMPRODUCT(LARGE($C51:$AU51,{1,2,3,4,5,6}))) -> 8 | BA51: =IF(AZ51= "","",IFERROR(SUMPRODUCT(LARGE($C51:$AU51,{1,2,3,4})), "")) ->  | BB51: =IF(BA51<>"",(IFERROR(SUMPRODUCT(LARGE($C51:$AU51,{1,2,3,4,5,6,7})),"")),"") ->  | BC51: =IF(BB51<>"",(IFERROR(SUMPRODUCT(LARGE($C51:$AU51,{1,2,3,4,5,6,7,8})),"")),"") -> 
B52: MSU | G52: 41 | H52: 71 | K52: 60 | N52: 69 | O52: 85 | Q52: 41 | AW52: 367 | AX52: 6 | AY52: =IF($AX52<=6,SUM($C52:$AU52),SUMPRODUCT(LARGE($C52:$AU52,{1,2,3,4,5,6}))) -> 367 | BA52: =IF(AZ52= "","",IFERROR(SUMPRODUCT(LARGE($C52:$AU52,{1,2,3,4})), "")) ->  | BB52: =IF(BA52<>"",(IFERROR(SUMPRODUCT(LARGE($C52:$AU52,{1,2,3,4,5,6,7})),"")),"") ->  | BC52: =IF(BB52<>"",(IFERROR(SUMPRODUCT(LARGE($C52:$AU52,{1,2,3,4,5,6,7,8})),"")),"") -> 
B53: MTSU | E53: 9 | F53: 11 | G53: 62 | M53: 14 | N53: 17 | Q53: 2 | AW53: 115 | AX53: 6 | AY53: =IF($AX53<=6,SUM($C53:$AU53),SUMPRODUCT(LARGE($C53:$AU53,{1,2,3,4,5,6}))) -> 115 | BA53: =IF(AZ53= "","",IFERROR(SUMPRODUCT(LARGE($C53:$AU53,{1,2,3,4})), "")) ->  | BB53: =IF(BA53<>"",(IFERROR(SUMPRODUCT(LARGE($C53:$AU53,{1,2,3,4,5,6,7})),"")),"") ->  | BC53: =IF(BB53<>"",(IFERROR(SUMPRODUCT(LARGE($C53:$AU53,{1,2,3,4,5,6,7,8})),"")),"") -> 
B54: MuSU | F54: 7 | H54: 3 | N54: 5 | AW54: 15 | AX54: 3 | AY54: =IF($AX54<=6,SUM($C54:$AU54),SUMPRODUCT(LARGE($C54:$AU54,{1,2,3,4,5,6}))) -> 15 | BA54: =IF(AZ54= "","",IFERROR(SUMPRODUCT(LARGE($C54:$AU54,{1,2,3,4})), "")) ->  | BB54: =IF(BA54<>"",(IFERROR(SUMPRODUCT(LARGE($C54:$AU54,{1,2,3,4,5,6,7})),"")),"") ->  | BC54: =IF(BB54<>"",(IFERROR(SUMPRODUCT(LARGE($C54:$AU54,{1,2,3,4,5,6,7,8})),"")),"") -> 
B55: MuU | J55: 3 | AW55: 3 | AX55: 1 | AY55: =IF($AX55<=6,SUM($C55:$AU55),SUMPRODUCT(LARGE($C55:$AU55,{1,2,3,4,5,6}))) -> 3 | BA55: =IF(AZ55= "","",IFERROR(SUMPRODUCT(LARGE($C55:$AU55,{1,2,3,4})), "")) ->  | BB55: =IF(BA55<>"",(IFERROR(SUMPRODUCT(LARGE($C55:$AU55,{1,2,3,4,5,6,7})),"")),"") ->  | BC55: =IF(BB55<>"",(IFERROR(SUMPRODUCT(LARGE($C55:$AU55,{1,2,3,4,5,6,7,8})),"")),"") -> 
B56: MVC | J56: 1 | L56: 0 | AW56: 1 | AX56: 2 | AY56: =IF($AX56<=6,SUM($C56:$AU56),SUMPRODUCT(LARGE($C56:$AU56,{1,2,3,4,5,6}))) -> 1 | BA56: =IF(AZ56= "","",IFERROR(SUMPRODUCT(LARGE($C56:$AU56,{1,2,3,4})), "")) ->  | BB56: =IF(BA56<>"",(IFERROR(SUMPRODUCT(LARGE($C56:$AU56,{1,2,3,4,5,6,7})),"")),"") ->  | BC56: =IF(BB56<>"",(IFERROR(SUMPRODUCT(LARGE($C56:$AU56,{1,2,3,4,5,6,7,8})),"")),"") -> 
B57: NNU | D57: 3 | I57: 4 | AW57: 7 | AX57: 2 | AY57: =IF($AX57<=6,SUM($C57:$AU57),SUMPRODUCT(LARGE($C57:$AU57,{1,2,3,4,5,6}))) -> 7 | BA57: =IF(AZ57= "","",IFERROR(SUMPRODUCT(LARGE($C57:$AU57,{1,2,3,4})), "")) ->  | BB57: =IF(BA57<>"",(IFERROR(SUMPRODUCT(LARGE($C57:$AU57,{1,2,3,4,5,6,7})),"")),"") ->  | BC57: =IF(BB57<>"",(IFERROR(SUMPRODUCT(LARGE($C57:$AU57,{1,2,3,4,5,6,7,8})),"")),"") -> 
B58: NSU | G58: 11 | O58: 13 | P58: 13 | AW58: 37 | AX58: 3 | AY58: =IF($AX58<=6,SUM($C58:$AU58),SUMPRODUCT(LARGE($C58:$AU58,{1,2,3,4,5,6}))) -> 37 | BA58: =IF(AZ58= "","",IFERROR(SUMPRODUCT(LARGE($C58:$AU58,{1,2,3,4})), "")) ->  | BB58: =IF(BA58<>"",(IFERROR(SUMPRODUCT(LARGE($C58:$AU58,{1,2,3,4,5,6,7})),"")),"") ->  | BC58: =IF(BB58<>"",(IFERROR(SUMPRODUCT(LARGE($C58:$AU58,{1,2,3,4,5,6,7,8})),"")),"") -> 
B59: NWC | D59: 1 | I59: 11 | AW59: 12 | AX59: 2 | AY59: =IF($AX59<=6,SUM($C59:$AU59),SUMPRODUCT(LARGE($C59:$AU59,{1,2,3,4,5,6}))) -> 12 | BA59: =IF(AZ59= "","",IFERROR(SUMPRODUCT(LARGE($C59:$AU59,{1,2,3,4})), "")) ->  | BB59: =IF(BA59<>"",(IFERROR(SUMPRODUCT(LARGE($C59:$AU59,{1,2,3,4,5,6,7})),"")),"") ->  | BC59: =IF(BB59<>"",(IFERROR(SUMPRODUCT(LARGE($C59:$AU59,{1,2,3,4,5,6,7,8})),"")),"") -> 
B60: OCTC | U60: 1 | AW60: 1 | AX60: 1 | AY60: =IF($AX60<=6,SUM($C60:$AU60),SUMPRODUCT(LARGE($C60:$AU60,{1,2,3,4,5,6}))) -> 1 | BA60: =IF(AZ60= "","",IFERROR(SUMPRODUCT(LARGE($C60:$AU60,{1,2,3,4})), "")) ->  | BB60: =IF(BA60<>"",(IFERROR(SUMPRODUCT(LARGE($C60:$AU60,{1,2,3,4,5,6,7})),"")),"") ->  | BC60: =IF(BB60<>"",(IFERROR(SUMPRODUCT(LARGE($C60:$AU60,{1,2,3,4,5,6,7,8})),"")),"") -> 
B61: OhU | J61: 2 | AW61: 2 | AX61: 1 | AY61: =IF($AX61<=6,SUM($C61:$AU61),SUMPRODUCT(LARGE($C61:$AU61,{1,2,3,4,5,6}))) -> 2 | BA61: =IF(AZ61= "","",IFERROR(SUMPRODUCT(LARGE($C61:$AU61,{1,2,3,4})), "")) ->  | BB61: =IF(BA61<>"",(IFERROR(SUMPRODUCT(LARGE($C61:$AU61,{1,2,3,4,5,6,7})),"")),"") ->  | BC61: =IF(BB61<>"",(IFERROR(SUMPRODUCT(LARGE($C61:$AU61,{1,2,3,4,5,6,7,8})),"")),"") -> 
B62: OkBU | G62: 13 | AW62: 13 | AX62: 1 | AY62: =IF($AX62<=6,SUM($C62:$AU62),SUMPRODUCT(LARGE($C62:$AU62,{1,2,3,4,5,6}))) -> 13 | BA62: =IF(AZ62= "","",IFERROR(SUMPRODUCT(LARGE($C62:$AU62,{1,2,3,4})), "")) ->  | BB62: =IF(BA62<>"",(IFERROR(SUMPRODUCT(LARGE($C62:$AU62,{1,2,3,4,5,6,7})),"")),"") ->  | BC62: =IF(BB62<>"",(IFERROR(SUMPRODUCT(LARGE($C62:$AU62,{1,2,3,4,5,6,7,8})),"")),"") -> 
B63: ORU | Q63: 12 | AW63: 12 | AX63: 1 | AY63: =IF($AX63<=6,SUM($C63:$AU63),SUMPRODUCT(LARGE($C63:$AU63,{1,2,3,4,5,6}))) -> 12 | BA63: =IF(AZ63= "","",IFERROR(SUMPRODUCT(LARGE($C63:$AU63,{1,2,3,4})), "")) ->  | BB63: =IF(BA63<>"",(IFERROR(SUMPRODUCT(LARGE($C63:$AU63,{1,2,3,4,5,6,7})),"")),"") ->  | BC63: =IF(BB63<>"",(IFERROR(SUMPRODUCT(LARGE($C63:$AU63,{1,2,3,4,5,6,7,8})),"")),"") -> 
B64: OSU | I64: 6 | P64: 8 | V64: 5 | AW64: 19 | AX64: 3 | AY64: =IF($AX64<=6,SUM($C64:$AU64),SUMPRODUCT(LARGE($C64:$AU64,{1,2,3,4,5,6}))) -> 19 | BA64: =IF(AZ64= "","",IFERROR(SUMPRODUCT(LARGE($C64:$AU64,{1,2,3,4})), "")) ->  | BB64: =IF(BA64<>"",(IFERROR(SUMPRODUCT(LARGE($C64:$AU64,{1,2,3,4,5,6,7})),"")),"") ->  | BC64: =IF(BB64<>"",(IFERROR(SUMPRODUCT(LARGE($C64:$AU64,{1,2,3,4,5,6,7,8})),"")),"") -> 
B65: OttU | L65: 4 | T65: 13 | AW65: 17 | AX65: 2 | AY65: =IF($AX65<=6,SUM($C65:$AU65),SUMPRODUCT(LARGE($C65:$AU65,{1,2,3,4,5,6}))) -> 17 | BA65: =IF(AZ65= "","",IFERROR(SUMPRODUCT(LARGE($C65:$AU65,{1,2,3,4})), "")) ->  | BB65: =IF(BA65<>"",(IFERROR(SUMPRODUCT(LARGE($C65:$AU65,{1,2,3,4,5,6,7})),"")),"") ->  | BC65: =IF(BB65<>"",(IFERROR(SUMPRODUCT(LARGE($C65:$AU65,{1,2,3,4,5,6,7,8})),"")),"") -> 
B66: OU | J66: 5 | AW66: 5 | AX66: 1 | AY66: =IF($AX66<=6,SUM($C66:$AU66),SUMPRODUCT(LARGE($C66:$AU66,{1,2,3,4,5,6}))) -> 5 | BA66: =IF(AZ66= "","",IFERROR(SUMPRODUCT(LARGE($C66:$AU66,{1,2,3,4})), "")) ->  | BB66: =IF(BA66<>"",(IFERROR(SUMPRODUCT(LARGE($C66:$AU66,{1,2,3,4,5,6,7})),"")),"") ->  | BC66: =IF(BB66<>"",(IFERROR(SUMPRODUCT(LARGE($C66:$AU66,{1,2,3,4,5,6,7,8})),"")),"") -> 
B67: PaU | G67: 6 | L67: 10 | O67: 3 | T67: 7 | Y67: 13 | AW67: 39 | AX67: 5 | AY67: =IF($AX67<=6,SUM($C67:$AU67),SUMPRODUCT(LARGE($C67:$AU67,{1,2,3,4,5,6}))) -> 39 | BA67: =IF(AZ67= "","",IFERROR(SUMPRODUCT(LARGE($C67:$AU67,{1,2,3,4})), "")) ->  | BB67: =IF(BA67<>"",(IFERROR(SUMPRODUCT(LARGE($C67:$AU67,{1,2,3,4,5,6,7})),"")),"") ->  | BC67: =IF(BB67<>"",(IFERROR(SUMPRODUCT(LARGE($C67:$AU67,{1,2,3,4,5,6,7,8})),"")),"") -> 
B68: PHC | N68: 14 | AW68: =SUM($C68:$AV68) -> 14 | AX68: =COUNTA(C68:AU68) -> 1 | AY68: =IF($AX68<=6,SUM($C68:$AU68),SUMPRODUCT(LARGE($C68:$AU68,{1,2,3,4,5,6}))) -> 14 | AZ68: =IF(AND($AX68>=6,AY68=AY69),"Manual Calc Needed","") ->  | BA68: =IF(AZ68= "","",IFERROR(SUMPRODUCT(LARGE($C68:$AU68,{1,2,3,4})), "")) ->  | BB68: =IF(BA68<>"",(IFERROR(SUMPRODUCT(LARGE($C68:$AU68,{1,2,3,4,5,6,7})),"")),"") ->  | BC68: =IF(BB68<>"",(IFERROR(SUMPRODUCT(LARGE($C68:$AU68,{1,2,3,4,5,6,7,8})),"")),"") -> 
B69: PSCC | N69: 5 | AW69: 5 | AX69: 1 | AY69: =IF($AX69<=6,SUM($C69:$AU69),SUMPRODUCT(LARGE($C69:$AU69,{1,2,3,4,5,6}))) -> 5 | BA69: =IF(AZ69= "","",IFERROR(SUMPRODUCT(LARGE($C69:$AU69,{1,2,3,4})), "")) ->  | BB69: =IF(BA69<>"",(IFERROR(SUMPRODUCT(LARGE($C69:$AU69,{1,2,3,4,5,6,7})),"")),"") ->  | BC69: =IF(BB69<>"",(IFERROR(SUMPRODUCT(LARGE($C69:$AU69,{1,2,3,4,5,6,7,8})),"")),"") -> 
B70: QC | E70: 2 | F70: 12 | AW70: 14 | AX70: 2 | AY70: =IF($AX70<=6,SUM($C70:$AU70),SUMPRODUCT(LARGE($C70:$AU70,{1,2,3,4,5,6}))) -> 14 | BA70: =IF(AZ70= "","",IFERROR(SUMPRODUCT(LARGE($C70:$AU70,{1,2,3,4})), "")) ->  | BB70: =IF(BA70<>"",(IFERROR(SUMPRODUCT(LARGE($C70:$AU70,{1,2,3,4,5,6,7})),"")),"") ->  | BC70: =IF(BB70<>"",(IFERROR(SUMPRODUCT(LARGE($C70:$AU70,{1,2,3,4,5,6,7,8})),"")),"") -> 
B71: SAC | J71: 3 | AW71: 3 | AX71: 1 | AY71: =IF($AX71<=6,SUM($C71:$AU71),SUMPRODUCT(LARGE($C71:$AU71,{1,2,3,4,5,6}))) -> 3 | BA71: =IF(AZ71= "","",IFERROR(SUMPRODUCT(LARGE($C71:$AU71,{1,2,3,4})), "")) ->  | BB71: =IF(BA71<>"",(IFERROR(SUMPRODUCT(LARGE($C71:$AU71,{1,2,3,4,5,6,7})),"")),"") ->  | BC71: =IF(BB71<>"",(IFERROR(SUMPRODUCT(LARGE($C71:$AU71,{1,2,3,4,5,6,7,8})),"")),"") -> 
B72: SBU | L72: 9 | AW72: 9 | AX72: 1 | AY72: =IF($AX72<=6,SUM($C72:$AU72),SUMPRODUCT(LARGE($C72:$AU72,{1,2,3,4,5,6}))) -> 9 | BA72: =IF(AZ72= "","",IFERROR(SUMPRODUCT(LARGE($C72:$AU72,{1,2,3,4})), "")) ->  | BB72: =IF(BA72<>"",(IFERROR(SUMPRODUCT(LARGE($C72:$AU72,{1,2,3,4,5,6,7})),"")),"") ->  | BC72: =IF(BB72<>"",(IFERROR(SUMPRODUCT(LARGE($C72:$AU72,{1,2,3,4,5,6,7,8})),"")),"") -> 
B73: SC | F73: 14 | L73: 5 | T73: 29 | Y73: 21 | AW73: 69 | AX73: 4 | AY73: =IF($AX73<=6,SUM($C73:$AU73),SUMPRODUCT(LARGE($C73:$AU73,{1,2,3,4,5,6}))) -> 69 | BA73: =IF(AZ73= "","",IFERROR(SUMPRODUCT(LARGE($C73:$AU73,{1,2,3,4})), "")) ->  | BB73: =IF(BA73<>"",(IFERROR(SUMPRODUCT(LARGE($C73:$AU73,{1,2,3,4,5,6,7})),"")),"") ->  | BC73: =IF(BB73<>"",(IFERROR(SUMPRODUCT(LARGE($C73:$AU73,{1,2,3,4,5,6,7,8})),"")),"") -> 
B74: ScU | C74: 7 | J74: 3 | U74: 20 | AW74: 30 | AX74: 3 | AY74: =IF($AX74<=6,SUM($C74:$AU74),SUMPRODUCT(LARGE($C74:$AU74,{1,2,3,4,5,6}))) -> 30 | BA74: =IF(AZ74= "","",IFERROR(SUMPRODUCT(LARGE($C74:$AU74,{1,2,3,4})), "")) ->  | BB74: =IF(BA74<>"",(IFERROR(SUMPRODUCT(LARGE($C74:$AU74,{1,2,3,4,5,6,7})),"")),"") ->  | BC74: =IF(BB74<>"",(IFERROR(SUMPRODUCT(LARGE($C74:$AU74,{1,2,3,4,5,6,7,8})),"")),"") -> 
B75: SFCC | L75: 4 | T75: 8 | Y75: 1 | AW75: 13 | AX75: 3 | AY75: =IF($AX75<=6,SUM($C75:$AU75),SUMPRODUCT(LARGE($C75:$AU75,{1,2,3,4,5,6}))) -> 13 | BA75: =IF(AZ75= "","",IFERROR(SUMPRODUCT(LARGE($C75:$AU75,{1,2,3,4})), "")) ->  | BB75: =IF(BA75<>"",(IFERROR(SUMPRODUCT(LARGE($C75:$AU75,{1,2,3,4,5,6,7})),"")),"") ->  | BC75: =IF(BB75<>"",(IFERROR(SUMPRODUCT(LARGE($C75:$AU75,{1,2,3,4,5,6,7,8})),"")),"") -> 
B76: SHSU | C76: 12 | O76: 15 | AW76: 27 | AX76: 2 | AY76: =IF($AX76<=6,SUM($C76:$AU76),SUMPRODUCT(LARGE($C76:$AU76,{1,2,3,4,5,6}))) -> 27 | BA76: =IF(AZ76= "","",IFERROR(SUMPRODUCT(LARGE($C76:$AU76,{1,2,3,4})), "")) ->  | BB76: =IF(BA76<>"",(IFERROR(SUMPRODUCT(LARGE($C76:$AU76,{1,2,3,4,5,6,7})),"")),"") ->  | BC76: =IF(BB76<>"",(IFERROR(SUMPRODUCT(LARGE($C76:$AU76,{1,2,3,4,5,6,7,8})),"")),"") -> 
B77: SJU | E77: 6 | F77: 15 | AW77: 21 | AX77: 2 | AY77: =IF($AX77<=6,SUM($C77:$AU77),SUMPRODUCT(LARGE($C77:$AU77,{1,2,3,4,5,6}))) -> 21 | BA77: =IF(AZ77= "","",IFERROR(SUMPRODUCT(LARGE($C77:$AU77,{1,2,3,4})), "")) ->  | BB77: =IF(BA77<>"",(IFERROR(SUMPRODUCT(LARGE($C77:$AU77,{1,2,3,4,5,6,7})),"")),"") ->  | BC77: =IF(BB77<>"",(IFERROR(SUMPRODUCT(LARGE($C77:$AU77,{1,2,3,4,5,6,7,8})),"")),"") -> 
B78: SMU | C78: 49 | H78: 11 | K78: 25 | O78: 30 | AW78: 115 | AX78: 4 | AY78: =IF($AX78<=6,SUM($C78:$AU78),SUMPRODUCT(LARGE($C78:$AU78,{1,2,3,4,5,6}))) -> 115 | BA78: =IF(AZ78= "","",IFERROR(SUMPRODUCT(LARGE($C78:$AU78,{1,2,3,4})), "")) ->  | BB78: =IF(BA78<>"",(IFERROR(SUMPRODUCT(LARGE($C78:$AU78,{1,2,3,4,5,6,7})),"")),"") ->  | BC78: =IF(BB78<>"",(IFERROR(SUMPRODUCT(LARGE($C78:$AU78,{1,2,3,4,5,6,7,8})),"")),"") -> 
B79: SOSU | T79: 3 | AW79: 3 | AX79: 1 | AY79: =IF($AX79<=6,SUM($C79:$AU79),SUMPRODUCT(LARGE($C79:$AU79,{1,2,3,4,5,6}))) -> 3 | BA79: =IF(AZ79= "","",IFERROR(SUMPRODUCT(LARGE($C79:$AU79,{1,2,3,4})), "")) ->  | BB79: =IF(BA79<>"",(IFERROR(SUMPRODUCT(LARGE($C79:$AU79,{1,2,3,4,5,6,7})),"")),"") ->  | BC79: =IF(BB79<>"",(IFERROR(SUMPRODUCT(LARGE($C79:$AU79,{1,2,3,4,5,6,7,8})),"")),"") -> 
B80: SWB | L80: 5 | T80: 12 | Y80: 1 | AW80: 18 | AX80: 3 | AY80: =IF($AX80<=6,SUM($C80:$AU80),SUMPRODUCT(LARGE($C80:$AU80,{1,2,3,4,5,6}))) -> 18 | BA80: =IF(AZ80= "","",IFERROR(SUMPRODUCT(LARGE($C80:$AU80,{1,2,3,4})), "")) ->  | BB80: =IF(BA80<>"",(IFERROR(SUMPRODUCT(LARGE($C80:$AU80,{1,2,3,4,5,6,7})),"")),"") ->  | BC80: =IF(BB80<>"",(IFERROR(SUMPRODUCT(LARGE($C80:$AU80,{1,2,3,4,5,6,7,8})),"")),"") -> 
B81: TAMU | P81: 0 | AW81: 0 | AX81: 1 | AY81: =IF($AX81<=6,SUM($C81:$AU81),SUMPRODUCT(LARGE($C81:$AU81,{1,2,3,4,5,6}))) -> 0 | BA81: =IF(AZ81= "","",IFERROR(SUMPRODUCT(LARGE($C81:$AU81,{1,2,3,4})), "")) ->  | BB81: =IF(BA81<>"",(IFERROR(SUMPRODUCT(LARGE($C81:$AU81,{1,2,3,4,5,6,7})),"")),"") ->  | BC81: =IF(BB81<>"",(IFERROR(SUMPRODUCT(LARGE($C81:$AU81,{1,2,3,4,5,6,7,8})),"")),"") -> 
B82: TC | F82: 1 | AW82: 1 | AX82: 1 | AY82: =IF($AX82<=6,SUM($C82:$AU82),SUMPRODUCT(LARGE($C82:$AU82,{1,2,3,4,5,6}))) -> 1 | BA82: =IF(AZ82= "","",IFERROR(SUMPRODUCT(LARGE($C82:$AU82,{1,2,3,4})), "")) ->  | BB82: =IF(BA82<>"",(IFERROR(SUMPRODUCT(LARGE($C82:$AU82,{1,2,3,4,5,6,7})),"")),"") ->  | BC82: =IF(BB82<>"",(IFERROR(SUMPRODUCT(LARGE($C82:$AU82,{1,2,3,4,5,6,7,8})),"")),"") -> 
B83: TCC | L83: 6 | P83: 2 | AW83: 8 | AX83: 2 | AY83: =IF($AX83<=6,SUM($C83:$AU83),SUMPRODUCT(LARGE($C83:$AU83,{1,2,3,4,5,6}))) -> 8 | BA83: =IF(AZ83= "","",IFERROR(SUMPRODUCT(LARGE($C83:$AU83,{1,2,3,4})), "")) ->  | BB83: =IF(BA83<>"",(IFERROR(SUMPRODUCT(LARGE($C83:$AU83,{1,2,3,4,5,6,7})),"")),"") ->  | BC83: =IF(BB83<>"",(IFERROR(SUMPRODUCT(LARGE($C83:$AU83,{1,2,3,4,5,6,7,8})),"")),"") -> 
B84: TTU | F84: 1 | J84: 2 | AW84: 3 | AX84: 2 | AY84: =IF($AX84<=6,SUM($C84:$AU84),SUMPRODUCT(LARGE($C84:$AU84,{1,2,3,4,5,6}))) -> 3 | BA84: =IF(AZ84= "","",IFERROR(SUMPRODUCT(LARGE($C84:$AU84,{1,2,3,4})), "")) ->  | BB84: =IF(BA84<>"",(IFERROR(SUMPRODUCT(LARGE($C84:$AU84,{1,2,3,4,5,6,7})),"")),"") ->  | BC84: =IF(BB84<>"",(IFERROR(SUMPRODUCT(LARGE($C84:$AU84,{1,2,3,4,5,6,7,8})),"")),"") -> 
B85: UA | G85: 48 | K85: 15 | O85: 45 | Q85: 32 | AW85: 140 | AX85: 4 | AY85: =IF($AX85<=6,SUM($C85:$AU85),SUMPRODUCT(LARGE($C85:$AU85,{1,2,3,4,5,6}))) -> 140 | BA85: =IF(AZ85= "","",IFERROR(SUMPRODUCT(LARGE($C85:$AU85,{1,2,3,4})), "")) ->  | BB85: =IF(BA85<>"",(IFERROR(SUMPRODUCT(LARGE($C85:$AU85,{1,2,3,4,5,6,7})),"")),"") ->  | BC85: =IF(BB85<>"",(IFERROR(SUMPRODUCT(LARGE($C85:$AU85,{1,2,3,4,5,6,7,8})),"")),"") -> 
B86: UACCB | K86: 3 | O86: 5 | AW86: 8 | AX86: 2 | AY86: =IF($AX86<=6,SUM($C86:$AU86),SUMPRODUCT(LARGE($C86:$AU86,{1,2,3,4,5,6}))) -> 8 | BA86: =IF(AZ86= "","",IFERROR(SUMPRODUCT(LARGE($C86:$AU86,{1,2,3,4})), "")) ->  | BB86: =IF(BA86<>"",(IFERROR(SUMPRODUCT(LARGE($C86:$AU86,{1,2,3,4,5,6,7})),"")),"") ->  | BC86: =IF(BB86<>"",(IFERROR(SUMPRODUCT(LARGE($C86:$AU86,{1,2,3,4,5,6,7,8})),"")),"") -> 
B87: UAM | G87: 10 | K87: 6 | O87: 11 | AW87: 27 | AX87: 3 | AY87: =IF($AX87<=6,SUM($C87:$AU87),SUMPRODUCT(LARGE($C87:$AU87,{1,2,3,4,5,6}))) -> 27 | BA87: =IF(AZ87= "","",IFERROR(SUMPRODUCT(LARGE($C87:$AU87,{1,2,3,4})), "")) ->  | BB87: =IF(BA87<>"",(IFERROR(SUMPRODUCT(LARGE($C87:$AU87,{1,2,3,4,5,6,7})),"")),"") ->  | BC87: =IF(BB87<>"",(IFERROR(SUMPRODUCT(LARGE($C87:$AU87,{1,2,3,4,5,6,7,8})),"")),"") -> 
B88: Ubama | F88: 3 | H88: 14 | AW88: 17 | AX88: 2 | AY88: =IF($AX88<=6,SUM($C88:$AU88),SUMPRODUCT(LARGE($C88:$AU88,{1,2,3,4,5,6}))) -> 17 | BA88: =IF(AZ88= "","",IFERROR(SUMPRODUCT(LARGE($C88:$AU88,{1,2,3,4})), "")) ->  | BB88: =IF(BA88<>"",(IFERROR(SUMPRODUCT(LARGE($C88:$AU88,{1,2,3,4,5,6,7})),"")),"") ->  | BC88: =IF(BB88<>"",(IFERROR(SUMPRODUCT(LARGE($C88:$AU88,{1,2,3,4,5,6,7,8})),"")),"") -> 
B89: UC | N89: 9 | P89: 5 | Q89: 7 | AW89: 21 | AX89: 3 | AY89: =IF($AX89<=6,SUM($C89:$AU89),SUMPRODUCT(LARGE($C89:$AU89,{1,2,3,4,5,6}))) -> 21 | BA89: =IF(AZ89= "","",IFERROR(SUMPRODUCT(LARGE($C89:$AU89,{1,2,3,4})), "")) ->  | BB89: =IF(BA89<>"",(IFERROR(SUMPRODUCT(LARGE($C89:$AU89,{1,2,3,4,5,6,7})),"")),"") ->  | BC89: =IF(BB89<>"",(IFERROR(SUMPRODUCT(LARGE($C89:$AU89,{1,2,3,4,5,6,7,8})),"")),"") -> 
B90: UCA | H90: 20 | O90: 11 | Q90: 12 | AW90: 43 | AX90: 3 | AY90: =IF($AX90<=6,SUM($C90:$AU90),SUMPRODUCT(LARGE($C90:$AU90,{1,2,3,4,5,6}))) -> 43 | BA90: =IF(AZ90= "","",IFERROR(SUMPRODUCT(LARGE($C90:$AU90,{1,2,3,4})), "")) ->  | BB90: =IF(BA90<>"",(IFERROR(SUMPRODUCT(LARGE($C90:$AU90,{1,2,3,4,5,6,7})),"")),"") ->  | BC90: =IF(BB90<>"",(IFERROR(SUMPRODUCT(LARGE($C90:$AU90,{1,2,3,4,5,6,7,8})),"")),"") -> 
B91: UCF | G91: 12 | U91: 21 | AW91: 33 | AX91: 2 | AY91: =IF($AX91<=6,SUM($C91:$AU91),SUMPRODUCT(LARGE($C91:$AU91,{1,2,3,4,5,6}))) -> 33 | BA91: =IF(AZ91= "","",IFERROR(SUMPRODUCT(LARGE($C91:$AU91,{1,2,3,4})), "")) ->  | BB91: =IF(BA91<>"",(IFERROR(SUMPRODUCT(LARGE($C91:$AU91,{1,2,3,4,5,6,7})),"")),"") ->  | BC91: =IF(BB91<>"",(IFERROR(SUMPRODUCT(LARGE($C91:$AU91,{1,2,3,4,5,6,7,8})),"")),"") -> 
B92: UCM | L92: 33 | O92: 29 | T92: 20 | Y92: 19 | AW92: 101 | AX92: 4 | AY92: =IF($AX92<=6,SUM($C92:$AU92),SUMPRODUCT(LARGE($C92:$AU92,{1,2,3,4,5,6}))) -> 101 | BA92: =IF(AZ92= "","",IFERROR(SUMPRODUCT(LARGE($C92:$AU92,{1,2,3,4})), "")) ->  | BB92: =IF(BA92<>"",(IFERROR(SUMPRODUCT(LARGE($C92:$AU92,{1,2,3,4,5,6,7})),"")),"") ->  | BC92: =IF(BB92<>"",(IFERROR(SUMPRODUCT(LARGE($C92:$AU92,{1,2,3,4,5,6,7,8})),"")),"") -> 
B93: UCSB | P93: 14 | AW93: 14 | AX93: 1 | AY93: =IF($AX93<=6,SUM($C93:$AU93),SUMPRODUCT(LARGE($C93:$AU93,{1,2,3,4,5,6}))) -> 14 | BA93: =IF(AZ93= "","",IFERROR(SUMPRODUCT(LARGE($C93:$AU93,{1,2,3,4})), "")) ->  | BB93: =IF(BA93<>"",(IFERROR(SUMPRODUCT(LARGE($C93:$AU93,{1,2,3,4,5,6,7})),"")),"") ->  | BC93: =IF(BB93<>"",(IFERROR(SUMPRODUCT(LARGE($C93:$AU93,{1,2,3,4,5,6,7,8})),"")),"") -> 
B94: UI | U94: 3 | AW94: 3 | AX94: 1 | AY94: =IF($AX94<=6,SUM($C94:$AU94),SUMPRODUCT(LARGE($C94:$AU94,{1,2,3,4,5,6}))) -> 3 | BA94: =IF(AZ94= "","",IFERROR(SUMPRODUCT(LARGE($C94:$AU94,{1,2,3,4})), "")) ->  | BB94: =IF(BA94<>"",(IFERROR(SUMPRODUCT(LARGE($C94:$AU94,{1,2,3,4,5,6,7})),"")),"") ->  | BC94: =IF(BB94<>"",(IFERROR(SUMPRODUCT(LARGE($C94:$AU94,{1,2,3,4,5,6,7,8})),"")),"") -> 
B95: UIU | J95: 6 | U95: 3 | AW95: 9 | AX95: 2 | AY95: =IF($AX95<=6,SUM($C95:$AU95),SUMPRODUCT(LARGE($C95:$AU95,{1,2,3,4,5,6}))) -> 9 | AZ95: =IF(AND($AX95>=6,AY95=#REF!),"Manual Calc Needed","") ->  | BA95: =IF(AZ95= "","",IFERROR(SUMPRODUCT(LARGE($C95:$AU95,{1,2,3,4})), "")) ->  | BB95: =IF(BA95<>"",(IFERROR(SUMPRODUCT(LARGE($C95:$AU95,{1,2,3,4,5,6,7})),"")),"") ->  | BC95: =IF(BB95<>"",(IFERROR(SUMPRODUCT(LARGE($C95:$AU95,{1,2,3,4,5,6,7,8})),"")),"") -> 
B96: UJ | Q96: 10 | AW96: 10 | AX96: 1 | AY96: =IF($AX96<=6,SUM($C96:$AU96),SUMPRODUCT(LARGE($C96:$AU96,{1,2,3,4,5,6}))) -> 10 | AZ96: =IF(AND($AX96>=6,AY96=AY97),"Manual Calc Needed","") ->  | BA96: =IF(AZ96= "","",IFERROR(SUMPRODUCT(LARGE($C96:$AU96,{1,2,3,4})), "")) ->  | BB96: =IF(BA96<>"",(IFERROR(SUMPRODUCT(LARGE($C96:$AU96,{1,2,3,4,5,6,7})),"")),"") ->  | BC96: =IF(BB96<>"",(IFERROR(SUMPRODUCT(LARGE($C96:$AU96,{1,2,3,4,5,6,7,8})),"")),"") -> 
B97: UMo | P97: 3 | Q97: 3 | V97: 3 | AW97: 9 | AX97: 3 | AY97: =IF($AX97<=6,SUM($C97:$AU97),SUMPRODUCT(LARGE($C97:$AU97,{1,2,3,4,5,6}))) -> 9 | BA97: =IF(AZ97= "","",IFERROR(SUMPRODUCT(LARGE($C97:$AU97,{1,2,3,4})), "")) ->  | BB97: =IF(BA97<>"",(IFERROR(SUMPRODUCT(LARGE($C97:$AU97,{1,2,3,4,5,6,7})),"")),"") ->  | BC97: =IF(BB97<>"",(IFERROR(SUMPRODUCT(LARGE($C97:$AU97,{1,2,3,4,5,6,7,8})),"")),"") -> 
B98: UNG | P98: 5 | AW98: 5 | AX98: 1 | AY98: =IF($AX98<=6,SUM($C98:$AU98),SUMPRODUCT(LARGE($C98:$AU98,{1,2,3,4,5,6}))) -> 5 | BA98: =IF(AZ98= "","",IFERROR(SUMPRODUCT(LARGE($C98:$AU98,{1,2,3,4})), "")) ->  | BB98: =IF(BA98<>"",(IFERROR(SUMPRODUCT(LARGE($C98:$AU98,{1,2,3,4,5,6,7})),"")),"") ->  | BC98: =IF(BB98<>"",(IFERROR(SUMPRODUCT(LARGE($C98:$AU98,{1,2,3,4,5,6,7,8})),"")),"") -> 
B99: UNLV | I99: 5 | AW99: 5 | AX99: 1 | AY99: =IF($AX99<=6,SUM($C99:$AU99),SUMPRODUCT(LARGE($C99:$AU99,{1,2,3,4,5,6}))) -> 5 | BA99: =IF(AZ99= "","",IFERROR(SUMPRODUCT(LARGE($C99:$AU99,{1,2,3,4})), "")) ->  | BB99: =IF(BA99<>"",(IFERROR(SUMPRODUCT(LARGE($C99:$AU99,{1,2,3,4,5,6,7})),"")),"") ->  | BC99: =IF(BB99<>"",(IFERROR(SUMPRODUCT(LARGE($C99:$AU99,{1,2,3,4,5,6,7,8})),"")),"") -> 
B100: UNT | F100: 3 | J100: 19 | AW100: 22 | AX100: 2 | AY100: =IF($AX100<=6,SUM($C100:$AU100),SUMPRODUCT(LARGE($C100:$AU100,{1,2,3,4,5,6}))) -> 22 | BA100: =IF(AZ100= "","",IFERROR(SUMPRODUCT(LARGE($C100:$AU100,{1,2,3,4})), "")) ->  | BB100: =IF(BA100<>"",(IFERROR(SUMPRODUCT(LARGE($C100:$AU100,{1,2,3,4,5,6,7})),"")),"") ->  | BC100: =IF(BB100<>"",(IFERROR(SUMPRODUCT(LARGE($C100:$AU100,{1,2,3,4,5,6,7,8})),"")),"") -> 
B101: UP | P101: 4 | AW101: 4 | AX101: 1 | AY101: =IF($AX101<=6,SUM($C101:$AU101),SUMPRODUCT(LARGE($C101:$AU101,{1,2,3,4,5,6}))) -> 4 | BA101: =IF(AZ101= "","",IFERROR(SUMPRODUCT(LARGE($C101:$AU101,{1,2,3,4})), "")) ->  | BB101: =IF(BA101<>"",(IFERROR(SUMPRODUCT(LARGE($C101:$AU101,{1,2,3,4,5,6,7})),"")),"") ->  | BC101: =IF(BB101<>"",(IFERROR(SUMPRODUCT(LARGE($C101:$AU101,{1,2,3,4,5,6,7,8})),"")),"") -> 
B102: USM | K102: 14 | N102: 16 | O102: 6 | P102: 9 | Q102: 2 | AW102: 47 | AX102: 5 | AY102: =IF($AX102<=6,SUM($C102:$AU102),SUMPRODUCT(LARGE($C102:$AU102,{1,2,3,4,5,6}))) -> 47 | BA102: =IF(AZ102= "","",IFERROR(SUMPRODUCT(LARGE($C102:$AU102,{1,2,3,4})), "")) ->  | BB102: =IF(BA102<>"",(IFERROR(SUMPRODUCT(LARGE($C102:$AU102,{1,2,3,4,5,6,7})),"")),"") ->  | BC102: =IF(BB102<>"",(IFERROR(SUMPRODUCT(LARGE($C102:$AU102,{1,2,3,4,5,6,7,8})),"")),"") -> 
B103: USUL | D103: 9 | P103: 19 | V103: 22 | AW103: 50 | AX103: 3 | AY103: =IF($AX103<=6,SUM($C103:$AU103),SUMPRODUCT(LARGE($C103:$AU103,{1,2,3,4,5,6}))) -> 50 | BA103: =IF(AZ103= "","",IFERROR(SUMPRODUCT(LARGE($C103:$AU103,{1,2,3,4})), "")) ->  | BB103: =IF(BA103<>"",(IFERROR(SUMPRODUCT(LARGE($C103:$AU103,{1,2,3,4,5,6,7})),"")),"") ->  | BC103: =IF(BB103<>"",(IFERROR(SUMPRODUCT(LARGE($C103:$AU103,{1,2,3,4,5,6,7,8})),"")),"") -> 
B104: UTD | J104: 15 | AW104: 15 | AX104: 1 | AY104: =IF($AX104<=6,SUM($C104:$AU104),SUMPRODUCT(LARGE($C104:$AU104,{1,2,3,4,5,6}))) -> 15 | BA104: =IF(AZ104= "","",IFERROR(SUMPRODUCT(LARGE($C104:$AU104,{1,2,3,4})), "")) ->  | BB104: =IF(BA104<>"",(IFERROR(SUMPRODUCT(LARGE($C104:$AU104,{1,2,3,4,5,6,7})),"")),"") ->  | BC104: =IF(BB104<>"",(IFERROR(SUMPRODUCT(LARGE($C104:$AU104,{1,2,3,4,5,6,7,8})),"")),"") -> 
B105: UTK | G105: 22 | K105: 27 | N105: 17 | P105: 6 | AW105: 72 | AX105: 4 | AY105: =IF($AX105<=6,SUM($C105:$AU105),SUMPRODUCT(LARGE($C105:$AU105,{1,2,3,4,5,6}))) -> 72 | BA105: =IF(AZ105= "","",IFERROR(SUMPRODUCT(LARGE($C105:$AU105,{1,2,3,4})), "")) ->  | BB105: =IF(BA105<>"",(IFERROR(SUMPRODUCT(LARGE($C105:$AU105,{1,2,3,4,5,6,7})),"")),"") ->  | BC105: =IF(BB105<>"",(IFERROR(SUMPRODUCT(LARGE($C105:$AU105,{1,2,3,4,5,6,7,8})),"")),"") -> 
B106: UU | K106: 72 | N106: 68 | O106: 82 | Q106: 95 | AW106: 317 | AX106: 4 | AY106: =IF($AX106<=6,SUM($C106:$AU106),SUMPRODUCT(LARGE($C106:$AU106,{1,2,3,4,5,6}))) -> 317 | BA106: =IF(AZ106= "","",IFERROR(SUMPRODUCT(LARGE($C106:$AU106,{1,2,3,4})), "")) ->  | BB106: =IF(BA106<>"",(IFERROR(SUMPRODUCT(LARGE($C106:$AU106,{1,2,3,4,5,6,7})),"")),"") ->  | BC106: =IF(BB106<>"",(IFERROR(SUMPRODUCT(LARGE($C106:$AU106,{1,2,3,4,5,6,7,8})),"")),"") -> 
B107: UUT | D107: 10 | AW107: 10 | AX107: 1 | AY107: =IF($AX107<=6,SUM($C107:$AU107),SUMPRODUCT(LARGE($C107:$AU107,{1,2,3,4,5,6}))) -> 10 | BA107: =IF(AZ107= "","",IFERROR(SUMPRODUCT(LARGE($C107:$AU107,{1,2,3,4})), "")) ->  | BB107: =IF(BA107<>"",(IFERROR(SUMPRODUCT(LARGE($C107:$AU107,{1,2,3,4,5,6,7})),"")),"") ->  | BC107: =IF(BB107<>"",(IFERROR(SUMPRODUCT(LARGE($C107:$AU107,{1,2,3,4,5,6,7,8})),"")),"") -> 
B108: VSU | G108: 14 | J108: 4 | U108: 12 | AW108: 30 | AX108: 3 | AY108: =IF($AX108<=6,SUM($C108:$AU108),SUMPRODUCT(LARGE($C108:$AU108,{1,2,3,4,5,6}))) -> 30 | BA108: =IF(AZ108= "","",IFERROR(SUMPRODUCT(LARGE($C108:$AU108,{1,2,3,4})), "")) ->  | BB108: =IF(BA108<>"",(IFERROR(SUMPRODUCT(LARGE($C108:$AU108,{1,2,3,4,5,6,7})),"")),"") ->  | BC108: =IF(BB108<>"",(IFERROR(SUMPRODUCT(LARGE($C108:$AU108,{1,2,3,4,5,6,7,8})),"")),"") -> 
B109: WC | M109: 13 | AW109: 13 | AX109: 1 | AY109: =IF($AX109<=6,SUM($C109:$AU109),SUMPRODUCT(LARGE($C109:$AU109,{1,2,3,4,5,6}))) -> 13 | BA109: =IF(AZ109= "","",IFERROR(SUMPRODUCT(LARGE($C109:$AU109,{1,2,3,4})), "")) ->  | BB109: =IF(BA109<>"",(IFERROR(SUMPRODUCT(LARGE($C109:$AU109,{1,2,3,4,5,6,7})),"")),"") ->  | BC109: =IF(BB109<>"",(IFERROR(SUMPRODUCT(LARGE($C109:$AU109,{1,2,3,4,5,6,7,8})),"")),"") -> 
B110: WCU | C110: 29 | H110: 3 | K110: 36 | N110: 19 | AW110: 87 | AX110: 4 | AY110: =IF($AX110<=6,SUM($C110:$AU110),SUMPRODUCT(LARGE($C110:$AU110,{1,2,3,4,5,6}))) -> 87 | BA110: =IF(AZ110= "","",IFERROR(SUMPRODUCT(LARGE($C110:$AU110,{1,2,3,4})), "")) ->  | BB110: =IF(BA110<>"",(IFERROR(SUMPRODUCT(LARGE($C110:$AU110,{1,2,3,4,5,6,7})),"")),"") ->  | BC110: =IF(BB110<>"",(IFERROR(SUMPRODUCT(LARGE($C110:$AU110,{1,2,3,4,5,6,7,8})),"")),"") -> 
B111: WebU | T111: 20 | AW111: 20 | AX111: 1 | AY111: =IF($AX111<=6,SUM($C111:$AU111),SUMPRODUCT(LARGE($C111:$AU111,{1,2,3,4,5,6}))) -> 20 | BA111: =IF(AZ111= "","",IFERROR(SUMPRODUCT(LARGE($C111:$AU111,{1,2,3,4})), "")) ->  | BB111: =IF(BA111<>"",(IFERROR(SUMPRODUCT(LARGE($C111:$AU111,{1,2,3,4,5,6,7})),"")),"") ->  | BC111: =IF(BB111<>"",(IFERROR(SUMPRODUCT(LARGE($C111:$AU111,{1,2,3,4,5,6,7,8})),"")),"") -> 
B112: WeCU | U112: 8 | AW112: 8 | AX112: 1 | AY112: =IF($AX112<=6,SUM($C112:$AU112),SUMPRODUCT(LARGE($C112:$AU112,{1,2,3,4,5,6}))) -> 8 | BA112: =IF(AZ112= "","",IFERROR(SUMPRODUCT(LARGE($C112:$AU112,{1,2,3,4})), "")) ->  | BB112: =IF(BA112<>"",(IFERROR(SUMPRODUCT(LARGE($C112:$AU112,{1,2,3,4,5,6,7})),"")),"") ->  | BC112: =IF(BB112<>"",(IFERROR(SUMPRODUCT(LARGE($C112:$AU112,{1,2,3,4,5,6,7,8})),"")),"") -> 
B113: WhC | P113: 6 | AW113: 6 | AX113: 1 | AY113: =IF($AX113<=6,SUM($C113:$AU113),SUMPRODUCT(LARGE($C113:$AU113,{1,2,3,4,5,6}))) -> 6 | BA113: =IF(AZ113= "","",IFERROR(SUMPRODUCT(LARGE($C113:$AU113,{1,2,3,4})), "")) ->  | BB113: =IF(BA113<>"",(IFERROR(SUMPRODUCT(LARGE($C113:$AU113,{1,2,3,4,5,6,7})),"")),"") ->  | BC113: =IF(BB113<>"",(IFERROR(SUMPRODUCT(LARGE($C113:$AU113,{1,2,3,4,5,6,7,8})),"")),"") -> 
B114: WhU | I114: 39 | P114: 69 | Q114: 29 | V114: 28 | AW114: 165 | AX114: 4 | AY114: =IF($AX114<=6,SUM($C114:$AU114),SUMPRODUCT(LARGE($C114:$AU114,{1,2,3,4,5,6}))) -> 165 | BA114: =IF(AZ114= "","",IFERROR(SUMPRODUCT(LARGE($C114:$AU114,{1,2,3,4})), "")) ->  | BB114: =IF(BA114<>"",(IFERROR(SUMPRODUCT(LARGE($C114:$AU114,{1,2,3,4,5,6,7})),"")),"") ->  | BC114: =IF(BB114<>"",(IFERROR(SUMPRODUCT(LARGE($C114:$AU114,{1,2,3,4,5,6,7,8})),"")),"") -> 
B115: WSCC | AW115: 0 | AX115: 0 | AY115: =IF($AX115<=6,SUM($C115:$AU115),SUMPRODUCT(LARGE($C115:$AU115,{1,2,3,4,5,6}))) -> 0 | BA115: =IF(AZ115= "","",IFERROR(SUMPRODUCT(LARGE($C115:$AU115,{1,2,3,4})), "")) ->  | BB115: =IF(BA115<>"",(IFERROR(SUMPRODUCT(LARGE($C115:$AU115,{1,2,3,4,5,6,7})),"")),"") ->  | BC115: =IF(BB115<>"",(IFERROR(SUMPRODUCT(LARGE($C115:$AU115,{1,2,3,4,5,6,7,8})),"")),"") -> 
B116: WSU | D116: =6+3+3 -> 12 | L116: 3 | P116: 50 | V116: 39 | AW116: 104 | AX116: 4 | AY116: =IF($AX116<=6,SUM($C116:$AU116),SUMPRODUCT(LARGE($C116:$AU116,{1,2,3,4,5,6}))) -> 104 | BA116: =IF(AZ116= "","",IFERROR(SUMPRODUCT(LARGE($C116:$AU116,{1,2,3,4})), "")) ->  | BB116: =IF(BA116<>"",(IFERROR(SUMPRODUCT(LARGE($C116:$AU116,{1,2,3,4,5,6,7})),"")),"") ->  | BC116: =IF(BB116<>"",(IFERROR(SUMPRODUCT(LARGE($C116:$AU116,{1,2,3,4,5,6,7,8})),"")),"") -> 
AW117: 0 | AX117: 0 | AY117: =IF($AX117<=6,SUM($C117:$AU117),SUMPRODUCT(LARGE($C117:$AU117,{1,2,3,4,5,6}))) -> 0 | AZ117: =IF(AND($AX117>=6,AY117=AY118),"Manual Calc Needed","") ->  | BA117: =IF(AZ117= "","",IFERROR(SUMPRODUCT(LARGE($C117:$AU117,{1,2,3,4})), "")) ->  | BB117: =IF(BA117<>"",(IFERROR(SUMPRODUCT(LARGE($C117:$AU117,{1,2,3,4,5,6,7})),"")),"") ->  | BC117: =IF(BB117<>"",(IFERROR(SUMPRODUCT(LARGE($C117:$AU117,{1,2,3,4,5,6,7,8})),"")),"") -> 
AW118: 0 | AX118: 0 | AY118: =IF($AX118<=6,SUM($C118:$AU118),SUMPRODUCT(LARGE($C118:$AU118,{1,2,3,4,5,6}))) -> 0 | BA118: =IF(AZ118= "","",IFERROR(SUMPRODUCT(LARGE($C118:$AU118,{1,2,3,4})), "")) ->  | BB118: =IF(BA118<>"",(IFERROR(SUMPRODUCT(LARGE($C118:$AU118,{1,2,3,4,5,6,7})),"")),"") ->  | BC118: =IF(BB118<>"",(IFERROR(SUMPRODUCT(LARGE($C118:$AU118,{1,2,3,4,5,6,7,8})),"")),"") -> 
AW119: 0 | AX119: 0 | AY119: =IF($AX119<=6,SUM($C119:$AU119),SUMPRODUCT(LARGE($C119:$AU119,{1,2,3,4,5,6}))) -> 0 | BA119: =IF(AZ119= "","",IFERROR(SUMPRODUCT(LARGE($C119:$AU119,{1,2,3,4})), "")) ->  | BB119: =IF(BA119<>"",(IFERROR(SUMPRODUCT(LARGE($C119:$AU119,{1,2,3,4,5,6,7})),"")),"") ->  | BC119: =IF(BB119<>"",(IFERROR(SUMPRODUCT(LARGE($C119:$AU119,{1,2,3,4,5,6,7,8})),"")),"") -> 
AW120: 0 | AX120: 0 | AY120: =IF($AX120<=6,SUM($C120:$AU120),SUMPRODUCT(LARGE($C120:$AU120,{1,2,3,4,5,6}))) -> 0 | BA120: =IF(AZ120= "","",IFERROR(SUMPRODUCT(LARGE($C120:$AU120,{1,2,3,4})), "")) ->  | BB120: =IF(BA120<>"",(IFERROR(SUMPRODUCT(LARGE($C120:$AU120,{1,2,3,4,5,6,7})),"")),"") ->  | BC120: =IF(BB120<>"",(IFERROR(SUMPRODUCT(LARGE($C120:$AU120,{1,2,3,4,5,6,7,8})),"")),"") -> 
AW121: 0 | AX121: 0 | AY121: =IF($AX121<=6,SUM($C121:$AU121),SUMPRODUCT(LARGE($C121:$AU121,{1,2,3,4,5,6}))) -> 0 | BA121: =IF(AZ121= "","",IFERROR(SUMPRODUCT(LARGE($C121:$AU121,{1,2,3,4})), "")) ->  | BB121: =IF(BA121<>"",(IFERROR(SUMPRODUCT(LARGE($C121:$AU121,{1,2,3,4,5,6,7})),"")),"") ->  | BC121: =IF(BB121<>"",(IFERROR(SUMPRODUCT(LARGE($C121:$AU121,{1,2,3,4,5,6,7,8})),"")),"") -> 
AW122: 0 | AX122: 0 | AY122: =IF($AX122<=6,SUM($C122:$AU122),SUMPRODUCT(LARGE($C122:$AU122,{1,2,3,4,5,6}))) -> 0 | BA122: =IF(AZ122= "","",IFERROR(SUMPRODUCT(LARGE($C122:$AU122,{1,2,3,4})), "")) ->  | BB122: =IF(BA122<>"",(IFERROR(SUMPRODUCT(LARGE($C122:$AU122,{1,2,3,4,5,6,7})),"")),"") ->  | BC122: =IF(BB122<>"",(IFERROR(SUMPRODUCT(LARGE($C122:$AU122,{1,2,3,4,5,6,7,8})),"")),"") -> 
AW123: 0 | AX123: 0 | AY123: =IF($AX123<=6,SUM($C123:$AU123),SUMPRODUCT(LARGE($C123:$AU123,{1,2,3,4,5,6}))) -> 0 | BA123: =IF(AZ123= "","",IFERROR(SUMPRODUCT(LARGE($C123:$AU123,{1,2,3,4})), "")) ->  | BB123: =IF(BA123<>"",(IFERROR(SUMPRODUCT(LARGE($C123:$AU123,{1,2,3,4,5,6,7})),"")),"") ->  | BC123: =IF(BB123<>"",(IFERROR(SUMPRODUCT(LARGE($C123:$AU123,{1,2,3,4,5,6,7,8})),"")),"") -> 
AW124: 0 | AX124: 0 | AY124: =IF($AX124<=6,SUM($C124:$AU124),SUMPRODUCT(LARGE($C124:$AU124,{1,2,3,4,5,6}))) -> 0 | BA124: =IF(AZ124= "","",IFERROR(SUMPRODUCT(LARGE($C124:$AU124,{1,2,3,4})), "")) ->  | BB124: =IF(BA124<>"",(IFERROR(SUMPRODUCT(LARGE($C124:$AU124,{1,2,3,4,5,6,7})),"")),"") ->  | BC124: =IF(BB124<>"",(IFERROR(SUMPRODUCT(LARGE($C124:$AU124,{1,2,3,4,5,6,7,8})),"")),"") -> 
AW125: 0 | AX125: 0 | AY125: =IF($AX125<=6,SUM($C125:$AU125),SUMPRODUCT(LARGE($C125:$AU125,{1,2,3,4,5,6}))) -> 0 | BA125: =IF(AZ125= "","",IFERROR(SUMPRODUCT(LARGE($C125:$AU125,{1,2,3,4})), "")) ->  | BB125: =IF(BA125<>"",(IFERROR(SUMPRODUCT(LARGE($C125:$AU125,{1,2,3,4,5,6,7})),"")),"") ->  | BC125: =IF(BB125<>"",(IFERROR(SUMPRODUCT(LARGE($C125:$AU125,{1,2,3,4,5,6,7,8})),"")),"") -> 
AW126: 0 | AX126: 0 | AY126: =IF($AX126<=6,SUM($C126:$AU126),SUMPRODUCT(LARGE($C126:$AU126,{1,2,3,4,5,6}))) -> 0 | BA126: =IF(AZ126= "","",IFERROR(SUMPRODUCT(LARGE($C126:$AU126,{1,2,3,4})), "")) ->  | BB126: =IF(BA126<>"",(IFERROR(SUMPRODUCT(LARGE($C126:$AU126,{1,2,3,4,5,6,7})),"")),"") ->  | BC126: =IF(BB126<>"",(IFERROR(SUMPRODUCT(LARGE($C126:$AU126,{1,2,3,4,5,6,7,8})),"")),"") -> 
AW127: 0 | AX127: 0 | AY127: =IF($AX127<=6,SUM($C127:$AU127),SUMPRODUCT(LARGE($C127:$AU127,{1,2,3,4,5,6}))) -> 0 | BA127: =IF(AZ127= "","",IFERROR(SUMPRODUCT(LARGE($C127:$AU127,{1,2,3,4})), "")) ->  | BB127: =IF(BA127<>"",(IFERROR(SUMPRODUCT(LARGE($C127:$AU127,{1,2,3,4,5,6,7})),"")),"") ->  | BC127: =IF(BB127<>"",(IFERROR(SUMPRODUCT(LARGE($C127:$AU127,{1,2,3,4,5,6,7,8})),"")),"") -> 
AW128: 0 | AX128: 0 | AY128: =IF($AX128<=6,SUM($C128:$AU128),SUMPRODUCT(LARGE($C128:$AU128,{1,2,3,4,5,6}))) -> 0 | BA128: =IF(AZ128= "","",IFERROR(SUMPRODUCT(LARGE($C128:$AU128,{1,2,3,4})), "")) ->  | BB128: =IF(BA128<>"",(IFERROR(SUMPRODUCT(LARGE($C128:$AU128,{1,2,3,4,5,6,7})),"")),"") ->  | BC128: =IF(BB128<>"",(IFERROR(SUMPRODUCT(LARGE($C128:$AU128,{1,2,3,4,5,6,7,8})),"")),"") -> 
AW129: 0 | AX129: 0 | AY129: =IF($AX129<=6,SUM($C129:$AU129),SUMPRODUCT(LARGE($C129:$AU129,{1,2,3,4,5,6}))) -> 0 | BA129: =IF(AZ129= "","",IFERROR(SUMPRODUCT(LARGE($C129:$AU129,{1,2,3,4})), "")) ->  | BB129: =IF(BA129<>"",(IFERROR(SUMPRODUCT(LARGE($C129:$AU129,{1,2,3,4,5,6,7})),"")),"") ->  | BC129: =IF(BB129<>"",(IFERROR(SUMPRODUCT(LARGE($C129:$AU129,{1,2,3,4,5,6,7,8})),"")),"") -> 
AW130: 0 | AX130: 0 | AY130: =IF($AX130<=6,SUM($C130:$AU130),SUMPRODUCT(LARGE($C130:$AU130,{1,2,3,4,5,6}))) -> 0 | BA130: =IF(AZ130= "","",IFERROR(SUMPRODUCT(LARGE($C130:$AU130,{1,2,3,4})), "")) ->  | BB130: =IF(BA130<>"",(IFERROR(SUMPRODUCT(LARGE($C130:$AU130,{1,2,3,4,5,6,7})),"")),"") ->  | BC130: =IF(BB130<>"",(IFERROR(SUMPRODUCT(LARGE($C130:$AU130,{1,2,3,4,5,6,7,8})),"")),"") -> 
AW131: 0 | AX131: 0 | AY131: =IF($AX131<=6,SUM($C131:$AU131),SUMPRODUCT(LARGE($C131:$AU131,{1,2,3,4,5,6}))) -> 0 | BA131: =IF(AZ131= "","",IFERROR(SUMPRODUCT(LARGE($C131:$AU131,{1,2,3,4})), "")) ->  | BB131: =IF(BA131<>"",(IFERROR(SUMPRODUCT(LARGE($C131:$AU131,{1,2,3,4,5,6,7})),"")),"") ->  | BC131: =IF(BB131<>"",(IFERROR(SUMPRODUCT(LARGE($C131:$AU131,{1,2,3,4,5,6,7,8})),"")),"") -> 
AW132: =SUM($C132:$AV132) -> 0 | AX132: =COUNTA(C132:AU132) -> 0 | AY132: =IF($AX132<=6,SUM($C132:$AU132),SUMPRODUCT(LARGE($C132:$AU132,{1,2,3,4,5,6}))) -> 0 | AZ132: =IF(AND($AX132>=6,AY132=AY133),"Manual Calc Needed","") ->  | BA132: =IF(AZ132= "","",IFERROR(SUMPRODUCT(LARGE($C132:$AU132,{1,2,3,4})), "")) ->  | BB132: =IF(BA132<>"",(IFERROR(SUMPRODUCT(LARGE($C132:$AU132,{1,2,3,4,5,6,7})),"")),"") ->  | BC132: =IF(BB132<>"",(IFERROR(SUMPRODUCT(LARGE($C132:$AU132,{1,2,3,4,5,6,7,8})),"")),"") -> 
AW133: 0 | AX133: 0 | AY133: =IF($AX133<=6,SUM($C133:$AU133),SUMPRODUCT(LARGE($C133:$AU133,{1,2,3,4,5,6}))) -> 0 | BA133: =IF(AZ133= "","",IFERROR(SUMPRODUCT(LARGE($C133:$AU133,{1,2,3,4})), "")) ->  | BB133: =IF(BA133<>"",(IFERROR(SUMPRODUCT(LARGE($C133:$AU133,{1,2,3,4,5,6,7})),"")),"") ->  | BC133: =IF(BB133<>"",(IFERROR(SUMPRODUCT(LARGE($C133:$AU133,{1,2,3,4,5,6,7,8})),"")),"") -> 
AW134: 0 | AX134: 0 | AY134: =IF($AX134<=6,SUM($C134:$AU134),SUMPRODUCT(LARGE($C134:$AU134,{1,2,3,4,5,6}))) -> 0 | BA134: =IF(AZ134= "","",IFERROR(SUMPRODUCT(LARGE($C134:$AU134,{1,2,3,4})), "")) ->  | BB134: =IF(BA134<>"",(IFERROR(SUMPRODUCT(LARGE($C134:$AU134,{1,2,3,4,5,6,7})),"")),"") ->  | BC134: =IF(BB134<>"",(IFERROR(SUMPRODUCT(LARGE($C134:$AU134,{1,2,3,4,5,6,7,8})),"")),"") -> 
AW135: 0 | AX135: 0 | AY135: =IF($AX135<=6,SUM($C135:$AU135),SUMPRODUCT(LARGE($C135:$AU135,{1,2,3,4,5,6}))) -> 0 | BA135: =IF(AZ135= "","",IFERROR(SUMPRODUCT(LARGE($C135:$AU135,{1,2,3,4})), "")) ->  | BB135: =IF(BA135<>"",(IFERROR(SUMPRODUCT(LARGE($C135:$AU135,{1,2,3,4,5,6,7})),"")),"") ->  | BC135: =IF(BB135<>"",(IFERROR(SUMPRODUCT(LARGE($C135:$AU135,{1,2,3,4,5,6,7,8})),"")),"") -> 
AW136: 0 | AX136: 0 | AY136: =IF($AX136<=6,SUM($C136:$AU136),SUMPRODUCT(LARGE($C136:$AU136,{1,2,3,4,5,6}))) -> 0 | BA136: =IF(AZ136= "","",IFERROR(SUMPRODUCT(LARGE($C136:$AU136,{1,2,3,4})), "")) ->  | BB136: =IF(BA136<>"",(IFERROR(SUMPRODUCT(LARGE($C136:$AU136,{1,2,3,4,5,6,7})),"")),"") ->  | BC136: =IF(BB136<>"",(IFERROR(SUMPRODUCT(LARGE($C136:$AU136,{1,2,3,4,5,6,7,8})),"")),"") -> 
AW137: 0 | AX137: 0 | AY137: =IF($AX137<=6,SUM($C137:$AU137),SUMPRODUCT(LARGE($C137:$AU137,{1,2,3,4,5,6}))) -> 0 | BA137: =IF(AZ137= "","",IFERROR(SUMPRODUCT(LARGE($C137:$AU137,{1,2,3,4})), "")) ->  | BB137: =IF(BA137<>"",(IFERROR(SUMPRODUCT(LARGE($C137:$AU137,{1,2,3,4,5,6,7})),"")),"") ->  | BC137: =IF(BB137<>"",(IFERROR(SUMPRODUCT(LARGE($C137:$AU137,{1,2,3,4,5,6,7,8})),"")),"") -> 
AW138: 0 | AX138: 0 | AY138: =IF($AX138<=6,SUM($C138:$AU138),SUMPRODUCT(LARGE($C138:$AU138,{1,2,3,4,5,6}))) -> 0 | BA138: =IF(AZ138= "","",IFERROR(SUMPRODUCT(LARGE($C138:$AU138,{1,2,3,4})), "")) ->  | BB138: =IF(BA138<>"",(IFERROR(SUMPRODUCT(LARGE($C138:$AU138,{1,2,3,4,5,6,7})),"")),"") ->  | BC138: =IF(BB138<>"",(IFERROR(SUMPRODUCT(LARGE($C138:$AU138,{1,2,3,4,5,6,7,8})),"")),"") -> 
AW139: 0 | AX139: 0 | AY139: =IF($AX139<=6,SUM($C139:$AU139),SUMPRODUCT(LARGE($C139:$AU139,{1,2,3,4,5,6}))) -> 0 | BA139: =IF(AZ139= "","",IFERROR(SUMPRODUCT(LARGE($C139:$AU139,{1,2,3,4})), "")) ->  | BB139: =IF(BA139<>"",(IFERROR(SUMPRODUCT(LARGE($C139:$AU139,{1,2,3,4,5,6,7})),"")),"") ->  | BC139: =IF(BB139<>"",(IFERROR(SUMPRODUCT(LARGE($C139:$AU139,{1,2,3,4,5,6,7,8})),"")),"") -> 
AW140: 0 | AX140: 0 | AY140: =IF($AX140<=6,SUM($C140:$AU140),SUMPRODUCT(LARGE($C140:$AU140,{1,2,3,4,5,6}))) -> 0 | BA140: =IF(AZ140= "","",IFERROR(SUMPRODUCT(LARGE($C140:$AU140,{1,2,3,4})), "")) ->  | BB140: =IF(BA140<>"",(IFERROR(SUMPRODUCT(LARGE($C140:$AU140,{1,2,3,4,5,6,7})),"")),"") ->  | BC140: =IF(BB140<>"",(IFERROR(SUMPRODUCT(LARGE($C140:$AU140,{1,2,3,4,5,6,7,8})),"")),"") -> 
AW141: 0 | AX141: 0 | AY141: =IF($AX141<=6,SUM($C141:$AU141),SUMPRODUCT(LARGE($C141:$AU141,{1,2,3,4,5,6}))) -> 0 | BA141: =IF(AZ141= "","",IFERROR(SUMPRODUCT(LARGE($C141:$AU141,{1,2,3,4})), "")) ->  | BB141: =IF(BA141<>"",(IFERROR(SUMPRODUCT(LARGE($C141:$AU141,{1,2,3,4,5,6,7})),"")),"") ->  | BC141: =IF(BB141<>"",(IFERROR(SUMPRODUCT(LARGE($C141:$AU141,{1,2,3,4,5,6,7,8})),"")),"") -> 
AW142: 0 | AX142: 0 | AY142: =IF($AX142<=6,SUM($C142:$AU142),SUMPRODUCT(LARGE($C142:$AU142,{1,2,3,4,5,6}))) -> 0 | BA142: =IF(AZ142= "","",IFERROR(SUMPRODUCT(LARGE($C142:$AU142,{1,2,3,4})), "")) ->  | BB142: =IF(BA142<>"",(IFERROR(SUMPRODUCT(LARGE($C142:$AU142,{1,2,3,4,5,6,7})),"")),"") ->  | BC142: =IF(BB142<>"",(IFERROR(SUMPRODUCT(LARGE($C142:$AU142,{1,2,3,4,5,6,7,8})),"")),"") -> 
AW143: 0 | AX143: 0 | AY143: =IF($AX143<=6,SUM($C143:$AU143),SUMPRODUCT(LARGE($C143:$AU143,{1,2,3,4,5,6}))) -> 0 | BA143: =IF(AZ143= "","",IFERROR(SUMPRODUCT(LARGE($C143:$AU143,{1,2,3,4})), "")) ->  | BB143: =IF(BA143<>"",(IFERROR(SUMPRODUCT(LARGE($C143:$AU143,{1,2,3,4,5,6,7})),"")),"") ->  | BC143: =IF(BB143<>"",(IFERROR(SUMPRODUCT(LARGE($C143:$AU143,{1,2,3,4,5,6,7,8})),"")),"") -> 
AW144: 0 | AX144: 0 | AY144: =IF($AX144<=6,SUM($C144:$AU144),SUMPRODUCT(LARGE($C144:$AU144,{1,2,3,4,5,6}))) -> 0 | BA144: =IF(AZ144= "","",IFERROR(SUMPRODUCT(LARGE($C144:$AU144,{1,2,3,4})), "")) ->  | BB144: =IF(BA144<>"",(IFERROR(SUMPRODUCT(LARGE($C144:$AU144,{1,2,3,4,5,6,7})),"")),"") ->  | BC144: =IF(BB144<>"",(IFERROR(SUMPRODUCT(LARGE($C144:$AU144,{1,2,3,4,5,6,7,8})),"")),"") -> 
AW145: 0 | AX145: 0 | AY145: =IF($AX145<=6,SUM($C145:$AU145),SUMPRODUCT(LARGE($C145:$AU145,{1,2,3,4,5,6}))) -> 0 | BA145: =IF(AZ145= "","",IFERROR(SUMPRODUCT(LARGE($C145:$AU145,{1,2,3,4})), "")) ->  | BB145: =IF(BA145<>"",(IFERROR(SUMPRODUCT(LARGE($C145:$AU145,{1,2,3,4,5,6,7})),"")),"") ->  | BC145: =IF(BB145<>"",(IFERROR(SUMPRODUCT(LARGE($C145:$AU145,{1,2,3,4,5,6,7,8})),"")),"") -> 
AW146: 0 | AX146: 0 | AY146: =IF($AX146<=6,SUM($C146:$AU146),SUMPRODUCT(LARGE($C146:$AU146,{1,2,3,4,5,6}))) -> 0 | BA146: =IF(AZ146= "","",IFERROR(SUMPRODUCT(LARGE($C146:$AU146,{1,2,3,4})), "")) ->  | BB146: =IF(BA146<>"",(IFERROR(SUMPRODUCT(LARGE($C146:$AU146,{1,2,3,4,5,6,7})),"")),"") ->  | BC146: =IF(BB146<>"",(IFERROR(SUMPRODUCT(LARGE($C146:$AU146,{1,2,3,4,5,6,7,8})),"")),"") -> 
AW147: 0 | AX147: 0 | AY147: =IF($AX147<=6,SUM($C147:$AU147),SUMPRODUCT(LARGE($C147:$AU147,{1,2,3,4,5,6}))) -> 0 | BA147: =IF(AZ147= "","",IFERROR(SUMPRODUCT(LARGE($C147:$AU147,{1,2,3,4})), "")) ->  | BB147: =IF(BA147<>"",(IFERROR(SUMPRODUCT(LARGE($C147:$AU147,{1,2,3,4,5,6,7})),"")),"") ->  | BC147: =IF(BB147<>"",(IFERROR(SUMPRODUCT(LARGE($C147:$AU147,{1,2,3,4,5,6,7,8})),"")),"") -> 
AW148: 0 | AX148: 0 | AY148: =IF($AX148<=6,SUM($C148:$AU148),SUMPRODUCT(LARGE($C148:$AU148,{1,2,3,4,5,6}))) -> 0 | BA148: =IF(AZ148= "","",IFERROR(SUMPRODUCT(LARGE($C148:$AU148,{1,2,3,4})), "")) ->  | BB148: =IF(BA148<>"",(IFERROR(SUMPRODUCT(LARGE($C148:$AU148,{1,2,3,4,5,6,7})),"")),"") ->  | BC148: =IF(BB148<>"",(IFERROR(SUMPRODUCT(LARGE($C148:$AU148,{1,2,3,4,5,6,7,8})),"")),"") -> 
AW149: 0 | AX149: 0 | AY149: =IF($AX149<=6,SUM($C149:$AU149),SUMPRODUCT(LARGE($C149:$AU149,{1,2,3,4,5,6}))) -> 0 | BA149: =IF(AZ149= "","",IFERROR(SUMPRODUCT(LARGE($C149:$AU149,{1,2,3,4})), "")) ->  | BB149: =IF(BA149<>"",(IFERROR(SUMPRODUCT(LARGE($C149:$AU149,{1,2,3,4,5,6,7})),"")),"") ->  | BC149: =IF(BB149<>"",(IFERROR(SUMPRODUCT(LARGE($C149:$AU149,{1,2,3,4,5,6,7,8})),"")),"") -> 
AW150: 0 | AX150: 0 | AY150: =IF($AX150<=6,SUM($C150:$AU150),SUMPRODUCT(LARGE($C150:$AU150,{1,2,3,4,5,6}))) -> 0 | BA150: =IF(AZ150= "","",IFERROR(SUMPRODUCT(LARGE($C150:$AU150,{1,2,3,4})), "")) ->  | BB150: =IF(BA150<>"",(IFERROR(SUMPRODUCT(LARGE($C150:$AU150,{1,2,3,4,5,6,7})),"")),"") ->  | BC150: =IF(BB150<>"",(IFERROR(SUMPRODUCT(LARGE($C150:$AU150,{1,2,3,4,5,6,7,8})),"")),"") -> 
AW151: 0 | AX151: 0 | AY151: =IF($AX151<=6,SUM($C151:$AU151),SUMPRODUCT(LARGE($C151:$AU151,{1,2,3,4,5,6}))) -> 0 | BA151: =IF(AZ151= "","",IFERROR(SUMPRODUCT(LARGE($C151:$AU151,{1,2,3,4})), "")) ->  | BB151: =IF(BA151<>"",(IFERROR(SUMPRODUCT(LARGE($C151:$AU151,{1,2,3,4,5,6,7})),"")),"") ->  | BC151: =IF(BB151<>"",(IFERROR(SUMPRODUCT(LARGE($C151:$AU151,{1,2,3,4,5,6,7,8})),"")),"") -> 
AW152: 0 | AX152: 0 | AY152: =IF($AX152<=6,SUM($C152:$AU152),SUMPRODUCT(LARGE($C152:$AU152,{1,2,3,4,5,6}))) -> 0 | BA152: =IF(AZ152= "","",IFERROR(SUMPRODUCT(LARGE($C152:$AU152,{1,2,3,4})), "")) ->  | BB152: =IF(BA152<>"",(IFERROR(SUMPRODUCT(LARGE($C152:$AU152,{1,2,3,4,5,6,7})),"")),"") ->  | BC152: =IF(BB152<>"",(IFERROR(SUMPRODUCT(LARGE($C152:$AU152,{1,2,3,4,5,6,7,8})),"")),"") -> 
AW153: 0 | AX153: 0 | AY153: =IF($AX153<=6,SUM($C153:$AU153),SUMPRODUCT(LARGE($C153:$AU153,{1,2,3,4,5,6}))) -> 0 | BA153: =IF(AZ153= "","",IFERROR(SUMPRODUCT(LARGE($C153:$AU153,{1,2,3,4})), "")) ->  | BB153: =IF(BA153<>"",(IFERROR(SUMPRODUCT(LARGE($C153:$AU153,{1,2,3,4,5,6,7})),"")),"") ->  | BC153: =IF(BB153<>"",(IFERROR(SUMPRODUCT(LARGE($C153:$AU153,{1,2,3,4,5,6,7,8})),"")),"") -> 
AW154: 0 | AX154: 0 | AY154: =IF($AX154<=6,SUM($C154:$AU154),SUMPRODUCT(LARGE($C154:$AU154,{1,2,3,4,5,6}))) -> 0 | BA154: =IF(AZ154= "","",IFERROR(SUMPRODUCT(LARGE($C154:$AU154,{1,2,3,4})), "")) ->  | BB154: =IF(BA154<>"",(IFERROR(SUMPRODUCT(LARGE($C154:$AU154,{1,2,3,4,5,6,7})),"")),"") ->  | BC154: =IF(BB154<>"",(IFERROR(SUMPRODUCT(LARGE($C154:$AU154,{1,2,3,4,5,6,7,8})),"")),"") -> 
AW155: 0 | AX155: 0 | AY155: =IF($AX155<=6,SUM($C155:$AU155),SUMPRODUCT(LARGE($C155:$AU155,{1,2,3,4,5,6}))) -> 0 | BA155: =IF(AZ155= "","",IFERROR(SUMPRODUCT(LARGE($C155:$AU155,{1,2,3,4})), "")) ->  | BB155: =IF(BA155<>"",(IFERROR(SUMPRODUCT(LARGE($C155:$AU155,{1,2,3,4,5,6,7})),"")),"") ->  | BC155: =IF(BB155<>"",(IFERROR(SUMPRODUCT(LARGE($C155:$AU155,{1,2,3,4,5,6,7,8})),"")),"") -> 
AW156: 0 | AX156: 0 | AY156: =IF($AX156<=6,SUM($C156:$AU156),SUMPRODUCT(LARGE($C156:$AU156,{1,2,3,4,5,6}))) -> 0 | BA156: =IF(AZ156= "","",IFERROR(SUMPRODUCT(LARGE($C156:$AU156,{1,2,3,4})), "")) ->  | BB156: =IF(BA156<>"",(IFERROR(SUMPRODUCT(LARGE($C156:$AU156,{1,2,3,4,5,6,7})),"")),"") ->  | BC156: =IF(BB156<>"",(IFERROR(SUMPRODUCT(LARGE($C156:$AU156,{1,2,3,4,5,6,7,8})),"")),"") -> 
AW157: 0 | AX157: 0 | AY157: =IF($AX157<=6,SUM($C157:$AU157),SUMPRODUCT(LARGE($C157:$AU157,{1,2,3,4,5,6}))) -> 0 | BA157: =IF(AZ157= "","",IFERROR(SUMPRODUCT(LARGE($C157:$AU157,{1,2,3,4})), "")) ->  | BB157: =IF(BA157<>"",(IFERROR(SUMPRODUCT(LARGE($C157:$AU157,{1,2,3,4,5,6,7})),"")),"") ->  | BC157: =IF(BB157<>"",(IFERROR(SUMPRODUCT(LARGE($C157:$AU157,{1,2,3,4,5,6,7,8})),"")),"") -> 
AW158: 0 | AX158: 0 | AY158: =IF($AX158<=6,SUM($C158:$AU158),SUMPRODUCT(LARGE($C158:$AU158,{1,2,3,4,5,6}))) -> 0 | BA158: =IF(AZ158= "","",IFERROR(SUMPRODUCT(LARGE($C158:$AU158,{1,2,3,4})), "")) ->  | BB158: =IF(BA158<>"",(IFERROR(SUMPRODUCT(LARGE($C158:$AU158,{1,2,3,4,5,6,7})),"")),"") ->  | BC158: =IF(BB158<>"",(IFERROR(SUMPRODUCT(LARGE($C158:$AU158,{1,2,3,4,5,6,7,8})),"")),"") -> 
AW159: 0 | AX159: 0 | AY159: =IF($AX159<=6,SUM($C159:$AU159),SUMPRODUCT(LARGE($C159:$AU159,{1,2,3,4,5,6}))) -> 0 | BA159: =IF(AZ159= "","",IFERROR(SUMPRODUCT(LARGE($C159:$AU159,{1,2,3,4})), "")) ->  | BB159: =IF(BA159<>"",(IFERROR(SUMPRODUCT(LARGE($C159:$AU159,{1,2,3,4,5,6,7})),"")),"") ->  | BC159: =IF(BB159<>"",(IFERROR(SUMPRODUCT(LARGE($C159:$AU159,{1,2,3,4,5,6,7,8})),"")),"") -> 
AW160: 0 | AX160: 0 | AY160: =IF($AX160<=6,SUM($C160:$AU160),SUMPRODUCT(LARGE($C160:$AU160,{1,2,3,4,5,6}))) -> 0 | BA160: =IF(AZ160= "","",IFERROR(SUMPRODUCT(LARGE($C160:$AU160,{1,2,3,4})), "")) ->  | BB160: =IF(BA160<>"",(IFERROR(SUMPRODUCT(LARGE($C160:$AU160,{1,2,3,4,5,6,7})),"")),"") ->  | BC160: =IF(BB160<>"",(IFERROR(SUMPRODUCT(LARGE($C160:$AU160,{1,2,3,4,5,6,7,8})),"")),"") -> 
AW161: 0 | AX161: 0 | AY161: =IF($AX161<=6,SUM($C161:$AU161),SUMPRODUCT(LARGE($C161:$AU161,{1,2,3,4,5,6}))) -> 0 | BA161: =IF(AZ161= "","",IFERROR(SUMPRODUCT(LARGE($C161:$AU161,{1,2,3,4})), "")) ->  | BB161: =IF(BA161<>"",(IFERROR(SUMPRODUCT(LARGE($C161:$AU161,{1,2,3,4,5,6,7})),"")),"") ->  | BC161: =IF(BB161<>"",(IFERROR(SUMPRODUCT(LARGE($C161:$AU161,{1,2,3,4,5,6,7,8})),"")),"") -> 
AW162: 0 | AX162: 0 | AY162: =IF($AX162<=6,SUM($C162:$AU162),SUMPRODUCT(LARGE($C162:$AU162,{1,2,3,4,5,6}))) -> 0 | BA162: =IF(AZ162= "","",IFERROR(SUMPRODUCT(LARGE($C162:$AU162,{1,2,3,4})), "")) ->  | BB162: =IF(BA162<>"",(IFERROR(SUMPRODUCT(LARGE($C162:$AU162,{1,2,3,4,5,6,7})),"")),"") ->  | BC162: =IF(BB162<>"",(IFERROR(SUMPRODUCT(LARGE($C162:$AU162,{1,2,3,4,5,6,7,8})),"")),"") -> 
AW163: 0 | AX163: 0 | AY163: =IF($AX163<=6,SUM($C163:$AU163),SUMPRODUCT(LARGE($C163:$AU163,{1,2,3,4,5,6}))) -> 0 | BA163: =IF(AZ163= "","",IFERROR(SUMPRODUCT(LARGE($C163:$AU163,{1,2,3,4})), "")) ->  | BB163: =IF(BA163<>"",(IFERROR(SUMPRODUCT(LARGE($C163:$AU163,{1,2,3,4,5,6,7})),"")),"") ->  | BC163: =IF(BB163<>"",(IFERROR(SUMPRODUCT(LARGE($C163:$AU163,{1,2,3,4,5,6,7,8})),"")),"") -> 
AW164: 0 | AX164: 0 | AY164: =IF($AX164<=6,SUM($C164:$AU164),SUMPRODUCT(LARGE($C164:$AU164,{1,2,3,4,5,6}))) -> 0 | BA164: =IF(AZ164= "","",IFERROR(SUMPRODUCT(LARGE($C164:$AU164,{1,2,3,4})), "")) ->  | BB164: =IF(BA164<>"",(IFERROR(SUMPRODUCT(LARGE($C164:$AU164,{1,2,3,4,5,6,7})),"")),"") ->  | BC164: =IF(BB164<>"",(IFERROR(SUMPRODUCT(LARGE($C164:$AU164,{1,2,3,4,5,6,7,8})),"")),"") -> 
AW165: 0 | AX165: 0 | AY165: =IF($AX165<=6,SUM($C165:$AU165),SUMPRODUCT(LARGE($C165:$AU165,{1,2,3,4,5,6}))) -> 0 | BA165: =IF(AZ165= "","",IFERROR(SUMPRODUCT(LARGE($C165:$AU165,{1,2,3,4})), "")) ->  | BB165: =IF(BA165<>"",(IFERROR(SUMPRODUCT(LARGE($C165:$AU165,{1,2,3,4,5,6,7})),"")),"") ->  | BC165: =IF(BB165<>"",(IFERROR(SUMPRODUCT(LARGE($C165:$AU165,{1,2,3,4,5,6,7,8})),"")),"") -> 
AW166: 0 | AX166: 0 | AY166: =IF($AX166<=6,SUM($C166:$AU166),SUMPRODUCT(LARGE($C166:$AU166,{1,2,3,4,5,6}))) -> 0 | BA166: =IF(AZ166= "","",IFERROR(SUMPRODUCT(LARGE($C166:$AU166,{1,2,3,4})), "")) ->  | BB166: =IF(BA166<>"",(IFERROR(SUMPRODUCT(LARGE($C166:$AU166,{1,2,3,4,5,6,7})),"")),"") ->  | BC166: =IF(BB166<>"",(IFERROR(SUMPRODUCT(LARGE($C166:$AU166,{1,2,3,4,5,6,7,8})),"")),"") -> 
AW167: 0 | AX167: 0 | AY167: =IF($AX167<=6,SUM($C167:$AU167),SUMPRODUCT(LARGE($C167:$AU167,{1,2,3,4,5,6}))) -> 0 | BA167: =IF(AZ167= "","",IFERROR(SUMPRODUCT(LARGE($C167:$AU167,{1,2,3,4})), "")) ->  | BB167: =IF(BA167<>"",(IFERROR(SUMPRODUCT(LARGE($C167:$AU167,{1,2,3,4,5,6,7})),"")),"") ->  | BC167: =IF(BB167<>"",(IFERROR(SUMPRODUCT(LARGE($C167:$AU167,{1,2,3,4,5,6,7,8})),"")),"") -> 
AW168: 0 | AX168: 0 | AY168: =IF($AX168<=6,SUM($C168:$AU168),SUMPRODUCT(LARGE($C168:$AU168,{1,2,3,4,5,6}))) -> 0 | BA168: =IF(AZ168= "","",IFERROR(SUMPRODUCT(LARGE($C168:$AU168,{1,2,3,4})), "")) ->  | BB168: =IF(BA168<>"",(IFERROR(SUMPRODUCT(LARGE($C168:$AU168,{1,2,3,4,5,6,7})),"")),"") ->  | BC168: =IF(BB168<>"",(IFERROR(SUMPRODUCT(LARGE($C168:$AU168,{1,2,3,4,5,6,7,8})),"")),"") -> 
AW169: 0 | AX169: 0 | AY169: =IF($AX169<=6,SUM($C169:$AU169),SUMPRODUCT(LARGE($C169:$AU169,{1,2,3,4,5,6}))) -> 0 | BA169: =IF(AZ169= "","",IFERROR(SUMPRODUCT(LARGE($C169:$AU169,{1,2,3,4})), "")) ->  | BB169: =IF(BA169<>"",(IFERROR(SUMPRODUCT(LARGE($C169:$AU169,{1,2,3,4,5,6,7})),"")),"") ->  | BC169: =IF(BB169<>"",(IFERROR(SUMPRODUCT(LARGE($C169:$AU169,{1,2,3,4,5,6,7,8})),"")),"") -> 
AW170: 0 | AX170: 0 | AY170: =IF($AX170<=6,SUM($C170:$AU170),SUMPRODUCT(LARGE($C170:$AU170,{1,2,3,4,5,6}))) -> 0 | BA170: =IF(AZ170= "","",IFERROR(SUMPRODUCT(LARGE($C170:$AU170,{1,2,3,4})), "")) ->  | BB170: =IF(BA170<>"",(IFERROR(SUMPRODUCT(LARGE($C170:$AU170,{1,2,3,4,5,6,7})),"")),"") ->  | BC170: =IF(BB170<>"",(IFERROR(SUMPRODUCT(LARGE($C170:$AU170,{1,2,3,4,5,6,7,8})),"")),"") -> 
AW171: 0 | AX171: 0 | AY171: =IF($AX171<=6,SUM($C171:$AU171),SUMPRODUCT(LARGE($C171:$AU171,{1,2,3,4,5,6}))) -> 0 | BA171: =IF(AZ171= "","",IFERROR(SUMPRODUCT(LARGE($C171:$AU171,{1,2,3,4})), "")) ->  | BB171: =IF(BA171<>"",(IFERROR(SUMPRODUCT(LARGE($C171:$AU171,{1,2,3,4,5,6,7})),"")),"") ->  | BC171: =IF(BB171<>"",(IFERROR(SUMPRODUCT(LARGE($C171:$AU171,{1,2,3,4,5,6,7,8})),"")),"") -> 
AW172: 0 | AX172: 0 | AY172: =IF($AX172<=6,SUM($C172:$AU172),SUMPRODUCT(LARGE($C172:$AU172,{1,2,3,4,5,6}))) -> 0 | BA172: =IF(AZ172= "","",IFERROR(SUMPRODUCT(LARGE($C172:$AU172,{1,2,3,4})), "")) ->  | BB172: =IF(BA172<>"",(IFERROR(SUMPRODUCT(LARGE($C172:$AU172,{1,2,3,4,5,6,7})),"")),"") ->  | BC172: =IF(BB172<>"",(IFERROR(SUMPRODUCT(LARGE($C172:$AU172,{1,2,3,4,5,6,7,8})),"")),"") -> 
AW173: 0 | AX173: 0 | AY173: =IF($AX173<=6,SUM($C173:$AU173),SUMPRODUCT(LARGE($C173:$AU173,{1,2,3,4,5,6}))) -> 0 | BA173: =IF(AZ173= "","",IFERROR(SUMPRODUCT(LARGE($C173:$AU173,{1,2,3,4})), "")) ->  | BB173: =IF(BA173<>"",(IFERROR(SUMPRODUCT(LARGE($C173:$AU173,{1,2,3,4,5,6,7})),"")),"") ->  | BC173: =IF(BB173<>"",(IFERROR(SUMPRODUCT(LARGE($C173:$AU173,{1,2,3,4,5,6,7,8})),"")),"") -> 
AW174: 0 | AX174: 0 | AY174: =IF($AX174<=6,SUM($C174:$AU174),SUMPRODUCT(LARGE($C174:$AU174,{1,2,3,4,5,6}))) -> 0 | BA174: =IF(AZ174= "","",IFERROR(SUMPRODUCT(LARGE($C174:$AU174,{1,2,3,4})), "")) ->  | BB174: =IF(BA174<>"",(IFERROR(SUMPRODUCT(LARGE($C174:$AU174,{1,2,3,4,5,6,7})),"")),"") ->  | BC174: =IF(BB174<>"",(IFERROR(SUMPRODUCT(LARGE($C174:$AU174,{1,2,3,4,5,6,7,8})),"")),"") -> 
AW175: 0 | AX175: 0 | AY175: =IF($AX175<=6,SUM($C175:$AU175),SUMPRODUCT(LARGE($C175:$AU175,{1,2,3,4,5,6}))) -> 0 | BA175: =IF(AZ175= "","",IFERROR(SUMPRODUCT(LARGE($C175:$AU175,{1,2,3,4})), "")) ->  | BB175: =IF(BA175<>"",(IFERROR(SUMPRODUCT(LARGE($C175:$AU175,{1,2,3,4,5,6,7})),"")),"") ->  | BC175: =IF(BB175<>"",(IFERROR(SUMPRODUCT(LARGE($C175:$AU175,{1,2,3,4,5,6,7,8})),"")),"") -> 
AW176: 0 | AX176: 0 | AY176: =IF($AX176<=6,SUM($C176:$AU176),SUMPRODUCT(LARGE($C176:$AU176,{1,2,3,4,5,6}))) -> 0 | BA176: =IF(AZ176= "","",IFERROR(SUMPRODUCT(LARGE($C176:$AU176,{1,2,3,4})), "")) ->  | BB176: =IF(BA176<>"",(IFERROR(SUMPRODUCT(LARGE($C176:$AU176,{1,2,3,4,5,6,7})),"")),"") ->  | BC176: =IF(BB176<>"",(IFERROR(SUMPRODUCT(LARGE($C176:$AU176,{1,2,3,4,5,6,7,8})),"")),"") -> 
AW177: 0 | AX177: 0 | AY177: =IF($AX177<=6,SUM($C177:$AU177),SUMPRODUCT(LARGE($C177:$AU177,{1,2,3,4,5,6}))) -> 0 | BA177: =IF(AZ177= "","",IFERROR(SUMPRODUCT(LARGE($C177:$AU177,{1,2,3,4})), "")) ->  | BB177: =IF(BA177<>"",(IFERROR(SUMPRODUCT(LARGE($C177:$AU177,{1,2,3,4,5,6,7})),"")),"") ->  | BC177: =IF(BB177<>"",(IFERROR(SUMPRODUCT(LARGE($C177:$AU177,{1,2,3,4,5,6,7,8})),"")),"") -> 
AW178: 0 | AX178: 0 | AY178: =IF($AX178<=6,SUM($C178:$AU178),SUMPRODUCT(LARGE($C178:$AU178,{1,2,3,4,5,6}))) -> 0 | BA178: =IF(AZ178= "","",IFERROR(SUMPRODUCT(LARGE($C178:$AU178,{1,2,3,4})), "")) ->  | BB178: =IF(BA178<>"",(IFERROR(SUMPRODUCT(LARGE($C178:$AU178,{1,2,3,4,5,6,7})),"")),"") ->  | BC178: =IF(BB178<>"",(IFERROR(SUMPRODUCT(LARGE($C178:$AU178,{1,2,3,4,5,6,7,8})),"")),"") -> 
AW179: 0 | AX179: 0 | AY179: =IF($AX179<=6,SUM($C179:$AU179),SUMPRODUCT(LARGE($C179:$AU179,{1,2,3,4,5,6}))) -> 0 | BA179: =IF(AZ179= "","",IFERROR(SUMPRODUCT(LARGE($C179:$AU179,{1,2,3,4})), "")) ->  | BB179: =IF(BA179<>"",(IFERROR(SUMPRODUCT(LARGE($C179:$AU179,{1,2,3,4,5,6,7})),"")),"") ->  | BC179: =IF(BB179<>"",(IFERROR(SUMPRODUCT(LARGE($C179:$AU179,{1,2,3,4,5,6,7,8})),"")),"") -> 
AW180: 0 | AX180: 0 | AY180: =IF($AX180<=6,SUM($C180:$AU180),SUMPRODUCT(LARGE($C180:$AU180,{1,2,3,4,5,6}))) -> 0 | BA180: =IF(AZ180= "","",IFERROR(SUMPRODUCT(LARGE($C180:$AU180,{1,2,3,4})), "")) ->  | BB180: =IF(BA180<>"",(IFERROR(SUMPRODUCT(LARGE($C180:$AU180,{1,2,3,4,5,6,7})),"")),"") ->  | BC180: =IF(BB180<>"",(IFERROR(SUMPRODUCT(LARGE($C180:$AU180,{1,2,3,4,5,6,7,8})),"")),"") -> 
AW181: 0 | AX181: 0 | AY181: =IF($AX181<=6,SUM($C181:$AU181),SUMPRODUCT(LARGE($C181:$AU181,{1,2,3,4,5,6}))) -> 0 | BA181: =IF(AZ181= "","",IFERROR(SUMPRODUCT(LARGE($C181:$AU181,{1,2,3,4})), "")) ->  | BB181: =IF(BA181<>"",(IFERROR(SUMPRODUCT(LARGE($C181:$AU181,{1,2,3,4,5,6,7})),"")),"") ->  | BC181: =IF(BB181<>"",(IFERROR(SUMPRODUCT(LARGE($C181:$AU181,{1,2,3,4,5,6,7,8})),"")),"") -> 
AW182: 0 | AX182: 0 | AY182: =IF($AX182<=6,SUM($C182:$AU182),SUMPRODUCT(LARGE($C182:$AU182,{1,2,3,4,5,6}))) -> 0 | BA182: =IF(AZ182= "","",IFERROR(SUMPRODUCT(LARGE($C182:$AU182,{1,2,3,4})), "")) ->  | BB182: =IF(BA182<>"",(IFERROR(SUMPRODUCT(LARGE($C182:$AU182,{1,2,3,4,5,6,7})),"")),"") ->  | BC182: =IF(BB182<>"",(IFERROR(SUMPRODUCT(LARGE($C182:$AU182,{1,2,3,4,5,6,7,8})),"")),"") -> 
AW183: 0 | AX183: 0 | AY183: =IF($AX183<=6,SUM($C183:$AU183),SUMPRODUCT(LARGE($C183:$AU183,{1,2,3,4,5,6}))) -> 0 | BA183: =IF(AZ183= "","",IFERROR(SUMPRODUCT(LARGE($C183:$AU183,{1,2,3,4})), "")) ->  | BB183: =IF(BA183<>"",(IFERROR(SUMPRODUCT(LARGE($C183:$AU183,{1,2,3,4,5,6,7})),"")),"") ->  | BC183: =IF(BB183<>"",(IFERROR(SUMPRODUCT(LARGE($C183:$AU183,{1,2,3,4,5,6,7,8})),"")),"") -> 
AW184: 0 | AX184: 0 | AY184: =IF($AX184<=6,SUM($C184:$AU184),SUMPRODUCT(LARGE($C184:$AU184,{1,2,3,4,5,6}))) -> 0 | BA184: =IF(AZ184= "","",IFERROR(SUMPRODUCT(LARGE($C184:$AU184,{1,2,3,4})), "")) ->  | BB184: =IF(BA184<>"",(IFERROR(SUMPRODUCT(LARGE($C184:$AU184,{1,2,3,4,5,6,7})),"")),"") ->  | BC184: =IF(BB184<>"",(IFERROR(SUMPRODUCT(LARGE($C184:$AU184,{1,2,3,4,5,6,7,8})),"")),"") -> 
AW185: 0 | AX185: 0 | AY185: =IF($AX185<=6,SUM($C185:$AU185),SUMPRODUCT(LARGE($C185:$AU185,{1,2,3,4,5,6}))) -> 0 | BA185: =IF(AZ185= "","",IFERROR(SUMPRODUCT(LARGE($C185:$AU185,{1,2,3,4})), "")) ->  | BB185: =IF(BA185<>"",(IFERROR(SUMPRODUCT(LARGE($C185:$AU185,{1,2,3,4,5,6,7})),"")),"") ->  | BC185: =IF(BB185<>"",(IFERROR(SUMPRODUCT(LARGE($C185:$AU185,{1,2,3,4,5,6,7,8})),"")),"") -> 
AW186: 0 | AX186: 0 | AY186: =IF($AX186<=6,SUM($C186:$AU186),SUMPRODUCT(LARGE($C186:$AU186,{1,2,3,4,5,6}))) -> 0 | BA186: =IF(AZ186= "","",IFERROR(SUMPRODUCT(LARGE($C186:$AU186,{1,2,3,4})), "")) ->  | BB186: =IF(BA186<>"",(IFERROR(SUMPRODUCT(LARGE($C186:$AU186,{1,2,3,4,5,6,7})),"")),"") ->  | BC186: =IF(BB186<>"",(IFERROR(SUMPRODUCT(LARGE($C186:$AU186,{1,2,3,4,5,6,7,8})),"")),"") -> 
AW187: 0 | AX187: 0 | AY187: =IF($AX187<=6,SUM($C187:$AU187),SUMPRODUCT(LARGE($C187:$AU187,{1,2,3,4,5,6}))) -> 0 | BA187: =IF(AZ187= "","",IFERROR(SUMPRODUCT(LARGE($C187:$AU187,{1,2,3,4})), "")) ->  | BB187: =IF(BA187<>"",(IFERROR(SUMPRODUCT(LARGE($C187:$AU187,{1,2,3,4,5,6,7})),"")),"") ->  | BC187: =IF(BB187<>"",(IFERROR(SUMPRODUCT(LARGE($C187:$AU187,{1,2,3,4,5,6,7,8})),"")),"") -> 
AW188: 0 | AX188: 0 | AY188: =IF($AX188<=6,SUM($C188:$AU188),SUMPRODUCT(LARGE($C188:$AU188,{1,2,3,4,5,6}))) -> 0 | BA188: =IF(AZ188= "","",IFERROR(SUMPRODUCT(LARGE($C188:$AU188,{1,2,3,4})), "")) ->  | BB188: =IF(BA188<>"",(IFERROR(SUMPRODUCT(LARGE($C188:$AU188,{1,2,3,4,5,6,7})),"")),"") ->  | BC188: =IF(BB188<>"",(IFERROR(SUMPRODUCT(LARGE($C188:$AU188,{1,2,3,4,5,6,7,8})),"")),"") -> 
AW189: 0 | AX189: 0 | AY189: =IF($AX189<=6,SUM($C189:$AU189),SUMPRODUCT(LARGE($C189:$AU189,{1,2,3,4,5,6}))) -> 0 | BA189: =IF(AZ189= "","",IFERROR(SUMPRODUCT(LARGE($C189:$AU189,{1,2,3,4})), "")) ->  | BB189: =IF(BA189<>"",(IFERROR(SUMPRODUCT(LARGE($C189:$AU189,{1,2,3,4,5,6,7})),"")),"") ->  | BC189: =IF(BB189<>"",(IFERROR(SUMPRODUCT(LARGE($C189:$AU189,{1,2,3,4,5,6,7,8})),"")),"") -> 
AW190: 0 | AX190: 0 | AY190: =IF($AX190<=6,SUM($C190:$AU190),SUMPRODUCT(LARGE($C190:$AU190,{1,2,3,4,5,6}))) -> 0 | BA190: =IF(AZ190= "","",IFERROR(SUMPRODUCT(LARGE($C190:$AU190,{1,2,3,4})), "")) ->  | BB190: =IF(BA190<>"",(IFERROR(SUMPRODUCT(LARGE($C190:$AU190,{1,2,3,4,5,6,7})),"")),"") ->  | BC190: =IF(BB190<>"",(IFERROR(SUMPRODUCT(LARGE($C190:$AU190,{1,2,3,4,5,6,7,8})),"")),"") -> 
AW191: 0 | AX191: 0 | AY191: =IF($AX191<=6,SUM($C191:$AU191),SUMPRODUCT(LARGE($C191:$AU191,{1,2,3,4,5,6}))) -> 0 | BA191: =IF(AZ191= "","",IFERROR(SUMPRODUCT(LARGE($C191:$AU191,{1,2,3,4})), "")) ->  | BB191: =IF(BA191<>"",(IFERROR(SUMPRODUCT(LARGE($C191:$AU191,{1,2,3,4,5,6,7})),"")),"") ->  | BC191: =IF(BB191<>"",(IFERROR(SUMPRODUCT(LARGE($C191:$AU191,{1,2,3,4,5,6,7,8})),"")),"") -> 
AW192: 0 | AX192: 0 | AY192: =IF($AX192<=6,SUM($C192:$AU192),SUMPRODUCT(LARGE($C192:$AU192,{1,2,3,4,5,6}))) -> 0 | BA192: =IF(AZ192= "","",IFERROR(SUMPRODUCT(LARGE($C192:$AU192,{1,2,3,4})), "")) ->  | BB192: =IF(BA192<>"",(IFERROR(SUMPRODUCT(LARGE($C192:$AU192,{1,2,3,4,5,6,7})),"")),"") ->  | BC192: =IF(BB192<>"",(IFERROR(SUMPRODUCT(LARGE($C192:$AU192,{1,2,3,4,5,6,7,8})),"")),"") -> 
AW193: 0 | AX193: 0 | AY193: =IF($AX193<=6,SUM($C193:$AU193),SUMPRODUCT(LARGE($C193:$AU193,{1,2,3,4,5,6}))) -> 0 | BA193: =IF(AZ193= "","",IFERROR(SUMPRODUCT(LARGE($C193:$AU193,{1,2,3,4})), "")) ->  | BB193: =IF(BA193<>"",(IFERROR(SUMPRODUCT(LARGE($C193:$AU193,{1,2,3,4,5,6,7})),"")),"") ->  | BC193: =IF(BB193<>"",(IFERROR(SUMPRODUCT(LARGE($C193:$AU193,{1,2,3,4,5,6,7,8})),"")),"") -> 
AW194: 0 | AX194: 0 | AY194: =IF($AX194<=6,SUM($C194:$AU194),SUMPRODUCT(LARGE($C194:$AU194,{1,2,3,4,5,6}))) -> 0 | BA194: =IF(AZ194= "","",IFERROR(SUMPRODUCT(LARGE($C194:$AU194,{1,2,3,4})), "")) ->  | BB194: =IF(BA194<>"",(IFERROR(SUMPRODUCT(LARGE($C194:$AU194,{1,2,3,4,5,6,7})),"")),"") ->  | BC194: =IF(BB194<>"",(IFERROR(SUMPRODUCT(LARGE($C194:$AU194,{1,2,3,4,5,6,7,8})),"")),"") -> 
AW195: 0 | AX195: 0 | AY195: =IF($AX195<=6,SUM($C195:$AU195),SUMPRODUCT(LARGE($C195:$AU195,{1,2,3,4,5,6}))) -> 0 | BA195: =IF(AZ195= "","",IFERROR(SUMPRODUCT(LARGE($C195:$AU195,{1,2,3,4})), "")) ->  | BB195: =IF(BA195<>"",(IFERROR(SUMPRODUCT(LARGE($C195:$AU195,{1,2,3,4,5,6,7})),"")),"") ->  | BC195: =IF(BB195<>"",(IFERROR(SUMPRODUCT(LARGE($C195:$AU195,{1,2,3,4,5,6,7,8})),"")),"") -> 
AW196: =SUM($C196:$AV196) -> 0 | AX196: =COUNTA(C196:AU196) -> 0 | AY196: =IF($AX196<=6,SUM($C196:$AU196),SUMPRODUCT(LARGE($C196:$AU196,{1,2,3,4,5,6}))) -> 0 | AZ196: =IF(AND($AX196>=6,AY196=AY197),"Manual Calc Needed","") ->  | BA196: =IF(AZ196= "","",IFERROR(SUMPRODUCT(LARGE($C196:$AU196,{1,2,3,4})), "")) ->  | BB196: =IF(BA196<>"",(IFERROR(SUMPRODUCT(LARGE($C196:$AU196,{1,2,3,4,5,6,7})),"")),"") ->  | BC196: =IF(BB196<>"",(IFERROR(SUMPRODUCT(LARGE($C196:$AU196,{1,2,3,4,5,6,7,8})),"")),"") -> 
AW197: 0 | AX197: 0 | AY197: =IF($AX197<=6,SUM($C197:$AU197),SUMPRODUCT(LARGE($C197:$AU197,{1,2,3,4,5,6}))) -> 0 | BA197: =IF(AZ197= "","",IFERROR(SUMPRODUCT(LARGE($C197:$AU197,{1,2,3,4})), "")) ->  | BB197: =IF(BA197<>"",(IFERROR(SUMPRODUCT(LARGE($C197:$AU197,{1,2,3,4,5,6,7})),"")),"") ->  | BC197: =IF(BB197<>"",(IFERROR(SUMPRODUCT(LARGE($C197:$AU197,{1,2,3,4,5,6,7,8})),"")),"") -> 
AW198: 0 | AX198: 0 | AY198: =IF($AX198<=6,SUM($C198:$AU198),SUMPRODUCT(LARGE($C198:$AU198,{1,2,3,4,5,6}))) -> 0 | BA198: =IF(AZ198= "","",IFERROR(SUMPRODUCT(LARGE($C198:$AU198,{1,2,3,4})), "")) ->  | BB198: =IF(BA198<>"",(IFERROR(SUMPRODUCT(LARGE($C198:$AU198,{1,2,3,4,5,6,7})),"")),"") ->  | BC198: =IF(BB198<>"",(IFERROR(SUMPRODUCT(LARGE($C198:$AU198,{1,2,3,4,5,6,7,8})),"")),"") -> 
AW199: 0 | AX199: 0 | AY199: =IF($AX199<=6,SUM($C199:$AU199),SUMPRODUCT(LARGE($C199:$AU199,{1,2,3,4,5,6}))) -> 0 | BA199: =IF(AZ199= "","",IFERROR(SUMPRODUCT(LARGE($C199:$AU199,{1,2,3,4})), "")) ->  | BB199: =IF(BA199<>"",(IFERROR(SUMPRODUCT(LARGE($C199:$AU199,{1,2,3,4,5,6,7})),"")),"") ->  | BC199: =IF(BB199<>"",(IFERROR(SUMPRODUCT(LARGE($C199:$AU199,{1,2,3,4,5,6,7,8})),"")),"") -> 
AW200: 0 | AX200: 0 | AY200: =IF($AX200<=6,SUM($C200:$AU200),SUMPRODUCT(LARGE($C200:$AU200,{1,2,3,4,5,6}))) -> 0 | BA200: =IF(AZ200= "","",IFERROR(SUMPRODUCT(LARGE($C200:$AU200,{1,2,3,4})), "")) ->  | BB200: =IF(BA200<>"",(IFERROR(SUMPRODUCT(LARGE($C200:$AU200,{1,2,3,4,5,6,7})),"")),"") ->  | BC200: =IF(BB200<>"",(IFERROR(SUMPRODUCT(LARGE($C200:$AU200,{1,2,3,4,5,6,7,8})),"")),"") -> 
... 100 more rows

Sheet Scholastic
C1: Lee | D1: CSI | E1: QC1 | F1: QC2 | G1: UU | H1: USM | I1: L&CC | J1: BGSU | K1: LTU | L1: UCM | M1: ClSU | N1: MTSU | O1: LSUS | P1: LU | Q1: UJ | R1: SFCT | S1: SWB | T1: PaU | U1: BGSU2 | V1: WhU | W1: PLNU | X1: FSCJ | Y1: SFCC | AY1: S/L Ranking | AZ1: Head to Head | BA1: H/L | BB1: 7th Tourn. | BC1: 8th Tourn.
B2: Size of Field | C2: =IF(COUNTIFS(C$4:C$999,"<>"),COUNTIFS(C$4:C$999,"<>")," ") -> 10 | D2: 10 | E2: 7 | F2: 10 | G2: 23 | H2: 7 | I2: 11 | J2: 17 | K2: 14 | L2: 16 | M2: 6 | N2: 13 | O2: 20 | P2: 30 | Q2: 19 | T2: 8 | U2: 12 | V2: 7 | Y2: 7
A3: RANK | B3: Squad | C3: LEE (9/23-25) | D3: CSI (9/23-24) | E3: QC Swing #1 (9/23-24) | F3: QC Swing #2 (9/23-24) | G3: Union (9/30-10/2) | H3: USM (10/7-9) | I3: L&CC (10/7-9) | J3: BGSU #1 (10/14-15) | K3: LTU (10/14-16) | L3: UCM (10/21-23) | M3: CISU (10/21-23) | N3: MTSU (10/28-30) | O3: LSUS (10/21-23) | P3: Linfield (11/11-13) | Q3: Jamestown (12/3-4) | R3: SFCT (1/27-29) | S3: SWB (10/7-9) | T3: PaU (10/14-16) | U3: BGSU #2 (10/14-15) | V3: Whitworth (10/21-22) | W3: PLNU (10/21-23) | X3: FSCJ (11/11-13) | Y3: SFCC/MVC (11/11-13) | AV3: over 6/2nd host | AW3: Total Points | AX3: Tournament Count | AY3: Best Top 6 (National Rank) | AZ3: 1st Tie Breaker | BA3: 2nd Tie Breaker | BB3: 3rd Tie Breaker | BC3: 4th Tie Breaker
B4: ACU | C4: 64 | G4: 57 | O4: 69 | Q4: 63 | AW4: =SUM($C4:$AV4) -> 253 | AX4: =COUNTA(C4:AU4) -> 4 | AY4: =IF($AX4<=6,SUM($C4:$AU4),SUMPRODUCT(LARGE($C4:$AU4,{1,2,3,4,5,6}))) -> 253 | AZ4: =IF(AND($AX4>=6,AY4=AY5),"Manual Calc Needed","") ->  | BA4: =IF(AZ4= "","",IFERROR(SUMPRODUCT(LARGE($C4:$AU4,{1,2,3,4})), "")) ->  | BB4: =IF(BA4<>"",(IFERROR(SUMPRODUCT(LARGE($C4:$AU4,{1,2,3,4,5,6,7})),"")),"") ->  | BC4: =IF(BB4<>"",(IFERROR(SUMPRODUCT(LARGE($C4:$AU4,{1,2,3,4,5,6,7,8})),"")),"") -> 
B5: ASU | C5: 11 | L5: 18 | Q5: 6 | AW5: 35 | AX5: 3 | AY5: =IF($AX5<=6,SUM($C5:$AU5),SUMPRODUCT(LARGE($C5:$AU5,{1,2,3,4,5,6}))) -> 35 | BA5: =IF(AZ5= "","",IFERROR(SUMPRODUCT(LARGE($C5:$AU5,{1,2,3,4})), "")) ->  | BB5: =IF(BA5<>"",(IFERROR(SUMPRODUCT(LARGE($C5:$AU5,{1,2,3,4,5,6,7})),"")),"") ->  | BC5: =IF(BB5<>"",(IFERROR(SUMPRODUCT(LARGE($C5:$AU5,{1,2,3,4,5,6,7,8})),"")),"") -> 
B6: BaSU | J6: 5 | Y6: 10 | AW6: 15 | AX6: 2 | AY6: =IF($AX6<=6,SUM($C6:$AU6),SUMPRODUCT(LARGE($C6:$AU6,{1,2,3,4,5,6}))) -> 15 | BA6: =IF(AZ6= "","",IFERROR(SUMPRODUCT(LARGE($C6:$AU6,{1,2,3,4})), "")) ->  | BB6: =IF(BA6<>"",(IFERROR(SUMPRODUCT(LARGE($C6:$AU6,{1,2,3,4,5,6,7})),"")),"") ->  | BC6: =IF(BB6<>"",(IFERROR(SUMPRODUCT(LARGE($C6:$AU6,{1,2,3,4,5,6,7,8})),"")),"") -> 
B7: BGSU | E7: 5 | J7: 7 | AW7: 12 | AX7: 2 | AY7: =IF($AX7<=6,SUM($C7:$AU7),SUMPRODUCT(LARGE($C7:$AU7,{1,2,3,4,5,6}))) -> 12 | BA7: =IF(AZ7= "","",IFERROR(SUMPRODUCT(LARGE($C7:$AU7,{1,2,3,4})), "")) ->  | BB7: =IF(BA7<>"",(IFERROR(SUMPRODUCT(LARGE($C7:$AU7,{1,2,3,4,5,6,7})),"")),"") ->  | BC7: =IF(BB7<>"",(IFERROR(SUMPRODUCT(LARGE($C7:$AU7,{1,2,3,4,5,6,7,8})),"")),"") -> 
B8: BPCC | C8: 29 | G8: 5 | K8: 12 | O8: 19 | Q8: 8 | AW8: 73 | AX8: 5 | AY8: =IF($AX8<=6,SUM($C8:$AU8),SUMPRODUCT(LARGE($C8:$AU8,{1,2,3,4,5,6}))) -> 73 | BA8: =IF(AZ8= "","",IFERROR(SUMPRODUCT(LARGE($C8:$AU8,{1,2,3,4})), "")) ->  | BB8: =IF(BA8<>"",(IFERROR(SUMPRODUCT(LARGE($C8:$AU8,{1,2,3,4,5,6,7})),"")),"") ->  | BC8: =IF(BB8<>"",(IFERROR(SUMPRODUCT(LARGE($C8:$AU8,{1,2,3,4,5,6,7,8})),"")),"") -> 
B9: BSU | D9: =7+5+5 -> 17 | I9: 28 | P9: 42 | AW9: 87 | AX9: 3 | AY9: =IF($AX9<=6,SUM($C9:$AU9),SUMPRODUCT(LARGE($C9:$AU9,{1,2,3,4,5,6}))) -> 87 | BA9: =IF(AZ9= "","",IFERROR(SUMPRODUCT(LARGE($C9:$AU9,{1,2,3,4})), "")) ->  | BB9: =IF(BA9<>"",(IFERROR(SUMPRODUCT(LARGE($C9:$AU9,{1,2,3,4,5,6,7})),"")),"") ->  | BC9: =IF(BB9<>"",(IFERROR(SUMPRODUCT(LARGE($C9:$AU9,{1,2,3,4,5,6,7,8})),"")),"") -> 
B10: BU | G10: 24 | M10: 13 | N10: 8 | P10: 9 | AW10: 54 | AX10: 4 | AY10: =IF($AX10<=6,SUM($C10:$AU10),SUMPRODUCT(LARGE($C10:$AU10,{1,2,3,4,5,6}))) -> 54 | BA10: =IF(AZ10= "","",IFERROR(SUMPRODUCT(LARGE($C10:$AU10,{1,2,3,4})), "")) ->  | BB10: =IF(BA10<>"",(IFERROR(SUMPRODUCT(LARGE($C10:$AU10,{1,2,3,4,5,6,7})),"")),"") ->  | BC10: =IF(BB10<>"",(IFERROR(SUMPRODUCT(LARGE($C10:$AU10,{1,2,3,4,5,6,7,8})),"")),"") -> 
B11: ButU | F11: 13 | AW11: 13 | AX11: 1 | AY11: =IF($AX11<=6,SUM($C11:$AU11),SUMPRODUCT(LARGE($C11:$AU11,{1,2,3,4,5,6}))) -> 13 | BA11: =IF(AZ11= "","",IFERROR(SUMPRODUCT(LARGE($C11:$AU11,{1,2,3,4})), "")) ->  | BB11: =IF(BA11<>"",(IFERROR(SUMPRODUCT(LARGE($C11:$AU11,{1,2,3,4,5,6,7})),"")),"") ->  | BC11: =IF(BB11<>"",(IFERROR(SUMPRODUCT(LARGE($C11:$AU11,{1,2,3,4,5,6,7,8})),"")),"") -> 
B12: CasC | D12: 6 | P12: 9 | AW12: 15 | AX12: 2 | AY12: =IF($AX12<=6,SUM($C12:$AU12),SUMPRODUCT(LARGE($C12:$AU12,{1,2,3,4,5,6}))) -> 15 | BA12: =IF(AZ12= "","",IFERROR(SUMPRODUCT(LARGE($C12:$AU12,{1,2,3,4})), "")) ->  | BB12: =IF(BA12<>"",(IFERROR(SUMPRODUCT(LARGE($C12:$AU12,{1,2,3,4,5,6,7})),"")),"") ->  | BC12: =IF(BB12<>"",(IFERROR(SUMPRODUCT(LARGE($C12:$AU12,{1,2,3,4,5,6,7,8})),"")),"") -> 
B13: CCU | L13: 24 | P13: 19 | AW13: 43 | AX13: 2 | AY13: =IF($AX13<=6,SUM($C13:$AU13),SUMPRODUCT(LARGE($C13:$AU13,{1,2,3,4,5,6}))) -> 43 | BA13: =IF(AZ13= "","",IFERROR(SUMPRODUCT(LARGE($C13:$AU13,{1,2,3,4})), "")) ->  | BB13: =IF(BA13<>"",(IFERROR(SUMPRODUCT(LARGE($C13:$AU13,{1,2,3,4,5,6,7})),"")),"") ->  | BC13: =IF(BB13<>"",(IFERROR(SUMPRODUCT(LARGE($C13:$AU13,{1,2,3,4,5,6,7,8})),"")),"") -> 
B14: CEI | P14: 4 | AW14: 4 | AX14: 1 | AY14: =IF($AX14<=6,SUM($C14:$AU14),SUMPRODUCT(LARGE($C14:$AU14,{1,2,3,4,5,6}))) -> 4 | BA14: =IF(AZ14= "","",IFERROR(SUMPRODUCT(LARGE($C14:$AU14,{1,2,3,4})), "")) ->  | BB14: =IF(BA14<>"",(IFERROR(SUMPRODUCT(LARGE($C14:$AU14,{1,2,3,4,5,6,7})),"")),"") ->  | BC14: =IF(BB14<>"",(IFERROR(SUMPRODUCT(LARGE($C14:$AU14,{1,2,3,4,5,6,7,8})),"")),"") -> 
B15: CrC | L15: 3 | AW15: 3 | AX15: 1 | AY15: =IF($AX15<=6,SUM($C15:$AU15),SUMPRODUCT(LARGE($C15:$AU15,{1,2,3,4,5,6}))) -> 3 | BA15: =IF(AZ15= "","",IFERROR(SUMPRODUCT(LARGE($C15:$AU15,{1,2,3,4})), "")) ->  | BB15: =IF(BA15<>"",(IFERROR(SUMPRODUCT(LARGE($C15:$AU15,{1,2,3,4,5,6,7})),"")),"") ->  | BC15: =IF(BB15<>"",(IFERROR(SUMPRODUCT(LARGE($C15:$AU15,{1,2,3,4,5,6,7,8})),"")),"") -> 
B16: CSCC | M16: 1 | AW16: 1 | AX16: 1 | AY16: =IF($AX16<=6,SUM($C16:$AU16),SUMPRODUCT(LARGE($C16:$AU16,{1,2,3,4,5,6}))) -> 1 | BA16: =IF(AZ16= "","",IFERROR(SUMPRODUCT(LARGE($C16:$AU16,{1,2,3,4})), "")) ->  | BB16: =IF(BA16<>"",(IFERROR(SUMPRODUCT(LARGE($C16:$AU16,{1,2,3,4,5,6,7})),"")),"") ->  | BC16: =IF(BB16<>"",(IFERROR(SUMPRODUCT(LARGE($C16:$AU16,{1,2,3,4,5,6,7,8})),"")),"") -> 
B17: CSI | D17: =3+3+2 -> 8 | P17: 16 | AW17: 24 | AX17: 2 | AY17: =IF($AX17<=6,SUM($C17:$AU17),SUMPRODUCT(LARGE($C17:$AU17,{1,2,3,4,5,6}))) -> 24 | BA17: =IF(AZ17= "","",IFERROR(SUMPRODUCT(LARGE($C17:$AU17,{1,2,3,4})), "")) ->  | BB17: =IF(BA17<>"",(IFERROR(SUMPRODUCT(LARGE($C17:$AU17,{1,2,3,4,5,6,7})),"")),"") ->  | BC17: =IF(BB17<>"",(IFERROR(SUMPRODUCT(LARGE($C17:$AU17,{1,2,3,4,5,6,7,8})),"")),"") -> 
B18: CSUC | I18: 2 | AW18: 2 | AX18: 1 | AY18: =IF($AX18<=6,SUM($C18:$AU18),SUMPRODUCT(LARGE($C18:$AU18,{1,2,3,4,5,6}))) -> 2 | BA18: =IF(AZ18= "","",IFERROR(SUMPRODUCT(LARGE($C18:$AU18,{1,2,3,4})), "")) ->  | BB18: =IF(BA18<>"",(IFERROR(SUMPRODUCT(LARGE($C18:$AU18,{1,2,3,4,5,6,7})),"")),"") ->  | BC18: =IF(BB18<>"",(IFERROR(SUMPRODUCT(LARGE($C18:$AU18,{1,2,3,4,5,6,7,8})),"")),"") -> 
B19: CTC | P19: 2 | AW19: 2 | AX19: 1 | AY19: =IF($AX19<=6,SUM($C19:$AU19),SUMPRODUCT(LARGE($C19:$AU19,{1,2,3,4,5,6}))) -> 2 | BA19: =IF(AZ19= "","",IFERROR(SUMPRODUCT(LARGE($C19:$AU19,{1,2,3,4})), "")) ->  | BB19: =IF(BA19<>"",(IFERROR(SUMPRODUCT(LARGE($C19:$AU19,{1,2,3,4,5,6,7})),"")),"") ->  | BC19: =IF(BB19<>"",(IFERROR(SUMPRODUCT(LARGE($C19:$AU19,{1,2,3,4,5,6,7,8})),"")),"") -> 
B20: CU | M20: 27 | AW20: 27 | AX20: 1 | AY20: =IF($AX20<=6,SUM($C20:$AU20),SUMPRODUCT(LARGE($C20:$AU20,{1,2,3,4,5,6}))) -> 27 | BA20: =IF(AZ20= "","",IFERROR(SUMPRODUCT(LARGE($C20:$AU20,{1,2,3,4})), "")) ->  | BB20: =IF(BA20<>"",(IFERROR(SUMPRODUCT(LARGE($C20:$AU20,{1,2,3,4,5,6,7})),"")),"") ->  | BC20: =IF(BB20<>"",(IFERROR(SUMPRODUCT(LARGE($C20:$AU20,{1,2,3,4,5,6,7,8})),"")),"") -> 
B21: CWI | D21: =5+3+3 -> 11 | I21: 41 | P21: 45 | AW21: 97 | AX21: 3 | AY21: =IF($AX21<=6,SUM($C21:$AU21),SUMPRODUCT(LARGE($C21:$AU21,{1,2,3,4,5,6}))) -> 97 | BA21: =IF(AZ21= "","",IFERROR(SUMPRODUCT(LARGE($C21:$AU21,{1,2,3,4})), "")) ->  | BB21: =IF(BA21<>"",(IFERROR(SUMPRODUCT(LARGE($C21:$AU21,{1,2,3,4,5,6,7})),"")),"") ->  | BC21: =IF(BB21<>"",(IFERROR(SUMPRODUCT(LARGE($C21:$AU21,{1,2,3,4,5,6,7,8})),"")),"") -> 
B22: DBU | C22: 70 | K22: 72 | N22: 56 | O22: 79 | Q22: 24 | AW22: 301 | AX22: 5 | AY22: =IF($AX22<=6,SUM($C22:$AU22),SUMPRODUCT(LARGE($C22:$AU22,{1,2,3,4,5,6}))) -> 301 | BA22: =IF(AZ22= "","",IFERROR(SUMPRODUCT(LARGE($C22:$AU22,{1,2,3,4})), "")) ->  | BB22: =IF(BA22<>"",(IFERROR(SUMPRODUCT(LARGE($C22:$AU22,{1,2,3,4,5,6,7})),"")),"") ->  | BC22: =IF(BB22<>"",(IFERROR(SUMPRODUCT(LARGE($C22:$AU22,{1,2,3,4,5,6,7,8})),"")),"") -> 
B23: DorU | J23: 2 | AW23: 2 | AX23: 1 | AY23: =IF($AX23<=6,SUM($C23:$AU23),SUMPRODUCT(LARGE($C23:$AU23,{1,2,3,4,5,6}))) -> 2 | BA23: =IF(AZ23= "","",IFERROR(SUMPRODUCT(LARGE($C23:$AU23,{1,2,3,4})), "")) ->  | BB23: =IF(BA23<>"",(IFERROR(SUMPRODUCT(LARGE($C23:$AU23,{1,2,3,4,5,6,7})),"")),"") ->  | BC23: =IF(BB23<>"",(IFERROR(SUMPRODUCT(LARGE($C23:$AU23,{1,2,3,4,5,6,7,8})),"")),"") -> 
B24: DU | G24: 3 | AW24: 3 | AX24: 1 | AY24: =IF($AX24<=6,SUM($C24:$AU24),SUMPRODUCT(LARGE($C24:$AU24,{1,2,3,4,5,6}))) -> 3 | BA24: =IF(AZ24= "","",IFERROR(SUMPRODUCT(LARGE($C24:$AU24,{1,2,3,4})), "")) ->  | BB24: =IF(BA24<>"",(IFERROR(SUMPRODUCT(LARGE($C24:$AU24,{1,2,3,4,5,6,7})),"")),"") ->  | BC24: =IF(BB24<>"",(IFERROR(SUMPRODUCT(LARGE($C24:$AU24,{1,2,3,4,5,6,7,8})),"")),"") -> 
B25: EC | E25: 10 | U25: 2 | AW25: 12 | AX25: 2 | AY25: =IF($AX25<=6,SUM($C25:$AU25),SUMPRODUCT(LARGE($C25:$AU25,{1,2,3,4,5,6}))) -> 12 | BA25: =IF(AZ25= "","",IFERROR(SUMPRODUCT(LARGE($C25:$AU25,{1,2,3,4})), "")) ->  | BB25: =IF(BA25<>"",(IFERROR(SUMPRODUCT(LARGE($C25:$AU25,{1,2,3,4,5,6,7})),"")),"") ->  | BC25: =IF(BB25<>"",(IFERROR(SUMPRODUCT(LARGE($C25:$AU25,{1,2,3,4,5,6,7,8})),"")),"") -> 
B26: FAU | G26: 10 | AW26: 10 | AX26: 1 | AY26: =IF($AX26<=6,SUM($C26:$AU26),SUMPRODUCT(LARGE($C26:$AU26,{1,2,3,4,5,6}))) -> 10 | BA26: =IF(AZ26= "","",IFERROR(SUMPRODUCT(LARGE($C26:$AU26,{1,2,3,4})), "")) ->  | BB26: =IF(BA26<>"",(IFERROR(SUMPRODUCT(LARGE($C26:$AU26,{1,2,3,4,5,6,7})),"")),"") ->  | BC26: =IF(BB26<>"",(IFERROR(SUMPRODUCT(LARGE($C26:$AU26,{1,2,3,4,5,6,7,8})),"")),"") -> 
B27: FSCJ | J27: 13 | AW27: 13 | AX27: 1 | AY27: =IF($AX27<=6,SUM($C27:$AU27),SUMPRODUCT(LARGE($C27:$AU27,{1,2,3,4,5,6}))) -> 13 | BA27: =IF(AZ27= "","",IFERROR(SUMPRODUCT(LARGE($C27:$AU27,{1,2,3,4})), "")) ->  | BB27: =IF(BA27<>"",(IFERROR(SUMPRODUCT(LARGE($C27:$AU27,{1,2,3,4,5,6,7})),"")),"") ->  | BC27: =IF(BB27<>"",(IFERROR(SUMPRODUCT(LARGE($C27:$AU27,{1,2,3,4,5,6,7,8})),"")),"") -> 
B28: GCC | J28: 9 | U28: 18 | AW28: 27 | AX28: 2 | AY28: =IF($AX28<=6,SUM($C28:$AU28),SUMPRODUCT(LARGE($C28:$AU28,{1,2,3,4,5,6}))) -> 27 | BA28: =IF(AZ28= "","",IFERROR(SUMPRODUCT(LARGE($C28:$AU28,{1,2,3,4})), "")) ->  | BB28: =IF(BA28<>"",(IFERROR(SUMPRODUCT(LARGE($C28:$AU28,{1,2,3,4,5,6,7})),"")),"") ->  | BC28: =IF(BB28<>"",(IFERROR(SUMPRODUCT(LARGE($C28:$AU28,{1,2,3,4,5,6,7,8})),"")),"") -> 
B29: GCU | P29: 5 | AW29: 5 | AX29: 1 | AY29: =IF($AX29<=6,SUM($C29:$AU29),SUMPRODUCT(LARGE($C29:$AU29,{1,2,3,4,5,6}))) -> 5 | BA29: =IF(AZ29= "","",IFERROR(SUMPRODUCT(LARGE($C29:$AU29,{1,2,3,4})), "")) ->  | BB29: =IF(BA29<>"",(IFERROR(SUMPRODUCT(LARGE($C29:$AU29,{1,2,3,4,5,6,7})),"")),"") ->  | BC29: =IF(BB29<>"",(IFERROR(SUMPRODUCT(LARGE($C29:$AU29,{1,2,3,4,5,6,7,8})),"")),"") -> 
B30: GTC | P30: 2 | AW30: 2 | AX30: 1 | AY30: =IF($AX30<=6,SUM($C30:$AU30),SUMPRODUCT(LARGE($C30:$AU30,{1,2,3,4,5,6}))) -> 2 | BA30: =IF(AZ30= "","",IFERROR(SUMPRODUCT(LARGE($C30:$AU30,{1,2,3,4})), "")) ->  | BB30: =IF(BA30<>"",(IFERROR(SUMPRODUCT(LARGE($C30:$AU30,{1,2,3,4,5,6,7})),"")),"") ->  | BC30: =IF(BB30<>"",(IFERROR(SUMPRODUCT(LARGE($C30:$AU30,{1,2,3,4,5,6,7,8})),"")),"") -> 
B31: HiC | J31: 22 | P31: 29 | U31: 17 | AW31: 68 | AX31: 3 | AY31: =IF($AX31<=6,SUM($C31:$AU31),SUMPRODUCT(LARGE($C31:$AU31,{1,2,3,4,5,6}))) -> 68 | BA31: =IF(AZ31= "","",IFERROR(SUMPRODUCT(LARGE($C31:$AU31,{1,2,3,4})), "")) ->  | BB31: =IF(BA31<>"",(IFERROR(SUMPRODUCT(LARGE($C31:$AU31,{1,2,3,4,5,6,7})),"")),"") ->  | BC31: =IF(BB31<>"",(IFERROR(SUMPRODUCT(LARGE($C31:$AU31,{1,2,3,4,5,6,7,8})),"")),"") -> 
B32: HoU | E32: 2 | AW32: 2 | AX32: 1 | AY32: =IF($AX32<=6,SUM($C32:$AU32),SUMPRODUCT(LARGE($C32:$AU32,{1,2,3,4,5,6}))) -> 2 | BA32: =IF(AZ32= "","",IFERROR(SUMPRODUCT(LARGE($C32:$AU32,{1,2,3,4})), "")) ->  | BB32: =IF(BA32<>"",(IFERROR(SUMPRODUCT(LARGE($C32:$AU32,{1,2,3,4,5,6,7})),"")),"") ->  | BC32: =IF(BB32<>"",(IFERROR(SUMPRODUCT(LARGE($C32:$AU32,{1,2,3,4,5,6,7,8})),"")),"") -> 
B33: HPU | G33: 22 | U33: 10 | AW33: 32 | AX33: 2 | AY33: =IF($AX33<=6,SUM($C33:$AU33),SUMPRODUCT(LARGE($C33:$AU33,{1,2,3,4,5,6}))) -> 32 | BA33: =IF(AZ33= "","",IFERROR(SUMPRODUCT(LARGE($C33:$AU33,{1,2,3,4})), "")) ->  | BB33: =IF(BA33<>"",(IFERROR(SUMPRODUCT(LARGE($C33:$AU33,{1,2,3,4,5,6,7})),"")),"") ->  | BC33: =IF(BB33<>"",(IFERROR(SUMPRODUCT(LARGE($C33:$AU33,{1,2,3,4,5,6,7,8})),"")),"") -> 
B34: HU | L34: 11 | O34: 10 | AW34: 21 | AX34: 2 | AY34: =IF($AX34<=6,SUM($C34:$AU34),SUMPRODUCT(LARGE($C34:$AU34,{1,2,3,4,5,6}))) -> 21 | BA34: =IF(AZ34= "","",IFERROR(SUMPRODUCT(LARGE($C34:$AU34,{1,2,3,4})), "")) ->  | BB34: =IF(BA34<>"",(IFERROR(SUMPRODUCT(LARGE($C34:$AU34,{1,2,3,4,5,6,7})),"")),"") ->  | BC34: =IF(BB34<>"",(IFERROR(SUMPRODUCT(LARGE($C34:$AU34,{1,2,3,4,5,6,7,8})),"")),"") -> 
B35: ISU | D35: =12+2+1 -> 15 | I35: 15 | P35: 10 | AW35: 40 | AX35: 3 | AY35: =IF($AX35<=6,SUM($C35:$AU35),SUMPRODUCT(LARGE($C35:$AU35,{1,2,3,4,5,6}))) -> 40 | BA35: =IF(AZ35= "","",IFERROR(SUMPRODUCT(LARGE($C35:$AU35,{1,2,3,4})), "")) ->  | BB35: =IF(BA35<>"",(IFERROR(SUMPRODUCT(LARGE($C35:$AU35,{1,2,3,4,5,6,7})),"")),"") ->  | BC35: =IF(BB35<>"",(IFERROR(SUMPRODUCT(LARGE($C35:$AU35,{1,2,3,4,5,6,7,8})),"")),"") -> 
B36: JSCC | G36: 27 | N36: 19 | Q36: 18 | U36: 7 | AW36: =SUM($C36:$AV36) -> 71 | AX36: =COUNTA(C36:AU36) -> 4 | AY36: =IF($AX36<=6,SUM($C36:$AU36),SUMPRODUCT(LARGE($C36:$AU36,{1,2,3,4,5,6}))) -> 71 | AZ36: =IF(AND($AX36>=6,AY36=AY37),"Manual Calc Needed","") ->  | BA36: =IF(AZ36= "","",IFERROR(SUMPRODUCT(LARGE($C36:$AU36,{1,2,3,4})), "")) ->  | BB36: =IF(BA36<>"",(IFERROR(SUMPRODUCT(LARGE($C36:$AU36,{1,2,3,4,5,6,7})),"")),"") ->  | BC36: =IF(BB36<>"",(IFERROR(SUMPRODUCT(LARGE($C36:$AU36,{1,2,3,4,5,6,7,8})),"")),"") -> 
B37: KWU | Y37: 10 | AW37: 10 | AX37: 1 | AY37: =IF($AX37<=6,SUM($C37:$AU37),SUMPRODUCT(LARGE($C37:$AU37,{1,2,3,4,5,6}))) -> 10 | BA37: =IF(AZ37= "","",IFERROR(SUMPRODUCT(LARGE($C37:$AU37,{1,2,3,4})), "")) ->  | BB37: =IF(BA37<>"",(IFERROR(SUMPRODUCT(LARGE($C37:$AU37,{1,2,3,4,5,6,7})),"")),"") ->  | BC37: =IF(BB37<>"",(IFERROR(SUMPRODUCT(LARGE($C37:$AU37,{1,2,3,4,5,6,7,8})),"")),"") -> 
B38: L&CC | I38: 23 | P38: 30 | V38: 14 | AW38: 67 | AX38: 3 | AY38: =IF($AX38<=6,SUM($C38:$AU38),SUMPRODUCT(LARGE($C38:$AU38,{1,2,3,4,5,6}))) -> 67 | BA38: =IF(AZ38= "","",IFERROR(SUMPRODUCT(LARGE($C38:$AU38,{1,2,3,4})), "")) ->  | BB38: =IF(BA38<>"",(IFERROR(SUMPRODUCT(LARGE($C38:$AU38,{1,2,3,4,5,6,7})),"")),"") ->  | BC38: =IF(BB38<>"",(IFERROR(SUMPRODUCT(LARGE($C38:$AU38,{1,2,3,4,5,6,7,8})),"")),"") -> 
B39: LCC | I39: 9 | V39: 11 | AW39: 20 | AX39: 2 | AY39: =IF($AX39<=6,SUM($C39:$AU39),SUMPRODUCT(LARGE($C39:$AU39,{1,2,3,4,5,6}))) -> 20 | BA39: =IF(AZ39= "","",IFERROR(SUMPRODUCT(LARGE($C39:$AU39,{1,2,3,4})), "")) ->  | BB39: =IF(BA39<>"",(IFERROR(SUMPRODUCT(LARGE($C39:$AU39,{1,2,3,4,5,6,7})),"")),"") ->  | BC39: =IF(BB39<>"",(IFERROR(SUMPRODUCT(LARGE($C39:$AU39,{1,2,3,4,5,6,7,8})),"")),"") -> 
B40: LCU | C40: 22 | K40: 15 | O40: 3 | AW40: 40 | AX40: 3 | AY40: =IF($AX40<=6,SUM($C40:$AU40),SUMPRODUCT(LARGE($C40:$AU40,{1,2,3,4,5,6}))) -> 40 | BA40: =IF(AZ40= "","",IFERROR(SUMPRODUCT(LARGE($C40:$AU40,{1,2,3,4})), "")) ->  | BB40: =IF(BA40<>"",(IFERROR(SUMPRODUCT(LARGE($C40:$AU40,{1,2,3,4,5,6,7})),"")),"") ->  | BC40: =IF(BB40<>"",(IFERROR(SUMPRODUCT(LARGE($C40:$AU40,{1,2,3,4,5,6,7,8})),"")),"") -> 
B41: Lee | G41: 13 | K41: 30 | O41: 30 | Q41: 19 | AW41: 92 | AX41: 4 | AY41: =IF($AX41<=6,SUM($C41:$AU41),SUMPRODUCT(LARGE($C41:$AU41,{1,2,3,4,5,6}))) -> 92 | BA41: =IF(AZ41= "","",IFERROR(SUMPRODUCT(LARGE($C41:$AU41,{1,2,3,4})), "")) ->  | BB41: =IF(BA41<>"",(IFERROR(SUMPRODUCT(LARGE($C41:$AU41,{1,2,3,4,5,6,7})),"")),"") ->  | BC41: =IF(BB41<>"",(IFERROR(SUMPRODUCT(LARGE($C41:$AU41,{1,2,3,4,5,6,7,8})),"")),"") -> 
B42: LibU | E42: 18 | AW42: 18 | AX42: 1 | AY42: =IF($AX42<=6,SUM($C42:$AU42),SUMPRODUCT(LARGE($C42:$AU42,{1,2,3,4,5,6}))) -> 18 | BA42: =IF(AZ42= "","",IFERROR(SUMPRODUCT(LARGE($C42:$AU42,{1,2,3,4})), "")) ->  | BB42: =IF(BA42<>"",(IFERROR(SUMPRODUCT(LARGE($C42:$AU42,{1,2,3,4,5,6,7})),"")),"") ->  | BC42: =IF(BB42<>"",(IFERROR(SUMPRODUCT(LARGE($C42:$AU42,{1,2,3,4,5,6,7,8})),"")),"") -> 
B43: LSU | G43: 25 | P43: 11 | AW43: 36 | AX43: 2 | AY43: =IF($AX43<=6,SUM($C43:$AU43),SUMPRODUCT(LARGE($C43:$AU43,{1,2,3,4,5,6}))) -> 36 | BA43: =IF(AZ43= "","",IFERROR(SUMPRODUCT(LARGE($C43:$AU43,{1,2,3,4})), "")) ->  | BB43: =IF(BA43<>"",(IFERROR(SUMPRODUCT(LARGE($C43:$AU43,{1,2,3,4,5,6,7})),"")),"") ->  | BC43: =IF(BB43<>"",(IFERROR(SUMPRODUCT(LARGE($C43:$AU43,{1,2,3,4,5,6,7,8})),"")),"") -> 
B44: LSUS | C44: 31 | G44: 16 | K44: 37 | L44: 23 | O44: 11 | Q44: 12 | AW44: 130 | AX44: 6 | AY44: =IF($AX44<=6,SUM($C44:$AU44),SUMPRODUCT(LARGE($C44:$AU44,{1,2,3,4,5,6}))) -> 130 | BA44: =IF(AZ44= "","",IFERROR(SUMPRODUCT(LARGE($C44:$AU44,{1,2,3,4})), "")) ->  | BB44: =IF(BA44<>"",(IFERROR(SUMPRODUCT(LARGE($C44:$AU44,{1,2,3,4,5,6,7})),"")),"") ->  | BC44: =IF(BB44<>"",(IFERROR(SUMPRODUCT(LARGE($C44:$AU44,{1,2,3,4,5,6,7,8})),"")),"") -> 
B45: LTU | G45: 11 | O45: 19 | Q45: 15 | AW45: 45 | AX45: 3 | AY45: =IF($AX45<=6,SUM($C45:$AU45),SUMPRODUCT(LARGE($C45:$AU45,{1,2,3,4,5,6}))) -> 45 | BA45: =IF(AZ45= "","",IFERROR(SUMPRODUCT(LARGE($C45:$AU45,{1,2,3,4})), "")) ->  | BB45: =IF(BA45<>"",(IFERROR(SUMPRODUCT(LARGE($C45:$AU45,{1,2,3,4,5,6,7})),"")),"") ->  | BC45: =IF(BB45<>"",(IFERROR(SUMPRODUCT(LARGE($C45:$AU45,{1,2,3,4,5,6,7,8})),"")),"") -> 
B46: LU | G46: 7 | P46: 4 | AW46: 11 | AX46: 2 | AY46: =IF($AX46<=6,SUM($C46:$AU46),SUMPRODUCT(LARGE($C46:$AU46,{1,2,3,4,5,6}))) -> 11 | BA46: =IF(AZ46= "","",IFERROR(SUMPRODUCT(LARGE($C46:$AU46,{1,2,3,4})), "")) ->  | BB46: =IF(BA46<>"",(IFERROR(SUMPRODUCT(LARGE($C46:$AU46,{1,2,3,4,5,6,7})),"")),"") ->  | BC46: =IF(BB46<>"",(IFERROR(SUMPRODUCT(LARGE($C46:$AU46,{1,2,3,4,5,6,7,8})),"")),"") -> 
B47: MarU | L47: 8 | AW47: 8 | AX47: 1 | AY47: =IF($AX47<=6,SUM($C47:$AU47),SUMPRODUCT(LARGE($C47:$AU47,{1,2,3,4,5,6}))) -> 8 | BA47: =IF(AZ47= "","",IFERROR(SUMPRODUCT(LARGE($C47:$AU47,{1,2,3,4})), "")) ->  | BB47: =IF(BA47<>"",(IFERROR(SUMPRODUCT(LARGE($C47:$AU47,{1,2,3,4,5,6,7})),"")),"") ->  | BC47: =IF(BB47<>"",(IFERROR(SUMPRODUCT(LARGE($C47:$AU47,{1,2,3,4,5,6,7,8})),"")),"") -> 
B48: MoC | H48: 26 | AW48: 26 | AX48: 1 | AY48: =IF($AX48<=6,SUM($C48:$AU48),SUMPRODUCT(LARGE($C48:$AU48,{1,2,3,4,5,6}))) -> 26 | BA48: =IF(AZ48= "","",IFERROR(SUMPRODUCT(LARGE($C48:$AU48,{1,2,3,4})), "")) ->  | BB48: =IF(BA48<>"",(IFERROR(SUMPRODUCT(LARGE($C48:$AU48,{1,2,3,4,5,6,7})),"")),"") ->  | BC48: =IF(BB48<>"",(IFERROR(SUMPRODUCT(LARGE($C48:$AU48,{1,2,3,4,5,6,7,8})),"")),"") -> 
B49: MslU | M49: 8 | AW49: 8 | AX49: 1 | AY49: =IF($AX49<=6,SUM($C49:$AU49),SUMPRODUCT(LARGE($C49:$AU49,{1,2,3,4,5,6}))) -> 8 | BA49: =IF(AZ49= "","",IFERROR(SUMPRODUCT(LARGE($C49:$AU49,{1,2,3,4})), "")) ->  | BB49: =IF(BA49<>"",(IFERROR(SUMPRODUCT(LARGE($C49:$AU49,{1,2,3,4,5,6,7})),"")),"") ->  | BC49: =IF(BB49<>"",(IFERROR(SUMPRODUCT(LARGE($C49:$AU49,{1,2,3,4,5,6,7,8})),"")),"") -> 
B50: MSU | G50: 52 | H50: 60 | K50: 49 | N50: 56 | O50: 74 | Q50: 41 | AW50: 332 | AX50: 6 | AY50: =IF($AX50<=6,SUM($C50:$AU50),SUMPRODUCT(LARGE($C50:$AU50,{1,2,3,4,5,6}))) -> 332 | BA50: =IF(AZ50= "","",IFERROR(SUMPRODUCT(LARGE($C50:$AU50,{1,2,3,4})), "")) ->  | BB50: =IF(BA50<>"",(IFERROR(SUMPRODUCT(LARGE($C50:$AU50,{1,2,3,4,5,6,7})),"")),"") ->  | BC50: =IF(BB50<>"",(IFERROR(SUMPRODUCT(LARGE($C50:$AU50,{1,2,3,4,5,6,7,8})),"")),"") -> 
B51: MTSU | E51: 9 | F51: 11 | G51: 41 | M51: 14 | N51: 17 | Q51: 2 | AW51: 94 | AX51: 6 | AY51: =IF($AX51<=6,SUM($C51:$AU51),SUMPRODUCT(LARGE($C51:$AU51,{1,2,3,4,5,6}))) -> 94 | BA51: =IF(AZ51= "","",IFERROR(SUMPRODUCT(LARGE($C51:$AU51,{1,2,3,4})), "")) ->  | BB51: =IF(BA51<>"",(IFERROR(SUMPRODUCT(LARGE($C51:$AU51,{1,2,3,4,5,6,7})),"")),"") ->  | BC51: =IF(BB51<>"",(IFERROR(SUMPRODUCT(LARGE($C51:$AU51,{1,2,3,4,5,6,7,8})),"")),"") -> 
B52: MuSU | F52: 7 | H52: 3 | N52: 5 | AW52: 15 | AX52: 3 | AY52: =IF($AX52<=6,SUM($C52:$AU52),SUMPRODUCT(LARGE($C52:$AU52,{1,2,3,4,5,6}))) -> 15 | BA52: =IF(AZ52= "","",IFERROR(SUMPRODUCT(LARGE($C52:$AU52,{1,2,3,4})), "")) ->  | BB52: =IF(BA52<>"",(IFERROR(SUMPRODUCT(LARGE($C52:$AU52,{1,2,3,4,5,6,7})),"")),"") ->  | BC52: =IF(BB52<>"",(IFERROR(SUMPRODUCT(LARGE($C52:$AU52,{1,2,3,4,5,6,7,8})),"")),"") -> 
B53: MuU | J53: 3 | AW53: 3 | AX53: 1 | AY53: =IF($AX53<=6,SUM($C53:$AU53),SUMPRODUCT(LARGE($C53:$AU53,{1,2,3,4,5,6}))) -> 3 | BA53: =IF(AZ53= "","",IFERROR(SUMPRODUCT(LARGE($C53:$AU53,{1,2,3,4})), "")) ->  | BB53: =IF(BA53<>"",(IFERROR(SUMPRODUCT(LARGE($C53:$AU53,{1,2,3,4,5,6,7})),"")),"") ->  | BC53: =IF(BB53<>"",(IFERROR(SUMPRODUCT(LARGE($C53:$AU53,{1,2,3,4,5,6,7,8})),"")),"") -> 
B54: MVC | J54: 1 | L54: 0 | AW54: 1 | AX54: 2 | AY54: =IF($AX54<=6,SUM($C54:$AU54),SUMPRODUCT(LARGE($C54:$AU54,{1,2,3,4,5,6}))) -> 1 | BA54: =IF(AZ54= "","",IFERROR(SUMPRODUCT(LARGE($C54:$AU54,{1,2,3,4})), "")) ->  | BB54: =IF(BA54<>"",(IFERROR(SUMPRODUCT(LARGE($C54:$AU54,{1,2,3,4,5,6,7})),"")),"") ->  | BC54: =IF(BB54<>"",(IFERROR(SUMPRODUCT(LARGE($C54:$AU54,{1,2,3,4,5,6,7,8})),"")),"") -> 
B55: NNU | D55: 3 | I55: 4 | AW55: 7 | AX55: 2 | AY55: =IF($AX55<=6,SUM($C55:$AU55),SUMPRODUCT(LARGE($C55:$AU55,{1,2,3,4,5,6}))) -> 7 | BA55: =IF(AZ55= "","",IFERROR(SUMPRODUCT(LARGE($C55:$AU55,{1,2,3,4})), "")) ->  | BB55: =IF(BA55<>"",(IFERROR(SUMPRODUCT(LARGE($C55:$AU55,{1,2,3,4,5,6,7})),"")),"") ->  | BC55: =IF(BB55<>"",(IFERROR(SUMPRODUCT(LARGE($C55:$AU55,{1,2,3,4,5,6,7,8})),"")),"") -> 
B56: NSU | G56: 9 | O56: 13 | AW56: 22 | AX56: 2 | AY56: =IF($AX56<=6,SUM($C56:$AU56),SUMPRODUCT(LARGE($C56:$AU56,{1,2,3,4,5,6}))) -> 22 | BA56: =IF(AZ56= "","",IFERROR(SUMPRODUCT(LARGE($C56:$AU56,{1,2,3,4})), "")) ->  | BB56: =IF(BA56<>"",(IFERROR(SUMPRODUCT(LARGE($C56:$AU56,{1,2,3,4,5,6,7})),"")),"") ->  | BC56: =IF(BB56<>"",(IFERROR(SUMPRODUCT(LARGE($C56:$AU56,{1,2,3,4,5,6,7,8})),"")),"") -> 
B57: NWC | D57: 1 | I57: 11 | P57: 13 | AW57: 25 | AX57: 3 | AY57: =IF($AX57<=6,SUM($C57:$AU57),SUMPRODUCT(LARGE($C57:$AU57,{1,2,3,4,5,6}))) -> 25 | BA57: =IF(AZ57= "","",IFERROR(SUMPRODUCT(LARGE($C57:$AU57,{1,2,3,4})), "")) ->  | BB57: =IF(BA57<>"",(IFERROR(SUMPRODUCT(LARGE($C57:$AU57,{1,2,3,4,5,6,7})),"")),"") ->  | BC57: =IF(BB57<>"",(IFERROR(SUMPRODUCT(LARGE($C57:$AU57,{1,2,3,4,5,6,7,8})),"")),"") -> 
B58: OCTC | U58: 1 | AW58: 1 | AX58: 1 | AY58: =IF($AX58<=6,SUM($C58:$AU58),SUMPRODUCT(LARGE($C58:$AU58,{1,2,3,4,5,6}))) -> 1 | BA58: =IF(AZ58= "","",IFERROR(SUMPRODUCT(LARGE($C58:$AU58,{1,2,3,4})), "")) ->  | BB58: =IF(BA58<>"",(IFERROR(SUMPRODUCT(LARGE($C58:$AU58,{1,2,3,4,5,6,7})),"")),"") ->  | BC58: =IF(BB58<>"",(IFERROR(SUMPRODUCT(LARGE($C58:$AU58,{1,2,3,4,5,6,7,8})),"")),"") -> 
B59: OhU | J59: 2 | AW59: 2 | AX59: 1 | AY59: =IF($AX59<=6,SUM($C59:$AU59),SUMPRODUCT(LARGE($C59:$AU59,{1,2,3,4,5,6}))) -> 2 | BA59: =IF(AZ59= "","",IFERROR(SUMPRODUCT(LARGE($C59:$AU59,{1,2,3,4})), "")) ->  | BB59: =IF(BA59<>"",(IFERROR(SUMPRODUCT(LARGE($C59:$AU59,{1,2,3,4,5,6,7})),"")),"") ->  | BC59: =IF(BB59<>"",(IFERROR(SUMPRODUCT(LARGE($C59:$AU59,{1,2,3,4,5,6,7,8})),"")),"") -> 
B60: OkBU | G60: 13 | AW60: 13 | AX60: 1 | AY60: =IF($AX60<=6,SUM($C60:$AU60),SUMPRODUCT(LARGE($C60:$AU60,{1,2,3,4,5,6}))) -> 13 | BA60: =IF(AZ60= "","",IFERROR(SUMPRODUCT(LARGE($C60:$AU60,{1,2,3,4})), "")) ->  | BB60: =IF(BA60<>"",(IFERROR(SUMPRODUCT(LARGE($C60:$AU60,{1,2,3,4,5,6,7})),"")),"") ->  | BC60: =IF(BB60<>"",(IFERROR(SUMPRODUCT(LARGE($C60:$AU60,{1,2,3,4,5,6,7,8})),"")),"") -> 
B61: ORU | Q61: 12 | AW61: 12 | AX61: 1 | AY61: =IF($AX61<=6,SUM($C61:$AU61),SUMPRODUCT(LARGE($C61:$AU61,{1,2,3,4,5,6}))) -> 12 | BA61: =IF(AZ61= "","",IFERROR(SUMPRODUCT(LARGE($C61:$AU61,{1,2,3,4})), "")) ->  | BB61: =IF(BA61<>"",(IFERROR(SUMPRODUCT(LARGE($C61:$AU61,{1,2,3,4,5,6,7})),"")),"") ->  | BC61: =IF(BB61<>"",(IFERROR(SUMPRODUCT(LARGE($C61:$AU61,{1,2,3,4,5,6,7,8})),"")),"") -> 
B62: OSU | I62: 6 | P62: 8 | V62: 5 | AW62: 19 | AX62: 3 | AY62: =IF($AX62<=6,SUM($C62:$AU62),SUMPRODUCT(LARGE($C62:$AU62,{1,2,3,4,5,6}))) -> 19 | BA62: =IF(AZ62= "","",IFERROR(SUMPRODUCT(LARGE($C62:$AU62,{1,2,3,4})), "")) ->  | BB62: =IF(BA62<>"",(IFERROR(SUMPRODUCT(LARGE($C62:$AU62,{1,2,3,4,5,6,7})),"")),"") ->  | BC62: =IF(BB62<>"",(IFERROR(SUMPRODUCT(LARGE($C62:$AU62,{1,2,3,4,5,6,7,8})),"")),"") -> 
B63: OttU | L63: 4 | T63: 13 | AW63: 17 | AX63: 2 | AY63: =IF($AX63<=6,SUM($C63:$AU63),SUMPRODUCT(LARGE($C63:$AU63,{1,2,3,4,5,6}))) -> 17 | BA63: =IF(AZ63= "","",IFERROR(SUMPRODUCT(LARGE($C63:$AU63,{1,2,3,4})), "")) ->  | BB63: =IF(BA63<>"",(IFERROR(SUMPRODUCT(LARGE($C63:$AU63,{1,2,3,4,5,6,7})),"")),"") ->  | BC63: =IF(BB63<>"",(IFERROR(SUMPRODUCT(LARGE($C63:$AU63,{1,2,3,4,5,6,7,8})),"")),"") -> 
B64: OU | J64: 4 | AW64: 4 | AX64: 1 | AY64: =IF($AX64<=6,SUM($C64:$AU64),SUMPRODUCT(LARGE($C64:$AU64,{1,2,3,4,5,6}))) -> 4 | BA64: =IF(AZ64= "","",IFERROR(SUMPRODUCT(LARGE($C64:$AU64,{1,2,3,4})), "")) ->  | BB64: =IF(BA64<>"",(IFERROR(SUMPRODUCT(LARGE($C64:$AU64,{1,2,3,4,5,6,7})),"")),"") ->  | BC64: =IF(BB64<>"",(IFERROR(SUMPRODUCT(LARGE($C64:$AU64,{1,2,3,4,5,6,7,8})),"")),"") -> 
B65: PaU | G65: 6 | L65: 10 | O65: 3 | T65: 7 | Y65: 13 | AW65: 39 | AX65: 5 | AY65: =IF($AX65<=6,SUM($C65:$AU65),SUMPRODUCT(LARGE($C65:$AU65,{1,2,3,4,5,6}))) -> 39 | BA65: =IF(AZ65= "","",IFERROR(SUMPRODUCT(LARGE($C65:$AU65,{1,2,3,4})), "")) ->  | BB65: =IF(BA65<>"",(IFERROR(SUMPRODUCT(LARGE($C65:$AU65,{1,2,3,4,5,6,7})),"")),"") ->  | BC65: =IF(BB65<>"",(IFERROR(SUMPRODUCT(LARGE($C65:$AU65,{1,2,3,4,5,6,7,8})),"")),"") -> 
B66: PHC | N66: 14 | AW66: 14 | AX66: 1 | AY66: =IF($AX66<=6,SUM($C66:$AU66),SUMPRODUCT(LARGE($C66:$AU66,{1,2,3,4,5,6}))) -> 14 | BA66: =IF(AZ66= "","",IFERROR(SUMPRODUCT(LARGE($C66:$AU66,{1,2,3,4})), "")) ->  | BB66: =IF(BA66<>"",(IFERROR(SUMPRODUCT(LARGE($C66:$AU66,{1,2,3,4,5,6,7})),"")),"") ->  | BC66: =IF(BB66<>"",(IFERROR(SUMPRODUCT(LARGE($C66:$AU66,{1,2,3,4,5,6,7,8})),"")),"") -> 
B67: PSCC | N67: 5 | AW67: 5 | AX67: 1 | AY67: =IF($AX67<=6,SUM($C67:$AU67),SUMPRODUCT(LARGE($C67:$AU67,{1,2,3,4,5,6}))) -> 5 | BA67: =IF(AZ67= "","",IFERROR(SUMPRODUCT(LARGE($C67:$AU67,{1,2,3,4})), "")) ->  | BB67: =IF(BA67<>"",(IFERROR(SUMPRODUCT(LARGE($C67:$AU67,{1,2,3,4,5,6,7})),"")),"") ->  | BC67: =IF(BB67<>"",(IFERROR(SUMPRODUCT(LARGE($C67:$AU67,{1,2,3,4,5,6,7,8})),"")),"") -> 
B68: QC | E68: 2 | F68: 12 | AW68: =SUM($C68:$AV68) -> 14 | AX68: =COUNTA(C68:AU68) -> 2 | AY68: =IF($AX68<=6,SUM($C68:$AU68),SUMPRODUCT(LARGE($C68:$AU68,{1,2,3,4,5,6}))) -> 14 | AZ68: =IF(AND($AX68>=6,AY68=AY69),"Manual Calc Needed","") ->  | BA68: =IF(AZ68= "","",IFERROR(SUMPRODUCT(LARGE($C68:$AU68,{1,2,3,4})), "")) ->  | BB68: =IF(BA68<>"",(IFERROR(SUMPRODUCT(LARGE($C68:$AU68,{1,2,3,4,5,6,7})),"")),"") ->  | BC68: =IF(BB68<>"",(IFERROR(SUMPRODUCT(LARGE($C68:$AU68,{1,2,3,4,5,6,7,8})),"")),"") -> 
B69: SAC | J69: 3 | AW69: 3 | AX69: 1 | AY69: =IF($AX69<=6,SUM($C69:$AU69),SUMPRODUCT(LARGE($C69:$AU69,{1,2,3,4,5,6}))) -> 3 | BA69: =IF(AZ69= "","",IFERROR(SUMPRODUCT(LARGE($C69:$AU69,{1,2,3,4})), "")) ->  | BB69: =IF(BA69<>"",(IFERROR(SUMPRODUCT(LARGE($C69:$AU69,{1,2,3,4,5,6,7})),"")),"") ->  | BC69: =IF(BB69<>"",(IFERROR(SUMPRODUCT(LARGE($C69:$AU69,{1,2,3,4,5,6,7,8})),"")),"") -> 
B70: SBU | L70: 9 | AW70: 9 | AX70: 1 | AY70: =IF($AX70<=6,SUM($C70:$AU70),SUMPRODUCT(LARGE($C70:$AU70,{1,2,3,4,5,6}))) -> 9 | BA70: =IF(AZ70= "","",IFERROR(SUMPRODUCT(LARGE($C70:$AU70,{1,2,3,4})), "")) ->  | BB70: =IF(BA70<>"",(IFERROR(SUMPRODUCT(LARGE($C70:$AU70,{1,2,3,4,5,6,7})),"")),"") ->  | BC70: =IF(BB70<>"",(IFERROR(SUMPRODUCT(LARGE($C70:$AU70,{1,2,3,4,5,6,7,8})),"")),"") -> 
B71: SC | F71: 14 | L71: 5 | T71: 29 | Y71: 21 | AW71: 69 | AX71: 4 | AY71: =IF($AX71<=6,SUM($C71:$AU71),SUMPRODUCT(LARGE($C71:$AU71,{1,2,3,4,5,6}))) -> 69 | BA71: =IF(AZ71= "","",IFERROR(SUMPRODUCT(LARGE($C71:$AU71,{1,2,3,4})), "")) ->  | BB71: =IF(BA71<>"",(IFERROR(SUMPRODUCT(LARGE($C71:$AU71,{1,2,3,4,5,6,7})),"")),"") ->  | BC71: =IF(BB71<>"",(IFERROR(SUMPRODUCT(LARGE($C71:$AU71,{1,2,3,4,5,6,7,8})),"")),"") -> 
B72: ScU | C72: 7 | J72: 3 | U72: 20 | AW72: 30 | AX72: 3 | AY72: =IF($AX72<=6,SUM($C72:$AU72),SUMPRODUCT(LARGE($C72:$AU72,{1,2,3,4,5,6}))) -> 30 | BA72: =IF(AZ72= "","",IFERROR(SUMPRODUCT(LARGE($C72:$AU72,{1,2,3,4})), "")) ->  | BB72: =IF(BA72<>"",(IFERROR(SUMPRODUCT(LARGE($C72:$AU72,{1,2,3,4,5,6,7})),"")),"") ->  | BC72: =IF(BB72<>"",(IFERROR(SUMPRODUCT(LARGE($C72:$AU72,{1,2,3,4,5,6,7,8})),"")),"") -> 
B73: SFCC | L73: 4 | T73: 8 | Y73: 1 | AW73: 13 | AX73: 3 | AY73: =IF($AX73<=6,SUM($C73:$AU73),SUMPRODUCT(LARGE($C73:$AU73,{1,2,3,4,5,6}))) -> 13 | BA73: =IF(AZ73= "","",IFERROR(SUMPRODUCT(LARGE($C73:$AU73,{1,2,3,4})), "")) ->  | BB73: =IF(BA73<>"",(IFERROR(SUMPRODUCT(LARGE($C73:$AU73,{1,2,3,4,5,6,7})),"")),"") ->  | BC73: =IF(BB73<>"",(IFERROR(SUMPRODUCT(LARGE($C73:$AU73,{1,2,3,4,5,6,7,8})),"")),"") -> 
B74: SHSU | C74: 12 | O74: 15 | AW74: 27 | AX74: 2 | AY74: =IF($AX74<=6,SUM($C74:$AU74),SUMPRODUCT(LARGE($C74:$AU74,{1,2,3,4,5,6}))) -> 27 | BA74: =IF(AZ74= "","",IFERROR(SUMPRODUCT(LARGE($C74:$AU74,{1,2,3,4})), "")) ->  | BB74: =IF(BA74<>"",(IFERROR(SUMPRODUCT(LARGE($C74:$AU74,{1,2,3,4,5,6,7})),"")),"") ->  | BC74: =IF(BB74<>"",(IFERROR(SUMPRODUCT(LARGE($C74:$AU74,{1,2,3,4,5,6,7,8})),"")),"") -> 
B75: SJU | E75: 6 | F75: 15 | AW75: 21 | AX75: 2 | AY75: =IF($AX75<=6,SUM($C75:$AU75),SUMPRODUCT(LARGE($C75:$AU75,{1,2,3,4,5,6}))) -> 21 | BA75: =IF(AZ75= "","",IFERROR(SUMPRODUCT(LARGE($C75:$AU75,{1,2,3,4})), "")) ->  | BB75: =IF(BA75<>"",(IFERROR(SUMPRODUCT(LARGE($C75:$AU75,{1,2,3,4,5,6,7})),"")),"") ->  | BC75: =IF(BB75<>"",(IFERROR(SUMPRODUCT(LARGE($C75:$AU75,{1,2,3,4,5,6,7,8})),"")),"") -> 
B76: SMU | C76: 42 | H76: 11 | K76: 25 | O76: 18 | AW76: 96 | AX76: 4 | AY76: =IF($AX76<=6,SUM($C76:$AU76),SUMPRODUCT(LARGE($C76:$AU76,{1,2,3,4,5,6}))) -> 96 | BA76: =IF(AZ76= "","",IFERROR(SUMPRODUCT(LARGE($C76:$AU76,{1,2,3,4})), "")) ->  | BB76: =IF(BA76<>"",(IFERROR(SUMPRODUCT(LARGE($C76:$AU76,{1,2,3,4,5,6,7})),"")),"") ->  | BC76: =IF(BB76<>"",(IFERROR(SUMPRODUCT(LARGE($C76:$AU76,{1,2,3,4,5,6,7,8})),"")),"") -> 
B77: SOSU | T77: 3 | AW77: 3 | AX77: 1 | AY77: =IF($AX77<=6,SUM($C77:$AU77),SUMPRODUCT(LARGE($C77:$AU77,{1,2,3,4,5,6}))) -> 3 | BA77: =IF(AZ77= "","",IFERROR(SUMPRODUCT(LARGE($C77:$AU77,{1,2,3,4})), "")) ->  | BB77: =IF(BA77<>"",(IFERROR(SUMPRODUCT(LARGE($C77:$AU77,{1,2,3,4,5,6,7})),"")),"") ->  | BC77: =IF(BB77<>"",(IFERROR(SUMPRODUCT(LARGE($C77:$AU77,{1,2,3,4,5,6,7,8})),"")),"") -> 
B78: SWB | L78: 5 | T78: 12 | Y78: 1 | AW78: 18 | AX78: 3 | AY78: =IF($AX78<=6,SUM($C78:$AU78),SUMPRODUCT(LARGE($C78:$AU78,{1,2,3,4,5,6}))) -> 18 | BA78: =IF(AZ78= "","",IFERROR(SUMPRODUCT(LARGE($C78:$AU78,{1,2,3,4})), "")) ->  | BB78: =IF(BA78<>"",(IFERROR(SUMPRODUCT(LARGE($C78:$AU78,{1,2,3,4,5,6,7})),"")),"") ->  | BC78: =IF(BB78<>"",(IFERROR(SUMPRODUCT(LARGE($C78:$AU78,{1,2,3,4,5,6,7,8})),"")),"") -> 
B79: TAMU | P79: 0 | AW79: 0 | AX79: 1 | AY79: =IF($AX79<=6,SUM($C79:$AU79),SUMPRODUCT(LARGE($C79:$AU79,{1,2,3,4,5,6}))) -> 0 | BA79: =IF(AZ79= "","",IFERROR(SUMPRODUCT(LARGE($C79:$AU79,{1,2,3,4})), "")) ->  | BB79: =IF(BA79<>"",(IFERROR(SUMPRODUCT(LARGE($C79:$AU79,{1,2,3,4,5,6,7})),"")),"") ->  | BC79: =IF(BB79<>"",(IFERROR(SUMPRODUCT(LARGE($C79:$AU79,{1,2,3,4,5,6,7,8})),"")),"") -> 
B80: TC | F80: 1 | AW80: 1 | AX80: 1 | AY80: =IF($AX80<=6,SUM($C80:$AU80),SUMPRODUCT(LARGE($C80:$AU80,{1,2,3,4,5,6}))) -> 1 | BA80: =IF(AZ80= "","",IFERROR(SUMPRODUCT(LARGE($C80:$AU80,{1,2,3,4})), "")) ->  | BB80: =IF(BA80<>"",(IFERROR(SUMPRODUCT(LARGE($C80:$AU80,{1,2,3,4,5,6,7})),"")),"") ->  | BC80: =IF(BB80<>"",(IFERROR(SUMPRODUCT(LARGE($C80:$AU80,{1,2,3,4,5,6,7,8})),"")),"") -> 
B81: TCC | L81: 6 | P81: 2 | AW81: 8 | AX81: 2 | AY81: =IF($AX81<=6,SUM($C81:$AU81),SUMPRODUCT(LARGE($C81:$AU81,{1,2,3,4,5,6}))) -> 8 | BA81: =IF(AZ81= "","",IFERROR(SUMPRODUCT(LARGE($C81:$AU81,{1,2,3,4})), "")) ->  | BB81: =IF(BA81<>"",(IFERROR(SUMPRODUCT(LARGE($C81:$AU81,{1,2,3,4,5,6,7})),"")),"") ->  | BC81: =IF(BB81<>"",(IFERROR(SUMPRODUCT(LARGE($C81:$AU81,{1,2,3,4,5,6,7,8})),"")),"") -> 
B82: TTU | F82: 1 | J82: 2 | AW82: 3 | AX82: 2 | AY82: =IF($AX82<=6,SUM($C82:$AU82),SUMPRODUCT(LARGE($C82:$AU82,{1,2,3,4,5,6}))) -> 3 | BA82: =IF(AZ82= "","",IFERROR(SUMPRODUCT(LARGE($C82:$AU82,{1,2,3,4})), "")) ->  | BB82: =IF(BA82<>"",(IFERROR(SUMPRODUCT(LARGE($C82:$AU82,{1,2,3,4,5,6,7})),"")),"") ->  | BC82: =IF(BB82<>"",(IFERROR(SUMPRODUCT(LARGE($C82:$AU82,{1,2,3,4,5,6,7,8})),"")),"") -> 
B83: UA | G83: 48 | K83: 15 | O83: 45 | Q83: 32 | AW83: 140 | AX83: 4 | AY83: =IF($AX83<=6,SUM($C83:$AU83),SUMPRODUCT(LARGE($C83:$AU83,{1,2,3,4,5,6}))) -> 140 | BA83: =IF(AZ83= "","",IFERROR(SUMPRODUCT(LARGE($C83:$AU83,{1,2,3,4})), "")) ->  | BB83: =IF(BA83<>"",(IFERROR(SUMPRODUCT(LARGE($C83:$AU83,{1,2,3,4,5,6,7})),"")),"") ->  | BC83: =IF(BB83<>"",(IFERROR(SUMPRODUCT(LARGE($C83:$AU83,{1,2,3,4,5,6,7,8})),"")),"") -> 
B84: UACCB | K84: 3 | O84: 5 | AW84: 8 | AX84: 2 | AY84: =IF($AX84<=6,SUM($C84:$AU84),SUMPRODUCT(LARGE($C84:$AU84,{1,2,3,4,5,6}))) -> 8 | BA84: =IF(AZ84= "","",IFERROR(SUMPRODUCT(LARGE($C84:$AU84,{1,2,3,4})), "")) ->  | BB84: =IF(BA84<>"",(IFERROR(SUMPRODUCT(LARGE($C84:$AU84,{1,2,3,4,5,6,7})),"")),"") ->  | BC84: =IF(BB84<>"",(IFERROR(SUMPRODUCT(LARGE($C84:$AU84,{1,2,3,4,5,6,7,8})),"")),"") -> 
B85: UAM | G85: 10 | K85: 3 | O85: 8 | AW85: 21 | AX85: 3 | AY85: =IF($AX85<=6,SUM($C85:$AU85),SUMPRODUCT(LARGE($C85:$AU85,{1,2,3,4,5,6}))) -> 21 | BA85: =IF(AZ85= "","",IFERROR(SUMPRODUCT(LARGE($C85:$AU85,{1,2,3,4})), "")) ->  | BB85: =IF(BA85<>"",(IFERROR(SUMPRODUCT(LARGE($C85:$AU85,{1,2,3,4,5,6,7})),"")),"") ->  | BC85: =IF(BB85<>"",(IFERROR(SUMPRODUCT(LARGE($C85:$AU85,{1,2,3,4,5,6,7,8})),"")),"") -> 
B86: Ubama | F86: 3 | H86: 14 | AW86: 17 | AX86: 2 | AY86: =IF($AX86<=6,SUM($C86:$AU86),SUMPRODUCT(LARGE($C86:$AU86,{1,2,3,4,5,6}))) -> 17 | BA86: =IF(AZ86= "","",IFERROR(SUMPRODUCT(LARGE($C86:$AU86,{1,2,3,4})), "")) ->  | BB86: =IF(BA86<>"",(IFERROR(SUMPRODUCT(LARGE($C86:$AU86,{1,2,3,4,5,6,7})),"")),"") ->  | BC86: =IF(BB86<>"",(IFERROR(SUMPRODUCT(LARGE($C86:$AU86,{1,2,3,4,5,6,7,8})),"")),"") -> 
B87: UC | N87: 9 | P87: 5 | Q87: 7 | AW87: 21 | AX87: 3 | AY87: =IF($AX87<=6,SUM($C87:$AU87),SUMPRODUCT(LARGE($C87:$AU87,{1,2,3,4,5,6}))) -> 21 | BA87: =IF(AZ87= "","",IFERROR(SUMPRODUCT(LARGE($C87:$AU87,{1,2,3,4})), "")) ->  | BB87: =IF(BA87<>"",(IFERROR(SUMPRODUCT(LARGE($C87:$AU87,{1,2,3,4,5,6,7})),"")),"") ->  | BC87: =IF(BB87<>"",(IFERROR(SUMPRODUCT(LARGE($C87:$AU87,{1,2,3,4,5,6,7,8})),"")),"") -> 
B88: UCA | H88: 12 | O88: 11 | Q88: 12 | AW88: 35 | AX88: 3 | AY88: =IF($AX88<=6,SUM($C88:$AU88),SUMPRODUCT(LARGE($C88:$AU88,{1,2,3,4,5,6}))) -> 35 | BA88: =IF(AZ88= "","",IFERROR(SUMPRODUCT(LARGE($C88:$AU88,{1,2,3,4})), "")) ->  | BB88: =IF(BA88<>"",(IFERROR(SUMPRODUCT(LARGE($C88:$AU88,{1,2,3,4,5,6,7})),"")),"") ->  | BC88: =IF(BB88<>"",(IFERROR(SUMPRODUCT(LARGE($C88:$AU88,{1,2,3,4,5,6,7,8})),"")),"") -> 
B89: UCF | G89: 12 | U89: 21 | AW89: 33 | AX89: 2 | AY89: =IF($AX89<=6,SUM($C89:$AU89),SUMPRODUCT(LARGE($C89:$AU89,{1,2,3,4,5,6}))) -> 33 | BA89: =IF(AZ89= "","",IFERROR(SUMPRODUCT(LARGE($C89:$AU89,{1,2,3,4})), "")) ->  | BB89: =IF(BA89<>"",(IFERROR(SUMPRODUCT(LARGE($C89:$AU89,{1,2,3,4,5,6,7})),"")),"") ->  | BC89: =IF(BB89<>"",(IFERROR(SUMPRODUCT(LARGE($C89:$AU89,{1,2,3,4,5,6,7,8})),"")),"") -> 
B90: UCM | L90: 33 | O90: 29 | T90: 20 | Y90: 19 | AW90: 101 | AX90: 4 | AY90: =IF($AX90<=6,SUM($C90:$AU90),SUMPRODUCT(LARGE($C90:$AU90,{1,2,3,4,5,6}))) -> 101 | BA90: =IF(AZ90= "","",IFERROR(SUMPRODUCT(LARGE($C90:$AU90,{1,2,3,4})), "")) ->  | BB90: =IF(BA90<>"",(IFERROR(SUMPRODUCT(LARGE($C90:$AU90,{1,2,3,4,5,6,7})),"")),"") ->  | BC90: =IF(BB90<>"",(IFERROR(SUMPRODUCT(LARGE($C90:$AU90,{1,2,3,4,5,6,7,8})),"")),"") -> 
B91: UCSB | P91: 14 | AW91: 14 | AX91: 1 | AY91: =IF($AX91<=6,SUM($C91:$AU91),SUMPRODUCT(LARGE($C91:$AU91,{1,2,3,4,5,6}))) -> 14 | BA91: =IF(AZ91= "","",IFERROR(SUMPRODUCT(LARGE($C91:$AU91,{1,2,3,4})), "")) ->  | BB91: =IF(BA91<>"",(IFERROR(SUMPRODUCT(LARGE($C91:$AU91,{1,2,3,4,5,6,7})),"")),"") ->  | BC91: =IF(BB91<>"",(IFERROR(SUMPRODUCT(LARGE($C91:$AU91,{1,2,3,4,5,6,7,8})),"")),"") -> 
B92: UI | U92: 3 | AW92: 3 | AX92: 1 | AY92: =IF($AX92<=6,SUM($C92:$AU92),SUMPRODUCT(LARGE($C92:$AU92,{1,2,3,4,5,6}))) -> 3 | BA92: =IF(AZ92= "","",IFERROR(SUMPRODUCT(LARGE($C92:$AU92,{1,2,3,4})), "")) ->  | BB92: =IF(BA92<>"",(IFERROR(SUMPRODUCT(LARGE($C92:$AU92,{1,2,3,4,5,6,7})),"")),"") ->  | BC92: =IF(BB92<>"",(IFERROR(SUMPRODUCT(LARGE($C92:$AU92,{1,2,3,4,5,6,7,8})),"")),"") -> 
B93: UIU | J93: 6 | U93: 3 | AW93: 9 | AX93: 2 | AY93: =IF($AX93<=6,SUM($C93:$AU93),SUMPRODUCT(LARGE($C93:$AU93,{1,2,3,4,5,6}))) -> 9 | BA93: =IF(AZ93= "","",IFERROR(SUMPRODUCT(LARGE($C93:$AU93,{1,2,3,4})), "")) ->  | BB93: =IF(BA93<>"",(IFERROR(SUMPRODUCT(LARGE($C93:$AU93,{1,2,3,4,5,6,7})),"")),"") ->  | BC93: =IF(BB93<>"",(IFERROR(SUMPRODUCT(LARGE($C93:$AU93,{1,2,3,4,5,6,7,8})),"")),"") -> 
B94: UJ | Q94: 10 | AW94: 10 | AX94: 1 | AY94: =IF($AX94<=6,SUM($C94:$AU94),SUMPRODUCT(LARGE($C94:$AU94,{1,2,3,4,5,6}))) -> 10 | AZ94: =IF(AND($AX94>=6,AY94=#REF!),"Manual Calc Needed","") ->  | BA94: =IF(AZ94= "","",IFERROR(SUMPRODUCT(LARGE($C94:$AU94,{1,2,3,4})), "")) ->  | BB94: =IF(BA94<>"",(IFERROR(SUMPRODUCT(LARGE($C94:$AU94,{1,2,3,4,5,6,7})),"")),"") ->  | BC94: =IF(BB94<>"",(IFERROR(SUMPRODUCT(LARGE($C94:$AU94,{1,2,3,4,5,6,7,8})),"")),"") -> 
B95: UMo | P95: 3 | Q95: 3 | V95: 3 | AW95: 9 | AX95: 3 | AY95: =IF($AX95<=6,SUM($C95:$AU95),SUMPRODUCT(LARGE($C95:$AU95,{1,2,3,4,5,6}))) -> 9 | AZ95: =IF(AND($AX95>=6,AY95=AY96),"Manual Calc Needed","") ->  | BA95: =IF(AZ95= "","",IFERROR(SUMPRODUCT(LARGE($C95:$AU95,{1,2,3,4})), "")) ->  | BB95: =IF(BA95<>"",(IFERROR(SUMPRODUCT(LARGE($C95:$AU95,{1,2,3,4,5,6,7})),"")),"") ->  | BC95: =IF(BB95<>"",(IFERROR(SUMPRODUCT(LARGE($C95:$AU95,{1,2,3,4,5,6,7,8})),"")),"") -> 
B96: UNG | P96: 5 | AW96: 5 | AX96: 1 | AY96: =IF($AX96<=6,SUM($C96:$AU96),SUMPRODUCT(LARGE($C96:$AU96,{1,2,3,4,5,6}))) -> 5 | BA96: =IF(AZ96= "","",IFERROR(SUMPRODUCT(LARGE($C96:$AU96,{1,2,3,4})), "")) ->  | BB96: =IF(BA96<>"",(IFERROR(SUMPRODUCT(LARGE($C96:$AU96,{1,2,3,4,5,6,7})),"")),"") ->  | BC96: =IF(BB96<>"",(IFERROR(SUMPRODUCT(LARGE($C96:$AU96,{1,2,3,4,5,6,7,8})),"")),"") -> 
B97: UNLV | I97: 5 | AW97: 5 | AX97: 1 | AY97: =IF($AX97<=6,SUM($C97:$AU97),SUMPRODUCT(LARGE($C97:$AU97,{1,2,3,4,5,6}))) -> 5 | BA97: =IF(AZ97= "","",IFERROR(SUMPRODUCT(LARGE($C97:$AU97,{1,2,3,4})), "")) ->  | BB97: =IF(BA97<>"",(IFERROR(SUMPRODUCT(LARGE($C97:$AU97,{1,2,3,4,5,6,7})),"")),"") ->  | BC97: =IF(BB97<>"",(IFERROR(SUMPRODUCT(LARGE($C97:$AU97,{1,2,3,4,5,6,7,8})),"")),"") -> 
B98: UNT | F98: 3 | J98: 19 | AW98: 22 | AX98: 2 | AY98: =IF($AX98<=6,SUM($C98:$AU98),SUMPRODUCT(LARGE($C98:$AU98,{1,2,3,4,5,6}))) -> 22 | BA98: =IF(AZ98= "","",IFERROR(SUMPRODUCT(LARGE($C98:$AU98,{1,2,3,4})), "")) ->  | BB98: =IF(BA98<>"",(IFERROR(SUMPRODUCT(LARGE($C98:$AU98,{1,2,3,4,5,6,7})),"")),"") ->  | BC98: =IF(BB98<>"",(IFERROR(SUMPRODUCT(LARGE($C98:$AU98,{1,2,3,4,5,6,7,8})),"")),"") -> 
B99: UP | P99: 4 | AW99: 4 | AX99: 1 | AY99: =IF($AX99<=6,SUM($C99:$AU99),SUMPRODUCT(LARGE($C99:$AU99,{1,2,3,4,5,6}))) -> 4 | BA99: =IF(AZ99= "","",IFERROR(SUMPRODUCT(LARGE($C99:$AU99,{1,2,3,4})), "")) ->  | BB99: =IF(BA99<>"",(IFERROR(SUMPRODUCT(LARGE($C99:$AU99,{1,2,3,4,5,6,7})),"")),"") ->  | BC99: =IF(BB99<>"",(IFERROR(SUMPRODUCT(LARGE($C99:$AU99,{1,2,3,4,5,6,7,8})),"")),"") -> 
B100: USM | G100: 6 | K100: 14 | N100: 16 | O100: 6 | P100: 9 | Q100: 2 | AW100: =SUM($C100:$AV100) -> 53 | AX100: =COUNTA(C100:AU100) -> 6 | AY100: =IF($AX100<=6,SUM($C100:$AU100),SUMPRODUCT(LARGE($C100:$AU100,{1,2,3,4,5,6}))) -> 53 | BA100: =IF(AZ100= "","",IFERROR(SUMPRODUCT(LARGE($C100:$AU100,{1,2,3,4})), "")) ->  | BB100: =IF(BA100<>"",(IFERROR(SUMPRODUCT(LARGE($C100:$AU100,{1,2,3,4,5,6,7})),"")),"") ->  | BC100: =IF(BB100<>"",(IFERROR(SUMPRODUCT(LARGE($C100:$AU100,{1,2,3,4,5,6,7,8})),"")),"") -> 
B101: USUL | D101: 9 | P101: 19 | V101: 22 | AW101: 50 | AX101: 3 | AY101: =IF($AX101<=6,SUM($C101:$AU101),SUMPRODUCT(LARGE($C101:$AU101,{1,2,3,4,5,6}))) -> 50 | BA101: =IF(AZ101= "","",IFERROR(SUMPRODUCT(LARGE($C101:$AU101,{1,2,3,4})), "")) ->  | BB101: =IF(BA101<>"",(IFERROR(SUMPRODUCT(LARGE($C101:$AU101,{1,2,3,4,5,6,7})),"")),"") ->  | BC101: =IF(BB101<>"",(IFERROR(SUMPRODUCT(LARGE($C101:$AU101,{1,2,3,4,5,6,7,8})),"")),"") -> 
B102: UTD | J102: 15 | AW102: 15 | AX102: 1 | AY102: =IF($AX102<=6,SUM($C102:$AU102),SUMPRODUCT(LARGE($C102:$AU102,{1,2,3,4,5,6}))) -> 15 | BA102: =IF(AZ102= "","",IFERROR(SUMPRODUCT(LARGE($C102:$AU102,{1,2,3,4})), "")) ->  | BB102: =IF(BA102<>"",(IFERROR(SUMPRODUCT(LARGE($C102:$AU102,{1,2,3,4,5,6,7})),"")),"") ->  | BC102: =IF(BB102<>"",(IFERROR(SUMPRODUCT(LARGE($C102:$AU102,{1,2,3,4,5,6,7,8})),"")),"") -> 
B103: UTK | G103: 22 | K103: 27 | N103: 17 | P103: 6 | AW103: 72 | AX103: 4 | AY103: =IF($AX103<=6,SUM($C103:$AU103),SUMPRODUCT(LARGE($C103:$AU103,{1,2,3,4,5,6}))) -> 72 | BA103: =IF(AZ103= "","",IFERROR(SUMPRODUCT(LARGE($C103:$AU103,{1,2,3,4})), "")) ->  | BB103: =IF(BA103<>"",(IFERROR(SUMPRODUCT(LARGE($C103:$AU103,{1,2,3,4,5,6,7})),"")),"") ->  | BC103: =IF(BB103<>"",(IFERROR(SUMPRODUCT(LARGE($C103:$AU103,{1,2,3,4,5,6,7,8})),"")),"") -> 
B104: UU | K104: 53 | N104: 56 | O104: 53 | Q104: 74 | AW104: 236 | AX104: 4 | AY104: =IF($AX104<=6,SUM($C104:$AU104),SUMPRODUCT(LARGE($C104:$AU104,{1,2,3,4,5,6}))) -> 236 | BA104: =IF(AZ104= "","",IFERROR(SUMPRODUCT(LARGE($C104:$AU104,{1,2,3,4})), "")) ->  | BB104: =IF(BA104<>"",(IFERROR(SUMPRODUCT(LARGE($C104:$AU104,{1,2,3,4,5,6,7})),"")),"") ->  | BC104: =IF(BB104<>"",(IFERROR(SUMPRODUCT(LARGE($C104:$AU104,{1,2,3,4,5,6,7,8})),"")),"") -> 
B105: UUT | D105: 10 | AW105: 10 | AX105: 1 | AY105: =IF($AX105<=6,SUM($C105:$AU105),SUMPRODUCT(LARGE($C105:$AU105,{1,2,3,4,5,6}))) -> 10 | BA105: =IF(AZ105= "","",IFERROR(SUMPRODUCT(LARGE($C105:$AU105,{1,2,3,4})), "")) ->  | BB105: =IF(BA105<>"",(IFERROR(SUMPRODUCT(LARGE($C105:$AU105,{1,2,3,4,5,6,7})),"")),"") ->  | BC105: =IF(BB105<>"",(IFERROR(SUMPRODUCT(LARGE($C105:$AU105,{1,2,3,4,5,6,7,8})),"")),"") -> 
B106: VSU | G106: 14 | J106: 4 | U106: 12 | AW106: 30 | AX106: 3 | AY106: =IF($AX106<=6,SUM($C106:$AU106),SUMPRODUCT(LARGE($C106:$AU106,{1,2,3,4,5,6}))) -> 30 | BA106: =IF(AZ106= "","",IFERROR(SUMPRODUCT(LARGE($C106:$AU106,{1,2,3,4})), "")) ->  | BB106: =IF(BA106<>"",(IFERROR(SUMPRODUCT(LARGE($C106:$AU106,{1,2,3,4,5,6,7})),"")),"") ->  | BC106: =IF(BB106<>"",(IFERROR(SUMPRODUCT(LARGE($C106:$AU106,{1,2,3,4,5,6,7,8})),"")),"") -> 
B107: WC | M107: 13 | AW107: 13 | AX107: 1 | AY107: =IF($AX107<=6,SUM($C107:$AU107),SUMPRODUCT(LARGE($C107:$AU107,{1,2,3,4,5,6}))) -> 13 | BA107: =IF(AZ107= "","",IFERROR(SUMPRODUCT(LARGE($C107:$AU107,{1,2,3,4})), "")) ->  | BB107: =IF(BA107<>"",(IFERROR(SUMPRODUCT(LARGE($C107:$AU107,{1,2,3,4,5,6,7})),"")),"") ->  | BC107: =IF(BB107<>"",(IFERROR(SUMPRODUCT(LARGE($C107:$AU107,{1,2,3,4,5,6,7,8})),"")),"") -> 
B108: WCU | C108: 29 | H108: 3 | K108: 36 | N108: 19 | AW108: 87 | AX108: 4 | AY108: =IF($AX108<=6,SUM($C108:$AU108),SUMPRODUCT(LARGE($C108:$AU108,{1,2,3,4,5,6}))) -> 87 | BA108: =IF(AZ108= "","",IFERROR(SUMPRODUCT(LARGE($C108:$AU108,{1,2,3,4})), "")) ->  | BB108: =IF(BA108<>"",(IFERROR(SUMPRODUCT(LARGE($C108:$AU108,{1,2,3,4,5,6,7})),"")),"") ->  | BC108: =IF(BB108<>"",(IFERROR(SUMPRODUCT(LARGE($C108:$AU108,{1,2,3,4,5,6,7,8})),"")),"") -> 
B109: WebU | T109: 20 | AW109: 20 | AX109: 1 | AY109: =IF($AX109<=6,SUM($C109:$AU109),SUMPRODUCT(LARGE($C109:$AU109,{1,2,3,4,5,6}))) -> 20 | BA109: =IF(AZ109= "","",IFERROR(SUMPRODUCT(LARGE($C109:$AU109,{1,2,3,4})), "")) ->  | BB109: =IF(BA109<>"",(IFERROR(SUMPRODUCT(LARGE($C109:$AU109,{1,2,3,4,5,6,7})),"")),"") ->  | BC109: =IF(BB109<>"",(IFERROR(SUMPRODUCT(LARGE($C109:$AU109,{1,2,3,4,5,6,7,8})),"")),"") -> 
B110: WeCU | U110: 8 | AW110: 8 | AX110: 1 | AY110: =IF($AX110<=6,SUM($C110:$AU110),SUMPRODUCT(LARGE($C110:$AU110,{1,2,3,4,5,6}))) -> 8 | BA110: =IF(AZ110= "","",IFERROR(SUMPRODUCT(LARGE($C110:$AU110,{1,2,3,4})), "")) ->  | BB110: =IF(BA110<>"",(IFERROR(SUMPRODUCT(LARGE($C110:$AU110,{1,2,3,4,5,6,7})),"")),"") ->  | BC110: =IF(BB110<>"",(IFERROR(SUMPRODUCT(LARGE($C110:$AU110,{1,2,3,4,5,6,7,8})),"")),"") -> 
B111: WhC | P111: 6 | AW111: 6 | AX111: 1 | AY111: =IF($AX111<=6,SUM($C111:$AU111),SUMPRODUCT(LARGE($C111:$AU111,{1,2,3,4,5,6}))) -> 6 | BA111: =IF(AZ111= "","",IFERROR(SUMPRODUCT(LARGE($C111:$AU111,{1,2,3,4})), "")) ->  | BB111: =IF(BA111<>"",(IFERROR(SUMPRODUCT(LARGE($C111:$AU111,{1,2,3,4,5,6,7})),"")),"") ->  | BC111: =IF(BB111<>"",(IFERROR(SUMPRODUCT(LARGE($C111:$AU111,{1,2,3,4,5,6,7,8})),"")),"") -> 
B112: WhU | I112: 39 | P112: 69 | Q112: 29 | V112: 28 | AW112: 165 | AX112: 4 | AY112: =IF($AX112<=6,SUM($C112:$AU112),SUMPRODUCT(LARGE($C112:$AU112,{1,2,3,4,5,6}))) -> 165 | BA112: =IF(AZ112= "","",IFERROR(SUMPRODUCT(LARGE($C112:$AU112,{1,2,3,4})), "")) ->  | BB112: =IF(BA112<>"",(IFERROR(SUMPRODUCT(LARGE($C112:$AU112,{1,2,3,4,5,6,7})),"")),"") ->  | BC112: =IF(BB112<>"",(IFERROR(SUMPRODUCT(LARGE($C112:$AU112,{1,2,3,4,5,6,7,8})),"")),"") -> 
B113: WSCC | AW113: 0 | AX113: 0 | AY113: =IF($AX113<=6,SUM($C113:$AU113),SUMPRODUCT(LARGE($C113:$AU113,{1,2,3,4,5,6}))) -> 0 | BA113: =IF(AZ113= "","",IFERROR(SUMPRODUCT(LARGE($C113:$AU113,{1,2,3,4})), "")) ->  | BB113: =IF(BA113<>"",(IFERROR(SUMPRODUCT(LARGE($C113:$AU113,{1,2,3,4,5,6,7})),"")),"") ->  | BC113: =IF(BB113<>"",(IFERROR(SUMPRODUCT(LARGE($C113:$AU113,{1,2,3,4,5,6,7,8})),"")),"") -> 
B114: WSU | D114: =6+3+3 -> 12 | L114: 3 | P114: 50 | V114: 39 | AW114: 104 | AX114: 4 | AY114: =IF($AX114<=6,SUM($C114:$AU114),SUMPRODUCT(LARGE($C114:$AU114,{1,2,3,4,5,6}))) -> 104 | BA114: =IF(AZ114= "","",IFERROR(SUMPRODUCT(LARGE($C114:$AU114,{1,2,3,4})), "")) ->  | BB114: =IF(BA114<>"",(IFERROR(SUMPRODUCT(LARGE($C114:$AU114,{1,2,3,4,5,6,7})),"")),"") ->  | BC114: =IF(BB114<>"",(IFERROR(SUMPRODUCT(LARGE($C114:$AU114,{1,2,3,4,5,6,7,8})),"")),"") -> 
AW115: =SUM($C115:$AV115) -> 0 | AX115: =COUNTA(C115:AU115) -> 0 | AY115: =IF($AX115<=6,SUM($C115:$AU115),SUMPRODUCT(LARGE($C115:$AU115,{1,2,3,4,5,6}))) -> 0 | AZ115: =IF(AND($AX115>=6,AY115=AY116),"Manual Calc Needed","") ->  | BA115: =IF(AZ115= "","",IFERROR(SUMPRODUCT(LARGE($C115:$AU115,{1,2,3,4})), "")) ->  | BB115: =IF(BA115<>"",(IFERROR(SUMPRODUCT(LARGE($C115:$AU115,{1,2,3,4,5,6,7})),"")),"") ->  | BC115: =IF(BB115<>"",(IFERROR(SUMPRODUCT(LARGE($C115:$AU115,{1,2,3,4,5,6,7,8})),"")),"") -> 
AW116: 0 | AX116: 0 | AY116: =IF($AX116<=6,SUM($C116:$AU116),SUMPRODUCT(LARGE($C116:$AU116,{1,2,3,4,5,6}))) -> 0 | BA116: =IF(AZ116= "","",IFERROR(SUMPRODUCT(LARGE($C116:$AU116,{1,2,3,4})), "")) ->  | BB116: =IF(BA116<>"",(IFERROR(SUMPRODUCT(LARGE($C116:$AU116,{1,2,3,4,5,6,7})),"")),"") ->  | BC116: =IF(BB116<>"",(IFERROR(SUMPRODUCT(LARGE($C116:$AU116,{1,2,3,4,5,6,7,8})),"")),"") -> 
AW117: 0 | AX117: 0 | AY117: =IF($AX117<=6,SUM($C117:$AU117),SUMPRODUCT(LARGE($C117:$AU117,{1,2,3,4,5,6}))) -> 0 | BA117: =IF(AZ117= "","",IFERROR(SUMPRODUCT(LARGE($C117:$AU117,{1,2,3,4})), "")) ->  | BB117: =IF(BA117<>"",(IFERROR(SUMPRODUCT(LARGE($C117:$AU117,{1,2,3,4,5,6,7})),"")),"") ->  | BC117: =IF(BB117<>"",(IFERROR(SUMPRODUCT(LARGE($C117:$AU117,{1,2,3,4,5,6,7,8})),"")),"") -> 
AW118: 0 | AX118: 0 | AY118: =IF($AX118<=6,SUM($C118:$AU118),SUMPRODUCT(LARGE($C118:$AU118,{1,2,3,4,5,6}))) -> 0 | BA118: =IF(AZ118= "","",IFERROR(SUMPRODUCT(LARGE($C118:$AU118,{1,2,3,4})), "")) ->  | BB118: =IF(BA118<>"",(IFERROR(SUMPRODUCT(LARGE($C118:$AU118,{1,2,3,4,5,6,7})),"")),"") ->  | BC118: =IF(BB118<>"",(IFERROR(SUMPRODUCT(LARGE($C118:$AU118,{1,2,3,4,5,6,7,8})),"")),"") -> 
AW119: 0 | AX119: 0 | AY119: =IF($AX119<=6,SUM($C119:$AU119),SUMPRODUCT(LARGE($C119:$AU119,{1,2,3,4,5,6}))) -> 0 | BA119: =IF(AZ119= "","",IFERROR(SUMPRODUCT(LARGE($C119:$AU119,{1,2,3,4})), "")) ->  | BB119: =IF(BA119<>"",(IFERROR(SUMPRODUCT(LARGE($C119:$AU119,{1,2,3,4,5,6,7})),"")),"") ->  | BC119: =IF(BB119<>"",(IFERROR(SUMPRODUCT(LARGE($C119:$AU119,{1,2,3,4,5,6,7,8})),"")),"") -> 
AW120: 0 | AX120: 0 | AY120: =IF($AX120<=6,SUM($C120:$AU120),SUMPRODUCT(LARGE($C120:$AU120,{1,2,3,4,5,6}))) -> 0 | BA120: =IF(AZ120= "","",IFERROR(SUMPRODUCT(LARGE($C120:$AU120,{1,2,3,4})), "")) ->  | BB120: =IF(BA120<>"",(IFERROR(SUMPRODUCT(LARGE($C120:$AU120,{1,2,3,4,5,6,7})),"")),"") ->  | BC120: =IF(BB120<>"",(IFERROR(SUMPRODUCT(LARGE($C120:$AU120,{1,2,3,4,5,6,7,8})),"")),"") -> 
AW121: 0 | AX121: 0 | AY121: =IF($AX121<=6,SUM($C121:$AU121),SUMPRODUCT(LARGE($C121:$AU121,{1,2,3,4,5,6}))) -> 0 | BA121: =IF(AZ121= "","",IFERROR(SUMPRODUCT(LARGE($C121:$AU121,{1,2,3,4})), "")) ->  | BB121: =IF(BA121<>"",(IFERROR(SUMPRODUCT(LARGE($C121:$AU121,{1,2,3,4,5,6,7})),"")),"") ->  | BC121: =IF(BB121<>"",(IFERROR(SUMPRODUCT(LARGE($C121:$AU121,{1,2,3,4,5,6,7,8})),"")),"") -> 
AW122: 0 | AX122: 0 | AY122: =IF($AX122<=6,SUM($C122:$AU122),SUMPRODUCT(LARGE($C122:$AU122,{1,2,3,4,5,6}))) -> 0 | BA122: =IF(AZ122= "","",IFERROR(SUMPRODUCT(LARGE($C122:$AU122,{1,2,3,4})), "")) ->  | BB122: =IF(BA122<>"",(IFERROR(SUMPRODUCT(LARGE($C122:$AU122,{1,2,3,4,5,6,7})),"")),"") ->  | BC122: =IF(BB122<>"",(IFERROR(SUMPRODUCT(LARGE($C122:$AU122,{1,2,3,4,5,6,7,8})),"")),"") -> 
AW123: 0 | AX123: 0 | AY123: =IF($AX123<=6,SUM($C123:$AU123),SUMPRODUCT(LARGE($C123:$AU123,{1,2,3,4,5,6}))) -> 0 | BA123: =IF(AZ123= "","",IFERROR(SUMPRODUCT(LARGE($C123:$AU123,{1,2,3,4})), "")) ->  | BB123: =IF(BA123<>"",(IFERROR(SUMPRODUCT(LARGE($C123:$AU123,{1,2,3,4,5,6,7})),"")),"") ->  | BC123: =IF(BB123<>"",(IFERROR(SUMPRODUCT(LARGE($C123:$AU123,{1,2,3,4,5,6,7,8})),"")),"") -> 
AW124: 0 | AX124: 0 | AY124: =IF($AX124<=6,SUM($C124:$AU124),SUMPRODUCT(LARGE($C124:$AU124,{1,2,3,4,5,6}))) -> 0 | BA124: =IF(AZ124= "","",IFERROR(SUMPRODUCT(LARGE($C124:$AU124,{1,2,3,4})), "")) ->  | BB124: =IF(BA124<>"",(IFERROR(SUMPRODUCT(LARGE($C124:$AU124,{1,2,3,4,5,6,7})),"")),"") ->  | BC124: =IF(BB124<>"",(IFERROR(SUMPRODUCT(LARGE($C124:$AU124,{1,2,3,4,5,6,7,8})),"")),"") -> 
AW125: 0 | AX125: 0 | AY125: =IF($AX125<=6,SUM($C125:$AU125),SUMPRODUCT(LARGE($C125:$AU125,{1,2,3,4,5,6}))) -> 0 | BA125: =IF(AZ125= "","",IFERROR(SUMPRODUCT(LARGE($C125:$AU125,{1,2,3,4})), "")) ->  | BB125: =IF(BA125<>"",(IFERROR(SUMPRODUCT(LARGE($C125:$AU125,{1,2,3,4,5,6,7})),"")),"") ->  | BC125: =IF(BB125<>"",(IFERROR(SUMPRODUCT(LARGE($C125:$AU125,{1,2,3,4,5,6,7,8})),"")),"") -> 
AW126: 0 | AX126: 0 | AY126: =IF($AX126<=6,SUM($C126:$AU126),SUMPRODUCT(LARGE($C126:$AU126,{1,2,3,4,5,6}))) -> 0 | BA126: =IF(AZ126= "","",IFERROR(SUMPRODUCT(LARGE($C126:$AU126,{1,2,3,4})), "")) ->  | BB126: =IF(BA126<>"",(IFERROR(SUMPRODUCT(LARGE($C126:$AU126,{1,2,3,4,5,6,7})),"")),"") ->  | BC126: =IF(BB126<>"",(IFERROR(SUMPRODUCT(LARGE($C126:$AU126,{1,2,3,4,5,6,7,8})),"")),"") -> 
AW127: 0 | AX127: 0 | AY127: =IF($AX127<=6,SUM($C127:$AU127),SUMPRODUCT(LARGE($C127:$AU127,{1,2,3,4,5,6}))) -> 0 | BA127: =IF(AZ127= "","",IFERROR(SUMPRODUCT(LARGE($C127:$AU127,{1,2,3,4})), "")) ->  | BB127: =IF(BA127<>"",(IFERROR(SUMPRODUCT(LARGE($C127:$AU127,{1,2,3,4,5,6,7})),"")),"") ->  | BC127: =IF(BB127<>"",(IFERROR(SUMPRODUCT(LARGE($C127:$AU127,{1,2,3,4,5,6,7,8})),"")),"") -> 
AW128: 0 | AX128: 0 | AY128: =IF($AX128<=6,SUM($C128:$AU128),SUMPRODUCT(LARGE($C128:$AU128,{1,2,3,4,5,6}))) -> 0 | BA128: =IF(AZ128= "","",IFERROR(SUMPRODUCT(LARGE($C128:$AU128,{1,2,3,4})), "")) ->  | BB128: =IF(BA128<>"",(IFERROR(SUMPRODUCT(LARGE($C128:$AU128,{1,2,3,4,5,6,7})),"")),"") ->  | BC128: =IF(BB128<>"",(IFERROR(SUMPRODUCT(LARGE($C128:$AU128,{1,2,3,4,5,6,7,8})),"")),"") -> 
AW129: 0 | AX129: 0 | AY129: =IF($AX129<=6,SUM($C129:$AU129),SUMPRODUCT(LARGE($C129:$AU129,{1,2,3,4,5,6}))) -> 0 | BA129: =IF(AZ129= "","",IFERROR(SUMPRODUCT(LARGE($C129:$AU129,{1,2,3,4})), "")) ->  | BB129: =IF(BA129<>"",(IFERROR(SUMPRODUCT(LARGE($C129:$AU129,{1,2,3,4,5,6,7})),"")),"") ->  | BC129: =IF(BB129<>"",(IFERROR(SUMPRODUCT(LARGE($C129:$AU129,{1,2,3,4,5,6,7,8})),"")),"") -> 
AW130: 0 | AX130: 0 | AY130: =IF($AX130<=6,SUM($C130:$AU130),SUMPRODUCT(LARGE($C130:$AU130,{1,2,3,4,5,6}))) -> 0 | BA130: =IF(AZ130= "","",IFERROR(SUMPRODUCT(LARGE($C130:$AU130,{1,2,3,4})), "")) ->  | BB130: =IF(BA130<>"",(IFERROR(SUMPRODUCT(LARGE($C130:$AU130,{1,2,3,4,5,6,7})),"")),"") ->  | BC130: =IF(BB130<>"",(IFERROR(SUMPRODUCT(LARGE($C130:$AU130,{1,2,3,4,5,6,7,8})),"")),"") -> 
AW131: =SUM($C131:$AV131) -> 0 | AX131: =COUNTA(C131:AU131) -> 0 | AY131: =IF($AX131<=6,SUM($C131:$AU131),SUMPRODUCT(LARGE($C131:$AU131,{1,2,3,4,5,6}))) -> 0 | BA131: =IF(AZ131= "","",IFERROR(SUMPRODUCT(LARGE($C131:$AU131,{1,2,3,4})), "")) ->  | BB131: =IF(BA131<>"",(IFERROR(SUMPRODUCT(LARGE($C131:$AU131,{1,2,3,4,5,6,7})),"")),"") ->  | BC131: =IF(BB131<>"",(IFERROR(SUMPRODUCT(LARGE($C131:$AU131,{1,2,3,4,5,6,7,8})),"")),"") -> 
AW132: 0 | AX132: 0 | AY132: =IF($AX132<=6,SUM($C132:$AU132),SUMPRODUCT(LARGE($C132:$AU132,{1,2,3,4,5,6}))) -> 0 | AZ132: =IF(AND($AX132>=6,AY132=AY133),"Manual Calc Needed","") ->  | BA132: =IF(AZ132= "","",IFERROR(SUMPRODUCT(LARGE($C132:$AU132,{1,2,3,4})), "")) ->  | BB132: =IF(BA132<>"",(IFERROR(SUMPRODUCT(LARGE($C132:$AU132,{1,2,3,4,5,6,7})),"")),"") ->  | BC132: =IF(BB132<>"",(IFERROR(SUMPRODUCT(LARGE($C132:$AU132,{1,2,3,4,5,6,7,8})),"")),"") -> 
AW133: 0 | AX133: 0 | AY133: =IF($AX133<=6,SUM($C133:$AU133),SUMPRODUCT(LARGE($C133:$AU133,{1,2,3,4,5,6}))) -> 0 | BA133: =IF(AZ133= "","",IFERROR(SUMPRODUCT(LARGE($C133:$AU133,{1,2,3,4})), "")) ->  | BB133: =IF(BA133<>"",(IFERROR(SUMPRODUCT(LARGE($C133:$AU133,{1,2,3,4,5,6,7})),"")),"") ->  | BC133: =IF(BB133<>"",(IFERROR(SUMPRODUCT(LARGE($C133:$AU133,{1,2,3,4,5,6,7,8})),"")),"") -> 
AW134: 0 | AX134: 0 | AY134: =IF($AX134<=6,SUM($C134:$AU134),SUMPRODUCT(LARGE($C134:$AU134,{1,2,3,4,5,6}))) -> 0 | BA134: =IF(AZ134= "","",IFERROR(SUMPRODUCT(LARGE($C134:$AU134,{1,2,3,4})), "")) ->  | BB134: =IF(BA134<>"",(IFERROR(SUMPRODUCT(LARGE($C134:$AU134,{1,2,3,4,5,6,7})),"")),"") ->  | BC134: =IF(BB134<>"",(IFERROR(SUMPRODUCT(LARGE($C134:$AU134,{1,2,3,4,5,6,7,8})),"")),"") -> 
AW135: 0 | AX135: 0 | AY135: =IF($AX135<=6,SUM($C135:$AU135),SUMPRODUCT(LARGE($C135:$AU135,{1,2,3,4,5,6}))) -> 0 | BA135: =IF(AZ135= "","",IFERROR(SUMPRODUCT(LARGE($C135:$AU135,{1,2,3,4})), "")) ->  | BB135: =IF(BA135<>"",(IFERROR(SUMPRODUCT(LARGE($C135:$AU135,{1,2,3,4,5,6,7})),"")),"") ->  | BC135: =IF(BB135<>"",(IFERROR(SUMPRODUCT(LARGE($C135:$AU135,{1,2,3,4,5,6,7,8})),"")),"") -> 
AW136: 0 | AX136: 0 | AY136: =IF($AX136<=6,SUM($C136:$AU136),SUMPRODUCT(LARGE($C136:$AU136,{1,2,3,4,5,6}))) -> 0 | BA136: =IF(AZ136= "","",IFERROR(SUMPRODUCT(LARGE($C136:$AU136,{1,2,3,4})), "")) ->  | BB136: =IF(BA136<>"",(IFERROR(SUMPRODUCT(LARGE($C136:$AU136,{1,2,3,4,5,6,7})),"")),"") ->  | BC136: =IF(BB136<>"",(IFERROR(SUMPRODUCT(LARGE($C136:$AU136,{1,2,3,4,5,6,7,8})),"")),"") -> 
AW137: 0 | AX137: 0 | AY137: =IF($AX137<=6,SUM($C137:$AU137),SUMPRODUCT(LARGE($C137:$AU137,{1,2,3,4,5,6}))) -> 0 | BA137: =IF(AZ137= "","",IFERROR(SUMPRODUCT(LARGE($C137:$AU137,{1,2,3,4})), "")) ->  | BB137: =IF(BA137<>"",(IFERROR(SUMPRODUCT(LARGE($C137:$AU137,{1,2,3,4,5,6,7})),"")),"") ->  | BC137: =IF(BB137<>"",(IFERROR(SUMPRODUCT(LARGE($C137:$AU137,{1,2,3,4,5,6,7,8})),"")),"") -> 
AW138: 0 | AX138: 0 | AY138: =IF($AX138<=6,SUM($C138:$AU138),SUMPRODUCT(LARGE($C138:$AU138,{1,2,3,4,5,6}))) -> 0 | BA138: =IF(AZ138= "","",IFERROR(SUMPRODUCT(LARGE($C138:$AU138,{1,2,3,4})), "")) ->  | BB138: =IF(BA138<>"",(IFERROR(SUMPRODUCT(LARGE($C138:$AU138,{1,2,3,4,5,6,7})),"")),"") ->  | BC138: =IF(BB138<>"",(IFERROR(SUMPRODUCT(LARGE($C138:$AU138,{1,2,3,4,5,6,7,8})),"")),"") -> 
AW139: 0 | AX139: 0 | AY139: =IF($AX139<=6,SUM($C139:$AU139),SUMPRODUCT(LARGE($C139:$AU139,{1,2,3,4,5,6}))) -> 0 | BA139: =IF(AZ139= "","",IFERROR(SUMPRODUCT(LARGE($C139:$AU139,{1,2,3,4})), "")) ->  | BB139: =IF(BA139<>"",(IFERROR(SUMPRODUCT(LARGE($C139:$AU139,{1,2,3,4,5,6,7})),"")),"") ->  | BC139: =IF(BB139<>"",(IFERROR(SUMPRODUCT(LARGE($C139:$AU139,{1,2,3,4,5,6,7,8})),"")),"") -> 
AW140: 0 | AX140: 0 | AY140: =IF($AX140<=6,SUM($C140:$AU140),SUMPRODUCT(LARGE($C140:$AU140,{1,2,3,4,5,6}))) -> 0 | BA140: =IF(AZ140= "","",IFERROR(SUMPRODUCT(LARGE($C140:$AU140,{1,2,3,4})), "")) ->  | BB140: =IF(BA140<>"",(IFERROR(SUMPRODUCT(LARGE($C140:$AU140,{1,2,3,4,5,6,7})),"")),"") ->  | BC140: =IF(BB140<>"",(IFERROR(SUMPRODUCT(LARGE($C140:$AU140,{1,2,3,4,5,6,7,8})),"")),"") -> 
AW141: 0 | AX141: 0 | AY141: =IF($AX141<=6,SUM($C141:$AU141),SUMPRODUCT(LARGE($C141:$AU141,{1,2,3,4,5,6}))) -> 0 | BA141: =IF(AZ141= "","",IFERROR(SUMPRODUCT(LARGE($C141:$AU141,{1,2,3,4})), "")) ->  | BB141: =IF(BA141<>"",(IFERROR(SUMPRODUCT(LARGE($C141:$AU141,{1,2,3,4,5,6,7})),"")),"") ->  | BC141: =IF(BB141<>"",(IFERROR(SUMPRODUCT(LARGE($C141:$AU141,{1,2,3,4,5,6,7,8})),"")),"") -> 
AW142: 0 | AX142: 0 | AY142: =IF($AX142<=6,SUM($C142:$AU142),SUMPRODUCT(LARGE($C142:$AU142,{1,2,3,4,5,6}))) -> 0 | BA142: =IF(AZ142= "","",IFERROR(SUMPRODUCT(LARGE($C142:$AU142,{1,2,3,4})), "")) ->  | BB142: =IF(BA142<>"",(IFERROR(SUMPRODUCT(LARGE($C142:$AU142,{1,2,3,4,5,6,7})),"")),"") ->  | BC142: =IF(BB142<>"",(IFERROR(SUMPRODUCT(LARGE($C142:$AU142,{1,2,3,4,5,6,7,8})),"")),"") -> 
AW143: 0 | AX143: 0 | AY143: =IF($AX143<=6,SUM($C143:$AU143),SUMPRODUCT(LARGE($C143:$AU143,{1,2,3,4,5,6}))) -> 0 | BA143: =IF(AZ143= "","",IFERROR(SUMPRODUCT(LARGE($C143:$AU143,{1,2,3,4})), "")) ->  | BB143: =IF(BA143<>"",(IFERROR(SUMPRODUCT(LARGE($C143:$AU143,{1,2,3,4,5,6,7})),"")),"") ->  | BC143: =IF(BB143<>"",(IFERROR(SUMPRODUCT(LARGE($C143:$AU143,{1,2,3,4,5,6,7,8})),"")),"") -> 
AW144: 0 | AX144: 0 | AY144: =IF($AX144<=6,SUM($C144:$AU144),SUMPRODUCT(LARGE($C144:$AU144,{1,2,3,4,5,6}))) -> 0 | BA144: =IF(AZ144= "","",IFERROR(SUMPRODUCT(LARGE($C144:$AU144,{1,2,3,4})), "")) ->  | BB144: =IF(BA144<>"",(IFERROR(SUMPRODUCT(LARGE($C144:$AU144,{1,2,3,4,5,6,7})),"")),"") ->  | BC144: =IF(BB144<>"",(IFERROR(SUMPRODUCT(LARGE($C144:$AU144,{1,2,3,4,5,6,7,8})),"")),"") -> 
AW145: 0 | AX145: 0 | AY145: =IF($AX145<=6,SUM($C145:$AU145),SUMPRODUCT(LARGE($C145:$AU145,{1,2,3,4,5,6}))) -> 0 | BA145: =IF(AZ145= "","",IFERROR(SUMPRODUCT(LARGE($C145:$AU145,{1,2,3,4})), "")) ->  | BB145: =IF(BA145<>"",(IFERROR(SUMPRODUCT(LARGE($C145:$AU145,{1,2,3,4,5,6,7})),"")),"") ->  | BC145: =IF(BB145<>"",(IFERROR(SUMPRODUCT(LARGE($C145:$AU145,{1,2,3,4,5,6,7,8})),"")),"") -> 
AW146: 0 | AX146: 0 | AY146: =IF($AX146<=6,SUM($C146:$AU146),SUMPRODUCT(LARGE($C146:$AU146,{1,2,3,4,5,6}))) -> 0 | BA146: =IF(AZ146= "","",IFERROR(SUMPRODUCT(LARGE($C146:$AU146,{1,2,3,4})), "")) ->  | BB146: =IF(BA146<>"",(IFERROR(SUMPRODUCT(LARGE($C146:$AU146,{1,2,3,4,5,6,7})),"")),"") ->  | BC146: =IF(BB146<>"",(IFERROR(SUMPRODUCT(LARGE($C146:$AU146,{1,2,3,4,5,6,7,8})),"")),"") -> 
AW147: 0 | AX147: 0 | AY147: =IF($AX147<=6,SUM($C147:$AU147),SUMPRODUCT(LARGE($C147:$AU147,{1,2,3,4,5,6}))) -> 0 | BA147: =IF(AZ147= "","",IFERROR(SUMPRODUCT(LARGE($C147:$AU147,{1,2,3,4})), "")) ->  | BB147: =IF(BA147<>"",(IFERROR(SUMPRODUCT(LARGE($C147:$AU147,{1,2,3,4,5,6,7})),"")),"") ->  | BC147: =IF(BB147<>"",(IFERROR(SUMPRODUCT(LARGE($C147:$AU147,{1,2,3,4,5,6,7,8})),"")),"") -> 
AW148: 0 | AX148: 0 | AY148: =IF($AX148<=6,SUM($C148:$AU148),SUMPRODUCT(LARGE($C148:$AU148,{1,2,3,4,5,6}))) -> 0 | BA148: =IF(AZ148= "","",IFERROR(SUMPRODUCT(LARGE($C148:$AU148,{1,2,3,4})), "")) ->  | BB148: =IF(BA148<>"",(IFERROR(SUMPRODUCT(LARGE($C148:$AU148,{1,2,3,4,5,6,7})),"")),"") ->  | BC148: =IF(BB148<>"",(IFERROR(SUMPRODUCT(LARGE($C148:$AU148,{1,2,3,4,5,6,7,8})),"")),"") -> 
AW149: 0 | AX149: 0 | AY149: =IF($AX149<=6,SUM($C149:$AU149),SUMPRODUCT(LARGE($C149:$AU149,{1,2,3,4,5,6}))) -> 0 | BA149: =IF(AZ149= "","",IFERROR(SUMPRODUCT(LARGE($C149:$AU149,{1,2,3,4})), "")) ->  | BB149: =IF(BA149<>"",(IFERROR(SUMPRODUCT(LARGE($C149:$AU149,{1,2,3,4,5,6,7})),"")),"") ->  | BC149: =IF(BB149<>"",(IFERROR(SUMPRODUCT(LARGE($C149:$AU149,{1,2,3,4,5,6,7,8})),"")),"") -> 
AW150: 0 | AX150: 0 | AY150: =IF($AX150<=6,SUM($C150:$AU150),SUMPRODUCT(LARGE($C150:$AU150,{1,2,3,4,5,6}))) -> 0 | BA150: =IF(AZ150= "","",IFERROR(SUMPRODUCT(LARGE($C150:$AU150,{1,2,3,4})), "")) ->  | BB150: =IF(BA150<>"",(IFERROR(SUMPRODUCT(LARGE($C150:$AU150,{1,2,3,4,5,6,7})),"")),"") ->  | BC150: =IF(BB150<>"",(IFERROR(SUMPRODUCT(LARGE($C150:$AU150,{1,2,3,4,5,6,7,8})),"")),"") -> 
AW151: 0 | AX151: 0 | AY151: =IF($AX151<=6,SUM($C151:$AU151),SUMPRODUCT(LARGE($C151:$AU151,{1,2,3,4,5,6}))) -> 0 | BA151: =IF(AZ151= "","",IFERROR(SUMPRODUCT(LARGE($C151:$AU151,{1,2,3,4})), "")) ->  | BB151: =IF(BA151<>"",(IFERROR(SUMPRODUCT(LARGE($C151:$AU151,{1,2,3,4,5,6,7})),"")),"") ->  | BC151: =IF(BB151<>"",(IFERROR(SUMPRODUCT(LARGE($C151:$AU151,{1,2,3,4,5,6,7,8})),"")),"") -> 
AW152: 0 | AX152: 0 | AY152: =IF($AX152<=6,SUM($C152:$AU152),SUMPRODUCT(LARGE($C152:$AU152,{1,2,3,4,5,6}))) -> 0 | BA152: =IF(AZ152= "","",IFERROR(SUMPRODUCT(LARGE($C152:$AU152,{1,2,3,4})), "")) ->  | BB152: =IF(BA152<>"",(IFERROR(SUMPRODUCT(LARGE($C152:$AU152,{1,2,3,4,5,6,7})),"")),"") ->  | BC152: =IF(BB152<>"",(IFERROR(SUMPRODUCT(LARGE($C152:$AU152,{1,2,3,4,5,6,7,8})),"")),"") -> 
AW153: 0 | AX153: 0 | AY153: =IF($AX153<=6,SUM($C153:$AU153),SUMPRODUCT(LARGE($C153:$AU153,{1,2,3,4,5,6}))) -> 0 | BA153: =IF(AZ153= "","",IFERROR(SUMPRODUCT(LARGE($C153:$AU153,{1,2,3,4})), "")) ->  | BB153: =IF(BA153<>"",(IFERROR(SUMPRODUCT(LARGE($C153:$AU153,{1,2,3,4,5,6,7})),"")),"") ->  | BC153: =IF(BB153<>"",(IFERROR(SUMPRODUCT(LARGE($C153:$AU153,{1,2,3,4,5,6,7,8})),"")),"") -> 
AW154: 0 | AX154: 0 | AY154: =IF($AX154<=6,SUM($C154:$AU154),SUMPRODUCT(LARGE($C154:$AU154,{1,2,3,4,5,6}))) -> 0 | BA154: =IF(AZ154= "","",IFERROR(SUMPRODUCT(LARGE($C154:$AU154,{1,2,3,4})), "")) ->  | BB154: =IF(BA154<>"",(IFERROR(SUMPRODUCT(LARGE($C154:$AU154,{1,2,3,4,5,6,7})),"")),"") ->  | BC154: =IF(BB154<>"",(IFERROR(SUMPRODUCT(LARGE($C154:$AU154,{1,2,3,4,5,6,7,8})),"")),"") -> 
AW155: 0 | AX155: 0 | AY155: =IF($AX155<=6,SUM($C155:$AU155),SUMPRODUCT(LARGE($C155:$AU155,{1,2,3,4,5,6}))) -> 0 | BA155: =IF(AZ155= "","",IFERROR(SUMPRODUCT(LARGE($C155:$AU155,{1,2,3,4})), "")) ->  | BB155: =IF(BA155<>"",(IFERROR(SUMPRODUCT(LARGE($C155:$AU155,{1,2,3,4,5,6,7})),"")),"") ->  | BC155: =IF(BB155<>"",(IFERROR(SUMPRODUCT(LARGE($C155:$AU155,{1,2,3,4,5,6,7,8})),"")),"") -> 
AW156: 0 | AX156: 0 | AY156: =IF($AX156<=6,SUM($C156:$AU156),SUMPRODUCT(LARGE($C156:$AU156,{1,2,3,4,5,6}))) -> 0 | BA156: =IF(AZ156= "","",IFERROR(SUMPRODUCT(LARGE($C156:$AU156,{1,2,3,4})), "")) ->  | BB156: =IF(BA156<>"",(IFERROR(SUMPRODUCT(LARGE($C156:$AU156,{1,2,3,4,5,6,7})),"")),"") ->  | BC156: =IF(BB156<>"",(IFERROR(SUMPRODUCT(LARGE($C156:$AU156,{1,2,3,4,5,6,7,8})),"")),"") -> 
AW157: 0 | AX157: 0 | AY157: =IF($AX157<=6,SUM($C157:$AU157),SUMPRODUCT(LARGE($C157:$AU157,{1,2,3,4,5,6}))) -> 0 | BA157: =IF(AZ157= "","",IFERROR(SUMPRODUCT(LARGE($C157:$AU157,{1,2,3,4})), "")) ->  | BB157: =IF(BA157<>"",(IFERROR(SUMPRODUCT(LARGE($C157:$AU157,{1,2,3,4,5,6,7})),"")),"") ->  | BC157: =IF(BB157<>"",(IFERROR(SUMPRODUCT(LARGE($C157:$AU157,{1,2,3,4,5,6,7,8})),"")),"") -> 
AW158: 0 | AX158: 0 | AY158: =IF($AX158<=6,SUM($C158:$AU158),SUMPRODUCT(LARGE($C158:$AU158,{1,2,3,4,5,6}))) -> 0 | BA158: =IF(AZ158= "","",IFERROR(SUMPRODUCT(LARGE($C158:$AU158,{1,2,3,4})), "")) ->  | BB158: =IF(BA158<>"",(IFERROR(SUMPRODUCT(LARGE($C158:$AU158,{1,2,3,4,5,6,7})),"")),"") ->  | BC158: =IF(BB158<>"",(IFERROR(SUMPRODUCT(LARGE($C158:$AU158,{1,2,3,4,5,6,7,8})),"")),"") -> 
AW159: 0 | AX159: 0 | AY159: =IF($AX159<=6,SUM($C159:$AU159),SUMPRODUCT(LARGE($C159:$AU159,{1,2,3,4,5,6}))) -> 0 | BA159: =IF(AZ159= "","",IFERROR(SUMPRODUCT(LARGE($C159:$AU159,{1,2,3,4})), "")) ->  | BB159: =IF(BA159<>"",(IFERROR(SUMPRODUCT(LARGE($C159:$AU159,{1,2,3,4,5,6,7})),"")),"") ->  | BC159: =IF(BB159<>"",(IFERROR(SUMPRODUCT(LARGE($C159:$AU159,{1,2,3,4,5,6,7,8})),"")),"") -> 
AW160: 0 | AX160: 0 | AY160: =IF($AX160<=6,SUM($C160:$AU160),SUMPRODUCT(LARGE($C160:$AU160,{1,2,3,4,5,6}))) -> 0 | BA160: =IF(AZ160= "","",IFERROR(SUMPRODUCT(LARGE($C160:$AU160,{1,2,3,4})), "")) ->  | BB160: =IF(BA160<>"",(IFERROR(SUMPRODUCT(LARGE($C160:$AU160,{1,2,3,4,5,6,7})),"")),"") ->  | BC160: =IF(BB160<>"",(IFERROR(SUMPRODUCT(LARGE($C160:$AU160,{1,2,3,4,5,6,7,8})),"")),"") -> 
AW161: 0 | AX161: 0 | AY161: =IF($AX161<=6,SUM($C161:$AU161),SUMPRODUCT(LARGE($C161:$AU161,{1,2,3,4,5,6}))) -> 0 | BA161: =IF(AZ161= "","",IFERROR(SUMPRODUCT(LARGE($C161:$AU161,{1,2,3,4})), "")) ->  | BB161: =IF(BA161<>"",(IFERROR(SUMPRODUCT(LARGE($C161:$AU161,{1,2,3,4,5,6,7})),"")),"") ->  | BC161: =IF(BB161<>"",(IFERROR(SUMPRODUCT(LARGE($C161:$AU161,{1,2,3,4,5,6,7,8})),"")),"") -> 
AW162: 0 | AX162: 0 | AY162: =IF($AX162<=6,SUM($C162:$AU162),SUMPRODUCT(LARGE($C162:$AU162,{1,2,3,4,5,6}))) -> 0 | BA162: =IF(AZ162= "","",IFERROR(SUMPRODUCT(LARGE($C162:$AU162,{1,2,3,4})), "")) ->  | BB162: =IF(BA162<>"",(IFERROR(SUMPRODUCT(LARGE($C162:$AU162,{1,2,3,4,5,6,7})),"")),"") ->  | BC162: =IF(BB162<>"",(IFERROR(SUMPRODUCT(LARGE($C162:$AU162,{1,2,3,4,5,6,7,8})),"")),"") -> 
AW163: 0 | AX163: 0 | AY163: =IF($AX163<=6,SUM($C163:$AU163),SUMPRODUCT(LARGE($C163:$AU163,{1,2,3,4,5,6}))) -> 0 | BA163: =IF(AZ163= "","",IFERROR(SUMPRODUCT(LARGE($C163:$AU163,{1,2,3,4})), "")) ->  | BB163: =IF(BA163<>"",(IFERROR(SUMPRODUCT(LARGE($C163:$AU163,{1,2,3,4,5,6,7})),"")),"") ->  | BC163: =IF(BB163<>"",(IFERROR(SUMPRODUCT(LARGE($C163:$AU163,{1,2,3,4,5,6,7,8})),"")),"") -> 
AW164: 0 | AX164: 0 | AY164: =IF($AX164<=6,SUM($C164:$AU164),SUMPRODUCT(LARGE($C164:$AU164,{1,2,3,4,5,6}))) -> 0 | BA164: =IF(AZ164= "","",IFERROR(SUMPRODUCT(LARGE($C164:$AU164,{1,2,3,4})), "")) ->  | BB164: =IF(BA164<>"",(IFERROR(SUMPRODUCT(LARGE($C164:$AU164,{1,2,3,4,5,6,7})),"")),"") ->  | BC164: =IF(BB164<>"",(IFERROR(SUMPRODUCT(LARGE($C164:$AU164,{1,2,3,4,5,6,7,8})),"")),"") -> 
AW165: 0 | AX165: 0 | AY165: =IF($AX165<=6,SUM($C165:$AU165),SUMPRODUCT(LARGE($C165:$AU165,{1,2,3,4,5,6}))) -> 0 | BA165: =IF(AZ165= "","",IFERROR(SUMPRODUCT(LARGE($C165:$AU165,{1,2,3,4})), "")) ->  | BB165: =IF(BA165<>"",(IFERROR(SUMPRODUCT(LARGE($C165:$AU165,{1,2,3,4,5,6,7})),"")),"") ->  | BC165: =IF(BB165<>"",(IFERROR(SUMPRODUCT(LARGE($C165:$AU165,{1,2,3,4,5,6,7,8})),"")),"") -> 
AW166: 0 | AX166: 0 | AY166: =IF($AX166<=6,SUM($C166:$AU166),SUMPRODUCT(LARGE($C166:$AU166,{1,2,3,4,5,6}))) -> 0 | BA166: =IF(AZ166= "","",IFERROR(SUMPRODUCT(LARGE($C166:$AU166,{1,2,3,4})), "")) ->  | BB166: =IF(BA166<>"",(IFERROR(SUMPRODUCT(LARGE($C166:$AU166,{1,2,3,4,5,6,7})),"")),"") ->  | BC166: =IF(BB166<>"",(IFERROR(SUMPRODUCT(LARGE($C166:$AU166,{1,2,3,4,5,6,7,8})),"")),"") -> 
AW167: 0 | AX167: 0 | AY167: =IF($AX167<=6,SUM($C167:$AU167),SUMPRODUCT(LARGE($C167:$AU167,{1,2,3,4,5,6}))) -> 0 | BA167: =IF(AZ167= "","",IFERROR(SUMPRODUCT(LARGE($C167:$AU167,{1,2,3,4})), "")) ->  | BB167: =IF(BA167<>"",(IFERROR(SUMPRODUCT(LARGE($C167:$AU167,{1,2,3,4,5,6,7})),"")),"") ->  | BC167: =IF(BB167<>"",(IFERROR(SUMPRODUCT(LARGE($C167:$AU167,{1,2,3,4,5,6,7,8})),"")),"") -> 
AW168: 0 | AX168: 0 | AY168: =IF($AX168<=6,SUM($C168:$AU168),SUMPRODUCT(LARGE($C168:$AU168,{1,2,3,4,5,6}))) -> 0 | BA168: =IF(AZ168= "","",IFERROR(SUMPRODUCT(LARGE($C168:$AU168,{1,2,3,4})), "")) ->  | BB168: =IF(BA168<>"",(IFERROR(SUMPRODUCT(LARGE($C168:$AU168,{1,2,3,4,5,6,7})),"")),"") ->  | BC168: =IF(BB168<>"",(IFERROR(SUMPRODUCT(LARGE($C168:$AU168,{1,2,3,4,5,6,7,8})),"")),"") -> 
AW169: 0 | AX169: 0 | AY169: =IF($AX169<=6,SUM($C169:$AU169),SUMPRODUCT(LARGE($C169:$AU169,{1,2,3,4,5,6}))) -> 0 | BA169: =IF(AZ169= "","",IFERROR(SUMPRODUCT(LARGE($C169:$AU169,{1,2,3,4})), "")) ->  | BB169: =IF(BA169<>"",(IFERROR(SUMPRODUCT(LARGE($C169:$AU169,{1,2,3,4,5,6,7})),"")),"") ->  | BC169: =IF(BB169<>"",(IFERROR(SUMPRODUCT(LARGE($C169:$AU169,{1,2,3,4,5,6,7,8})),"")),"") -> 
AW170: 0 | AX170: 0 | AY170: =IF($AX170<=6,SUM($C170:$AU170),SUMPRODUCT(LARGE($C170:$AU170,{1,2,3,4,5,6}))) -> 0 | BA170: =IF(AZ170= "","",IFERROR(SUMPRODUCT(LARGE($C170:$AU170,{1,2,3,4})), "")) ->  | BB170: =IF(BA170<>"",(IFERROR(SUMPRODUCT(LARGE($C170:$AU170,{1,2,3,4,5,6,7})),"")),"") ->  | BC170: =IF(BB170<>"",(IFERROR(SUMPRODUCT(LARGE($C170:$AU170,{1,2,3,4,5,6,7,8})),"")),"") -> 
AW171: 0 | AX171: 0 | AY171: =IF($AX171<=6,SUM($C171:$AU171),SUMPRODUCT(LARGE($C171:$AU171,{1,2,3,4,5,6}))) -> 0 | BA171: =IF(AZ171= "","",IFERROR(SUMPRODUCT(LARGE($C171:$AU171,{1,2,3,4})), "")) ->  | BB171: =IF(BA171<>"",(IFERROR(SUMPRODUCT(LARGE($C171:$AU171,{1,2,3,4,5,6,7})),"")),"") ->  | BC171: =IF(BB171<>"",(IFERROR(SUMPRODUCT(LARGE($C171:$AU171,{1,2,3,4,5,6,7,8})),"")),"") -> 
AW172: 0 | AX172: 0 | AY172: =IF($AX172<=6,SUM($C172:$AU172),SUMPRODUCT(LARGE($C172:$AU172,{1,2,3,4,5,6}))) -> 0 | BA172: =IF(AZ172= "","",IFERROR(SUMPRODUCT(LARGE($C172:$AU172,{1,2,3,4})), "")) ->  | BB172: =IF(BA172<>"",(IFERROR(SUMPRODUCT(LARGE($C172:$AU172,{1,2,3,4,5,6,7})),"")),"") ->  | BC172: =IF(BB172<>"",(IFERROR(SUMPRODUCT(LARGE($C172:$AU172,{1,2,3,4,5,6,7,8})),"")),"") -> 
AW173: 0 | AX173: 0 | AY173: =IF($AX173<=6,SUM($C173:$AU173),SUMPRODUCT(LARGE($C173:$AU173,{1,2,3,4,5,6}))) -> 0 | BA173: =IF(AZ173= "","",IFERROR(SUMPRODUCT(LARGE($C173:$AU173,{1,2,3,4})), "")) ->  | BB173: =IF(BA173<>"",(IFERROR(SUMPRODUCT(LARGE($C173:$AU173,{1,2,3,4,5,6,7})),"")),"") ->  | BC173: =IF(BB173<>"",(IFERROR(SUMPRODUCT(LARGE($C173:$AU173,{1,2,3,4,5,6,7,8})),"")),"") -> 
AW174: 0 | AX174: 0 | AY174: =IF($AX174<=6,SUM($C174:$AU174),SUMPRODUCT(LARGE($C174:$AU174,{1,2,3,4,5,6}))) -> 0 | BA174: =IF(AZ174= "","",IFERROR(SUMPRODUCT(LARGE($C174:$AU174,{1,2,3,4})), "")) ->  | BB174: =IF(BA174<>"",(IFERROR(SUMPRODUCT(LARGE($C174:$AU174,{1,2,3,4,5,6,7})),"")),"") ->  | BC174: =IF(BB174<>"",(IFERROR(SUMPRODUCT(LARGE($C174:$AU174,{1,2,3,4,5,6,7,8})),"")),"") -> 
AW175: 0 | AX175: 0 | AY175: =IF($AX175<=6,SUM($C175:$AU175),SUMPRODUCT(LARGE($C175:$AU175,{1,2,3,4,5,6}))) -> 0 | BA175: =IF(AZ175= "","",IFERROR(SUMPRODUCT(LARGE($C175:$AU175,{1,2,3,4})), "")) ->  | BB175: =IF(BA175<>"",(IFERROR(SUMPRODUCT(LARGE($C175:$AU175,{1,2,3,4,5,6,7})),"")),"") ->  | BC175: =IF(BB175<>"",(IFERROR(SUMPRODUCT(LARGE($C175:$AU175,{1,2,3,4,5,6,7,8})),"")),"") -> 
AW176: 0 | AX176: 0 | AY176: =IF($AX176<=6,SUM($C176:$AU176),SUMPRODUCT(LARGE($C176:$AU176,{1,2,3,4,5,6}))) -> 0 | BA176: =IF(AZ176= "","",IFERROR(SUMPRODUCT(LARGE($C176:$AU176,{1,2,3,4})), "")) ->  | BB176: =IF(BA176<>"",(IFERROR(SUMPRODUCT(LARGE($C176:$AU176,{1,2,3,4,5,6,7})),"")),"") ->  | BC176: =IF(BB176<>"",(IFERROR(SUMPRODUCT(LARGE($C176:$AU176,{1,2,3,4,5,6,7,8})),"")),"") -> 
AW177: 0 | AX177: 0 | AY177: =IF($AX177<=6,SUM($C177:$AU177),SUMPRODUCT(LARGE($C177:$AU177,{1,2,3,4,5,6}))) -> 0 | BA177: =IF(AZ177= "","",IFERROR(SUMPRODUCT(LARGE($C177:$AU177,{1,2,3,4})), "")) ->  | BB177: =IF(BA177<>"",(IFERROR(SUMPRODUCT(LARGE($C177:$AU177,{1,2,3,4,5,6,7})),"")),"") ->  | BC177: =IF(BB177<>"",(IFERROR(SUMPRODUCT(LARGE($C177:$AU177,{1,2,3,4,5,6,7,8})),"")),"") -> 
AW178: 0 | AX178: 0 | AY178: =IF($AX178<=6,SUM($C178:$AU178),SUMPRODUCT(LARGE($C178:$AU178,{1,2,3,4,5,6}))) -> 0 | BA178: =IF(AZ178= "","",IFERROR(SUMPRODUCT(LARGE($C178:$AU178,{1,2,3,4})), "")) ->  | BB178: =IF(BA178<>"",(IFERROR(SUMPRODUCT(LARGE($C178:$AU178,{1,2,3,4,5,6,7})),"")),"") ->  | BC178: =IF(BB178<>"",(IFERROR(SUMPRODUCT(LARGE($C178:$AU178,{1,2,3,4,5,6,7,8})),"")),"") -> 
AW179: 0 | AX179: 0 | AY179: =IF($AX179<=6,SUM($C179:$AU179),SUMPRODUCT(LARGE($C179:$AU179,{1,2,3,4,5,6}))) -> 0 | BA179: =IF(AZ179= "","",IFERROR(SUMPRODUCT(LARGE($C179:$AU179,{1,2,3,4})), "")) ->  | BB179: =IF(BA179<>"",(IFERROR(SUMPRODUCT(LARGE($C179:$AU179,{1,2,3,4,5,6,7})),"")),"") ->  | BC179: =IF(BB179<>"",(IFERROR(SUMPRODUCT(LARGE($C179:$AU179,{1,2,3,4,5,6,7,8})),"")),"") -> 
AW180: 0 | AX180: 0 | AY180: =IF($AX180<=6,SUM($C180:$AU180),SUMPRODUCT(LARGE($C180:$AU180,{1,2,3,4,5,6}))) -> 0 | BA180: =IF(AZ180= "","",IFERROR(SUMPRODUCT(LARGE($C180:$AU180,{1,2,3,4})), "")) ->  | BB180: =IF(BA180<>"",(IFERROR(SUMPRODUCT(LARGE($C180:$AU180,{1,2,3,4,5,6,7})),"")),"") ->  | BC180: =IF(BB180<>"",(IFERROR(SUMPRODUCT(LARGE($C180:$AU180,{1,2,3,4,5,6,7,8})),"")),"") -> 
AW181: 0 | AX181: 0 | AY181: =IF($AX181<=6,SUM($C181:$AU181),SUMPRODUCT(LARGE($C181:$AU181,{1,2,3,4,5,6}))) -> 0 | BA181: =IF(AZ181= "","",IFERROR(SUMPRODUCT(LARGE($C181:$AU181,{1,2,3,4})), "")) ->  | BB181: =IF(BA181<>"",(IFERROR(SUMPRODUCT(LARGE($C181:$AU181,{1,2,3,4,5,6,7})),"")),"") ->  | BC181: =IF(BB181<>"",(IFERROR(SUMPRODUCT(LARGE($C181:$AU181,{1,2,3,4,5,6,7,8})),"")),"") -> 
AW182: 0 | AX182: 0 | AY182: =IF($AX182<=6,SUM($C182:$AU182),SUMPRODUCT(LARGE($C182:$AU182,{1,2,3,4,5,6}))) -> 0 | BA182: =IF(AZ182= "","",IFERROR(SUMPRODUCT(LARGE($C182:$AU182,{1,2,3,4})), "")) ->  | BB182: =IF(BA182<>"",(IFERROR(SUMPRODUCT(LARGE($C182:$AU182,{1,2,3,4,5,6,7})),"")),"") ->  | BC182: =IF(BB182<>"",(IFERROR(SUMPRODUCT(LARGE($C182:$AU182,{1,2,3,4,5,6,7,8})),"")),"") -> 
AW183: 0 | AX183: 0 | AY183: =IF($AX183<=6,SUM($C183:$AU183),SUMPRODUCT(LARGE($C183:$AU183,{1,2,3,4,5,6}))) -> 0 | BA183: =IF(AZ183= "","",IFERROR(SUMPRODUCT(LARGE($C183:$AU183,{1,2,3,4})), "")) ->  | BB183: =IF(BA183<>"",(IFERROR(SUMPRODUCT(LARGE($C183:$AU183,{1,2,3,4,5,6,7})),"")),"") ->  | BC183: =IF(BB183<>"",(IFERROR(SUMPRODUCT(LARGE($C183:$AU183,{1,2,3,4,5,6,7,8})),"")),"") -> 
AW184: 0 | AX184: 0 | AY184: =IF($AX184<=6,SUM($C184:$AU184),SUMPRODUCT(LARGE($C184:$AU184,{1,2,3,4,5,6}))) -> 0 | BA184: =IF(AZ184= "","",IFERROR(SUMPRODUCT(LARGE($C184:$AU184,{1,2,3,4})), "")) ->  | BB184: =IF(BA184<>"",(IFERROR(SUMPRODUCT(LARGE($C184:$AU184,{1,2,3,4,5,6,7})),"")),"") ->  | BC184: =IF(BB184<>"",(IFERROR(SUMPRODUCT(LARGE($C184:$AU184,{1,2,3,4,5,6,7,8})),"")),"") -> 
AW185: 0 | AX185: 0 | AY185: =IF($AX185<=6,SUM($C185:$AU185),SUMPRODUCT(LARGE($C185:$AU185,{1,2,3,4,5,6}))) -> 0 | BA185: =IF(AZ185= "","",IFERROR(SUMPRODUCT(LARGE($C185:$AU185,{1,2,3,4})), "")) ->  | BB185: =IF(BA185<>"",(IFERROR(SUMPRODUCT(LARGE($C185:$AU185,{1,2,3,4,5,6,7})),"")),"") ->  | BC185: =IF(BB185<>"",(IFERROR(SUMPRODUCT(LARGE($C185:$AU185,{1,2,3,4,5,6,7,8})),"")),"") -> 
AW186: 0 | AX186: 0 | AY186: =IF($AX186<=6,SUM($C186:$AU186),SUMPRODUCT(LARGE($C186:$AU186,{1,2,3,4,5,6}))) -> 0 | BA186: =IF(AZ186= "","",IFERROR(SUMPRODUCT(LARGE($C186:$AU186,{1,2,3,4})), "")) ->  | BB186: =IF(BA186<>"",(IFERROR(SUMPRODUCT(LARGE($C186:$AU186,{1,2,3,4,5,6,7})),"")),"") ->  | BC186: =IF(BB186<>"",(IFERROR(SUMPRODUCT(LARGE($C186:$AU186,{1,2,3,4,5,6,7,8})),"")),"") -> 
AW187: 0 | AX187: 0 | AY187: =IF($AX187<=6,SUM($C187:$AU187),SUMPRODUCT(LARGE($C187:$AU187,{1,2,3,4,5,6}))) -> 0 | BA187: =IF(AZ187= "","",IFERROR(SUMPRODUCT(LARGE($C187:$AU187,{1,2,3,4})), "")) ->  | BB187: =IF(BA187<>"",(IFERROR(SUMPRODUCT(LARGE($C187:$AU187,{1,2,3,4,5,6,7})),"")),"") ->  | BC187: =IF(BB187<>"",(IFERROR(SUMPRODUCT(LARGE($C187:$AU187,{1,2,3,4,5,6,7,8})),"")),"") -> 
AW188: 0 | AX188: 0 | AY188: =IF($AX188<=6,SUM($C188:$AU188),SUMPRODUCT(LARGE($C188:$AU188,{1,2,3,4,5,6}))) -> 0 | BA188: =IF(AZ188= "","",IFERROR(SUMPRODUCT(LARGE($C188:$AU188,{1,2,3,4})), "")) ->  | BB188: =IF(BA188<>"",(IFERROR(SUMPRODUCT(LARGE($C188:$AU188,{1,2,3,4,5,6,7})),"")),"") ->  | BC188: =IF(BB188<>"",(IFERROR(SUMPRODUCT(LARGE($C188:$AU188,{1,2,3,4,5,6,7,8})),"")),"") -> 
AW189: 0 | AX189: 0 | AY189: =IF($AX189<=6,SUM($C189:$AU189),SUMPRODUCT(LARGE($C189:$AU189,{1,2,3,4,5,6}))) -> 0 | BA189: =IF(AZ189= "","",IFERROR(SUMPRODUCT(LARGE($C189:$AU189,{1,2,3,4})), "")) ->  | BB189: =IF(BA189<>"",(IFERROR(SUMPRODUCT(LARGE($C189:$AU189,{1,2,3,4,5,6,7})),"")),"") ->  | BC189: =IF(BB189<>"",(IFERROR(SUMPRODUCT(LARGE($C189:$AU189,{1,2,3,4,5,6,7,8})),"")),"") -> 
AW190: 0 | AX190: 0 | AY190: =IF($AX190<=6,SUM($C190:$AU190),SUMPRODUCT(LARGE($C190:$AU190,{1,2,3,4,5,6}))) -> 0 | BA190: =IF(AZ190= "","",IFERROR(SUMPRODUCT(LARGE($C190:$AU190,{1,2,3,4})), "")) ->  | BB190: =IF(BA190<>"",(IFERROR(SUMPRODUCT(LARGE($C190:$AU190,{1,2,3,4,5,6,7})),"")),"") ->  | BC190: =IF(BB190<>"",(IFERROR(SUMPRODUCT(LARGE($C190:$AU190,{1,2,3,4,5,6,7,8})),"")),"") -> 
AW191: 0 | AX191: 0 | AY191: =IF($AX191<=6,SUM($C191:$AU191),SUMPRODUCT(LARGE($C191:$AU191,{1,2,3,4,5,6}))) -> 0 | BA191: =IF(AZ191= "","",IFERROR(SUMPRODUCT(LARGE($C191:$AU191,{1,2,3,4})), "")) ->  | BB191: =IF(BA191<>"",(IFERROR(SUMPRODUCT(LARGE($C191:$AU191,{1,2,3,4,5,6,7})),"")),"") ->  | BC191: =IF(BB191<>"",(IFERROR(SUMPRODUCT(LARGE($C191:$AU191,{1,2,3,4,5,6,7,8})),"")),"") -> 
AW192: 0 | AX192: 0 | AY192: =IF($AX192<=6,SUM($C192:$AU192),SUMPRODUCT(LARGE($C192:$AU192,{1,2,3,4,5,6}))) -> 0 | BA192: =IF(AZ192= "","",IFERROR(SUMPRODUCT(LARGE($C192:$AU192,{1,2,3,4})), "")) ->  | BB192: =IF(BA192<>"",(IFERROR(SUMPRODUCT(LARGE($C192:$AU192,{1,2,3,4,5,6,7})),"")),"") ->  | BC192: =IF(BB192<>"",(IFERROR(SUMPRODUCT(LARGE($C192:$AU192,{1,2,3,4,5,6,7,8})),"")),"") -> 
AW193: 0 | AX193: 0 | AY193: =IF($AX193<=6,SUM($C193:$AU193),SUMPRODUCT(LARGE($C193:$AU193,{1,2,3,4,5,6}))) -> 0 | BA193: =IF(AZ193= "","",IFERROR(SUMPRODUCT(LARGE($C193:$AU193,{1,2,3,4})), "")) ->  | BB193: =IF(BA193<>"",(IFERROR(SUMPRODUCT(LARGE($C193:$AU193,{1,2,3,4,5,6,7})),"")),"") ->  | BC193: =IF(BB193<>"",(IFERROR(SUMPRODUCT(LARGE($C193:$AU193,{1,2,3,4,5,6,7,8})),"")),"") -> 
AW194: 0 | AX194: 0 | AY194: =IF($AX194<=6,SUM($C194:$AU194),SUMPRODUCT(LARGE($C194:$AU194,{1,2,3,4,5,6}))) -> 0 | BA194: =IF(AZ194= "","",IFERROR(SUMPRODUCT(LARGE($C194:$AU194,{1,2,3,4})), "")) ->  | BB194: =IF(BA194<>"",(IFERROR(SUMPRODUCT(LARGE($C194:$AU194,{1,2,3,4,5,6,7})),"")),"") ->  | BC194: =IF(BB194<>"",(IFERROR(SUMPRODUCT(LARGE($C194:$AU194,{1,2,3,4,5,6,7,8})),"")),"") -> 
AW195: =SUM($C195:$AV195) -> 0 | AX195: =COUNTA(C195:AU195) -> 0 | AY195: =IF($AX195<=6,SUM($C195:$AU195),SUMPRODUCT(LARGE($C195:$AU195,{1,2,3,4,5,6}))) -> 0 | BA195: =IF(AZ195= "","",IFERROR(SUMPRODUCT(LARGE($C195:$AU195,{1,2,3,4})), "")) ->  | BB195: =IF(BA195<>"",(IFERROR(SUMPRODUCT(LARGE($C195:$AU195,{1,2,3,4,5,6,7})),"")),"") ->  | BC195: =IF(BB195<>"",(IFERROR(SUMPRODUCT(LARGE($C195:$AU195,{1,2,3,4,5,6,7,8})),"")),"") -> 
AW196: 0 | AX196: 0 | AY196: =IF($AX196<=6,SUM($C196:$AU196),SUMPRODUCT(LARGE($C196:$AU196,{1,2,3,4,5,6}))) -> 0 | AZ196: =IF(AND($AX196>=6,AY196=AY197),"Manual Calc Needed","") ->  | BA196: =IF(AZ196= "","",IFERROR(SUMPRODUCT(LARGE($C196:$AU196,{1,2,3,4})), "")) ->  | BB196: =IF(BA196<>"",(IFERROR(SUMPRODUCT(LARGE($C196:$AU196,{1,2,3,4,5,6,7})),"")),"") ->  | BC196: =IF(BB196<>"",(IFERROR(SUMPRODUCT(LARGE($C196:$AU196,{1,2,3,4,5,6,7,8})),"")),"") -> 
AW197: 0 | AX197: 0 | AY197: =IF($AX197<=6,SUM($C197:$AU197),SUMPRODUCT(LARGE($C197:$AU197,{1,2,3,4,5,6}))) -> 0 | BA197: =IF(AZ197= "","",IFERROR(SUMPRODUCT(LARGE($C197:$AU197,{1,2,3,4})), "")) ->  | BB197: =IF(BA197<>"",(IFERROR(SUMPRODUCT(LARGE($C197:$AU197,{1,2,3,4,5,6,7})),"")),"") ->  | BC197: =IF(BB197<>"",(IFERROR(SUMPRODUCT(LARGE($C197:$AU197,{1,2,3,4,5,6,7,8})),"")),"") -> 
AW198: 0 | AX198: 0 | AY198: =IF($AX198<=6,SUM($C198:$AU198),SUMPRODUCT(LARGE($C198:$AU198,{1,2,3,4,5,6}))) -> 0 | BA198: =IF(AZ198= "","",IFERROR(SUMPRODUCT(LARGE($C198:$AU198,{1,2,3,4})), "")) ->  | BB198: =IF(BA198<>"",(IFERROR(SUMPRODUCT(LARGE($C198:$AU198,{1,2,3,4,5,6,7})),"")),"") ->  | BC198: =IF(BB198<>"",(IFERROR(SUMPRODUCT(LARGE($C198:$AU198,{1,2,3,4,5,6,7,8})),"")),"") -> 
AW199: 0 | AX199: 0 | AY199: =IF($AX199<=6,SUM($C199:$AU199),SUMPRODUCT(LARGE($C199:$AU199,{1,2,3,4,5,6}))) -> 0 | BA199: =IF(AZ199= "","",IFERROR(SUMPRODUCT(LARGE($C199:$AU199,{1,2,3,4})), "")) ->  | BB199: =IF(BA199<>"",(IFERROR(SUMPRODUCT(LARGE($C199:$AU199,{1,2,3,4,5,6,7})),"")),"") ->  | BC199: =IF(BB199<>"",(IFERROR(SUMPRODUCT(LARGE($C199:$AU199,{1,2,3,4,5,6,7,8})),"")),"") -> 
AW200: 0 | AX200: 0 | AY200: =IF($AX200<=6,SUM($C200:$AU200),SUMPRODUCT(LARGE($C200:$AU200,{1,2,3,4,5,6}))) -> 0 | BA200: =IF(AZ200= "","",IFERROR(SUMPRODUCT(LARGE($C200:$AU200,{1,2,3,4})), "")) ->  | BB200: =IF(BA200<>"",(IFERROR(SUMPRODUCT(LARGE($C200:$AU200,{1,2,3,4,5,6,7})),"")),"") ->  | BC200: =IF(BB200<>"",(IFERROR(SUMPRODUCT(LARGE($C200:$AU200,{1,2,3,4,5,6,7,8})),"")),"") -> 
... 100 more rows

Sheet CC List (hidden)
A1: BCC
A2: BeC | AR2: =SUM(C2:AP2) -> 0
A3: BPCC | AR3: =SUM(C3:AP3) -> 0
A4: BuCC | AR4: 0
A5: CasC | AR5: 0
A6: CeC | AR6: 0
A7: ClC | AR7: 0
A8: CoM | AR8: 0
A9: CrC | AR9: 0
A10: CSI | AR10: 0
A11: CTC | AR11: 0
A12: CWI | AR12: 0
A13: CyC | AR13: 0
A14: DCC | AR14: 0
A15: DVC | AR15: 0
A16: ECC | AR16: 0
A17: ELAC | AR17: 0
A18: EPCC | AR18: 0
A19: EWC | AR19: 0
A20: FC | AR20: 0
A21: GCC | AR21: 0
A22: GCTC | AR22: 0
A23: GrCC | AR23: 0
A24: HCC | AR24: 0
A25: ICC | AR25: 0
A26: IllC | AR26: 0
A27: IVC | AR27: 0
A28: KCCC | AR28: 0
A29: LaCC | AR29: 0
A30: LAVC | AR30: 0
A31: LCC | AR31: 0
A32: Lee | AR32: 0
A33: LSC | AR33: 0
A34: LSCO | AR34: 0
A35: MHCC | AR35: 0
A36: MpC | AR36: 0
A37: MSAC | AR37: 0
A38: MSCC | AR38: 0
A39: MVC | AR39: 0
A40: NCC | AR40: 0
A41: NwC | AR41: 0
A42: OCC | AR42: 0
A43: OCTC | AR43: 0
A44: PaC | AR44: 0
A45: PCC | AR45: 0
A46: PSCC | AR46: 0
A47: RC | AR47: 0
A48: RCC | AR48: 0
A49: RHC | AR49: 0
A50: SaC | AR50: 0
A51: SCC | AR51: 0
A52: SFCC | AR52: 0
A53: SJC | AR53: 0
A54: SJCN | AR54: 0
A55: SnC | AR55: 0
A56: SoC | AR56: 0
A57: StC | AR57: 0
A58: TCC | AR58: 0
A59: TCCNE | AR59: 0
A60: TJC | AR60: 0
A61: TVCC | AR61: 0
A62: VSCC | AR62: 0
A63: WNCC | AR63: 0
A64: WSCC | AR64: 0
A65: WSCC | AR65: 0
A66: WWCC | AR66: 0
AR67: =SUM(C67:AP67) -> 0
AR68: 0
AR69: 0
AR70: 0
AR71: 0
AR72: 0
AR73: 0
AR74: 0
AR75: 0
AR76: 0
AR77: 0
AR78: 0
AR79: 0
AR80: 0
AR81: 0
AR82: 0
AR83: 0
AR84: 0
AR85: 0
AR86: 0
AR87: 0
AR88: 0
AR89: 0
AR90: 0
AR91: 0
AR92: 0
AR93: 0
AR94: 0
AR95: 0
AR96: 0
AR97: 0
AR98: 0
AR99: 0
AR100: 0
AR101: 0
AR102: 0
AR103: 0
AR104: 0
AR105: 0
AR106: 0
AR107: 0
AR108: 0
AR109: 0
AR110: 0
AR111: 0
AR112: 0
AR113: 0
AR114: 0
AR115: 0
AR116: 0
AR117: 0
AR118: 0
AR119: 0
AR120: 0
AR121: 0
AR122: 0
AR123: 0
AR124: 0
AR125: 0
AR126: 0
AR127: 0
AR128: 0
AR129: 0
AR130: 0
AR131: =SUM(C131:AP131) -> 0
AR132: 0
AR133: 0
AR134: 0
AR135: 0
AR136: 0
AR137: 0
AR138: 0
AR139: 0
AR140: 0
AR141: 0
AR142: 0
AR143: 0
AR144: 0
AR145: 0
AR146: 0
AR147: 0
AR148: 0
AR149: 0
AR150: 0
AR151: 0
AR152: 0
AR153: 0
AR154: 0
AR155: 0
AR156: 0
AR157: 0
AR158: 0
AR159: 0
AR160: 0
AR161: 0
AR162: 0
AR163: 0
AR164: 0
AR165: 0
AR166: 0
AR167: 0
AR168: 0
AR169: 0
AR170: 0
AR171: 0
AR172: 0
AR173: 0
AR174: 0
AR175: 0
AR176: 0
AR177: 0
AR178: 0
AR179: 0
AR180: 0
AR181: 0
AR182: 0
AR183: 0
AR184: 0
AR185: 0
AR186: 0
AR187: 0
AR188: 0
AR189: 0
AR190: 0
AR191: 0
AR192: 0
AR193: 0
AR194: 0
AR195: =SUM(C195:AP195) -> 0
AR196: 0
AR197: 0
AR198: 0
AR199: 0
AR200: 0
... 39 more rows

Sheet CC
C1: Lee | D1: CSI | E1: QC1 | F1: QC2 | G1: UU | H1: USM | I1: L&CC | J1: BGSU | K1: LTU | L1: UCM | M1: ClSU | N1: MTSU | O1: LSUS | P1: LU | Q1: UJ | R1: SFCT | S1: SWB | T1: PaU | U1: BGSU2 | V1: WhU | W1: PLNU | X1: FSCJ | Y1: SFCC | AY1: S/L Ranking | AZ1: Head to Head | BA1: H/L | BB1: 7th Tourn. | BC1: 8th Tourn.
B2: Size of Field | C2: =IF(COUNTIFS(C$4:C$1000,"<>"),COUNTIFS(C$4:C$1000,"<>")," ") -> 2 | D2: =IF(COUNTIFS(D$4:D$1000,"<>"),COUNTIFS(D$4:D$1000,"<>")," ") -> 4 | F2: 1 | G2: 3 | I2: 3 | J2: 2 | K2: 3 | L2: 2 | M2: 1 | N2: 2 | O2: 2 | P2: 7 | Q2: 3 | T2: 1 | U2: 2
A3: RANK | B3: Squad | C3: LEE (9/23-25) | D3: CSI (9/23-24) | E3: QC Swing #1 (9/23-24) | F3: QC Swing #2 (9/23-24) | G3: Union (9/30-10/2) | H3: USM (10/7-9) | I3: L&CC (10/7-9) | J3: BGSU #1 (10/14-15) | K3: LTU (10/14-16) | L3: UCM (10/21-23) | M3: CISU (10/21-23) | N3: MTSU (10/28-30) | O3: LSUS (10/21-23) | P3: Linfield (11/11-13) | Q3: Jamestown (12/3-4) | R3: SFCT (1/27-29) | S3: SWB (10/7-9) | T3: PaU (10/14-16) | U3: BGSU #2 (10/14-15) | V3: Whitworth (10/21-22) | W3: PLNU (10/21-23) | X3: FSCJ (11/11-13) | Y3: SFCC/MVC (11/11-13) | AV3: over 6/2nd host | AW3: Total Points | AX3: Tournament Count | AY3: Best Top 6 (National Rank) | AZ3: 1st Tie Breaker | BA3: 2nd Tie Breaker | BB3: 3rd Tie Breaker | BC3: 4th Tie Breaker
B4: BPCC | C4: 29 | G4: 5 | K4: 12 | O4: 19 | Q4: 8 | AW4: =SUM($C4:$AV4) -> 73 | AX4: =COUNTA(C4:AU4) -> 5 | AY4: =IF($AX4<=6,SUM($C4:$AU4),SUMPRODUCT(LARGE($C4:$AU4,{1,2,3,4,5,6}))) -> 73 | AZ4: =IF(AND($AX4>=6,AY4=AY5),"Manual Calc Needed","") ->  | BA4: =IF(AZ4= "","",IFERROR(SUMPRODUCT(LARGE($C4:$AU4,{1,2,3,4})), "")) ->  | BB4: =IF(BA4<>"",(IFERROR(SUMPRODUCT(LARGE($C4:$AU4,{1,2,3,4,5,6,7})),"")),"") ->  | BC4: =IF(BB4<>"",(IFERROR(SUMPRODUCT(LARGE($C4:$AU4,{1,2,3,4,5,6,7,8})),"")),"") -> 
B5: CasC | D5: 6 | P5: 9 | AW5: 15 | AX5: 2 | AY5: =IF($AX5<=6,SUM($C5:$AU5),SUMPRODUCT(LARGE($C5:$AU5,{1,2,3,4,5,6}))) -> 15 | AZ5: =IF(AND($AX5>=6,AY5=AY6),"Manual Calc Needed","") ->  | BA5: =IF(AZ5= "","",IFERROR(SUMPRODUCT(LARGE($C5:$AU5,{1,2,3,4})), "")) ->  | BB5: =IF(BA5<>"",(IFERROR(SUMPRODUCT(LARGE($C5:$AU5,{1,2,3,4,5,6,7})),"")),"") ->  | BC5: =IF(BB5<>"",(IFERROR(SUMPRODUCT(LARGE($C5:$AU5,{1,2,3,4,5,6,7,8})),"")),"") -> 
B6: CEI | P6: 4 | AW6: 4 | AX6: 1 | AY6: =IF($AX6<=6,SUM($C6:$AU6),SUMPRODUCT(LARGE($C6:$AU6,{1,2,3,4,5,6}))) -> 4 | BA6: =IF(AZ6= "","",IFERROR(SUMPRODUCT(LARGE($C6:$AU6,{1,2,3,4})), "")) ->  | BB6: =IF(BA6<>"",(IFERROR(SUMPRODUCT(LARGE($C6:$AU6,{1,2,3,4,5,6,7})),"")),"") ->  | BC6: =IF(BB6<>"",(IFERROR(SUMPRODUCT(LARGE($C6:$AU6,{1,2,3,4,5,6,7,8})),"")),"") -> 
B7: CSCC | M7: 1 | AW7: 1 | AX7: 1 | AY7: =IF($AX7<=6,SUM($C7:$AU7),SUMPRODUCT(LARGE($C7:$AU7,{1,2,3,4,5,6}))) -> 1 | BA7: =IF(AZ7= "","",IFERROR(SUMPRODUCT(LARGE($C7:$AU7,{1,2,3,4})), "")) ->  | BB7: =IF(BA7<>"",(IFERROR(SUMPRODUCT(LARGE($C7:$AU7,{1,2,3,4,5,6,7})),"")),"") ->  | BC7: =IF(BB7<>"",(IFERROR(SUMPRODUCT(LARGE($C7:$AU7,{1,2,3,4,5,6,7,8})),"")),"") -> 
B8: CSI | D8: =3+3+2 -> 8 | P8: 16 | AW8: 24 | AX8: 2 | AY8: =IF($AX8<=6,SUM($C8:$AU8),SUMPRODUCT(LARGE($C8:$AU8,{1,2,3,4,5,6}))) -> 24 | BA8: =IF(AZ8= "","",IFERROR(SUMPRODUCT(LARGE($C8:$AU8,{1,2,3,4})), "")) ->  | BB8: =IF(BA8<>"",(IFERROR(SUMPRODUCT(LARGE($C8:$AU8,{1,2,3,4,5,6,7})),"")),"") ->  | BC8: =IF(BB8<>"",(IFERROR(SUMPRODUCT(LARGE($C8:$AU8,{1,2,3,4,5,6,7,8})),"")),"") -> 
B9: CTC | P9: 2 | AW9: 2 | AX9: 1 | AY9: =IF($AX9<=6,SUM($C9:$AU9),SUMPRODUCT(LARGE($C9:$AU9,{1,2,3,4,5,6}))) -> 2 | BA9: =IF(AZ9= "","",IFERROR(SUMPRODUCT(LARGE($C9:$AU9,{1,2,3,4})), "")) ->  | BB9: =IF(BA9<>"",(IFERROR(SUMPRODUCT(LARGE($C9:$AU9,{1,2,3,4,5,6,7})),"")),"") ->  | BC9: =IF(BB9<>"",(IFERROR(SUMPRODUCT(LARGE($C9:$AU9,{1,2,3,4,5,6,7,8})),"")),"") -> 
B10: CWI | D10: =5+3+3 -> 11 | I10: 41 | P10: 45 | AW10: 97 | AX10: 3 | AY10: =IF($AX10<=6,SUM($C10:$AU10),SUMPRODUCT(LARGE($C10:$AU10,{1,2,3,4,5,6}))) -> 97 | BA10: =IF(AZ10= "","",IFERROR(SUMPRODUCT(LARGE($C10:$AU10,{1,2,3,4})), "")) ->  | BB10: =IF(BA10<>"",(IFERROR(SUMPRODUCT(LARGE($C10:$AU10,{1,2,3,4,5,6,7})),"")),"") ->  | BC10: =IF(BB10<>"",(IFERROR(SUMPRODUCT(LARGE($C10:$AU10,{1,2,3,4,5,6,7,8})),"")),"") -> 
B11: FSCJ | J11: 13 | AW11: 13 | AX11: 1 | AY11: =IF($AX11<=6,SUM($C11:$AU11),SUMPRODUCT(LARGE($C11:$AU11,{1,2,3,4,5,6}))) -> 13 | BA11: =IF(AZ11= "","",IFERROR(SUMPRODUCT(LARGE($C11:$AU11,{1,2,3,4})), "")) ->  | BB11: =IF(BA11<>"",(IFERROR(SUMPRODUCT(LARGE($C11:$AU11,{1,2,3,4,5,6,7})),"")),"") ->  | BC11: =IF(BB11<>"",(IFERROR(SUMPRODUCT(LARGE($C11:$AU11,{1,2,3,4,5,6,7,8})),"")),"") -> 
B12: JSCC | G12: 27 | N12: 19 | Q12: 22 | U12: 7 | AW12: 75 | AX12: 4 | AY12: =IF($AX12<=6,SUM($C12:$AU12),SUMPRODUCT(LARGE($C12:$AU12,{1,2,3,4,5,6}))) -> 75 | BA12: =IF(AZ12= "","",IFERROR(SUMPRODUCT(LARGE($C12:$AU12,{1,2,3,4})), "")) ->  | BB12: =IF(BA12<>"",(IFERROR(SUMPRODUCT(LARGE($C12:$AU12,{1,2,3,4,5,6,7})),"")),"") ->  | BC12: =IF(BB12<>"",(IFERROR(SUMPRODUCT(LARGE($C12:$AU12,{1,2,3,4,5,6,7,8})),"")),"") -> 
B13: LCC | I13: 9 | AW13: 9 | AX13: 1 | AY13: =IF($AX13<=6,SUM($C13:$AU13),SUMPRODUCT(LARGE($C13:$AU13,{1,2,3,4,5,6}))) -> 9 | BA13: =IF(AZ13= "","",IFERROR(SUMPRODUCT(LARGE($C13:$AU13,{1,2,3,4})), "")) ->  | BB13: =IF(BA13<>"",(IFERROR(SUMPRODUCT(LARGE($C13:$AU13,{1,2,3,4,5,6,7})),"")),"") ->  | BC13: =IF(BB13<>"",(IFERROR(SUMPRODUCT(LARGE($C13:$AU13,{1,2,3,4,5,6,7,8})),"")),"") -> 
B14: Lee | C14: 1 | G14: 13 | K14: 30 | O14: 30 | Q14: 19 | AW14: 93 | AX14: 5 | AY14: =IF($AX14<=6,SUM($C14:$AU14),SUMPRODUCT(LARGE($C14:$AU14,{1,2,3,4,5,6}))) -> 93 | BA14: =IF(AZ14= "","",IFERROR(SUMPRODUCT(LARGE($C14:$AU14,{1,2,3,4})), "")) ->  | BB14: =IF(BA14<>"",(IFERROR(SUMPRODUCT(LARGE($C14:$AU14,{1,2,3,4,5,6,7})),"")),"") ->  | BC14: =IF(BB14<>"",(IFERROR(SUMPRODUCT(LARGE($C14:$AU14,{1,2,3,4,5,6,7,8})),"")),"") -> 
B15: MVC | J15: 1 | AW15: 1 | AX15: 1 | AY15: =IF($AX15<=6,SUM($C15:$AU15),SUMPRODUCT(LARGE($C15:$AU15,{1,2,3,4,5,6}))) -> 1 | BA15: =IF(AZ15= "","",IFERROR(SUMPRODUCT(LARGE($C15:$AU15,{1,2,3,4})), "")) ->  | BB15: =IF(BA15<>"",(IFERROR(SUMPRODUCT(LARGE($C15:$AU15,{1,2,3,4,5,6,7})),"")),"") ->  | BC15: =IF(BB15<>"",(IFERROR(SUMPRODUCT(LARGE($C15:$AU15,{1,2,3,4,5,6,7,8})),"")),"") -> 
B16: NWC | D16: 1 | I16: 11 | P16: 13 | AW16: 25 | AX16: 3 | AY16: =IF($AX16<=6,SUM($C16:$AU16),SUMPRODUCT(LARGE($C16:$AU16,{1,2,3,4,5,6}))) -> 25 | BA16: =IF(AZ16= "","",IFERROR(SUMPRODUCT(LARGE($C16:$AU16,{1,2,3,4})), "")) ->  | BB16: =IF(BA16<>"",(IFERROR(SUMPRODUCT(LARGE($C16:$AU16,{1,2,3,4,5,6,7})),"")),"") ->  | BC16: =IF(BB16<>"",(IFERROR(SUMPRODUCT(LARGE($C16:$AU16,{1,2,3,4,5,6,7,8})),"")),"") -> 
B17: OCTC | U17: 1 | AW17: 1 | AX17: 1 | AY17: =IF($AX17<=6,SUM($C17:$AU17),SUMPRODUCT(LARGE($C17:$AU17,{1,2,3,4,5,6}))) -> 1 | BA17: =IF(AZ17= "","",IFERROR(SUMPRODUCT(LARGE($C17:$AU17,{1,2,3,4})), "")) ->  | BB17: =IF(BA17<>"",(IFERROR(SUMPRODUCT(LARGE($C17:$AU17,{1,2,3,4,5,6,7})),"")),"") ->  | BC17: =IF(BB17<>"",(IFERROR(SUMPRODUCT(LARGE($C17:$AU17,{1,2,3,4,5,6,7,8})),"")),"") -> 
B18: PSCC | N18: 5 | AW18: 5 | AX18: 1 | AY18: =IF($AX18<=6,SUM($C18:$AU18),SUMPRODUCT(LARGE($C18:$AU18,{1,2,3,4,5,6}))) -> 5 | BA18: =IF(AZ18= "","",IFERROR(SUMPRODUCT(LARGE($C18:$AU18,{1,2,3,4})), "")) ->  | BB18: =IF(BA18<>"",(IFERROR(SUMPRODUCT(LARGE($C18:$AU18,{1,2,3,4,5,6,7})),"")),"") ->  | BC18: =IF(BB18<>"",(IFERROR(SUMPRODUCT(LARGE($C18:$AU18,{1,2,3,4,5,6,7,8})),"")),"") -> 
B19: SFCC | L19: 4 | T19: 8 | AW19: 12 | AX19: 2 | AY19: =IF($AX19<=6,SUM($C19:$AU19),SUMPRODUCT(LARGE($C19:$AU19,{1,2,3,4,5,6}))) -> 12 | BA19: =IF(AZ19= "","",IFERROR(SUMPRODUCT(LARGE($C19:$AU19,{1,2,3,4})), "")) ->  | BB19: =IF(BA19<>"",(IFERROR(SUMPRODUCT(LARGE($C19:$AU19,{1,2,3,4,5,6,7})),"")),"") ->  | BC19: =IF(BB19<>"",(IFERROR(SUMPRODUCT(LARGE($C19:$AU19,{1,2,3,4,5,6,7,8})),"")),"") -> 
B20: TC | F20: 1 | AW20: 1 | AX20: 1 | AY20: =IF($AX20<=6,SUM($C20:$AU20),SUMPRODUCT(LARGE($C20:$AU20,{1,2,3,4,5,6}))) -> 1 | BA20: =IF(AZ20= "","",IFERROR(SUMPRODUCT(LARGE($C20:$AU20,{1,2,3,4})), "")) ->  | BB20: =IF(BA20<>"",(IFERROR(SUMPRODUCT(LARGE($C20:$AU20,{1,2,3,4,5,6,7})),"")),"") ->  | BC20: =IF(BB20<>"",(IFERROR(SUMPRODUCT(LARGE($C20:$AU20,{1,2,3,4,5,6,7,8})),"")),"") -> 
B21: TCC | L21: 6 | P21: 2 | AW21: 8 | AX21: 2 | AY21: =IF($AX21<=6,SUM($C21:$AU21),SUMPRODUCT(LARGE($C21:$AU21,{1,2,3,4,5,6}))) -> 8 | BA21: =IF(AZ21= "","",IFERROR(SUMPRODUCT(LARGE($C21:$AU21,{1,2,3,4})), "")) ->  | BB21: =IF(BA21<>"",(IFERROR(SUMPRODUCT(LARGE($C21:$AU21,{1,2,3,4,5,6,7})),"")),"") ->  | BC21: =IF(BB21<>"",(IFERROR(SUMPRODUCT(LARGE($C21:$AU21,{1,2,3,4,5,6,7,8})),"")),"") -> 
B22: UACCB | K22: 3 | AW22: 3 | AX22: 1 | AY22: =IF($AX22<=6,SUM($C22:$AU22),SUMPRODUCT(LARGE($C22:$AU22,{1,2,3,4,5,6}))) -> 3 | BA22: =IF(AZ22= "","",IFERROR(SUMPRODUCT(LARGE($C22:$AU22,{1,2,3,4})), "")) ->  | BB22: =IF(BA22<>"",(IFERROR(SUMPRODUCT(LARGE($C22:$AU22,{1,2,3,4,5,6,7})),"")),"") ->  | BC22: =IF(BB22<>"",(IFERROR(SUMPRODUCT(LARGE($C22:$AU22,{1,2,3,4,5,6,7,8})),"")),"") -> 
B23: WSCC | AW23: 0 | AX23: 0 | AY23: =IF($AX23<=6,SUM($C23:$AU23),SUMPRODUCT(LARGE($C23:$AU23,{1,2,3,4,5,6}))) -> 0 | BA23: =IF(AZ23= "","",IFERROR(SUMPRODUCT(LARGE($C23:$AU23,{1,2,3,4})), "")) ->  | BB23: =IF(BA23<>"",(IFERROR(SUMPRODUCT(LARGE($C23:$AU23,{1,2,3,4,5,6,7})),"")),"") ->  | BC23: =IF(BB23<>"",(IFERROR(SUMPRODUCT(LARGE($C23:$AU23,{1,2,3,4,5,6,7,8})),"")),"") -> 
AW24: 0 | AX24: 0 | AY24: =IF($AX24<=6,SUM($C24:$AU24),SUMPRODUCT(LARGE($C24:$AU24,{1,2,3,4,5,6}))) -> 0 | BA24: =IF(AZ24= "","",IFERROR(SUMPRODUCT(LARGE($C24:$AU24,{1,2,3,4})), "")) ->  | BB24: =IF(BA24<>"",(IFERROR(SUMPRODUCT(LARGE($C24:$AU24,{1,2,3,4,5,6,7})),"")),"") ->  | BC24: =IF(BB24<>"",(IFERROR(SUMPRODUCT(LARGE($C24:$AU24,{1,2,3,4,5,6,7,8})),"")),"") -> 
AW25: 0 | AX25: 0 | AY25: =IF($AX25<=6,SUM($C25:$AU25),SUMPRODUCT(LARGE($C25:$AU25,{1,2,3,4,5,6}))) -> 0 | BA25: =IF(AZ25= "","",IFERROR(SUMPRODUCT(LARGE($C25:$AU25,{1,2,3,4})), "")) ->  | BB25: =IF(BA25<>"",(IFERROR(SUMPRODUCT(LARGE($C25:$AU25,{1,2,3,4,5,6,7})),"")),"") ->  | BC25: =IF(BB25<>"",(IFERROR(SUMPRODUCT(LARGE($C25:$AU25,{1,2,3,4,5,6,7,8})),"")),"") -> 
AW26: 0 | AX26: 0 | AY26: =IF($AX26<=6,SUM($C26:$AU26),SUMPRODUCT(LARGE($C26:$AU26,{1,2,3,4,5,6}))) -> 0 | BA26: =IF(AZ26= "","",IFERROR(SUMPRODUCT(LARGE($C26:$AU26,{1,2,3,4})), "")) ->  | BB26: =IF(BA26<>"",(IFERROR(SUMPRODUCT(LARGE($C26:$AU26,{1,2,3,4,5,6,7})),"")),"") ->  | BC26: =IF(BB26<>"",(IFERROR(SUMPRODUCT(LARGE($C26:$AU26,{1,2,3,4,5,6,7,8})),"")),"") -> 
AW27: 0 | AX27: 0 | AY27: =IF($AX27<=6,SUM($C27:$AU27),SUMPRODUCT(LARGE($C27:$AU27,{1,2,3,4,5,6}))) -> 0 | BA27: =IF(AZ27= "","",IFERROR(SUMPRODUCT(LARGE($C27:$AU27,{1,2,3,4})), "")) ->  | BB27: =IF(BA27<>"",(IFERROR(SUMPRODUCT(LARGE($C27:$AU27,{1,2,3,4,5,6,7})),"")),"") ->  | BC27: =IF(BB27<>"",(IFERROR(SUMPRODUCT(LARGE($C27:$AU27,{1,2,3,4,5,6,7,8})),"")),"") -> 
AW28: 0 | AX28: 0 | AY28: =IF($AX28<=6,SUM($C28:$AU28),SUMPRODUCT(LARGE($C28:$AU28,{1,2,3,4,5,6}))) -> 0 | BA28: =IF(AZ28= "","",IFERROR(SUMPRODUCT(LARGE($C28:$AU28,{1,2,3,4})), "")) ->  | BB28: =IF(BA28<>"",(IFERROR(SUMPRODUCT(LARGE($C28:$AU28,{1,2,3,4,5,6,7})),"")),"") ->  | BC28: =IF(BB28<>"",(IFERROR(SUMPRODUCT(LARGE($C28:$AU28,{1,2,3,4,5,6,7,8})),"")),"") -> 
AW29: 0 | AX29: 0 | AY29: =IF($AX29<=6,SUM($C29:$AU29),SUMPRODUCT(LARGE($C29:$AU29,{1,2,3,4,5,6}))) -> 0 | BA29: =IF(AZ29= "","",IFERROR(SUMPRODUCT(LARGE($C29:$AU29,{1,2,3,4})), "")) ->  | BB29: =IF(BA29<>"",(IFERROR(SUMPRODUCT(LARGE($C29:$AU29,{1,2,3,4,5,6,7})),"")),"") ->  | BC29: =IF(BB29<>"",(IFERROR(SUMPRODUCT(LARGE($C29:$AU29,{1,2,3,4,5,6,7,8})),"")),"") -> 
AW30: 0 | AX30: 0 | AY30: =IF($AX30<=6,SUM($C30:$AU30),SUMPRODUCT(LARGE($C30:$AU30,{1,2,3,4,5,6}))) -> 0 | BA30: =IF(AZ30= "","",IFERROR(SUMPRODUCT(LARGE($C30:$AU30,{1,2,3,4})), "")) ->  | BB30: =IF(BA30<>"",(IFERROR(SUMPRODUCT(LARGE($C30:$AU30,{1,2,3,4,5,6,7})),"")),"") ->  | BC30: =IF(BB30<>"",(IFERROR(SUMPRODUCT(LARGE($C30:$AU30,{1,2,3,4,5,6,7,8})),"")),"") -> 
AW31: 0 | AX31: 0 | AY31: =IF($AX31<=6,SUM($C31:$AU31),SUMPRODUCT(LARGE($C31:$AU31,{1,2,3,4,5,6}))) -> 0 | BA31: =IF(AZ31= "","",IFERROR(SUMPRODUCT(LARGE($C31:$AU31,{1,2,3,4})), "")) ->  | BB31: =IF(BA31<>"",(IFERROR(SUMPRODUCT(LARGE($C31:$AU31,{1,2,3,4,5,6,7})),"")),"") ->  | BC31: =IF(BB31<>"",(IFERROR(SUMPRODUCT(LARGE($C31:$AU31,{1,2,3,4,5,6,7,8})),"")),"") -> 
AW32: 0 | AX32: 0 | AY32: =IF($AX32<=6,SUM($C32:$AU32),SUMPRODUCT(LARGE($C32:$AU32,{1,2,3,4,5,6}))) -> 0 | BA32: =IF(AZ32= "","",IFERROR(SUMPRODUCT(LARGE($C32:$AU32,{1,2,3,4})), "")) ->  | BB32: =IF(BA32<>"",(IFERROR(SUMPRODUCT(LARGE($C32:$AU32,{1,2,3,4,5,6,7})),"")),"") ->  | BC32: =IF(BB32<>"",(IFERROR(SUMPRODUCT(LARGE($C32:$AU32,{1,2,3,4,5,6,7,8})),"")),"") -> 
AW33: 0 | AX33: 0 | AY33: =IF($AX33<=6,SUM($C33:$AU33),SUMPRODUCT(LARGE($C33:$AU33,{1,2,3,4,5,6}))) -> 0 | BA33: =IF(AZ33= "","",IFERROR(SUMPRODUCT(LARGE($C33:$AU33,{1,2,3,4})), "")) ->  | BB33: =IF(BA33<>"",(IFERROR(SUMPRODUCT(LARGE($C33:$AU33,{1,2,3,4,5,6,7})),"")),"") ->  | BC33: =IF(BB33<>"",(IFERROR(SUMPRODUCT(LARGE($C33:$AU33,{1,2,3,4,5,6,7,8})),"")),"") -> 
AW34: 0 | AX34: 0 | AY34: =IF($AX34<=6,SUM($C34:$AU34),SUMPRODUCT(LARGE($C34:$AU34,{1,2,3,4,5,6}))) -> 0 | BA34: =IF(AZ34= "","",IFERROR(SUMPRODUCT(LARGE($C34:$AU34,{1,2,3,4})), "")) ->  | BB34: =IF(BA34<>"",(IFERROR(SUMPRODUCT(LARGE($C34:$AU34,{1,2,3,4,5,6,7})),"")),"") ->  | BC34: =IF(BB34<>"",(IFERROR(SUMPRODUCT(LARGE($C34:$AU34,{1,2,3,4,5,6,7,8})),"")),"") -> 
AW35: 0 | AX35: 0 | AY35: =IF($AX35<=6,SUM($C35:$AU35),SUMPRODUCT(LARGE($C35:$AU35,{1,2,3,4,5,6}))) -> 0 | BA35: =IF(AZ35= "","",IFERROR(SUMPRODUCT(LARGE($C35:$AU35,{1,2,3,4})), "")) ->  | BB35: =IF(BA35<>"",(IFERROR(SUMPRODUCT(LARGE($C35:$AU35,{1,2,3,4,5,6,7})),"")),"") ->  | BC35: =IF(BB35<>"",(IFERROR(SUMPRODUCT(LARGE($C35:$AU35,{1,2,3,4,5,6,7,8})),"")),"") -> 
AW36: 0 | AX36: 0 | AY36: =IF($AX36<=6,SUM($C36:$AU36),SUMPRODUCT(LARGE($C36:$AU36,{1,2,3,4,5,6}))) -> 0 | BA36: =IF(AZ36= "","",IFERROR(SUMPRODUCT(LARGE($C36:$AU36,{1,2,3,4})), "")) ->  | BB36: =IF(BA36<>"",(IFERROR(SUMPRODUCT(LARGE($C36:$AU36,{1,2,3,4,5,6,7})),"")),"") ->  | BC36: =IF(BB36<>"",(IFERROR(SUMPRODUCT(LARGE($C36:$AU36,{1,2,3,4,5,6,7,8})),"")),"") -> 
AW37: 0 | AX37: 0 | AY37: =IF($AX37<=6,SUM($C37:$AU37),SUMPRODUCT(LARGE($C37:$AU37,{1,2,3,4,5,6}))) -> 0 | BA37: =IF(AZ37= "","",IFERROR(SUMPRODUCT(LARGE($C37:$AU37,{1,2,3,4})), "")) ->  | BB37: =IF(BA37<>"",(IFERROR(SUMPRODUCT(LARGE($C37:$AU37,{1,2,3,4,5,6,7})),"")),"") ->  | BC37: =IF(BB37<>"",(IFERROR(SUMPRODUCT(LARGE($C37:$AU37,{1,2,3,4,5,6,7,8})),"")),"") -> 
AW38: 0 | AX38: 0 | AY38: =IF($AX38<=6,SUM($C38:$AU38),SUMPRODUCT(LARGE($C38:$AU38,{1,2,3,4,5,6}))) -> 0 | BA38: =IF(AZ38= "","",IFERROR(SUMPRODUCT(LARGE($C38:$AU38,{1,2,3,4})), "")) ->  | BB38: =IF(BA38<>"",(IFERROR(SUMPRODUCT(LARGE($C38:$AU38,{1,2,3,4,5,6,7})),"")),"") ->  | BC38: =IF(BB38<>"",(IFERROR(SUMPRODUCT(LARGE($C38:$AU38,{1,2,3,4,5,6,7,8})),"")),"") -> 
AW39: 0 | AX39: 0 | AY39: =IF($AX39<=6,SUM($C39:$AU39),SUMPRODUCT(LARGE($C39:$AU39,{1,2,3,4,5,6}))) -> 0 | BA39: =IF(AZ39= "","",IFERROR(SUMPRODUCT(LARGE($C39:$AU39,{1,2,3,4})), "")) ->  | BB39: =IF(BA39<>"",(IFERROR(SUMPRODUCT(LARGE($C39:$AU39,{1,2,3,4,5,6,7})),"")),"") ->  | BC39: =IF(BB39<>"",(IFERROR(SUMPRODUCT(LARGE($C39:$AU39,{1,2,3,4,5,6,7,8})),"")),"") -> 
AW40: 0 | AX40: 0 | AY40: =IF($AX40<=6,SUM($C40:$AU40),SUMPRODUCT(LARGE($C40:$AU40,{1,2,3,4,5,6}))) -> 0 | BA40: =IF(AZ40= "","",IFERROR(SUMPRODUCT(LARGE($C40:$AU40,{1,2,3,4})), "")) ->  | BB40: =IF(BA40<>"",(IFERROR(SUMPRODUCT(LARGE($C40:$AU40,{1,2,3,4,5,6,7})),"")),"") ->  | BC40: =IF(BB40<>"",(IFERROR(SUMPRODUCT(LARGE($C40:$AU40,{1,2,3,4,5,6,7,8})),"")),"") -> 
AW41: 0 | AX41: 0 | AY41: =IF($AX41<=6,SUM($C41:$AU41),SUMPRODUCT(LARGE($C41:$AU41,{1,2,3,4,5,6}))) -> 0 | BA41: =IF(AZ41= "","",IFERROR(SUMPRODUCT(LARGE($C41:$AU41,{1,2,3,4})), "")) ->  | BB41: =IF(BA41<>"",(IFERROR(SUMPRODUCT(LARGE($C41:$AU41,{1,2,3,4,5,6,7})),"")),"") ->  | BC41: =IF(BB41<>"",(IFERROR(SUMPRODUCT(LARGE($C41:$AU41,{1,2,3,4,5,6,7,8})),"")),"") -> 
AW42: 0 | AX42: 0 | AY42: =IF($AX42<=6,SUM($C42:$AU42),SUMPRODUCT(LARGE($C42:$AU42,{1,2,3,4,5,6}))) -> 0 | BA42: =IF(AZ42= "","",IFERROR(SUMPRODUCT(LARGE($C42:$AU42,{1,2,3,4})), "")) ->  | BB42: =IF(BA42<>"",(IFERROR(SUMPRODUCT(LARGE($C42:$AU42,{1,2,3,4,5,6,7})),"")),"") ->  | BC42: =IF(BB42<>"",(IFERROR(SUMPRODUCT(LARGE($C42:$AU42,{1,2,3,4,5,6,7,8})),"")),"") -> 
AW43: 0 | AX43: 0 | AY43: =IF($AX43<=6,SUM($C43:$AU43),SUMPRODUCT(LARGE($C43:$AU43,{1,2,3,4,5,6}))) -> 0 | BA43: =IF(AZ43= "","",IFERROR(SUMPRODUCT(LARGE($C43:$AU43,{1,2,3,4})), "")) ->  | BB43: =IF(BA43<>"",(IFERROR(SUMPRODUCT(LARGE($C43:$AU43,{1,2,3,4,5,6,7})),"")),"") ->  | BC43: =IF(BB43<>"",(IFERROR(SUMPRODUCT(LARGE($C43:$AU43,{1,2,3,4,5,6,7,8})),"")),"") -> 
AW44: 0 | AX44: 0 | AY44: =IF($AX44<=6,SUM($C44:$AU44),SUMPRODUCT(LARGE($C44:$AU44,{1,2,3,4,5,6}))) -> 0 | BA44: =IF(AZ44= "","",IFERROR(SUMPRODUCT(LARGE($C44:$AU44,{1,2,3,4})), "")) ->  | BB44: =IF(BA44<>"",(IFERROR(SUMPRODUCT(LARGE($C44:$AU44,{1,2,3,4,5,6,7})),"")),"") ->  | BC44: =IF(BB44<>"",(IFERROR(SUMPRODUCT(LARGE($C44:$AU44,{1,2,3,4,5,6,7,8})),"")),"") -> 
AW45: 0 | AX45: 0 | AY45: =IF($AX45<=6,SUM($C45:$AU45),SUMPRODUCT(LARGE($C45:$AU45,{1,2,3,4,5,6}))) -> 0 | BA45: =IF(AZ45= "","",IFERROR(SUMPRODUCT(LARGE($C45:$AU45,{1,2,3,4})), "")) ->  | BB45: =IF(BA45<>"",(IFERROR(SUMPRODUCT(LARGE($C45:$AU45,{1,2,3,4,5,6,7})),"")),"") ->  | BC45: =IF(BB45<>"",(IFERROR(SUMPRODUCT(LARGE($C45:$AU45,{1,2,3,4,5,6,7,8})),"")),"") -> 
AW46: 0 | AX46: 0 | AY46: =IF($AX46<=6,SUM($C46:$AU46),SUMPRODUCT(LARGE($C46:$AU46,{1,2,3,4,5,6}))) -> 0 | BA46: =IF(AZ46= "","",IFERROR(SUMPRODUCT(LARGE($C46:$AU46,{1,2,3,4})), "")) ->  | BB46: =IF(BA46<>"",(IFERROR(SUMPRODUCT(LARGE($C46:$AU46,{1,2,3,4,5,6,7})),"")),"") ->  | BC46: =IF(BB46<>"",(IFERROR(SUMPRODUCT(LARGE($C46:$AU46,{1,2,3,4,5,6,7,8})),"")),"") -> 
AW47: 0 | AX47: 0 | AY47: =IF($AX47<=6,SUM($C47:$AU47),SUMPRODUCT(LARGE($C47:$AU47,{1,2,3,4,5,6}))) -> 0 | BA47: =IF(AZ47= "","",IFERROR(SUMPRODUCT(LARGE($C47:$AU47,{1,2,3,4})), "")) ->  | BB47: =IF(BA47<>"",(IFERROR(SUMPRODUCT(LARGE($C47:$AU47,{1,2,3,4,5,6,7})),"")),"") ->  | BC47: =IF(BB47<>"",(IFERROR(SUMPRODUCT(LARGE($C47:$AU47,{1,2,3,4,5,6,7,8})),"")),"") -> 
AW48: 0 | AX48: 0 | AY48: =IF($AX48<=6,SUM($C48:$AU48),SUMPRODUCT(LARGE($C48:$AU48,{1,2,3,4,5,6}))) -> 0 | BA48: =IF(AZ48= "","",IFERROR(SUMPRODUCT(LARGE($C48:$AU48,{1,2,3,4})), "")) ->  | BB48: =IF(BA48<>"",(IFERROR(SUMPRODUCT(LARGE($C48:$AU48,{1,2,3,4,5,6,7})),"")),"") ->  | BC48: =IF(BB48<>"",(IFERROR(SUMPRODUCT(LARGE($C48:$AU48,{1,2,3,4,5,6,7,8})),"")),"") -> 
AW49: 0 | AX49: 0 | AY49: =IF($AX49<=6,SUM($C49:$AU49),SUMPRODUCT(LARGE($C49:$AU49,{1,2,3,4,5,6}))) -> 0 | BA49: =IF(AZ49= "","",IFERROR(SUMPRODUCT(LARGE($C49:$AU49,{1,2,3,4})), "")) ->  | BB49: =IF(BA49<>"",(IFERROR(SUMPRODUCT(LARGE($C49:$AU49,{1,2,3,4,5,6,7})),"")),"") ->  | BC49: =IF(BB49<>"",(IFERROR(SUMPRODUCT(LARGE($C49:$AU49,{1,2,3,4,5,6,7,8})),"")),"") -> 
AW50: 0 | AX50: 0 | AY50: =IF($AX50<=6,SUM($C50:$AU50),SUMPRODUCT(LARGE($C50:$AU50,{1,2,3,4,5,6}))) -> 0 | BA50: =IF(AZ50= "","",IFERROR(SUMPRODUCT(LARGE($C50:$AU50,{1,2,3,4})), "")) ->  | BB50: =IF(BA50<>"",(IFERROR(SUMPRODUCT(LARGE($C50:$AU50,{1,2,3,4,5,6,7})),"")),"") ->  | BC50: =IF(BB50<>"",(IFERROR(SUMPRODUCT(LARGE($C50:$AU50,{1,2,3,4,5,6,7,8})),"")),"") -> 
AW51: 0 | AX51: 0 | AY51: =IF($AX51<=6,SUM($C51:$AU51),SUMPRODUCT(LARGE($C51:$AU51,{1,2,3,4,5,6}))) -> 0 | BA51: =IF(AZ51= "","",IFERROR(SUMPRODUCT(LARGE($C51:$AU51,{1,2,3,4})), "")) ->  | BB51: =IF(BA51<>"",(IFERROR(SUMPRODUCT(LARGE($C51:$AU51,{1,2,3,4,5,6,7})),"")),"") ->  | BC51: =IF(BB51<>"",(IFERROR(SUMPRODUCT(LARGE($C51:$AU51,{1,2,3,4,5,6,7,8})),"")),"") -> 
AW52: 0 | AX52: 0 | AY52: =IF($AX52<=6,SUM($C52:$AU52),SUMPRODUCT(LARGE($C52:$AU52,{1,2,3,4,5,6}))) -> 0 | BA52: =IF(AZ52= "","",IFERROR(SUMPRODUCT(LARGE($C52:$AU52,{1,2,3,4})), "")) ->  | BB52: =IF(BA52<>"",(IFERROR(SUMPRODUCT(LARGE($C52:$AU52,{1,2,3,4,5,6,7})),"")),"") ->  | BC52: =IF(BB52<>"",(IFERROR(SUMPRODUCT(LARGE($C52:$AU52,{1,2,3,4,5,6,7,8})),"")),"") -> 
AW53: 0 | AX53: 0 | AY53: =IF($AX53<=6,SUM($C53:$AU53),SUMPRODUCT(LARGE($C53:$AU53,{1,2,3,4,5,6}))) -> 0 | BA53: =IF(AZ53= "","",IFERROR(SUMPRODUCT(LARGE($C53:$AU53,{1,2,3,4})), "")) ->  | BB53: =IF(BA53<>"",(IFERROR(SUMPRODUCT(LARGE($C53:$AU53,{1,2,3,4,5,6,7})),"")),"") ->  | BC53: =IF(BB53<>"",(IFERROR(SUMPRODUCT(LARGE($C53:$AU53,{1,2,3,4,5,6,7,8})),"")),"") -> 
AW54: 0 | AX54: 0 | AY54: =IF($AX54<=6,SUM($C54:$AU54),SUMPRODUCT(LARGE($C54:$AU54,{1,2,3,4,5,6}))) -> 0 | BA54: =IF(AZ54= "","",IFERROR(SUMPRODUCT(LARGE($C54:$AU54,{1,2,3,4})), "")) ->  | BB54: =IF(BA54<>"",(IFERROR(SUMPRODUCT(LARGE($C54:$AU54,{1,2,3,4,5,6,7})),"")),"") ->  | BC54: =IF(BB54<>"",(IFERROR(SUMPRODUCT(LARGE($C54:$AU54,{1,2,3,4,5,6,7,8})),"")),"") -> 
AW55: 0 | AX55: 0 | AY55: =IF($AX55<=6,SUM($C55:$AU55),SUMPRODUCT(LARGE($C55:$AU55,{1,2,3,4,5,6}))) -> 0 | BA55: =IF(AZ55= "","",IFERROR(SUMPRODUCT(LARGE($C55:$AU55,{1,2,3,4})), "")) ->  | BB55: =IF(BA55<>"",(IFERROR(SUMPRODUCT(LARGE($C55:$AU55,{1,2,3,4,5,6,7})),"")),"") ->  | BC55: =IF(BB55<>"",(IFERROR(SUMPRODUCT(LARGE($C55:$AU55,{1,2,3,4,5,6,7,8})),"")),"") -> 
AW56: 0 | AX56: 0 | AY56: =IF($AX56<=6,SUM($C56:$AU56),SUMPRODUCT(LARGE($C56:$AU56,{1,2,3,4,5,6}))) -> 0 | BA56: =IF(AZ56= "","",IFERROR(SUMPRODUCT(LARGE($C56:$AU56,{1,2,3,4})), "")) ->  | BB56: =IF(BA56<>"",(IFERROR(SUMPRODUCT(LARGE($C56:$AU56,{1,2,3,4,5,6,7})),"")),"") ->  | BC56: =IF(BB56<>"",(IFERROR(SUMPRODUCT(LARGE($C56:$AU56,{1,2,3,4,5,6,7,8})),"")),"") -> 
AW57: 0 | AX57: 0 | AY57: =IF($AX57<=6,SUM($C57:$AU57),SUMPRODUCT(LARGE($C57:$AU57,{1,2,3,4,5,6}))) -> 0 | BA57: =IF(AZ57= "","",IFERROR(SUMPRODUCT(LARGE($C57:$AU57,{1,2,3,4})), "")) ->  | BB57: =IF(BA57<>"",(IFERROR(SUMPRODUCT(LARGE($C57:$AU57,{1,2,3,4,5,6,7})),"")),"") ->  | BC57: =IF(BB57<>"",(IFERROR(SUMPRODUCT(LARGE($C57:$AU57,{1,2,3,4,5,6,7,8})),"")),"") -> 
AW58: 0 | AX58: 0 | AY58: =IF($AX58<=6,SUM($C58:$AU58),SUMPRODUCT(LARGE($C58:$AU58,{1,2,3,4,5,6}))) -> 0 | BA58: =IF(AZ58= "","",IFERROR(SUMPRODUCT(LARGE($C58:$AU58,{1,2,3,4})), "")) ->  | BB58: =IF(BA58<>"",(IFERROR(SUMPRODUCT(LARGE($C58:$AU58,{1,2,3,4,5,6,7})),"")),"") ->  | BC58: =IF(BB58<>"",(IFERROR(SUMPRODUCT(LARGE($C58:$AU58,{1,2,3,4,5,6,7,8})),"")),"") -> 
AW59: 0 | AX59: 0 | AY59: =IF($AX59<=6,SUM($C59:$AU59),SUMPRODUCT(LARGE($C59:$AU59,{1,2,3,4,5,6}))) -> 0 | BA59: =IF(AZ59= "","",IFERROR(SUMPRODUCT(LARGE($C59:$AU59,{1,2,3,4})), "")) ->  | BB59: =IF(BA59<>"",(IFERROR(SUMPRODUCT(LARGE($C59:$AU59,{1,2,3,4,5,6,7})),"")),"") ->  | BC59: =IF(BB59<>"",(IFERROR(SUMPRODUCT(LARGE($C59:$AU59,{1,2,3,4,5,6,7,8})),"")),"") -> 
AW60: 0 | AX60: 0 | AY60: =IF($AX60<=6,SUM($C60:$AU60),SUMPRODUCT(LARGE($C60:$AU60,{1,2,3,4,5,6}))) -> 0 | BA60: =IF(AZ60= "","",IFERROR(SUMPRODUCT(LARGE($C60:$AU60,{1,2,3,4})), "")) ->  | BB60: =IF(BA60<>"",(IFERROR(SUMPRODUCT(LARGE($C60:$AU60,{1,2,3,4,5,6,7})),"")),"") ->  | BC60: =IF(BB60<>"",(IFERROR(SUMPRODUCT(LARGE($C60:$AU60,{1,2,3,4,5,6,7,8})),"")),"") -> 
AW61: 0 | AX61: 0 | AY61: =IF($AX61<=6,SUM($C61:$AU61),SUMPRODUCT(LARGE($C61:$AU61,{1,2,3,4,5,6}))) -> 0 | BA61: =IF(AZ61= "","",IFERROR(SUMPRODUCT(LARGE($C61:$AU61,{1,2,3,4})), "")) ->  | BB61: =IF(BA61<>"",(IFERROR(SUMPRODUCT(LARGE($C61:$AU61,{1,2,3,4,5,6,7})),"")),"") ->  | BC61: =IF(BB61<>"",(IFERROR(SUMPRODUCT(LARGE($C61:$AU61,{1,2,3,4,5,6,7,8})),"")),"") -> 
AW62: 0 | AX62: 0 | AY62: =IF($AX62<=6,SUM($C62:$AU62),SUMPRODUCT(LARGE($C62:$AU62,{1,2,3,4,5,6}))) -> 0 | BA62: =IF(AZ62= "","",IFERROR(SUMPRODUCT(LARGE($C62:$AU62,{1,2,3,4})), "")) ->  | BB62: =IF(BA62<>"",(IFERROR(SUMPRODUCT(LARGE($C62:$AU62,{1,2,3,4,5,6,7})),"")),"") ->  | BC62: =IF(BB62<>"",(IFERROR(SUMPRODUCT(LARGE($C62:$AU62,{1,2,3,4,5,6,7,8})),"")),"") -> 
AW63: 0 | AX63: 0 | AY63: =IF($AX63<=6,SUM($C63:$AU63),SUMPRODUCT(LARGE($C63:$AU63,{1,2,3,4,5,6}))) -> 0 | BA63: =IF(AZ63= "","",IFERROR(SUMPRODUCT(LARGE($C63:$AU63,{1,2,3,4})), "")) ->  | BB63: =IF(BA63<>"",(IFERROR(SUMPRODUCT(LARGE($C63:$AU63,{1,2,3,4,5,6,7})),"")),"") ->  | BC63: =IF(BB63<>"",(IFERROR(SUMPRODUCT(LARGE($C63:$AU63,{1,2,3,4,5,6,7,8})),"")),"") -> 
AW64: 0 | AX64: 0 | AY64: =IF($AX64<=6,SUM($C64:$AU64),SUMPRODUCT(LARGE($C64:$AU64,{1,2,3,4,5,6}))) -> 0 | BA64: =IF(AZ64= "","",IFERROR(SUMPRODUCT(LARGE($C64:$AU64,{1,2,3,4})), "")) ->  | BB64: =IF(BA64<>"",(IFERROR(SUMPRODUCT(LARGE($C64:$AU64,{1,2,3,4,5,6,7})),"")),"") ->  | BC64: =IF(BB64<>"",(IFERROR(SUMPRODUCT(LARGE($C64:$AU64,{1,2,3,4,5,6,7,8})),"")),"") -> 
AW65: 0 | AX65: 0 | AY65: =IF($AX65<=6,SUM($C65:$AU65),SUMPRODUCT(LARGE($C65:$AU65,{1,2,3,4,5,6}))) -> 0 | BA65: =IF(AZ65= "","",IFERROR(SUMPRODUCT(LARGE($C65:$AU65,{1,2,3,4})), "")) ->  | BB65: =IF(BA65<>"",(IFERROR(SUMPRODUCT(LARGE($C65:$AU65,{1,2,3,4,5,6,7})),"")),"") ->  | BC65: =IF(BB65<>"",(IFERROR(SUMPRODUCT(LARGE($C65:$AU65,{1,2,3,4,5,6,7,8})),"")),"") -> 
AW66: 0 | AX66: 0 | AY66: =IF($AX66<=6,SUM($C66:$AU66),SUMPRODUCT(LARGE($C66:$AU66,{1,2,3,4,5,6}))) -> 0 | BA66: =IF(AZ66= "","",IFERROR(SUMPRODUCT(LARGE($C66:$AU66,{1,2,3,4})), "")) ->  | BB66: =IF(BA66<>"",(IFERROR(SUMPRODUCT(LARGE($C66:$AU66,{1,2,3,4,5,6,7})),"")),"") ->  | BC66: =IF(BB66<>"",(IFERROR(SUMPRODUCT(LARGE($C66:$AU66,{1,2,3,4,5,6,7,8})),"")),"") -> 
AW67: 0 | AX67: 0 | AY67: =IF($AX67<=6,SUM($C67:$AU67),SUMPRODUCT(LARGE($C67:$AU67,{1,2,3,4,5,6}))) -> 0 | BA67: =IF(AZ67= "","",IFERROR(SUMPRODUCT(LARGE($C67:$AU67,{1,2,3,4})), "")) ->  | BB67: =IF(BA67<>"",(IFERROR(SUMPRODUCT(LARGE($C67:$AU67,{1,2,3,4,5,6,7})),"")),"") ->  | BC67: =IF(BB67<>"",(IFERROR(SUMPRODUCT(LARGE($C67:$AU67,{1,2,3,4,5,6,7,8})),"")),"") -> 
AW68: =SUM($C68:$AV68) -> 0 | AX68: =COUNTA(C68:AU68) -> 0 | AY68: =IF($AX68<=6,SUM($C68:$AU68),SUMPRODUCT(LARGE($C68:$AU68,{1,2,3,4,5,6}))) -> 0 | BA68: =IF(AZ68= "","",IFERROR(SUMPRODUCT(LARGE($C68:$AU68,{1,2,3,4})), "")) ->  | BB68: =IF(BA68<>"",(IFERROR(SUMPRODUCT(LARGE($C68:$AU68,{1,2,3,4,5,6,7})),"")),"") ->  | BC68: =IF(BB68<>"",(IFERROR(SUMPRODUCT(LARGE($C68:$AU68,{1,2,3,4,5,6,7,8})),"")),"") -> 
AW69: 0 | AX69: 0 | AY69: =IF($AX69<=6,SUM($C69:$AU69),SUMPRODUCT(LARGE($C69:$AU69,{1,2,3,4,5,6}))) -> 0 | AZ69: =IF(AND($AX69>=6,AY69=AY70),"Manual Calc Needed","") ->  | BA69: =IF(AZ69= "","",IFERROR(SUMPRODUCT(LARGE($C69:$AU69,{1,2,3,4})), "")) ->  | BB69: =IF(BA69<>"",(IFERROR(SUMPRODUCT(LARGE($C69:$AU69,{1,2,3,4,5,6,7})),"")),"") ->  | BC69: =IF(BB69<>"",(IFERROR(SUMPRODUCT(LARGE($C69:$AU69,{1,2,3,4,5,6,7,8})),"")),"") -> 
AW70: 0 | AX70: 0 | AY70: =IF($AX70<=6,SUM($C70:$AU70),SUMPRODUCT(LARGE($C70:$AU70,{1,2,3,4,5,6}))) -> 0 | BA70: =IF(AZ70= "","",IFERROR(SUMPRODUCT(LARGE($C70:$AU70,{1,2,3,4})), "")) ->  | BB70: =IF(BA70<>"",(IFERROR(SUMPRODUCT(LARGE($C70:$AU70,{1,2,3,4,5,6,7})),"")),"") ->  | BC70: =IF(BB70<>"",(IFERROR(SUMPRODUCT(LARGE($C70:$AU70,{1,2,3,4,5,6,7,8})),"")),"") -> 
AW71: 0 | AX71: 0 | AY71: =IF($AX71<=6,SUM($C71:$AU71),SUMPRODUCT(LARGE($C71:$AU71,{1,2,3,4,5,6}))) -> 0 | BA71: =IF(AZ71= "","",IFERROR(SUMPRODUCT(LARGE($C71:$AU71,{1,2,3,4})), "")) ->  | BB71: =IF(BA71<>"",(IFERROR(SUMPRODUCT(LARGE($C71:$AU71,{1,2,3,4,5,6,7})),"")),"") ->  | BC71: =IF(BB71<>"",(IFERROR(SUMPRODUCT(LARGE($C71:$AU71,{1,2,3,4,5,6,7,8})),"")),"") -> 
AW72: 0 | AX72: 0 | AY72: =IF($AX72<=6,SUM($C72:$AU72),SUMPRODUCT(LARGE($C72:$AU72,{1,2,3,4,5,6}))) -> 0 | BA72: =IF(AZ72= "","",IFERROR(SUMPRODUCT(LARGE($C72:$AU72,{1,2,3,4})), "")) ->  | BB72: =IF(BA72<>"",(IFERROR(SUMPRODUCT(LARGE($C72:$AU72,{1,2,3,4,5,6,7})),"")),"") ->  | BC72: =IF(BB72<>"",(IFERROR(SUMPRODUCT(LARGE($C72:$AU72,{1,2,3,4,5,6,7,8})),"")),"") -> 
AW73: 0 | AX73: 0 | AY73: =IF($AX73<=6,SUM($C73:$AU73),SUMPRODUCT(LARGE($C73:$AU73,{1,2,3,4,5,6}))) -> 0 | BA73: =IF(AZ73= "","",IFERROR(SUMPRODUCT(LARGE($C73:$AU73,{1,2,3,4})), "")) ->  | BB73: =IF(BA73<>"",(IFERROR(SUMPRODUCT(LARGE($C73:$AU73,{1,2,3,4,5,6,7})),"")),"") ->  | BC73: =IF(BB73<>"",(IFERROR(SUMPRODUCT(LARGE($C73:$AU73,{1,2,3,4,5,6,7,8})),"")),"") -> 
AW74: 0 | AX74: 0 | AY74: =IF($AX74<=6,SUM($C74:$AU74),SUMPRODUCT(LARGE($C74:$AU74,{1,2,3,4,5,6}))) -> 0 | BA74: =IF(AZ74= "","",IFERROR(SUMPRODUCT(LARGE($C74:$AU74,{1,2,3,4})), "")) ->  | BB74: =IF(BA74<>"",(IFERROR(SUMPRODUCT(LARGE($C74:$AU74,{1,2,3,4,5,6,7})),"")),"") ->  | BC74: =IF(BB74<>"",(IFERROR(SUMPRODUCT(LARGE($C74:$AU74,{1,2,3,4,5,6,7,8})),"")),"") -> 
AW75: 0 | AX75: 0 | AY75: =IF($AX75<=6,SUM($C75:$AU75),SUMPRODUCT(LARGE($C75:$AU75,{1,2,3,4,5,6}))) -> 0 | BA75: =IF(AZ75= "","",IFERROR(SUMPRODUCT(LARGE($C75:$AU75,{1,2,3,4})), "")) ->  | BB75: =IF(BA75<>"",(IFERROR(SUMPRODUCT(LARGE($C75:$AU75,{1,2,3,4,5,6,7})),"")),"") ->  | BC75: =IF(BB75<>"",(IFERROR(SUMPRODUCT(LARGE($C75:$AU75,{1,2,3,4,5,6,7,8})),"")),"") -> 
AW76: 0 | AX76: 0 | AY76: =IF($AX76<=6,SUM($C76:$AU76),SUMPRODUCT(LARGE($C76:$AU76,{1,2,3,4,5,6}))) -> 0 | BA76: =IF(AZ76= "","",IFERROR(SUMPRODUCT(LARGE($C76:$AU76,{1,2,3,4})), "")) ->  | BB76: =IF(BA76<>"",(IFERROR(SUMPRODUCT(LARGE($C76:$AU76,{1,2,3,4,5,6,7})),"")),"") ->  | BC76: =IF(BB76<>"",(IFERROR(SUMPRODUCT(LARGE($C76:$AU76,{1,2,3,4,5,6,7,8})),"")),"") -> 
AW77: 0 | AX77: 0 | AY77: =IF($AX77<=6,SUM($C77:$AU77),SUMPRODUCT(LARGE($C77:$AU77,{1,2,3,4,5,6}))) -> 0 | BA77: =IF(AZ77= "","",IFERROR(SUMPRODUCT(LARGE($C77:$AU77,{1,2,3,4})), "")) ->  | BB77: =IF(BA77<>"",(IFERROR(SUMPRODUCT(LARGE($C77:$AU77,{1,2,3,4,5,6,7})),"")),"") ->  | BC77: =IF(BB77<>"",(IFERROR(SUMPRODUCT(LARGE($C77:$AU77,{1,2,3,4,5,6,7,8})),"")),"") -> 
AW78: 0 | AX78: 0 | AY78: =IF($AX78<=6,SUM($C78:$AU78),SUMPRODUCT(LARGE($C78:$AU78,{1,2,3,4,5,6}))) -> 0 | BA78: =IF(AZ78= "","",IFERROR(SUMPRODUCT(LARGE($C78:$AU78,{1,2,3,4})), "")) ->  | BB78: =IF(BA78<>"",(IFERROR(SUMPRODUCT(LARGE($C78:$AU78,{1,2,3,4,5,6,7})),"")),"") ->  | BC78: =IF(BB78<>"",(IFERROR(SUMPRODUCT(LARGE($C78:$AU78,{1,2,3,4,5,6,7,8})),"")),"") -> 
AW79: 0 | AX79: 0 | AY79: =IF($AX79<=6,SUM($C79:$AU79),SUMPRODUCT(LARGE($C79:$AU79,{1,2,3,4,5,6}))) -> 0 | BA79: =IF(AZ79= "","",IFERROR(SUMPRODUCT(LARGE($C79:$AU79,{1,2,3,4})), "")) ->  | BB79: =IF(BA79<>"",(IFERROR(SUMPRODUCT(LARGE($C79:$AU79,{1,2,3,4,5,6,7})),"")),"") ->  | BC79: =IF(BB79<>"",(IFERROR(SUMPRODUCT(LARGE($C79:$AU79,{1,2,3,4,5,6,7,8})),"")),"") -> 
AW80: 0 | AX80: 0 | AY80: =IF($AX80<=6,SUM($C80:$AU80),SUMPRODUCT(LARGE($C80:$AU80,{1,2,3,4,5,6}))) -> 0 | BA80: =IF(AZ80= "","",IFERROR(SUMPRODUCT(LARGE($C80:$AU80,{1,2,3,4})), "")) ->  | BB80: =IF(BA80<>"",(IFERROR(SUMPRODUCT(LARGE($C80:$AU80,{1,2,3,4,5,6,7})),"")),"") ->  | BC80: =IF(BB80<>"",(IFERROR(SUMPRODUCT(LARGE($C80:$AU80,{1,2,3,4,5,6,7,8})),"")),"") -> 
AW81: 0 | AX81: 0 | AY81: =IF($AX81<=6,SUM($C81:$AU81),SUMPRODUCT(LARGE($C81:$AU81,{1,2,3,4,5,6}))) -> 0 | BA81: =IF(AZ81= "","",IFERROR(SUMPRODUCT(LARGE($C81:$AU81,{1,2,3,4})), "")) ->  | BB81: =IF(BA81<>"",(IFERROR(SUMPRODUCT(LARGE($C81:$AU81,{1,2,3,4,5,6,7})),"")),"") ->  | BC81: =IF(BB81<>"",(IFERROR(SUMPRODUCT(LARGE($C81:$AU81,{1,2,3,4,5,6,7,8})),"")),"") -> 
AW82: 0 | AX82: 0 | AY82: =IF($AX82<=6,SUM($C82:$AU82),SUMPRODUCT(LARGE($C82:$AU82,{1,2,3,4,5,6}))) -> 0 | BA82: =IF(AZ82= "","",IFERROR(SUMPRODUCT(LARGE($C82:$AU82,{1,2,3,4})), "")) ->  | BB82: =IF(BA82<>"",(IFERROR(SUMPRODUCT(LARGE($C82:$AU82,{1,2,3,4,5,6,7})),"")),"") ->  | BC82: =IF(BB82<>"",(IFERROR(SUMPRODUCT(LARGE($C82:$AU82,{1,2,3,4,5,6,7,8})),"")),"") -> 
AW83: 0 | AX83: 0 | AY83: =IF($AX83<=6,SUM($C83:$AU83),SUMPRODUCT(LARGE($C83:$AU83,{1,2,3,4,5,6}))) -> 0 | BA83: =IF(AZ83= "","",IFERROR(SUMPRODUCT(LARGE($C83:$AU83,{1,2,3,4})), "")) ->  | BB83: =IF(BA83<>"",(IFERROR(SUMPRODUCT(LARGE($C83:$AU83,{1,2,3,4,5,6,7})),"")),"") ->  | BC83: =IF(BB83<>"",(IFERROR(SUMPRODUCT(LARGE($C83:$AU83,{1,2,3,4,5,6,7,8})),"")),"") -> 
AW84: 0 | AX84: 0 | AY84: =IF($AX84<=6,SUM($C84:$AU84),SUMPRODUCT(LARGE($C84:$AU84,{1,2,3,4,5,6}))) -> 0 | BA84: =IF(AZ84= "","",IFERROR(SUMPRODUCT(LARGE($C84:$AU84,{1,2,3,4})), "")) ->  | BB84: =IF(BA84<>"",(IFERROR(SUMPRODUCT(LARGE($C84:$AU84,{1,2,3,4,5,6,7})),"")),"") ->  | BC84: =IF(BB84<>"",(IFERROR(SUMPRODUCT(LARGE($C84:$AU84,{1,2,3,4,5,6,7,8})),"")),"") -> 
AW85: 0 | AX85: 0 | AY85: =IF($AX85<=6,SUM($C85:$AU85),SUMPRODUCT(LARGE($C85:$AU85,{1,2,3,4,5,6}))) -> 0 | BA85: =IF(AZ85= "","",IFERROR(SUMPRODUCT(LARGE($C85:$AU85,{1,2,3,4})), "")) ->  | BB85: =IF(BA85<>"",(IFERROR(SUMPRODUCT(LARGE($C85:$AU85,{1,2,3,4,5,6,7})),"")),"") ->  | BC85: =IF(BB85<>"",(IFERROR(SUMPRODUCT(LARGE($C85:$AU85,{1,2,3,4,5,6,7,8})),"")),"") -> 
AW86: 0 | AX86: 0 | AY86: =IF($AX86<=6,SUM($C86:$AU86),SUMPRODUCT(LARGE($C86:$AU86,{1,2,3,4,5,6}))) -> 0 | BA86: =IF(AZ86= "","",IFERROR(SUMPRODUCT(LARGE($C86:$AU86,{1,2,3,4})), "")) ->  | BB86: =IF(BA86<>"",(IFERROR(SUMPRODUCT(LARGE($C86:$AU86,{1,2,3,4,5,6,7})),"")),"") ->  | BC86: =IF(BB86<>"",(IFERROR(SUMPRODUCT(LARGE($C86:$AU86,{1,2,3,4,5,6,7,8})),"")),"") -> 
AW87: 0 | AX87: 0 | AY87: =IF($AX87<=6,SUM($C87:$AU87),SUMPRODUCT(LARGE($C87:$AU87,{1,2,3,4,5,6}))) -> 0 | BA87: =IF(AZ87= "","",IFERROR(SUMPRODUCT(LARGE($C87:$AU87,{1,2,3,4})), "")) ->  | BB87: =IF(BA87<>"",(IFERROR(SUMPRODUCT(LARGE($C87:$AU87,{1,2,3,4,5,6,7})),"")),"") ->  | BC87: =IF(BB87<>"",(IFERROR(SUMPRODUCT(LARGE($C87:$AU87,{1,2,3,4,5,6,7,8})),"")),"") -> 
AW88: 0 | AX88: 0 | AY88: =IF($AX88<=6,SUM($C88:$AU88),SUMPRODUCT(LARGE($C88:$AU88,{1,2,3,4,5,6}))) -> 0 | BA88: =IF(AZ88= "","",IFERROR(SUMPRODUCT(LARGE($C88:$AU88,{1,2,3,4})), "")) ->  | BB88: =IF(BA88<>"",(IFERROR(SUMPRODUCT(LARGE($C88:$AU88,{1,2,3,4,5,6,7})),"")),"") ->  | BC88: =IF(BB88<>"",(IFERROR(SUMPRODUCT(LARGE($C88:$AU88,{1,2,3,4,5,6,7,8})),"")),"") -> 
AW89: 0 | AX89: 0 | AY89: =IF($AX89<=6,SUM($C89:$AU89),SUMPRODUCT(LARGE($C89:$AU89,{1,2,3,4,5,6}))) -> 0 | BA89: =IF(AZ89= "","",IFERROR(SUMPRODUCT(LARGE($C89:$AU89,{1,2,3,4})), "")) ->  | BB89: =IF(BA89<>"",(IFERROR(SUMPRODUCT(LARGE($C89:$AU89,{1,2,3,4,5,6,7})),"")),"") ->  | BC89: =IF(BB89<>"",(IFERROR(SUMPRODUCT(LARGE($C89:$AU89,{1,2,3,4,5,6,7,8})),"")),"") -> 
AW90: 0 | AX90: 0 | AY90: =IF($AX90<=6,SUM($C90:$AU90),SUMPRODUCT(LARGE($C90:$AU90,{1,2,3,4,5,6}))) -> 0 | BA90: =IF(AZ90= "","",IFERROR(SUMPRODUCT(LARGE($C90:$AU90,{1,2,3,4})), "")) ->  | BB90: =IF(BA90<>"",(IFERROR(SUMPRODUCT(LARGE($C90:$AU90,{1,2,3,4,5,6,7})),"")),"") ->  | BC90: =IF(BB90<>"",(IFERROR(SUMPRODUCT(LARGE($C90:$AU90,{1,2,3,4,5,6,7,8})),"")),"") -> 
AW91: 0 | AX91: 0 | AY91: =IF($AX91<=6,SUM($C91:$AU91),SUMPRODUCT(LARGE($C91:$AU91,{1,2,3,4,5,6}))) -> 0 | BA91: =IF(AZ91= "","",IFERROR(SUMPRODUCT(LARGE($C91:$AU91,{1,2,3,4})), "")) ->  | BB91: =IF(BA91<>"",(IFERROR(SUMPRODUCT(LARGE($C91:$AU91,{1,2,3,4,5,6,7})),"")),"") ->  | BC91: =IF(BB91<>"",(IFERROR(SUMPRODUCT(LARGE($C91:$AU91,{1,2,3,4,5,6,7,8})),"")),"") -> 
AW92: 0 | AX92: 0 | AY92: =IF($AX92<=6,SUM($C92:$AU92),SUMPRODUCT(LARGE($C92:$AU92,{1,2,3,4,5,6}))) -> 0 | BA92: =IF(AZ92= "","",IFERROR(SUMPRODUCT(LARGE($C92:$AU92,{1,2,3,4})), "")) ->  | BB92: =IF(BA92<>"",(IFERROR(SUMPRODUCT(LARGE($C92:$AU92,{1,2,3,4,5,6,7})),"")),"") ->  | BC92: =IF(BB92<>"",(IFERROR(SUMPRODUCT(LARGE($C92:$AU92,{1,2,3,4,5,6,7,8})),"")),"") -> 
AW93: 0 | AX93: 0 | AY93: =IF($AX93<=6,SUM($C93:$AU93),SUMPRODUCT(LARGE($C93:$AU93,{1,2,3,4,5,6}))) -> 0 | BA93: =IF(AZ93= "","",IFERROR(SUMPRODUCT(LARGE($C93:$AU93,{1,2,3,4})), "")) ->  | BB93: =IF(BA93<>"",(IFERROR(SUMPRODUCT(LARGE($C93:$AU93,{1,2,3,4,5,6,7})),"")),"") ->  | BC93: =IF(BB93<>"",(IFERROR(SUMPRODUCT(LARGE($C93:$AU93,{1,2,3,4,5,6,7,8})),"")),"") -> 
AW94: 0 | AX94: 0 | AY94: =IF($AX94<=6,SUM($C94:$AU94),SUMPRODUCT(LARGE($C94:$AU94,{1,2,3,4,5,6}))) -> 0 | BA94: =IF(AZ94= "","",IFERROR(SUMPRODUCT(LARGE($C94:$AU94,{1,2,3,4})), "")) ->  | BB94: =IF(BA94<>"",(IFERROR(SUMPRODUCT(LARGE($C94:$AU94,{1,2,3,4,5,6,7})),"")),"") ->  | BC94: =IF(BB94<>"",(IFERROR(SUMPRODUCT(LARGE($C94:$AU94,{1,2,3,4,5,6,7,8})),"")),"") -> 
AW95: 0 | AX95: 0 | AY95: =IF($AX95<=6,SUM($C95:$AU95),SUMPRODUCT(LARGE($C95:$AU95,{1,2,3,4,5,6}))) -> 0 | BA95: =IF(AZ95= "","",IFERROR(SUMPRODUCT(LARGE($C95:$AU95,{1,2,3,4})), "")) ->  | BB95: =IF(BA95<>"",(IFERROR(SUMPRODUCT(LARGE($C95:$AU95,{1,2,3,4,5,6,7})),"")),"") ->  | BC95: =IF(BB95<>"",(IFERROR(SUMPRODUCT(LARGE($C95:$AU95,{1,2,3,4,5,6,7,8})),"")),"") -> 
AW96: 0 | AX96: 0 | AY96: =IF($AX96<=6,SUM($C96:$AU96),SUMPRODUCT(LARGE($C96:$AU96,{1,2,3,4,5,6}))) -> 0 | BA96: =IF(AZ96= "","",IFERROR(SUMPRODUCT(LARGE($C96:$AU96,{1,2,3,4})), "")) ->  | BB96: =IF(BA96<>"",(IFERROR(SUMPRODUCT(LARGE($C96:$AU96,{1,2,3,4,5,6,7})),"")),"") ->  | BC96: =IF(BB96<>"",(IFERROR(SUMPRODUCT(LARGE($C96:$AU96,{1,2,3,4,5,6,7,8})),"")),"") -> 
AW97: 0 | AX97: 0 | AY97: =IF($AX97<=6,SUM($C97:$AU97),SUMPRODUCT(LARGE($C97:$AU97,{1,2,3,4,5,6}))) -> 0 | BA97: =IF(AZ97= "","",IFERROR(SUMPRODUCT(LARGE($C97:$AU97,{1,2,3,4})), "")) ->  | BB97: =IF(BA97<>"",(IFERROR(SUMPRODUCT(LARGE($C97:$AU97,{1,2,3,4,5,6,7})),"")),"") ->  | BC97: =IF(BB97<>"",(IFERROR(SUMPRODUCT(LARGE($C97:$AU97,{1,2,3,4,5,6,7,8})),"")),"") -> 
AW98: 0 | AX98: 0 | AY98: =IF($AX98<=6,SUM($C98:$AU98),SUMPRODUCT(LARGE($C98:$AU98,{1,2,3,4,5,6}))) -> 0 | BA98: =IF(AZ98= "","",IFERROR(SUMPRODUCT(LARGE($C98:$AU98,{1,2,3,4})), "")) ->  | BB98: =IF(BA98<>"",(IFERROR(SUMPRODUCT(LARGE($C98:$AU98,{1,2,3,4,5,6,7})),"")),"") ->  | BC98: =IF(BB98<>"",(IFERROR(SUMPRODUCT(LARGE($C98:$AU98,{1,2,3,4,5,6,7,8})),"")),"") -> 
AW99: 0 | AX99: 0 | AY99: =IF($AX99<=6,SUM($C99:$AU99),SUMPRODUCT(LARGE($C99:$AU99,{1,2,3,4,5,6}))) -> 0 | BA99: =IF(AZ99= "","",IFERROR(SUMPRODUCT(LARGE($C99:$AU99,{1,2,3,4})), "")) ->  | BB99: =IF(BA99<>"",(IFERROR(SUMPRODUCT(LARGE($C99:$AU99,{1,2,3,4,5,6,7})),"")),"") ->  | BC99: =IF(BB99<>"",(IFERROR(SUMPRODUCT(LARGE($C99:$AU99,{1,2,3,4,5,6,7,8})),"")),"") -> 
AW100: 0 | AX100: 0 | AY100: =IF($AX100<=6,SUM($C100:$AU100),SUMPRODUCT(LARGE($C100:$AU100,{1,2,3,4,5,6}))) -> 0 | BA100: =IF(AZ100= "","",IFERROR(SUMPRODUCT(LARGE($C100:$AU100,{1,2,3,4})), "")) ->  | BB100: =IF(BA100<>"",(IFERROR(SUMPRODUCT(LARGE($C100:$AU100,{1,2,3,4,5,6,7})),"")),"") ->  | BC100: =IF(BB100<>"",(IFERROR(SUMPRODUCT(LARGE($C100:$AU100,{1,2,3,4,5,6,7,8})),"")),"") -> 
AW101: 0 | AX101: 0 | AY101: =IF($AX101<=6,SUM($C101:$AU101),SUMPRODUCT(LARGE($C101:$AU101,{1,2,3,4,5,6}))) -> 0 | BA101: =IF(AZ101= "","",IFERROR(SUMPRODUCT(LARGE($C101:$AU101,{1,2,3,4})), "")) ->  | BB101: =IF(BA101<>"",(IFERROR(SUMPRODUCT(LARGE($C101:$AU101,{1,2,3,4,5,6,7})),"")),"") ->  | BC101: =IF(BB101<>"",(IFERROR(SUMPRODUCT(LARGE($C101:$AU101,{1,2,3,4,5,6,7,8})),"")),"") -> 
AW102: 0 | AX102: 0 | AY102: =IF($AX102<=6,SUM($C102:$AU102),SUMPRODUCT(LARGE($C102:$AU102,{1,2,3,4,5,6}))) -> 0 | BA102: =IF(AZ102= "","",IFERROR(SUMPRODUCT(LARGE($C102:$AU102,{1,2,3,4})), "")) ->  | BB102: =IF(BA102<>"",(IFERROR(SUMPRODUCT(LARGE($C102:$AU102,{1,2,3,4,5,6,7})),"")),"") ->  | BC102: =IF(BB102<>"",(IFERROR(SUMPRODUCT(LARGE($C102:$AU102,{1,2,3,4,5,6,7,8})),"")),"") -> 
AW103: 0 | AX103: 0 | AY103: =IF($AX103<=6,SUM($C103:$AU103),SUMPRODUCT(LARGE($C103:$AU103,{1,2,3,4,5,6}))) -> 0 | BA103: =IF(AZ103= "","",IFERROR(SUMPRODUCT(LARGE($C103:$AU103,{1,2,3,4})), "")) ->  | BB103: =IF(BA103<>"",(IFERROR(SUMPRODUCT(LARGE($C103:$AU103,{1,2,3,4,5,6,7})),"")),"") ->  | BC103: =IF(BB103<>"",(IFERROR(SUMPRODUCT(LARGE($C103:$AU103,{1,2,3,4,5,6,7,8})),"")),"") -> 
AW104: 0 | AX104: 0 | AY104: =IF($AX104<=6,SUM($C104:$AU104),SUMPRODUCT(LARGE($C104:$AU104,{1,2,3,4,5,6}))) -> 0 | BA104: =IF(AZ104= "","",IFERROR(SUMPRODUCT(LARGE($C104:$AU104,{1,2,3,4})), "")) ->  | BB104: =IF(BA104<>"",(IFERROR(SUMPRODUCT(LARGE($C104:$AU104,{1,2,3,4,5,6,7})),"")),"") ->  | BC104: =IF(BB104<>"",(IFERROR(SUMPRODUCT(LARGE($C104:$AU104,{1,2,3,4,5,6,7,8})),"")),"") -> 
AW105: 0 | AX105: 0 | AY105: =IF($AX105<=6,SUM($C105:$AU105),SUMPRODUCT(LARGE($C105:$AU105,{1,2,3,4,5,6}))) -> 0 | BA105: =IF(AZ105= "","",IFERROR(SUMPRODUCT(LARGE($C105:$AU105,{1,2,3,4})), "")) ->  | BB105: =IF(BA105<>"",(IFERROR(SUMPRODUCT(LARGE($C105:$AU105,{1,2,3,4,5,6,7})),"")),"") ->  | BC105: =IF(BB105<>"",(IFERROR(SUMPRODUCT(LARGE($C105:$AU105,{1,2,3,4,5,6,7,8})),"")),"") -> 
AW106: 0 | AX106: 0 | AY106: =IF($AX106<=6,SUM($C106:$AU106),SUMPRODUCT(LARGE($C106:$AU106,{1,2,3,4,5,6}))) -> 0 | BA106: =IF(AZ106= "","",IFERROR(SUMPRODUCT(LARGE($C106:$AU106,{1,2,3,4})), "")) ->  | BB106: =IF(BA106<>"",(IFERROR(SUMPRODUCT(LARGE($C106:$AU106,{1,2,3,4,5,6,7})),"")),"") ->  | BC106: =IF(BB106<>"",(IFERROR(SUMPRODUCT(LARGE($C106:$AU106,{1,2,3,4,5,6,7,8})),"")),"") -> 
AW107: 0 | AX107: 0 | AY107: =IF($AX107<=6,SUM($C107:$AU107),SUMPRODUCT(LARGE($C107:$AU107,{1,2,3,4,5,6}))) -> 0 | BA107: =IF(AZ107= "","",IFERROR(SUMPRODUCT(LARGE($C107:$AU107,{1,2,3,4})), "")) ->  | BB107: =IF(BA107<>"",(IFERROR(SUMPRODUCT(LARGE($C107:$AU107,{1,2,3,4,5,6,7})),"")),"") ->  | BC107: =IF(BB107<>"",(IFERROR(SUMPRODUCT(LARGE($C107:$AU107,{1,2,3,4,5,6,7,8})),"")),"") -> 
AW108: 0 | AX108: 0 | AY108: =IF($AX108<=6,SUM($C108:$AU108),SUMPRODUCT(LARGE($C108:$AU108,{1,2,3,4,5,6}))) -> 0 | BA108: =IF(AZ108= "","",IFERROR(SUMPRODUCT(LARGE($C108:$AU108,{1,2,3,4})), "")) ->  | BB108: =IF(BA108<>"",(IFERROR(SUMPRODUCT(LARGE($C108:$AU108,{1,2,3,4,5,6,7})),"")),"") ->  | BC108: =IF(BB108<>"",(IFERROR(SUMPRODUCT(LARGE($C108:$AU108,{1,2,3,4,5,6,7,8})),"")),"") -> 
AW109: 0 | AX109: 0 | AY109: =IF($AX109<=6,SUM($C109:$AU109),SUMPRODUCT(LARGE($C109:$AU109,{1,2,3,4,5,6}))) -> 0 | BA109: =IF(AZ109= "","",IFERROR(SUMPRODUCT(LARGE($C109:$AU109,{1,2,3,4})), "")) ->  | BB109: =IF(BA109<>"",(IFERROR(SUMPRODUCT(LARGE($C109:$AU109,{1,2,3,4,5,6,7})),"")),"") ->  | BC109: =IF(BB109<>"",(IFERROR(SUMPRODUCT(LARGE($C109:$AU109,{1,2,3,4,5,6,7,8})),"")),"") -> 
AW110: 0 | AX110: 0 | AY110: =IF($AX110<=6,SUM($C110:$AU110),SUMPRODUCT(LARGE($C110:$AU110,{1,2,3,4,5,6}))) -> 0 | BA110: =IF(AZ110= "","",IFERROR(SUMPRODUCT(LARGE($C110:$AU110,{1,2,3,4})), "")) ->  | BB110: =IF(BA110<>"",(IFERROR(SUMPRODUCT(LARGE($C110:$AU110,{1,2,3,4,5,6,7})),"")),"") ->  | BC110: =IF(BB110<>"",(IFERROR(SUMPRODUCT(LARGE($C110:$AU110,{1,2,3,4,5,6,7,8})),"")),"") -> 
AW111: 0 | AX111: 0 | AY111: =IF($AX111<=6,SUM($C111:$AU111),SUMPRODUCT(LARGE($C111:$AU111,{1,2,3,4,5,6}))) -> 0 | BA111: =IF(AZ111= "","",IFERROR(SUMPRODUCT(LARGE($C111:$AU111,{1,2,3,4})), "")) ->  | BB111: =IF(BA111<>"",(IFERROR(SUMPRODUCT(LARGE($C111:$AU111,{1,2,3,4,5,6,7})),"")),"") ->  | BC111: =IF(BB111<>"",(IFERROR(SUMPRODUCT(LARGE($C111:$AU111,{1,2,3,4,5,6,7,8})),"")),"") -> 
AW112: 0 | AX112: 0 | AY112: =IF($AX112<=6,SUM($C112:$AU112),SUMPRODUCT(LARGE($C112:$AU112,{1,2,3,4,5,6}))) -> 0 | BA112: =IF(AZ112= "","",IFERROR(SUMPRODUCT(LARGE($C112:$AU112,{1,2,3,4})), "")) ->  | BB112: =IF(BA112<>"",(IFERROR(SUMPRODUCT(LARGE($C112:$AU112,{1,2,3,4,5,6,7})),"")),"") ->  | BC112: =IF(BB112<>"",(IFERROR(SUMPRODUCT(LARGE($C112:$AU112,{1,2,3,4,5,6,7,8})),"")),"") -> 
AW113: 0 | AX113: 0 | AY113: =IF($AX113<=6,SUM($C113:$AU113),SUMPRODUCT(LARGE($C113:$AU113,{1,2,3,4,5,6}))) -> 0 | BA113: =IF(AZ113= "","",IFERROR(SUMPRODUCT(LARGE($C113:$AU113,{1,2,3,4})), "")) ->  | BB113: =IF(BA113<>"",(IFERROR(SUMPRODUCT(LARGE($C113:$AU113,{1,2,3,4,5,6,7})),"")),"") ->  | BC113: =IF(BB113<>"",(IFERROR(SUMPRODUCT(LARGE($C113:$AU113,{1,2,3,4,5,6,7,8})),"")),"") -> 
AW114: 0 | AX114: 0 | AY114: =IF($AX114<=6,SUM($C114:$AU114),SUMPRODUCT(LARGE($C114:$AU114,{1,2,3,4,5,6}))) -> 0 | BA114: =IF(AZ114= "","",IFERROR(SUMPRODUCT(LARGE($C114:$AU114,{1,2,3,4})), "")) ->  | BB114: =IF(BA114<>"",(IFERROR(SUMPRODUCT(LARGE($C114:$AU114,{1,2,3,4,5,6,7})),"")),"") ->  | BC114: =IF(BB114<>"",(IFERROR(SUMPRODUCT(LARGE($C114:$AU114,{1,2,3,4,5,6,7,8})),"")),"") -> 
AW115: 0 | AX115: 0 | AY115: =IF($AX115<=6,SUM($C115:$AU115),SUMPRODUCT(LARGE($C115:$AU115,{1,2,3,4,5,6}))) -> 0 | BA115: =IF(AZ115= "","",IFERROR(SUMPRODUCT(LARGE($C115:$AU115,{1,2,3,4})), "")) ->  | BB115: =IF(BA115<>"",(IFERROR(SUMPRODUCT(LARGE($C115:$AU115,{1,2,3,4,5,6,7})),"")),"") ->  | BC115: =IF(BB115<>"",(IFERROR(SUMPRODUCT(LARGE($C115:$AU115,{1,2,3,4,5,6,7,8})),"")),"") -> 
AW116: 0 | AX116: 0 | AY116: =IF($AX116<=6,SUM($C116:$AU116),SUMPRODUCT(LARGE($C116:$AU116,{1,2,3,4,5,6}))) -> 0 | BA116: =IF(AZ116= "","",IFERROR(SUMPRODUCT(LARGE($C116:$AU116,{1,2,3,4})), "")) ->  | BB116: =IF(BA116<>"",(IFERROR(SUMPRODUCT(LARGE($C116:$AU116,{1,2,3,4,5,6,7})),"")),"") ->  | BC116: =IF(BB116<>"",(IFERROR(SUMPRODUCT(LARGE($C116:$AU116,{1,2,3,4,5,6,7,8})),"")),"") -> 
AW117: 0 | AX117: 0 | AY117: =IF($AX117<=6,SUM($C117:$AU117),SUMPRODUCT(LARGE($C117:$AU117,{1,2,3,4,5,6}))) -> 0 | BA117: =IF(AZ117= "","",IFERROR(SUMPRODUCT(LARGE($C117:$AU117,{1,2,3,4})), "")) ->  | BB117: =IF(BA117<>"",(IFERROR(SUMPRODUCT(LARGE($C117:$AU117,{1,2,3,4,5,6,7})),"")),"") ->  | BC117: =IF(BB117<>"",(IFERROR(SUMPRODUCT(LARGE($C117:$AU117,{1,2,3,4,5,6,7,8})),"")),"") -> 
AW118: 0 | AX118: 0 | AY118: =IF($AX118<=6,SUM($C118:$AU118),SUMPRODUCT(LARGE($C118:$AU118,{1,2,3,4,5,6}))) -> 0 | BA118: =IF(AZ118= "","",IFERROR(SUMPRODUCT(LARGE($C118:$AU118,{1,2,3,4})), "")) ->  | BB118: =IF(BA118<>"",(IFERROR(SUMPRODUCT(LARGE($C118:$AU118,{1,2,3,4,5,6,7})),"")),"") ->  | BC118: =IF(BB118<>"",(IFERROR(SUMPRODUCT(LARGE($C118:$AU118,{1,2,3,4,5,6,7,8})),"")),"") -> 
AW119: 0 | AX119: 0 | AY119: =IF($AX119<=6,SUM($C119:$AU119),SUMPRODUCT(LARGE($C119:$AU119,{1,2,3,4,5,6}))) -> 0 | BA119: =IF(AZ119= "","",IFERROR(SUMPRODUCT(LARGE($C119:$AU119,{1,2,3,4})), "")) ->  | BB119: =IF(BA119<>"",(IFERROR(SUMPRODUCT(LARGE($C119:$AU119,{1,2,3,4,5,6,7})),"")),"") ->  | BC119: =IF(BB119<>"",(IFERROR(SUMPRODUCT(LARGE($C119:$AU119,{1,2,3,4,5,6,7,8})),"")),"") -> 
AW120: 0 | AX120: 0 | AY120: =IF($AX120<=6,SUM($C120:$AU120),SUMPRODUCT(LARGE($C120:$AU120,{1,2,3,4,5,6}))) -> 0 | BA120: =IF(AZ120= "","",IFERROR(SUMPRODUCT(LARGE($C120:$AU120,{1,2,3,4})), "")) ->  | BB120: =IF(BA120<>"",(IFERROR(SUMPRODUCT(LARGE($C120:$AU120,{1,2,3,4,5,6,7})),"")),"") ->  | BC120: =IF(BB120<>"",(IFERROR(SUMPRODUCT(LARGE($C120:$AU120,{1,2,3,4,5,6,7,8})),"")),"") -> 
AW121: 0 | AX121: 0 | AY121: =IF($AX121<=6,SUM($C121:$AU121),SUMPRODUCT(LARGE($C121:$AU121,{1,2,3,4,5,6}))) -> 0 | BA121: =IF(AZ121= "","",IFERROR(SUMPRODUCT(LARGE($C121:$AU121,{1,2,3,4})), "")) ->  | BB121: =IF(BA121<>"",(IFERROR(SUMPRODUCT(LARGE($C121:$AU121,{1,2,3,4,5,6,7})),"")),"") ->  | BC121: =IF(BB121<>"",(IFERROR(SUMPRODUCT(LARGE($C121:$AU121,{1,2,3,4,5,6,7,8})),"")),"") -> 
AW122: 0 | AX122: 0 | AY122: =IF($AX122<=6,SUM($C122:$AU122),SUMPRODUCT(LARGE($C122:$AU122,{1,2,3,4,5,6}))) -> 0 | BA122: =IF(AZ122= "","",IFERROR(SUMPRODUCT(LARGE($C122:$AU122,{1,2,3,4})), "")) ->  | BB122: =IF(BA122<>"",(IFERROR(SUMPRODUCT(LARGE($C122:$AU122,{1,2,3,4,5,6,7})),"")),"") ->  | BC122: =IF(BB122<>"",(IFERROR(SUMPRODUCT(LARGE($C122:$AU122,{1,2,3,4,5,6,7,8})),"")),"") -> 
AW123: 0 | AX123: 0 | AY123: =IF($AX123<=6,SUM($C123:$AU123),SUMPRODUCT(LARGE($C123:$AU123,{1,2,3,4,5,6}))) -> 0 | BA123: =IF(AZ123= "","",IFERROR(SUMPRODUCT(LARGE($C123:$AU123,{1,2,3,4})), "")) ->  | BB123: =IF(BA123<>"",(IFERROR(SUMPRODUCT(LARGE($C123:$AU123,{1,2,3,4,5,6,7})),"")),"") ->  | BC123: =IF(BB123<>"",(IFERROR(SUMPRODUCT(LARGE($C123:$AU123,{1,2,3,4,5,6,7,8})),"")),"") -> 
AW124: 0 | AX124: 0 | AY124: =IF($AX124<=6,SUM($C124:$AU124),SUMPRODUCT(LARGE($C124:$AU124,{1,2,3,4,5,6}))) -> 0 | BA124: =IF(AZ124= "","",IFERROR(SUMPRODUCT(LARGE($C124:$AU124,{1,2,3,4})), "")) ->  | BB124: =IF(BA124<>"",(IFERROR(SUMPRODUCT(LARGE($C124:$AU124,{1,2,3,4,5,6,7})),"")),"") ->  | BC124: =IF(BB124<>"",(IFERROR(SUMPRODUCT(LARGE($C124:$AU124,{1,2,3,4,5,6,7,8})),"")),"") -> 
AW125: 0 | AX125: 0 | AY125: =IF($AX125<=6,SUM($C125:$AU125),SUMPRODUCT(LARGE($C125:$AU125,{1,2,3,4,5,6}))) -> 0 | BA125: =IF(AZ125= "","",IFERROR(SUMPRODUCT(LARGE($C125:$AU125,{1,2,3,4})), "")) ->  | BB125: =IF(BA125<>"",(IFERROR(SUMPRODUCT(LARGE($C125:$AU125,{1,2,3,4,5,6,7})),"")),"") ->  | BC125: =IF(BB125<>"",(IFERROR(SUMPRODUCT(LARGE($C125:$AU125,{1,2,3,4,5,6,7,8})),"")),"") -> 
AW126: 0 | AX126: 0 | AY126: =IF($AX126<=6,SUM($C126:$AU126),SUMPRODUCT(LARGE($C126:$AU126,{1,2,3,4,5,6}))) -> 0 | BA126: =IF(AZ126= "","",IFERROR(SUMPRODUCT(LARGE($C126:$AU126,{1,2,3,4})), "")) ->  | BB126: =IF(BA126<>"",(IFERROR(SUMPRODUCT(LARGE($C126:$AU126,{1,2,3,4,5,6,7})),"")),"") ->  | BC126: =IF(BB126<>"",(IFERROR(SUMPRODUCT(LARGE($C126:$AU126,{1,2,3,4,5,6,7,8})),"")),"") -> 
AW127: 0 | AX127: 0 | AY127: =IF($AX127<=6,SUM($C127:$AU127),SUMPRODUCT(LARGE($C127:$AU127,{1,2,3,4,5,6}))) -> 0 | BA127: =IF(AZ127= "","",IFERROR(SUMPRODUCT(LARGE($C127:$AU127,{1,2,3,4})), "")) ->  | BB127: =IF(BA127<>"",(IFERROR(SUMPRODUCT(LARGE($C127:$AU127,{1,2,3,4,5,6,7})),"")),"") ->  | BC127: =IF(BB127<>"",(IFERROR(SUMPRODUCT(LARGE($C127:$AU127,{1,2,3,4,5,6,7,8})),"")),"") -> 
AW128: 0 | AX128: 0 | AY128: =IF($AX128<=6,SUM($C128:$AU128),SUMPRODUCT(LARGE($C128:$AU128,{1,2,3,4,5,6}))) -> 0 | BA128: =IF(AZ128= "","",IFERROR(SUMPRODUCT(LARGE($C128:$AU128,{1,2,3,4})), "")) ->  | BB128: =IF(BA128<>"",(IFERROR(SUMPRODUCT(LARGE($C128:$AU128,{1,2,3,4,5,6,7})),"")),"") ->  | BC128: =IF(BB128<>"",(IFERROR(SUMPRODUCT(LARGE($C128:$AU128,{1,2,3,4,5,6,7,8})),"")),"") -> 
AW129: 0 | AX129: 0 | AY129: =IF($AX129<=6,SUM($C129:$AU129),SUMPRODUCT(LARGE($C129:$AU129,{1,2,3,4,5,6}))) -> 0 | BA129: =IF(AZ129= "","",IFERROR(SUMPRODUCT(LARGE($C129:$AU129,{1,2,3,4})), "")) ->  | BB129: =IF(BA129<>"",(IFERROR(SUMPRODUCT(LARGE($C129:$AU129,{1,2,3,4,5,6,7})),"")),"") ->  | BC129: =IF(BB129<>"",(IFERROR(SUMPRODUCT(LARGE($C129:$AU129,{1,2,3,4,5,6,7,8})),"")),"") -> 
AW130: 0 | AX130: 0 | AY130: =IF($AX130<=6,SUM($C130:$AU130),SUMPRODUCT(LARGE($C130:$AU130,{1,2,3,4,5,6}))) -> 0 | BA130: =IF(AZ130= "","",IFERROR(SUMPRODUCT(LARGE($C130:$AU130,{1,2,3,4})), "")) ->  | BB130: =IF(BA130<>"",(IFERROR(SUMPRODUCT(LARGE($C130:$AU130,{1,2,3,4,5,6,7})),"")),"") ->  | BC130: =IF(BB130<>"",(IFERROR(SUMPRODUCT(LARGE($C130:$AU130,{1,2,3,4,5,6,7,8})),"")),"") -> 
AW131: 0 | AX131: 0 | AY131: =IF($AX131<=6,SUM($C131:$AU131),SUMPRODUCT(LARGE($C131:$AU131,{1,2,3,4,5,6}))) -> 0 | BA131: =IF(AZ131= "","",IFERROR(SUMPRODUCT(LARGE($C131:$AU131,{1,2,3,4})), "")) ->  | BB131: =IF(BA131<>"",(IFERROR(SUMPRODUCT(LARGE($C131:$AU131,{1,2,3,4,5,6,7})),"")),"") ->  | BC131: =IF(BB131<>"",(IFERROR(SUMPRODUCT(LARGE($C131:$AU131,{1,2,3,4,5,6,7,8})),"")),"") -> 
AW132: =SUM($C132:$AV132) -> 0 | AX132: =COUNTA(C132:AU132) -> 0 | AY132: =IF($AX132<=6,SUM($C132:$AU132),SUMPRODUCT(LARGE($C132:$AU132,{1,2,3,4,5,6}))) -> 0 | BA132: =IF(AZ132= "","",IFERROR(SUMPRODUCT(LARGE($C132:$AU132,{1,2,3,4})), "")) ->  | BB132: =IF(BA132<>"",(IFERROR(SUMPRODUCT(LARGE($C132:$AU132,{1,2,3,4,5,6,7})),"")),"") ->  | BC132: =IF(BB132<>"",(IFERROR(SUMPRODUCT(LARGE($C132:$AU132,{1,2,3,4,5,6,7,8})),"")),"") -> 
AW133: 0 | AX133: 0 | AY133: =IF($AX133<=6,SUM($C133:$AU133),SUMPRODUCT(LARGE($C133:$AU133,{1,2,3,4,5,6}))) -> 0 | AZ133: =IF(AND($AX133>=6,AY133=AY134),"Manual Calc Needed","") ->  | BA133: =IF(AZ133= "","",IFERROR(SUMPRODUCT(LARGE($C133:$AU133,{1,2,3,4})), "")) ->  | BB133: =IF(BA133<>"",(IFERROR(SUMPRODUCT(LARGE($C133:$AU133,{1,2,3,4,5,6,7})),"")),"") ->  | BC133: =IF(BB133<>"",(IFERROR(SUMPRODUCT(LARGE($C133:$AU133,{1,2,3,4,5,6,7,8})),"")),"") -> 
AW134: 0 | AX134: 0 | AY134: =IF($AX134<=6,SUM($C134:$AU134),SUMPRODUCT(LARGE($C134:$AU134,{1,2,3,4,5,6}))) -> 0 | BA134: =IF(AZ134= "","",IFERROR(SUMPRODUCT(LARGE($C134:$AU134,{1,2,3,4})), "")) ->  | BB134: =IF(BA134<>"",(IFERROR(SUMPRODUCT(LARGE($C134:$AU134,{1,2,3,4,5,6,7})),"")),"") ->  | BC134: =IF(BB134<>"",(IFERROR(SUMPRODUCT(LARGE($C134:$AU134,{1,2,3,4,5,6,7,8})),"")),"") -> 
AW135: 0 | AX135: 0 | AY135: =IF($AX135<=6,SUM($C135:$AU135),SUMPRODUCT(LARGE($C135:$AU135,{1,2,3,4,5,6}))) -> 0 | BA135: =IF(AZ135= "","",IFERROR(SUMPRODUCT(LARGE($C135:$AU135,{1,2,3,4})), "")) ->  | BB135: =IF(BA135<>"",(IFERROR(SUMPRODUCT(LARGE($C135:$AU135,{1,2,3,4,5,6,7})),"")),"") ->  | BC135: =IF(BB135<>"",(IFERROR(SUMPRODUCT(LARGE($C135:$AU135,{1,2,3,4,5,6,7,8})),"")),"") -> 
AW136: 0 | AX136: 0 | AY136: =IF($AX136<=6,SUM($C136:$AU136),SUMPRODUCT(LARGE($C136:$AU136,{1,2,3,4,5,6}))) -> 0 | BA136: =IF(AZ136= "","",IFERROR(SUMPRODUCT(LARGE($C136:$AU136,{1,2,3,4})), "")) ->  | BB136: =IF(BA136<>"",(IFERROR(SUMPRODUCT(LARGE($C136:$AU136,{1,2,3,4,5,6,7})),"")),"") ->  | BC136: =IF(BB136<>"",(IFERROR(SUMPRODUCT(LARGE($C136:$AU136,{1,2,3,4,5,6,7,8})),"")),"") -> 
AW137: 0 | AX137: 0 | AY137: =IF($AX137<=6,SUM($C137:$AU137),SUMPRODUCT(LARGE($C137:$AU137,{1,2,3,4,5,6}))) -> 0 | BA137: =IF(AZ137= "","",IFERROR(SUMPRODUCT(LARGE($C137:$AU137,{1,2,3,4})), "")) ->  | BB137: =IF(BA137<>"",(IFERROR(SUMPRODUCT(LARGE($C137:$AU137,{1,2,3,4,5,6,7})),"")),"") ->  | BC137: =IF(BB137<>"",(IFERROR(SUMPRODUCT(LARGE($C137:$AU137,{1,2,3,4,5,6,7,8})),"")),"") -> 
AW138: 0 | AX138: 0 | AY138: =IF($AX138<=6,SUM($C138:$AU138),SUMPRODUCT(LARGE($C138:$AU138,{1,2,3,4,5,6}))) -> 0 | BA138: =IF(AZ138= "","",IFERROR(SUMPRODUCT(LARGE($C138:$AU138,{1,2,3,4})), "")) ->  | BB138: =IF(BA138<>"",(IFERROR(SUMPRODUCT(LARGE($C138:$AU138,{1,2,3,4,5,6,7})),"")),"") ->  | BC138: =IF(BB138<>"",(IFERROR(SUMPRODUCT(LARGE($C138:$AU138,{1,2,3,4,5,6,7,8})),"")),"") -> 
AW139: 0 | AX139: 0 | AY139: =IF($AX139<=6,SUM($C139:$AU139),SUMPRODUCT(LARGE($C139:$AU139,{1,2,3,4,5,6}))) -> 0 | BA139: =IF(AZ139= "","",IFERROR(SUMPRODUCT(LARGE($C139:$AU139,{1,2,3,4})), "")) ->  | BB139: =IF(BA139<>"",(IFERROR(SUMPRODUCT(LARGE($C139:$AU139,{1,2,3,4,5,6,7})),"")),"") ->  | BC139: =IF(BB139<>"",(IFERROR(SUMPRODUCT(LARGE($C139:$AU139,{1,2,3,4,5,6,7,8})),"")),"") -> 
AW140: 0 | AX140: 0 | AY140: =IF($AX140<=6,SUM($C140:$AU140),SUMPRODUCT(LARGE($C140:$AU140,{1,2,3,4,5,6}))) -> 0 | BA140: =IF(AZ140= "","",IFERROR(SUMPRODUCT(LARGE($C140:$AU140,{1,2,3,4})), "")) ->  | BB140: =IF(BA140<>"",(IFERROR(SUMPRODUCT(LARGE($C140:$AU140,{1,2,3,4,5,6,7})),"")),"") ->  | BC140: =IF(BB140<>"",(IFERROR(SUMPRODUCT(LARGE($C140:$AU140,{1,2,3,4,5,6,7,8})),"")),"") -> 
AW141: 0 | AX141: 0 | AY141: =IF($AX141<=6,SUM($C141:$AU141),SUMPRODUCT(LARGE($C141:$AU141,{1,2,3,4,5,6}))) -> 0 | BA141: =IF(AZ141= "","",IFERROR(SUMPRODUCT(LARGE($C141:$AU141,{1,2,3,4})), "")) ->  | BB141: =IF(BA141<>"",(IFERROR(SUMPRODUCT(LARGE($C141:$AU141,{1,2,3,4,5,6,7})),"")),"") ->  | BC141: =IF(BB141<>"",(IFERROR(SUMPRODUCT(LARGE($C141:$AU141,{1,2,3,4,5,6,7,8})),"")),"") -> 
AW142: 0 | AX142: 0 | AY142: =IF($AX142<=6,SUM($C142:$AU142),SUMPRODUCT(LARGE($C142:$AU142,{1,2,3,4,5,6}))) -> 0 | BA142: =IF(AZ142= "","",IFERROR(SUMPRODUCT(LARGE($C142:$AU142,{1,2,3,4})), "")) ->  | BB142: =IF(BA142<>"",(IFERROR(SUMPRODUCT(LARGE($C142:$AU142,{1,2,3,4,5,6,7})),"")),"") ->  | BC142: =IF(BB142<>"",(IFERROR(SUMPRODUCT(LARGE($C142:$AU142,{1,2,3,4,5,6,7,8})),"")),"") -> 
AW143: 0 | AX143: 0 | AY143: =IF($AX143<=6,SUM($C143:$AU143),SUMPRODUCT(LARGE($C143:$AU143,{1,2,3,4,5,6}))) -> 0 | BA143: =IF(AZ143= "","",IFERROR(SUMPRODUCT(LARGE($C143:$AU143,{1,2,3,4})), "")) ->  | BB143: =IF(BA143<>"",(IFERROR(SUMPRODUCT(LARGE($C143:$AU143,{1,2,3,4,5,6,7})),"")),"") ->  | BC143: =IF(BB143<>"",(IFERROR(SUMPRODUCT(LARGE($C143:$AU143,{1,2,3,4,5,6,7,8})),"")),"") -> 
AW144: 0 | AX144: 0 | AY144: =IF($AX144<=6,SUM($C144:$AU144),SUMPRODUCT(LARGE($C144:$AU144,{1,2,3,4,5,6}))) -> 0 | BA144: =IF(AZ144= "","",IFERROR(SUMPRODUCT(LARGE($C144:$AU144,{1,2,3,4})), "")) ->  | BB144: =IF(BA144<>"",(IFERROR(SUMPRODUCT(LARGE($C144:$AU144,{1,2,3,4,5,6,7})),"")),"") ->  | BC144: =IF(BB144<>"",(IFERROR(SUMPRODUCT(LARGE($C144:$AU144,{1,2,3,4,5,6,7,8})),"")),"") -> 
AW145: 0 | AX145: 0 | AY145: =IF($AX145<=6,SUM($C145:$AU145),SUMPRODUCT(LARGE($C145:$AU145,{1,2,3,4,5,6}))) -> 0 | BA145: =IF(AZ145= "","",IFERROR(SUMPRODUCT(LARGE($C145:$AU145,{1,2,3,4})), "")) ->  | BB145: =IF(BA145<>"",(IFERROR(SUMPRODUCT(LARGE($C145:$AU145,{1,2,3,4,5,6,7})),"")),"") ->  | BC145: =IF(BB145<>"",(IFERROR(SUMPRODUCT(LARGE($C145:$AU145,{1,2,3,4,5,6,7,8})),"")),"") -> 
AW146: 0 | AX146: 0 | AY146: =IF($AX146<=6,SUM($C146:$AU146),SUMPRODUCT(LARGE($C146:$AU146,{1,2,3,4,5,6}))) -> 0 | BA146: =IF(AZ146= "","",IFERROR(SUMPRODUCT(LARGE($C146:$AU146,{1,2,3,4})), "")) ->  | BB146: =IF(BA146<>"",(IFERROR(SUMPRODUCT(LARGE($C146:$AU146,{1,2,3,4,5,6,7})),"")),"") ->  | BC146: =IF(BB146<>"",(IFERROR(SUMPRODUCT(LARGE($C146:$AU146,{1,2,3,4,5,6,7,8})),"")),"") -> 
AW147: 0 | AX147: 0 | AY147: =IF($AX147<=6,SUM($C147:$AU147),SUMPRODUCT(LARGE($C147:$AU147,{1,2,3,4,5,6}))) -> 0 | BA147: =IF(AZ147= "","",IFERROR(SUMPRODUCT(LARGE($C147:$AU147,{1,2,3,4})), "")) ->  | BB147: =IF(BA147<>"",(IFERROR(SUMPRODUCT(LARGE($C147:$AU147,{1,2,3,4,5,6,7})),"")),"") ->  | BC147: =IF(BB147<>"",(IFERROR(SUMPRODUCT(LARGE($C147:$AU147,{1,2,3,4,5,6,7,8})),"")),"") -> 
AW148: 0 | AX148: 0 | AY148: =IF($AX148<=6,SUM($C148:$AU148),SUMPRODUCT(LARGE($C148:$AU148,{1,2,3,4,5,6}))) -> 0 | BA148: =IF(AZ148= "","",IFERROR(SUMPRODUCT(LARGE($C148:$AU148,{1,2,3,4})), "")) ->  | BB148: =IF(BA148<>"",(IFERROR(SUMPRODUCT(LARGE($C148:$AU148,{1,2,3,4,5,6,7})),"")),"") ->  | BC148: =IF(BB148<>"",(IFERROR(SUMPRODUCT(LARGE($C148:$AU148,{1,2,3,4,5,6,7,8})),"")),"") -> 
AW149: 0 | AX149: 0 | AY149: =IF($AX149<=6,SUM($C149:$AU149),SUMPRODUCT(LARGE($C149:$AU149,{1,2,3,4,5,6}))) -> 0 | BA149: =IF(AZ149= "","",IFERROR(SUMPRODUCT(LARGE($C149:$AU149,{1,2,3,4})), "")) ->  | BB149: =IF(BA149<>"",(IFERROR(SUMPRODUCT(LARGE($C149:$AU149,{1,2,3,4,5,6,7})),"")),"") ->  | BC149: =IF(BB149<>"",(IFERROR(SUMPRODUCT(LARGE($C149:$AU149,{1,2,3,4,5,6,7,8})),"")),"") -> 
AW150: 0 | AX150: 0 | AY150: =IF($AX150<=6,SUM($C150:$AU150),SUMPRODUCT(LARGE($C150:$AU150,{1,2,3,4,5,6}))) -> 0 | BA150: =IF(AZ150= "","",IFERROR(SUMPRODUCT(LARGE($C150:$AU150,{1,2,3,4})), "")) ->  | BB150: =IF(BA150<>"",(IFERROR(SUMPRODUCT(LARGE($C150:$AU150,{1,2,3,4,5,6,7})),"")),"") ->  | BC150: =IF(BB150<>"",(IFERROR(SUMPRODUCT(LARGE($C150:$AU150,{1,2,3,4,5,6,7,8})),"")),"") -> 
AW151: 0 | AX151: 0 | AY151: =IF($AX151<=6,SUM($C151:$AU151),SUMPRODUCT(LARGE($C151:$AU151,{1,2,3,4,5,6}))) -> 0 | BA151: =IF(AZ151= "","",IFERROR(SUMPRODUCT(LARGE($C151:$AU151,{1,2,3,4})), "")) ->  | BB151: =IF(BA151<>"",(IFERROR(SUMPRODUCT(LARGE($C151:$AU151,{1,2,3,4,5,6,7})),"")),"") ->  | BC151: =IF(BB151<>"",(IFERROR(SUMPRODUCT(LARGE($C151:$AU151,{1,2,3,4,5,6,7,8})),"")),"") -> 
AW152: 0 | AX152: 0 | AY152: =IF($AX152<=6,SUM($C152:$AU152),SUMPRODUCT(LARGE($C152:$AU152,{1,2,3,4,5,6}))) -> 0 | BA152: =IF(AZ152= "","",IFERROR(SUMPRODUCT(LARGE($C152:$AU152,{1,2,3,4})), "")) ->  | BB152: =IF(BA152<>"",(IFERROR(SUMPRODUCT(LARGE($C152:$AU152,{1,2,3,4,5,6,7})),"")),"") ->  | BC152: =IF(BB152<>"",(IFERROR(SUMPRODUCT(LARGE($C152:$AU152,{1,2,3,4,5,6,7,8})),"")),"") -> 
AW153: 0 | AX153: 0 | AY153: =IF($AX153<=6,SUM($C153:$AU153),SUMPRODUCT(LARGE($C153:$AU153,{1,2,3,4,5,6}))) -> 0 | BA153: =IF(AZ153= "","",IFERROR(SUMPRODUCT(LARGE($C153:$AU153,{1,2,3,4})), "")) ->  | BB153: =IF(BA153<>"",(IFERROR(SUMPRODUCT(LARGE($C153:$AU153,{1,2,3,4,5,6,7})),"")),"") ->  | BC153: =IF(BB153<>"",(IFERROR(SUMPRODUCT(LARGE($C153:$AU153,{1,2,3,4,5,6,7,8})),"")),"") -> 
AW154: 0 | AX154: 0 | AY154: =IF($AX154<=6,SUM($C154:$AU154),SUMPRODUCT(LARGE($C154:$AU154,{1,2,3,4,5,6}))) -> 0 | BA154: =IF(AZ154= "","",IFERROR(SUMPRODUCT(LARGE($C154:$AU154,{1,2,3,4})), "")) ->  | BB154: =IF(BA154<>"",(IFERROR(SUMPRODUCT(LARGE($C154:$AU154,{1,2,3,4,5,6,7})),"")),"") ->  | BC154: =IF(BB154<>"",(IFERROR(SUMPRODUCT(LARGE($C154:$AU154,{1,2,3,4,5,6,7,8})),"")),"") -> 
AW155: 0 | AX155: 0 | AY155: =IF($AX155<=6,SUM($C155:$AU155),SUMPRODUCT(LARGE($C155:$AU155,{1,2,3,4,5,6}))) -> 0 | BA155: =IF(AZ155= "","",IFERROR(SUMPRODUCT(LARGE($C155:$AU155,{1,2,3,4})), "")) ->  | BB155: =IF(BA155<>"",(IFERROR(SUMPRODUCT(LARGE($C155:$AU155,{1,2,3,4,5,6,7})),"")),"") ->  | BC155: =IF(BB155<>"",(IFERROR(SUMPRODUCT(LARGE($C155:$AU155,{1,2,3,4,5,6,7,8})),"")),"") -> 
AW156: 0 | AX156: 0 | AY156: =IF($AX156<=6,SUM($C156:$AU156),SUMPRODUCT(LARGE($C156:$AU156,{1,2,3,4,5,6}))) -> 0 | BA156: =IF(AZ156= "","",IFERROR(SUMPRODUCT(LARGE($C156:$AU156,{1,2,3,4})), "")) ->  | BB156: =IF(BA156<>"",(IFERROR(SUMPRODUCT(LARGE($C156:$AU156,{1,2,3,4,5,6,7})),"")),"") ->  | BC156: =IF(BB156<>"",(IFERROR(SUMPRODUCT(LARGE($C156:$AU156,{1,2,3,4,5,6,7,8})),"")),"") -> 
AW157: 0 | AX157: 0 | AY157: =IF($AX157<=6,SUM($C157:$AU157),SUMPRODUCT(LARGE($C157:$AU157,{1,2,3,4,5,6}))) -> 0 | BA157: =IF(AZ157= "","",IFERROR(SUMPRODUCT(LARGE($C157:$AU157,{1,2,3,4})), "")) ->  | BB157: =IF(BA157<>"",(IFERROR(SUMPRODUCT(LARGE($C157:$AU157,{1,2,3,4,5,6,7})),"")),"") ->  | BC157: =IF(BB157<>"",(IFERROR(SUMPRODUCT(LARGE($C157:$AU157,{1,2,3,4,5,6,7,8})),"")),"") -> 
AW158: 0 | AX158: 0 | AY158: =IF($AX158<=6,SUM($C158:$AU158),SUMPRODUCT(LARGE($C158:$AU158,{1,2,3,4,5,6}))) -> 0 | BA158: =IF(AZ158= "","",IFERROR(SUMPRODUCT(LARGE($C158:$AU158,{1,2,3,4})), "")) ->  | BB158: =IF(BA158<>"",(IFERROR(SUMPRODUCT(LARGE($C158:$AU158,{1,2,3,4,5,6,7})),"")),"") ->  | BC158: =IF(BB158<>"",(IFERROR(SUMPRODUCT(LARGE($C158:$AU158,{1,2,3,4,5,6,7,8})),"")),"") -> 
AW159: 0 | AX159: 0 | AY159: =IF($AX159<=6,SUM($C159:$AU159),SUMPRODUCT(LARGE($C159:$AU159,{1,2,3,4,5,6}))) -> 0 | BA159: =IF(AZ159= "","",IFERROR(SUMPRODUCT(LARGE($C159:$AU159,{1,2,3,4})), "")) ->  | BB159: =IF(BA159<>"",(IFERROR(SUMPRODUCT(LARGE($C159:$AU159,{1,2,3,4,5,6,7})),"")),"") ->  | BC159: =IF(BB159<>"",(IFERROR(SUMPRODUCT(LARGE($C159:$AU159,{1,2,3,4,5,6,7,8})),"")),"") -> 
AW160: 0 | AX160: 0 | AY160: =IF($AX160<=6,SUM($C160:$AU160),SUMPRODUCT(LARGE($C160:$AU160,{1,2,3,4,5,6}))) -> 0 | BA160: =IF(AZ160= "","",IFERROR(SUMPRODUCT(LARGE($C160:$AU160,{1,2,3,4})), "")) ->  | BB160: =IF(BA160<>"",(IFERROR(SUMPRODUCT(LARGE($C160:$AU160,{1,2,3,4,5,6,7})),"")),"") ->  | BC160: =IF(BB160<>"",(IFERROR(SUMPRODUCT(LARGE($C160:$AU160,{1,2,3,4,5,6,7,8})),"")),"") -> 
AW161: 0 | AX161: 0 | AY161: =IF($AX161<=6,SUM($C161:$AU161),SUMPRODUCT(LARGE($C161:$AU161,{1,2,3,4,5,6}))) -> 0 | BA161: =IF(AZ161= "","",IFERROR(SUMPRODUCT(LARGE($C161:$AU161,{1,2,3,4})), "")) ->  | BB161: =IF(BA161<>"",(IFERROR(SUMPRODUCT(LARGE($C161:$AU161,{1,2,3,4,5,6,7})),"")),"") ->  | BC161: =IF(BB161<>"",(IFERROR(SUMPRODUCT(LARGE($C161:$AU161,{1,2,3,4,5,6,7,8})),"")),"") -> 
AW162: 0 | AX162: 0 | AY162: =IF($AX162<=6,SUM($C162:$AU162),SUMPRODUCT(LARGE($C162:$AU162,{1,2,3,4,5,6}))) -> 0 | BA162: =IF(AZ162= "","",IFERROR(SUMPRODUCT(LARGE($C162:$AU162,{1,2,3,4})), "")) ->  | BB162: =IF(BA162<>"",(IFERROR(SUMPRODUCT(LARGE($C162:$AU162,{1,2,3,4,5,6,7})),"")),"") ->  | BC162: =IF(BB162<>"",(IFERROR(SUMPRODUCT(LARGE($C162:$AU162,{1,2,3,4,5,6,7,8})),"")),"") -> 
AW163: 0 | AX163: 0 | AY163: =IF($AX163<=6,SUM($C163:$AU163),SUMPRODUCT(LARGE($C163:$AU163,{1,2,3,4,5,6}))) -> 0 | BA163: =IF(AZ163= "","",IFERROR(SUMPRODUCT(LARGE($C163:$AU163,{1,2,3,4})), "")) ->  | BB163: =IF(BA163<>"",(IFERROR(SUMPRODUCT(LARGE($C163:$AU163,{1,2,3,4,5,6,7})),"")),"") ->  | BC163: =IF(BB163<>"",(IFERROR(SUMPRODUCT(LARGE($C163:$AU163,{1,2,3,4,5,6,7,8})),"")),"") -> 
AW164: 0 | AX164: 0 | AY164: =IF($AX164<=6,SUM($C164:$AU164),SUMPRODUCT(LARGE($C164:$AU164,{1,2,3,4,5,6}))) -> 0 | BA164: =IF(AZ164= "","",IFERROR(SUMPRODUCT(LARGE($C164:$AU164,{1,2,3,4})), "")) ->  | BB164: =IF(BA164<>"",(IFERROR(SUMPRODUCT(LARGE($C164:$AU164,{1,2,3,4,5,6,7})),"")),"") ->  | BC164: =IF(BB164<>"",(IFERROR(SUMPRODUCT(LARGE($C164:$AU164,{1,2,3,4,5,6,7,8})),"")),"") -> 
AW165: 0 | AX165: 0 | AY165: =IF($AX165<=6,SUM($C165:$AU165),SUMPRODUCT(LARGE($C165:$AU165,{1,2,3,4,5,6}))) -> 0 | BA165: =IF(AZ165= "","",IFERROR(SUMPRODUCT(LARGE($C165:$AU165,{1,2,3,4})), "")) ->  | BB165: =IF(BA165<>"",(IFERROR(SUMPRODUCT(LARGE($C165:$AU165,{1,2,3,4,5,6,7})),"")),"") ->  | BC165: =IF(BB165<>"",(IFERROR(SUMPRODUCT(LARGE($C165:$AU165,{1,2,3,4,5,6,7,8})),"")),"") -> 
AW166: 0 | AX166: 0 | AY166: =IF($AX166<=6,SUM($C166:$AU166),SUMPRODUCT(LARGE($C166:$AU166,{1,2,3,4,5,6}))) -> 0 | BA166: =IF(AZ166= "","",IFERROR(SUMPRODUCT(LARGE($C166:$AU166,{1,2,3,4})), "")) ->  | BB166: =IF(BA166<>"",(IFERROR(SUMPRODUCT(LARGE($C166:$AU166,{1,2,3,4,5,6,7})),"")),"") ->  | BC166: =IF(BB166<>"",(IFERROR(SUMPRODUCT(LARGE($C166:$AU166,{1,2,3,4,5,6,7,8})),"")),"") -> 
AW167: 0 | AX167: 0 | AY167: =IF($AX167<=6,SUM($C167:$AU167),SUMPRODUCT(LARGE($C167:$AU167,{1,2,3,4,5,6}))) -> 0 | BA167: =IF(AZ167= "","",IFERROR(SUMPRODUCT(LARGE($C167:$AU167,{1,2,3,4})), "")) ->  | BB167: =IF(BA167<>"",(IFERROR(SUMPRODUCT(LARGE($C167:$AU167,{1,2,3,4,5,6,7})),"")),"") ->  | BC167: =IF(BB167<>"",(IFERROR(SUMPRODUCT(LARGE($C167:$AU167,{1,2,3,4,5,6,7,8})),"")),"") -> 
AW168: 0 | AX168: 0 | AY168: =IF($AX168<=6,SUM($C168:$AU168),SUMPRODUCT(LARGE($C168:$AU168,{1,2,3,4,5,6}))) -> 0 | BA168: =IF(AZ168= "","",IFERROR(SUMPRODUCT(LARGE($C168:$AU168,{1,2,3,4})), "")) ->  | BB168: =IF(BA168<>"",(IFERROR(SUMPRODUCT(LARGE($C168:$AU168,{1,2,3,4,5,6,7})),"")),"") ->  | BC168: =IF(BB168<>"",(IFERROR(SUMPRODUCT(LARGE($C168:$AU168,{1,2,3,4,5,6,7,8})),"")),"") -> 
AW169: 0 | AX169: 0 | AY169: =IF($AX169<=6,SUM($C169:$AU169),SUMPRODUCT(LARGE($C169:$AU169,{1,2,3,4,5,6}))) -> 0 | BA169: =IF(AZ169= "","",IFERROR(SUMPRODUCT(LARGE($C169:$AU169,{1,2,3,4})), "")) ->  | BB169: =IF(BA169<>"",(IFERROR(SUMPRODUCT(LARGE($C169:$AU169,{1,2,3,4,5,6,7})),"")),"") ->  | BC169: =IF(BB169<>"",(IFERROR(SUMPRODUCT(LARGE($C169:$AU169,{1,2,3,4,5,6,7,8})),"")),"") -> 
AW170: 0 | AX170: 0 | AY170: =IF($AX170<=6,SUM($C170:$AU170),SUMPRODUCT(LARGE($C170:$AU170,{1,2,3,4,5,6}))) -> 0 | BA170: =IF(AZ170= "","",IFERROR(SUMPRODUCT(LARGE($C170:$AU170,{1,2,3,4})), "")) ->  | BB170: =IF(BA170<>"",(IFERROR(SUMPRODUCT(LARGE($C170:$AU170,{1,2,3,4,5,6,7})),"")),"") ->  | BC170: =IF(BB170<>"",(IFERROR(SUMPRODUCT(LARGE($C170:$AU170,{1,2,3,4,5,6,7,8})),"")),"") -> 
AW171: 0 | AX171: 0 | AY171: =IF($AX171<=6,SUM($C171:$AU171),SUMPRODUCT(LARGE($C171:$AU171,{1,2,3,4,5,6}))) -> 0 | BA171: =IF(AZ171= "","",IFERROR(SUMPRODUCT(LARGE($C171:$AU171,{1,2,3,4})), "")) ->  | BB171: =IF(BA171<>"",(IFERROR(SUMPRODUCT(LARGE($C171:$AU171,{1,2,3,4,5,6,7})),"")),"") ->  | BC171: =IF(BB171<>"",(IFERROR(SUMPRODUCT(LARGE($C171:$AU171,{1,2,3,4,5,6,7,8})),"")),"") -> 
AW172: 0 | AX172: 0 | AY172: =IF($AX172<=6,SUM($C172:$AU172),SUMPRODUCT(LARGE($C172:$AU172,{1,2,3,4,5,6}))) -> 0 | BA172: =IF(AZ172= "","",IFERROR(SUMPRODUCT(LARGE($C172:$AU172,{1,2,3,4})), "")) ->  | BB172: =IF(BA172<>"",(IFERROR(SUMPRODUCT(LARGE($C172:$AU172,{1,2,3,4,5,6,7})),"")),"") ->  | BC172: =IF(BB172<>"",(IFERROR(SUMPRODUCT(LARGE($C172:$AU172,{1,2,3,4,5,6,7,8})),"")),"") -> 
AW173: 0 | AX173: 0 | AY173: =IF($AX173<=6,SUM($C173:$AU173),SUMPRODUCT(LARGE($C173:$AU173,{1,2,3,4,5,6}))) -> 0 | BA173: =IF(AZ173= "","",IFERROR(SUMPRODUCT(LARGE($C173:$AU173,{1,2,3,4})), "")) ->  | BB173: =IF(BA173<>"",(IFERROR(SUMPRODUCT(LARGE($C173:$AU173,{1,2,3,4,5,6,7})),"")),"") ->  | BC173: =IF(BB173<>"",(IFERROR(SUMPRODUCT(LARGE($C173:$AU173,{1,2,3,4,5,6,7,8})),"")),"") -> 
AW174: 0 | AX174: 0 | AY174: =IF($AX174<=6,SUM($C174:$AU174),SUMPRODUCT(LARGE($C174:$AU174,{1,2,3,4,5,6}))) -> 0 | BA174: =IF(AZ174= "","",IFERROR(SUMPRODUCT(LARGE($C174:$AU174,{1,2,3,4})), "")) ->  | BB174: =IF(BA174<>"",(IFERROR(SUMPRODUCT(LARGE($C174:$AU174,{1,2,3,4,5,6,7})),"")),"") ->  | BC174: =IF(BB174<>"",(IFERROR(SUMPRODUCT(LARGE($C174:$AU174,{1,2,3,4,5,6,7,8})),"")),"") -> 
AW175: 0 | AX175: 0 | AY175: =IF($AX175<=6,SUM($C175:$AU175),SUMPRODUCT(LARGE($C175:$AU175,{1,2,3,4,5,6}))) -> 0 | BA175: =IF(AZ175= "","",IFERROR(SUMPRODUCT(LARGE($C175:$AU175,{1,2,3,4})), "")) ->  | BB175: =IF(BA175<>"",(IFERROR(SUMPRODUCT(LARGE($C175:$AU175,{1,2,3,4,5,6,7})),"")),"") ->  | BC175: =IF(BB175<>"",(IFERROR(SUMPRODUCT(LARGE($C175:$AU175,{1,2,3,4,5,6,7,8})),"")),"") -> 
AW176: 0 | AX176: 0 | AY176: =IF($AX176<=6,SUM($C176:$AU176),SUMPRODUCT(LARGE($C176:$AU176,{1,2,3,4,5,6}))) -> 0 | BA176: =IF(AZ176= "","",IFERROR(SUMPRODUCT(LARGE($C176:$AU176,{1,2,3,4})), "")) ->  | BB176: =IF(BA176<>"",(IFERROR(SUMPRODUCT(LARGE($C176:$AU176,{1,2,3,4,5,6,7})),"")),"") ->  | BC176: =IF(BB176<>"",(IFERROR(SUMPRODUCT(LARGE($C176:$AU176,{1,2,3,4,5,6,7,8})),"")),"") -> 
AW177: 0 | AX177: 0 | AY177: =IF($AX177<=6,SUM($C177:$AU177),SUMPRODUCT(LARGE($C177:$AU177,{1,2,3,4,5,6}))) -> 0 | BA177: =IF(AZ177= "","",IFERROR(SUMPRODUCT(LARGE($C177:$AU177,{1,2,3,4})), "")) ->  | BB177: =IF(BA177<>"",(IFERROR(SUMPRODUCT(LARGE($C177:$AU177,{1,2,3,4,5,6,7})),"")),"") ->  | BC177: =IF(BB177<>"",(IFERROR(SUMPRODUCT(LARGE($C177:$AU177,{1,2,3,4,5,6,7,8})),"")),"") -> 
AW178: 0 | AX178: 0 | AY178: =IF($AX178<=6,SUM($C178:$AU178),SUMPRODUCT(LARGE($C178:$AU178,{1,2,3,4,5,6}))) -> 0 | BA178: =IF(AZ178= "","",IFERROR(SUMPRODUCT(LARGE($C178:$AU178,{1,2,3,4})), "")) ->  | BB178: =IF(BA178<>"",(IFERROR(SUMPRODUCT(LARGE($C178:$AU178,{1,2,3,4,5,6,7})),"")),"") ->  | BC178: =IF(BB178<>"",(IFERROR(SUMPRODUCT(LARGE($C178:$AU178,{1,2,3,4,5,6,7,8})),"")),"") -> 
AW179: 0 | AX179: 0 | AY179: =IF($AX179<=6,SUM($C179:$AU179),SUMPRODUCT(LARGE($C179:$AU179,{1,2,3,4,5,6}))) -> 0 | BA179: =IF(AZ179= "","",IFERROR(SUMPRODUCT(LARGE($C179:$AU179,{1,2,3,4})), "")) ->  | BB179: =IF(BA179<>"",(IFERROR(SUMPRODUCT(LARGE($C179:$AU179,{1,2,3,4,5,6,7})),"")),"") ->  | BC179: =IF(BB179<>"",(IFERROR(SUMPRODUCT(LARGE($C179:$AU179,{1,2,3,4,5,6,7,8})),"")),"") -> 
AW180: 0 | AX180: 0 | AY180: =IF($AX180<=6,SUM($C180:$AU180),SUMPRODUCT(LARGE($C180:$AU180,{1,2,3,4,5,6}))) -> 0 | BA180: =IF(AZ180= "","",IFERROR(SUMPRODUCT(LARGE($C180:$AU180,{1,2,3,4})), "")) ->  | BB180: =IF(BA180<>"",(IFERROR(SUMPRODUCT(LARGE($C180:$AU180,{1,2,3,4,5,6,7})),"")),"") ->  | BC180: =IF(BB180<>"",(IFERROR(SUMPRODUCT(LARGE($C180:$AU180,{1,2,3,4,5,6,7,8})),"")),"") -> 
AW181: 0 | AX181: 0 | AY181: =IF($AX181<=6,SUM($C181:$AU181),SUMPRODUCT(LARGE($C181:$AU181,{1,2,3,4,5,6}))) -> 0 | BA181: =IF(AZ181= "","",IFERROR(SUMPRODUCT(LARGE($C181:$AU181,{1,2,3,4})), "")) ->  | BB181: =IF(BA181<>"",(IFERROR(SUMPRODUCT(LARGE($C181:$AU181,{1,2,3,4,5,6,7})),"")),"") ->  | BC181: =IF(BB181<>"",(IFERROR(SUMPRODUCT(LARGE($C181:$AU181,{1,2,3,4,5,6,7,8})),"")),"") -> 
AW182: 0 | AX182: 0 | AY182: =IF($AX182<=6,SUM($C182:$AU182),SUMPRODUCT(LARGE($C182:$AU182,{1,2,3,4,5,6}))) -> 0 | BA182: =IF(AZ182= "","",IFERROR(SUMPRODUCT(LARGE($C182:$AU182,{1,2,3,4})), "")) ->  | BB182: =IF(BA182<>"",(IFERROR(SUMPRODUCT(LARGE($C182:$AU182,{1,2,3,4,5,6,7})),"")),"") ->  | BC182: =IF(BB182<>"",(IFERROR(SUMPRODUCT(LARGE($C182:$AU182,{1,2,3,4,5,6,7,8})),"")),"") -> 
AW183: 0 | AX183: 0 | AY183: =IF($AX183<=6,SUM($C183:$AU183),SUMPRODUCT(LARGE($C183:$AU183,{1,2,3,4,5,6}))) -> 0 | BA183: =IF(AZ183= "","",IFERROR(SUMPRODUCT(LARGE($C183:$AU183,{1,2,3,4})), "")) ->  | BB183: =IF(BA183<>"",(IFERROR(SUMPRODUCT(LARGE($C183:$AU183,{1,2,3,4,5,6,7})),"")),"") ->  | BC183: =IF(BB183<>"",(IFERROR(SUMPRODUCT(LARGE($C183:$AU183,{1,2,3,4,5,6,7,8})),"")),"") -> 
AW184: 0 | AX184: 0 | AY184: =IF($AX184<=6,SUM($C184:$AU184),SUMPRODUCT(LARGE($C184:$AU184,{1,2,3,4,5,6}))) -> 0 | BA184: =IF(AZ184= "","",IFERROR(SUMPRODUCT(LARGE($C184:$AU184,{1,2,3,4})), "")) ->  | BB184: =IF(BA184<>"",(IFERROR(SUMPRODUCT(LARGE($C184:$AU184,{1,2,3,4,5,6,7})),"")),"") ->  | BC184: =IF(BB184<>"",(IFERROR(SUMPRODUCT(LARGE($C184:$AU184,{1,2,3,4,5,6,7,8})),"")),"") -> 
AW185: 0 | AX185: 0 | AY185: =IF($AX185<=6,SUM($C185:$AU185),SUMPRODUCT(LARGE($C185:$AU185,{1,2,3,4,5,6}))) -> 0 | BA185: =IF(AZ185= "","",IFERROR(SUMPRODUCT(LARGE($C185:$AU185,{1,2,3,4})), "")) ->  | BB185: =IF(BA185<>"",(IFERROR(SUMPRODUCT(LARGE($C185:$AU185,{1,2,3,4,5,6,7})),"")),"") ->  | BC185: =IF(BB185<>"",(IFERROR(SUMPRODUCT(LARGE($C185:$AU185,{1,2,3,4,5,6,7,8})),"")),"") -> 
